Workbook

Sheet PI vs gap
A1: Measurement | B1: Hall
A2: Type | B2: Off-axis
A4: PS type | B4: SXR
A5: PS serial no | B5: 16334
A7: Measurement date | B7: ='DF raw data'!B2 -> 6. feb 2017
C11: Nominal gap [mm] | D11: Encoder [counts] | E11: Encoder [mm] | F11: PI [T^2mm^3] | G11: y [mm] | H11: Encoder offset
C12: 10 | D12: =' 10 y=-0.2'!B3 -> 390621 | E12: =(D12-$H$12)*0.00005+10 -> 9.9975 | F12: =' 10 y=-0.2'!Q3 -> 4521.589919 | G12: -0.2 | H12: 390671
C13: 10 | D13: ='10 y=-0.1'!B3 -> 390622 | E13: =(D13-$H$12)*0.00005+10 -> 9.99755 | F13: ='10 y=-0.1'!Q3 -> 4522.414431 | G13: -0.1
C14: 10 | D14: ='10 y=0'!B3 -> 390616 | E14: 9.99725 | F14: ='10 y=0'!Q3 -> 4522.756413 | G14: 0
C15: 10 | D15: ='10 y=0.1'!B3 -> 390623 | E15: 9.9976 | F15: ='10 y=0.1'!Q3 -> 4524.62229 | G15: 0.1
C16: 10 | D16: ='10 y=0.2'!B3 -> 390624 | E16: 9.99765 | F16: ='10 y=0.2'!Q3 -> 4527.511132 | G16: 0.2
A42: Reference magnet
A43: Tref | B43: 20.67 | C43: degC
A44: Hall ref field | B44: 0.50549 | C44: T
A45: NMR ref field | B45: 0.506615 | C45: T

Sheet 10 y=-0.2
A1: dz | B1: ='DF raw data'!B7 -> 0.50019 | C1: mm | F1: T_coeff | G1: -0.0008 | H1: /degC | L1: Hallref | M1: ='PI vs gap'!B44 -> 0.50549 | N1: T | P1: IBy total | Q1: =P1203*1000 -> -6.891596882 | R1: muTm
A2: Tref | B2: ='DF raw data'!B8 -> 20.79 | C2: degC | F2: Tcorr | G2: 20 | H2: degC | L2: NMRref | M2: ='PI vs gap'!B45 -> 0.506615 | N2: T | P2: JBy total | Q2: =Q1203 -> -6.716611219 | R2: muTm^2
A3: Encoder | B3: ='DF raw data'!B9 -> 390621 | P3: PI total | Q3: =R1203 -> 4521.589919 | R3: T^2mm^3
J4: SXR-rotation
A5: z [mm] | B5: Bx | C5: By | D5: Bz | F5: Bx_corr | G5: By_corr | H5: Bz_corr | J5: Bx_rot | K5: By_rot | L5: Bz_rot | N5: Ix | O5: Jx | P5: Iy | Q5: Jy | R5: PI
A6: 0 | B6: ='DF raw data'!A11 -> -4.4779258e-06 | C6: ='DF raw data'!B11 -> -9.2996315e-06 | D6: ='DF raw data'!C11 -> 2.8549762e-06 | F6: =(1-$G$1*($B$2-$G$2))*B6 -> -4.480755849e-06 | G6: =(1-$G$1*($B$2-$G$2))*C6*$M$2/$M$1 -> -9.326218866e-06 | H6: =(1-$G$1*($B$2-$G$2))*D6 -> 2.856780545e-06 | J6: =-CELL("contents", INDEX($F$6:$F$1203,1204-CELL("row",F6))) -> -1.831586932e-06 | K6: =CELL("contents", INDEX($G$6:$G$1203,1204-CELL("row",G6))) -> -1.105087706e-05 | L6: =-CELL("contents", INDEX($H$6:$H$1203,1204-CELL("row",H6))) -> 4.160852798e-06 | N6: =J6*$B$1 -> -9.161414674e-07 | O6: =N6*$B$1 -> -4.582448006e-07 | P6: =K6*$B$1 -> -5.527538194e-06 | Q6: =P6*$B$1 -> -2.764819329e-06 | R6: =(N6^2+P6)^2*$B$1 -> 1.52826398e-11
A7: =A6+$B$1 -> 0.50019 | B7: ='DF raw data'!A12 -> -5.407278e-06 | C7: ='DF raw data'!B12 -> 1.4693112e-05 | D7: ='DF raw data'!C12 -> -4.2299039e-06 | F7: =(1-$G$1*($B$2-$G$2))*B7 -> -5.4106954e-06 | G7: =(1-$G$1*($B$2-$G$2))*C7*$M$2/$M$1 -> 1.473511916e-05 | H7: =(1-$G$1*($B$2-$G$2))*D7 -> -4.232577199e-06 | J7: =-CELL("contents", INDEX($F$6:$F$1203,1204-CELL("row",F7))) -> 6.142558445e-07 | K7: =CELL("contents", INDEX($G$6:$G$1203,1204-CELL("row",G7))) -> -2.12490482e-06 | L7: =-CELL("contents", INDEX($H$6:$H$1203,1204-CELL("row",H7))) -> 4.541849736e-06 | N7: =J7*$B$1+N6 -> -6.088968366e-07 | O7: =N7*$B$1+O6 -> -7.628089093e-07 | P7: =K7*$B$1+P6 -> -6.590394336e-06 | Q7: =P7*$B$1+Q6 -> -6.061268672e-06 | R7: =(N7^2+P7^2)*$B$1+R6 -> 3.719298901e-11
A8: =A7+$B$1 -> 1.00038 | B8: ='DF raw data'!A13 -> -4.9166697e-06 | C8: ='DF raw data'!B13 -> 2.7657271e-07 | D8: ='DF raw data'!C13 -> -8.9099194e-06 | F8: -4.919777035e-06 | G8: 2.77363423e-07 | H8: -8.915550469e-06 | J8: -2.615786633e-06 | K8: -9.47715235e-06 | L8: 4.775069638e-06 | N8: =J8*$B$1+N7 -> -1.917287153e-06 | O8: =N8*$B$1+O7 -> -1.72181677e-06 | P8: =K8*$B$1+P7 -> -1.133077117e-05 | Q8: =P8*$B$1+Q7 -> -1.17288071e-05 | R8: =(N8^2+P8^2)*$B$1+R7 -> 1.032492635e-10
A9: 1.50057 | B9: ='DF raw data'!A14 -> -4.5747124e-06 | C9: ='DF raw data'!B14 -> -6.5160721e-06 | D9: ='DF raw data'!C14 -> 6.3601797e-06 | F9: -4.577603618e-06 | G9: -6.534701354e-06 | H9: 6.364199334e-06 | J9: -4.92904749e-06 | K9: -5.585195885e-06 | L9: 4.667049813e-06 | N9: -4.382747417e-06 | O9: -3.914023201e-06 | P9: -1.41244303e-05 | Q9: -1.87937059e-05 | R9: 2.126448212e-10
A10: 2.00076 | B10: ='DF raw data'!A15 -> -4.7660833e-06 | C10: ='DF raw data'!B15 -> -2.2362628e-06 | D10: ='DF raw data'!C15 -> 7.8008782e-08 | F10: -4.769095465e-06 | G10: -2.242656208e-06 | H10: 7.805808355e-08 | J10: -3.595352628e-06 | K10: 1.560454775e-06 | L10: 5.14747555e-06 | N10: -6.181106848e-06 | O10: -7.005751035e-06 | P10: -1.334390643e-05 | Q10: -2.546819445e-05 | R10: 3.20818872e-10
A11: 2.50095 | B11: ='DF raw data'!A16 -> -4.8115394e-06 | C11: ='DF raw data'!B16 -> -1.5118868e-06 | D11: ='DF raw data'!C16 -> -3.2596786e-06 | F11: =(1-$G$1*($B$2-$G$2))*B11 -> -4.814580293e-06 | G11: -1.516209239e-06 | H11: =(1-$G$1*($B$2-$G$2))*D11 -> -3.261738717e-06 | J11: -5.837012862e-06 | K11: 5.270511978e-07 | L11: 5.814301618e-06 | N11: -9.100722311e-06 | O11: -1.155784133e-05 | P11: -1.308028069e-05 | Q11: -3.201082005e-05 | R11: 4.478255609e-10
A12: 3.00114 | B12: ='DF raw data'!A17 -> -5.0904187e-06 | C12: ='DF raw data'!B17 -> 5.6703639e-06 | D12: ='DF raw data'!C17 -> -5.4006564e-06 | F12: -5.093635845e-06 | G12: 5.6865753e-06 | H12: -5.404069615e-06 | J12: -7.566447975e-06 | K12: -1.095600459e-05 | L12: 5.250631903e-06 | N12: -1.288538392e-05 | O12: -1.800298151e-05 | P12: -1.856036462e-05 | Q12: -4.129452883e-05 | R12: 7.031826867e-10
A13: 3.50133 | B13: ='DF raw data'!A18 -> -4.9575874e-06 | C13: ='DF raw data'!B18 -> 2.1799087e-06 | D13: ='DF raw data'!C18 -> -4.0236523e-06 | F13: -4.960720595e-06 | G13: 2.186140993e-06 | H13: -4.026195248e-06 | J13: -4.722928506e-06 | K13: -4.530379995e-06 | L13: 4.226383287e-06 | N13: -1.524774553e-05 | O13: -2.562975135e-05 | P13: -2.082641539e-05 | Q13: -5.171169355e-05 | R13: 1.036425932e-09
A14: 4.00152 | B14: ='DF raw data'!A19 -> -4.7680187e-06 | C14: ='DF raw data'!B19 -> -3.2376347e-06 | D14: ='DF raw data'!C19 -> -5.3557328e-06 | F14: -4.771032088e-06 | G14: -3.246891e-06 | H14: -5.359117623e-06 | J14: -4.184095778e-07 | K14: 5.746656781e-06 | L14: 4.628491959e-06 | N14: -1.545702982e-05 | O14: -3.33612031e-05 | P14: -1.795199514e-05 | Q14: -6.069110199e-05 | R14: 1.317129509e-09
A15: 4.50171 | B15: ='DF raw data'!A20 -> -4.5343959e-06 | C15: ='DF raw data'!B20 -> -8.4516987e-06 | D15: ='DF raw data'!C20 -> 1.2252e-06 | F15: -4.537261638e-06 | G15: -8.475861852e-06 | H15: 1.225974326e-06 | J15: -5.027698999e-06 | K15: 9.717429136e-06 | L15: 5.923386216e-06 | N15: -1.797183458e-05 | O15: -4.235053504e-05 | P15: -1.309143426e-05 | Q15: -6.72393065e-05 | R15: 1.564409684e-09
A16: 5.0019 | B16: ='DF raw data'!A21 -> -4.77703e-06 | C16: ='DF raw data'!B21 -> -1.992089e-06 | D16: ='DF raw data'!C21 -> -1.5965674e-07 | F16: -4.780049083e-06 | G16: -1.997784322e-06 | H16: -1.597576431e-07 | J16: -1.194383774e-05 | K16: -9.33571925e-06 | L16: 5.887491244e-06 | N16: -2.394602278e-05 | O16: -5.432809617e-05 | P16: -1.776106767e-05 | Q16: -7.612321493e-05 | R16: 2.009012335e-09
A17: 5.50209 | B17: ='DF raw data'!A22 -> -4.4808626e-06 | C17: ='DF raw data'!B22 -> -9.5478035e-06 | D17: ='DF raw data'!C22 -> 2.7834972e-06 | F17: -4.483694505e-06 | G17: -9.575100383e-06 | H17: 2.78525637e-06 | J17: -8.195225011e-06 | K17: -2.544125543e-06 | L17: 5.100524996e-06 | N17: -2.804519238e-05 | O17: -6.835602095e-05 | P17: -1.903361383e-05 | Q17: -8.564363823e-05 | R17: 2.583636245e-09
A18: 6.00228 | B18: ='DF raw data'!A23 -> -5.0816743e-06 | C18: ='DF raw data'!B23 -> 5.0272456e-06 | D18: ='DF raw data'!C23 -> -7.8244229e-06 | F18: -5.084885918e-06 | G18: 5.041618344e-06 | H18: -7.829367935e-06 | J18: -3.621134912e-06 | K18: 6.736440275e-06 | L18: 5.183903758e-06 | N18: -2.985644785e-05 | O18: -8.32899176e-05 | P18: -1.566411376e-05 | Q18: -9.34786713e-05 | R18: 3.1522382e-09
A19: 6.50247 | B19: ='DF raw data'!A24 -> -4.7250323e-06 | C19: ='DF raw data'!B24 -> -4.045135e-06 | D19: ='DF raw data'!C24 -> -3.7642917e-06 | F19: -4.72801852e-06 | G19: -4.056699919e-06 | H19: -3.766670732e-06 | J19: -3.938327551e-06 | K19: -1.828517874e-06 | L19: 5.434704364e-06 | N19: -3.182635991e-05 | O19: -9.920914456e-05 | P19: -1.657872012e-05 | Q19: -0.0001017711813 | R19: 3.79636845e-09
A20: 7.00266 | B20: ='DF raw data'!A25 -> -4.5753131e-06 | C20: ='DF raw data'!B25 -> -8.1057233e-06 | D20: ='DF raw data'!C25 -> -4.1642147e-06 | F20: -4.578204698e-06 | G20: -8.128897319e-06 | H20: -4.166846484e-06 | J20: -3.28156614e-06 | K20: -3.334802319e-06 | L20: 4.916720104e-06 | N20: -3.346776647e-05 | O20: -0.0001159493867 | P20: -1.824675489e-05 | Q20: -0.0001108980256 | R20: 4.523162255e-09
A21: 7.50285 | B21: ='DF raw data'!A26 -> -4.904588e-06 | C21: ='DF raw data'!B26 -> 1.2081608e-06 | D21: ='DF raw data'!C26 -> -2.4569695e-06 | F21: -4.9076877e-06 | G21: 1.211614895e-06 | H21: -2.458522305e-06 | J21: -6.197192252e-07 | K21: 3.208172621e-06 | L21: 4.750228348e-06 | N21: -3.377774383e-05 | O21: -0.0001328446764 | P21: -1.664205903e-05 | Q21: -0.0001192222172 | R21: 5.232378709e-09
A22: 8.00304 | B22: ='DF raw data'!A27 -> -5.8760593e-06 | C22: ='DF raw data'!B27 -> 1.4602513e-05 | D22: ='DF raw data'!C27 -> -9.0637914e-06 | F22: -5.879772969e-06 | G22: 1.464426114e-05 | H22: -9.069519716e-06 | J22: 5.28205475e-06 | K22: 1.084034888e-05 | L22: 5.579551049e-06 | N22: -3.113571287e-05 | O22: -0.0001484184486 | P22: -1.121982492e-05 | Q22: -0.0001248342614 | R22: 5.780245362e-09
A23: 8.50323 | B23: ='DF raw data'!A28 -> -4.2087922e-06 | C23: ='DF raw data'!B28 -> -1.3943364e-06 | D23: ='DF raw data'!C28 -> -1.6332309e-06 | F23: -4.211452157e-06 | G23: -1.398322766e-06 | H23: -1.634263102e-06 | J23: 7.715207031e-06 | K23: -1.59221231e-06 | L23: 1.468863635e-05 | N23: -2.727664346e-05 | O23: -0.0001620619529 | P23: -1.20162336e-05 | Q23: -0.0001308446613 | R23: 6.224616734e-09
A24: 9.00342 | B24: ='DF raw data'!A29 -> 8.5495333e-07 | C24: ='DF raw data'!B29 -> -6.3228699e-06 | D24: ='DF raw data'!C29 -> 6.7192391e-06 | F24: 8.554936605e-07 | G24: -6.340946795e-06 | H24: 6.723485659e-06 | J24: 3.894191975e-06 | K24: -3.686050063e-06 | L24: 7.511837883e-06 | N24: -2.532880758e-05 | O24: -0.0001747311691 | P24: -1.385995898e-05 | Q24: -0.0001377772741 | R24: 6.641598605e-09
A25: 9.50361 | B25: ='DF raw data'!A30 -> 4.2424872e-06 | C25: ='DF raw data'!B30 -> 6.9633359e-07 | D25: ='DF raw data'!C30 -> 6.3213788e-06 | F25: 4.245168452e-06 | G25: 6.983243868e-07 | H25: 6.325373911e-06 | J25: 2.373213023e-06 | K25: 7.372433176e-06 | L25: 8.444715089e-06 | N25: -2.414175016e-05 | O25: -0.0001868066311 | P25: -1.017234163e-05 | Q25: -0.0001428653777 | R25: 6.984879319e-09
A26: 10.0038 | B26: ='DF raw data'!A31 -> 5.1309889e-06 | C26: ='DF raw data'!B31 -> 8.1431708e-06 | D26: ='DF raw data'!C31 -> 3.673525e-06 | F26: 5.134231685e-06 | G26: 8.16645188e-06 | H26: 3.675846668e-06 | J26: -7.468240747e-07 | K26: 2.355812596e-06 | L26: -7.108530654e-07 | N26: -2.451530409e-05 | O26: -0.0001990689411 | P26: -8.993987728e-06 | Q26: -0.0001473640804 | R26: 7.325954854e-09
A27: 10.50399 | B27: ='DF raw data'!A32 -> 5.5779428e-06 | C27: ='DF raw data'!B32 -> 4.5670558e-06 | D27: ='DF raw data'!C32 -> -1.1359241e-05 | F27: 5.58146806e-06 | G27: 4.580112875e-06 | H27: -1.136642004e-05 | J27: -1.945332974e-06 | K27: -8.06975341e-06 | L27: 3.072338692e-06 | N27: -2.548834019e-05 | O27: -0.000211817954 | P27: -1.303039769e-05 | Q27: -0.000153881755 | R27: 7.735833923e-09
A28: 11.00418 | B28: ='DF raw data'!A33 -> 5.9634876e-06 | C28: ='DF raw data'!B33 -> 4.6728628e-06 | D28: ='DF raw data'!C33 -> -6.3288194e-06 | F28: 5.967256524e-06 | G28: 4.686222374e-06 | H28: -6.332819214e-06 | J28: 1.986489468e-06 | K28: 8.724300105e-06 | L28: -1.155963007e-05 | N28: -2.449471802e-05 | O28: -0.000224069967 | P28: -8.666590017e-06 | Q28: -0.0001582166967 | R28: 8.073512689e-09
A29: 11.50437 | B29: ='DF raw data'!A34 -> 5.2636196e-06 | C29: ='DF raw data'!B34 -> 1.0740649e-06 | D29: ='DF raw data'!C34 -> 7.3502957e-07 | F29: 5.266946208e-06 | G29: 1.077135619e-06 | H29: 7.354941087e-07 | J29: 2.668231657e-06 | K29: 6.568242674e-06 | L29: -5.07523142e-06 | N29: -2.316009523e-05 | O29: -0.000235654415 | P29: -5.381220714e-06 | Q29: -0.0001609083295 | R29: 8.356293879e-09
A30: 12.00456 | B30: ='DF raw data'!A35 -> 2.4673529e-06 | C30: ='DF raw data'!B35 -> 2.8282329e-06 | D30: ='DF raw data'!C35 -> -2.2448006e-07 | F30: 2.468912267e-06 | G30: 2.836318733e-06 | H30: -2.246219314e-07 | J30: 1.206096371e-06 | K30: 2.504338116e-06 | L30: 6.275279071e-07 | N30: -2.255681789e-05 | O30: -0.0002469371098 | P30: -4.128575831e-06 | Q30: -0.0001629734018 | R30: 8.619321378e-09
A31: 12.50475 | B31: ='DF raw data'!A36 -> -2.8617885e-06 | C31: ='DF raw data'!B36 -> 1.448995e-06 | D31: ='DF raw data'!C36 -> -4.3170899e-06 | F31: -2.86359715e-06 | G31: 1.453137633e-06 | H31: -4.319818301e-06 | J31: -4.865662957e-06 | K31: 1.509907774e-05 | L31: 2.933019798e-06 | N31: -2.499057384e-05 | O31: -0.0002594371449 | P31: 3.423831866e-06 | Q31: -0.0001612608354 | R31: 8.937567968e-09
A32: 13.00494 | B32: ='DF raw data'!A37 -> -6.3326925e-06 | C32: ='DF raw data'!B37 -> -5.1253601e-06 | D32: ='DF raw data'!C37 -> -3.633379e-06 | F32: -6.336694762e-06 | G32: -5.14001335e-06 | H32: -3.635675296e-06 | J32: -1.497664426e-05 | K32: 5.63934335e-06 | L32: 1.588177194e-06 | N32: -3.248174154e-05 | O32: -0.0002756841872 | P32: 6.244575016e-06 | Q32: -0.0001581373614 | R32: 9.484804964e-09
A33: 13.50513 | B33: ='DF raw data'!A38 -> -2.9060432e-06 | C33: ='DF raw data'!B38 -> -1.0722096e-05 | D33: ='DF raw data'!C38 -> -4.863165e-06 | F33: -2.907879819e-06 | G33: -1.075275015e-05 | H33: -4.86623852e-06 | J33: -1.779745389e-05 | K33: -6.622612673e-06 | L33: -3.670318977e-06 | N33: -4.138384999e-05 | O33: -0.0002963839751 | P33: 2.932010383e-06 | Q33: -0.0001566707991 | R33: 1.034574186e-08
A34: 14.00532 | B34: ='DF raw data'!A39 -> -5.4228308e-06 | C34: ='DF raw data'!B39 -> -1.6435448e-05 | D34: ='DF raw data'!C39 -> 1.6785594e-07 | F34: -5.426258029e-06 | G34: -1.648243645e-05 | H34: 1.67962025e-07 | J34: -1.54165341e-05 | K34: 5.693667719e-06 | L34: -2.482177746e-06 | N34: -4.909504618e-05 | O34: -0.0003209408263 | P34: 5.779926039e-06 | Q34: -0.0001537797379 | R34: 1.156807172e-08
A35: 14.50551 | B35: ='DF raw data'!A40 -> -1.3308476e-05 | C35: ='DF raw data'!B40 -> 6.393592e-07 | D35: ='DF raw data'!C40 -> 2.1028486e-06 | F35: -1.331688696e-05 | G35: 6.411871087e-07 | H35: 2.1041776e-06 | J35: -1.228694645e-05 | K35: -1.714545961e-05 | L35: 8.187787914e-06 | N35: -5.524085393e-05 | O35: -0.000348571749 | P35: -2.796061403e-06 | Q35: -0.0001551782999 | R35: 1.309833795e-08
A36: 15.0057 | B36: ='DF raw data'!A41 -> -1.5825397e-05 | C36: ='DF raw data'!B41 -> -5.0918688e-06 | D36: ='DF raw data'!C41 -> 1.6363716e-06 | F36: -1.583539865e-05 | G36: -5.106426299e-06 | H36: 1.637405787e-06 | J36: -2.66000326e-06 | K36: 1.423199786e-05 | L36: 6.251438914e-06 | N36: -5.657136096e-05 | O36: -0.000376868178 | P36: 4.322641605e-06 | Q36: -0.0001530161578 | R36: 1.470845162e-08
A37: 15.50589 | B37: ='DF raw data'!A42 -> -1.2031158e-05 | C37: ='DF raw data'!B42 -> 3.6502779e-06 | D37: ='DF raw data'!C42 -> 4.1991693e-06 | F37: -1.203876169e-05 | G37: 3.660713935e-06 | H37: 4.201823175e-06 | J37: 2.006860935e-06 | K37: 1.576642623e-06 | L37: -2.415182031e-06 | N37: -5.556754919e-05 | O37: -0.0004046625105 | P37: 5.111262479e-06 | Q37: -0.0001504595554 | R37: 1.626598202e-08
A38: 16.00608 | B38: ='DF raw data'!A43 -> -3.5154656e-06 | C38: ='DF raw data'!B43 -> -4.3939971e-07 | D38: ='DF raw data'!C43 -> 3.205983e-07 | F38: -3.517687374e-06 | G38: -4.406559405e-07 | H38: 3.208009181e-07 | J38: -2.373266757e-06 | K38: -2.242254964e-06 | L38: 4.879691217e-06 | N38: -5.675463349e-05 | O38: -0.0004330506106 | P38: 3.989708968e-06 | Q38: -0.0001484639429 | R38: 1.788510015e-08
A39: 16.50627 | B39: ='DF raw data'!A44 -> 2.1849758e-07 | C39: ='DF raw data'!B44 -> -1.5307591e-05 | D39: ='DF raw data'!C44 -> 1.2614051e-06 | F39: 2.186356705e-07 | G39: -1.535135494e-05 | H39: 1.262202308e-06 | J39: -8.188879103e-06 | K39: -3.399298386e-06 | L39: -6.469880282e-07 | N39: -6.085062892e-05 | O39: -0.0004634874867 | P39: 2.289413908e-06 | Q39: -0.0001473188009 | R39: 1.97398249e-08
A40: 17.00646 | B40: ='DF raw data'!A45 -> -4.5043585e-06 | C40: ='DF raw data'!B45 -> -1.0741312e-05 | D40: ='DF raw data'!C45 -> -3.7670875e-06 | F40: -4.507205255e-06 | G40: -1.077202109e-05 | H40: -3.769468299e-06 | J40: -9.017496458e-06 | K40: 6.392416325e-06 | L40: -4.767823661e-06 | N40: -6.536109048e-05 | O40: -0.0004961804505 | P40: 5.48683663e-06 | Q40: -0.0001445743401 | R40: 2.189173108e-08
A41: 17.50665 | B41: ='DF raw data'!A46 -> -6.2896388e-06 | C41: ='DF raw data'!B46 -> 3.6981792e-06 | D41: ='DF raw data'!C46 -> -4.3178211e-06 | F41: -6.293613852e-06 | G41: 3.708752183e-06 | H41: -4.320549963e-06 | J41: -1.208603655e-05 | K41: 8.29704929e-06 | L41: -8.377067863e-06 | N41: -7.14064051e-05 | O41: -0.0005318972203 | P41: 9.636937714e-06 | Q41: -0.0001397540402 | R41: 2.448859014e-08
A42: 18.00684 | B42: ='DF raw data'!A47 -> -6.0445598e-07 | C42: ='DF raw data'!B47 -> 3.4269206e-06 | D42: ='DF raw data'!C47 -> -5.0320926e-07 | F42: -6.048379962e-07 | G42: 3.436718063e-06 | H42: -5.035272883e-07 | J42: -1.292747701e-05 | K42: -6.223195407e-06 | L42: 8.972690058e-06 | N42: -7.787259982e-05 | O42: -0.000570848316 | P42: 6.524157604e-06 | Q42: -0.0001364907218 | R42: 2.754310363e-08
A43: 18.50703 | B43: ='DF raw data'!A48 -> 2.0032442e-06 | C43: ='DF raw data'!B48 -> -1.7631293e-06 | D43: ='DF raw data'!C48 -> 1.4473586e-06 | F43: 2.00451025e-06 | G43: -1.768170034e-06 | H43: 1.448273331e-06 | J43: -8.899942811e-06 | K43: -2.105101364e-06 | L43: 6.66793047e-06 | N43: -8.232426222e-05 | O43: -0.0006120260887 | P43: 5.471206952e-06 | Q43: -0.0001337540788 | R43: 3.094800613e-08
A44: 19.00722 | B44: ='DF raw data'!A49 -> 5.2130908e-06 | C44: ='DF raw data'!B49 -> -2.496844e-06 | D44: ='DF raw data'!C49 -> -3.6446277e-06 | F44: 5.216385473e-06 | G44: -2.503982402e-06 | H44: -3.646931105e-06 | J44: -5.120272168e-06 | K44: 6.520069441e-06 | L44: -5.022088055e-08 | N44: -8.488537115e-05 | O44: -0.0006544849025 | P44: 8.732480486e-06 | Q44: -0.0001293861794 | R44: 3.45902809e-08
A45: 19.50741 | B45: ='DF raw data'!A50 -> 5.0519575e-06 | C45: ='DF raw data'!B50 -> -8.2233339e-07 | D45: ='DF raw data'!C50 -> 8.9149904e-07 | F45: 5.055150337e-06 | G45: -8.246844164e-07 | H45: 8.920624674e-07 | J45: -5.91549273e-06 | K45: 8.246738162e-06 | L45: 2.025780585e-06 | N45: -8.784424146e-05 | O45: -0.0006984237136 | P45: 1.285741645e-05 | Q45: -0.0001229550283 | R45: 3.853274042e-08
A46: 20.0076 | B46: ='DF raw data'!A51 -> 1.6041487e-06 | C46: ='DF raw data'!B51 -> 2.2343474e-06 | D46: ='DF raw data'!C51 -> -8.2153605e-07 | F46: 1.605162522e-06 | G46: 2.240735332e-06 | H46: -8.220552608e-07 | J46: -8.653881799e-06 | K46: 3.264237251e-06 | L46: -7.464167674e-07 | N46: -9.21728266e-05 | O46: -0.0007445276398 | P46: 1.449015528e-05 | Q46: -0.0001157071975 | R46: 4.28872918e-08
A47: 20.50779 | B47: ='DF raw data'!A52 -> -3.9573058e-07 | C47: ='DF raw data'!B52 -> 6.1401615e-06 | D47: ='DF raw data'!C52 -> 1.2623383e-06 | F47: -3.959806817e-07 | G47: 6.157716037e-06 | H47: 1.263136098e-06 | J47: -6.118673059e-06 | K47: 8.809803559e-06 | L47: -1.338529716e-05 | N47: -9.523332568e-05 | O47: -0.0007921623969 | P47: 1.889673092e-05 | Q47: -0.0001062552417 | R47: 4.760231921e-08
A48: 21.00798 | B48: ='DF raw data'!A53 -> -2.7700078e-06 | C48: ='DF raw data'!B53 -> 2.8675959e-06 | D48: ='DF raw data'!C53 -> -2.3818978e-07 | F48: -2.771758445e-06 | G48: 2.87579427e-06 | H48: -2.383403159e-07 | J48: -3.432448437e-06 | K48: 1.255162943e-05 | L48: -8.961448959e-06 | N48: -9.695020206e-05 | O48: -0.0008406559185 | P48: 2.517493044e-05 | Q48: -9.366299322e-05 | R48: 5.262078491e-08
A49: 21.50817 | B49: ='DF raw data'!A54 -> -4.6742357e-06 | C49: ='DF raw data'!B54 -> -2.5941126e-06 | D49: ='DF raw data'!C54 -> 4.9148916e-06 | F49: -4.677189817e-06 | G49: -2.60152909e-06 | H49: 4.917997811e-06 | J49: -4.833135212e-06 | K49: 1.332316995e-05 | L49: 5.985121708e-06 | N49: -9.936768796e-05 | O49: -0.0008903586424 | P49: 3.183904682e-05 | Q49: -7.773742039e-05 | R49: 5.806668472e-08
A50: 22.00836 | B50: ='DF raw data'!A55 -> -3.5344224e-06 | C50: ='DF raw data'!B55 -> 1.6420662e-06 | D50: ='DF raw data'!C55 -> -1.3338707e-06 | F50: -3.536656155e-06 | G50: 1.646760818e-06 | H50: -1.334713706e-06 | J50: -7.679192885e-06 | K50: -3.804394341e-07 | L50: 1.472772604e-05 | N50: -0.0001032087435 | O50: -0.0009419826237 | P50: 3.164875482e-05 | Q50: -6.190702972e-05 | R50: 6.389574312e-08
A51: 22.50855 | B51: ='DF raw data'!A56 -> 2.0588197e-07 | C51: ='DF raw data'!B56 -> 6.9887601e-06 | D51: ='DF raw data'!C56 -> 4.7918325e-06 | F51: 2.060120874e-07 | G51: 7.008740755e-06 | H51: 4.794860938e-06 | J51: -7.717597741e-06 | K51: 1.98315612e-06 | L51: -5.56150355e-07 | N51: -0.0001070690087 | O51: -0.0009955374712 | P51: 3.264070968e-05 | Q51: -4.558047314e-05 | R51: 7.016271794e-08
A52: 23.00874 | B52: ='DF raw data'!A57 -> 7.2172425e-06 | C52: ='DF raw data'!B57 -> 6.116813e-06 | D52: ='DF raw data'!C57 -> 5.8265491e-06 | F52: 7.221803797e-06 | G52: 6.134300784e-06 | H52: 5.830231479e-06 | J52: -1.105677847e-05 | K52: 1.87075669e-06 | L52: 2.226035966e-06 | N52: -0.0001125994987 | O52: -0.001051858614 | P52: 3.357644347e-05 | Q52: -2.878587188e-05 | R52: 7.706835342e-08
A53: 23.50893 | B53: ='DF raw data'!A58 -> 1.1486069e-05 | C53: ='DF raw data'!B58 -> 1.1059489e-05 | D53: ='DF raw data'!C58 -> 6.633783e-06 | F53: 1.14933282e-05 | G53: 1.109110775e-05 | H53: 6.637975551e-06 | J53: -1.679411117e-05 | K53: 6.304771265e-06 | L53: -2.161383632e-06 | N53: -0.0001209997452 | O53: -0.001112381477 | P53: 3.673002701e-05 | Q53: -1.041387967e-05 | R53: 8.506640813e-08
A54: 24.00912 | B54: ='DF raw data'!A59 -> 9.2862738e-06 | C54: ='DF raw data'!B59 -> 3.4790892e-06 | D54: ='DF raw data'!C59 -> 4.1053941e-06 | F54: 9.292142725e-06 | G54: 3.489035811e-06 | H54: 4.107988709e-06 | J54: -1.585942983e-05 | K54: -3.279866808e-07 | L54: -4.884100502e-06 | N54: -0.0001289324734 | O54: -0.001176872211 | P54: 3.656597135e-05 | Q54: 7.876053538e-06 | R54: 9.405014713e-08
A55: 24.50931 | B55: ='DF raw data'!A60 -> 4.2464253e-06 | C55: ='DF raw data'!B60 -> -8.6676403e-07 | D55: ='DF raw data'!C60 -> 3.4901637e-07 | F55: 4.249109041e-06 | G55: -8.692420822e-07 | H55: 3.492369483e-07 | J55: -9.657226212e-06 | K55: 9.21189876e-06 | L55: 5.171981828e-06 | N55: -0.0001337629213 | O55: -0.001243779086 | P55: 4.117367099e-05 | Q55: 2.847071203e-05 | R55: 1.03847764e-07
A56: 25.0095 | B56: ='DF raw data'!A61 -> 1.4887393e-06 | C56: ='DF raw data'!B61 -> 1.0638393e-05 | D56: ='DF raw data'!C61 -> -3.8840885e-06 | F56: 1.489680183e-06 | G56: 1.066880785e-05 | H56: -3.886543244e-06 | J56: -6.868809646e-06 | K56: 4.802638555e-06 | L56: 1.268582238e-05 | N56: -0.0001371986312 | O56: -0.00131240447 | P56: 4.357590277e-05 | Q56: 5.026694284e-05 | R56: 1.142128631e-07
A57: 25.50969 | B57: ='DF raw data'!A62 -> 7.6517529e-07 | C57: ='DF raw data'!B62 -> 3.547807e-06 | D57: ='DF raw data'!C62 -> -3.2018437e-07 | F57: 7.656588808e-07 | G57: 3.557950073e-06 | H57: -3.203867265e-07 | J57: -4.781304976e-06 | K57: 1.0455589e-06 | L57: 1.420688008e-06 | N57: -0.0001395901922 | O57: -0.001382226088 | P57: 4.409888088e-05 | Q57: 7.232476206e-05 | R57: 1.249320013e-07
A58: 26.00988 | B58: ='DF raw data'!A63 -> 3.845128e-06 | C58: ='DF raw data'!B63 -> -7.3470555e-06 | D58: ='DF raw data'!C63 -> -1.1887154e-06 | F58: 3.847558121e-06 | G58: -7.36806051e-06 | H58: -1.189466668e-06 | J58: -4.280300741e-06 | K58: -1.256694309e-07 | L58: -5.670534314e-06 | N58: -0.0001417311558 | O58: -0.001453118595 | P58: 4.403602228e-05 | Q58: 9.435114005e-05 | R58: 1.359496323e-07
A59: 26.51007 | B59: ='DF raw data'!A64 -> 4.9085129e-06 | C59: ='DF raw data'!B64 -> -9.3414667e-07 | D59: ='DF raw data'!C64 -> -3.4341286e-07 | F59: 4.91161508e-06 | G59: -9.368173672e-07 | H59: -3.436298969e-07 | J59: -9.759283171e-06 | K59: 4.664678757e-06 | L59: -4.761296639e-06 | N59: -0.0001466126517 | O59: -0.001526452777 | P59: 4.636924795e-05 | Q59: 0.0001175445742 | R59: 1.477768133e-07
A60: 27.01026 | B60: ='DF raw data'!A65 -> 2.2185106e-06 | C60: ='DF raw data'!B65 -> -1.0524626e-05 | D60: ='DF raw data'!C65 -> 1.0449054e-06 | F60: 2.219912699e-06 | G60: -1.055471559e-05 | H60: 1.04556578e-06 | J60: -1.312304353e-05 | K60: -2.942207502e-06 | L60: 2.377342231e-06 | N60: -0.0001531766668 | O60: -0.001603070214 | P60: 4.489758518e-05 | Q60: 0.0001400018973 | R60: 1.605210965e-07
A61: 27.51045 | B61: ='DF raw data'!A66 -> 3.7696066e-07 | C61: ='DF raw data'!B66 -> -1.6647065e-05 | D61: ='DF raw data'!C66 -> 1.7764011e-06 | F61: 3.771988991e-07 | G61: -1.669465846e-05 | H61: 1.777523785e-06 | J61: -8.517961151e-06 | K61: 2.618747677e-06 | L61: -5.001642341e-06 | N61: -0.0001574372658 | O61: -0.00168181876 | P61: 4.620745658e-05 | Q61: 0.000163114405 | R61: 1.739870225e-07
A62: 28.01064 | B62: ='DF raw data'!A67 -> -2.2635134e-06 | C62: ='DF raw data'!B67 -> -6.5036629e-06 | D62: ='DF raw data'!C67 -> 1.0922264e-07 | F62: -2.26494394e-06 | G62: -6.522256676e-06 | H62: 1.092916687e-07 | J62: -5.340684581e-06 | K62: 7.308338353e-06 | L62: -4.174784998e-06 | N62: -0.0001601086228 | O62: -0.001761903492 | P62: 4.986301434e-05 | Q62: 0.0001880553862 | R62: 1.880529111e-07
A63: 28.51083 | B63: ='DF raw data'!A68 -> -7.7070636e-06 | C63: ='DF raw data'!B68 -> 7.2190551e-06 | D63: ='DF raw data'!C68 -> 3.3761612e-06 | F63: -7.711934464e-06 | G63: 7.239694161e-06 | H63: 3.378294934e-06 | J63: -2.898582547e-06 | K63: 5.226007504e-06 | L63: 1.871944121e-07 | N63: -0.0001615584648 | O63: -0.001842713421 | P63: 5.247701104e-05 | Q63: 0.0002143038623 | R63: 2.024858807e-07
A64: 29.01102 | B64: ='DF raw data'!A69 -> -7.783091e-06 | C64: ='DF raw data'!B69 -> -1.0085979e-06 | D64: ='DF raw data'!C69 -> -8.889021e-06 | F64: -7.788009914e-06 | G64: -1.011481451e-06 | H64: -8.894638861e-06 | J64: 1.016140695e-06 | K64: 1.190814297e-05 | L64: 2.441540379e-06 | N64: -0.0001610502014 | O64: -0.001923269121 | P64: 5.843334507e-05 | Q64: 0.0002435316372 | R64: 2.171672691e-07
A65: 29.51121 | B65: ='DF raw data'!A70 -> -1.5609088e-06 | C65: ='DF raw data'!B70 -> 4.2764505e-06 | D65: ='DF raw data'!C70 -> -1.6708125e-05 | F65: -1.561895294e-06 | G65: 4.288676743e-06 | H65: -1.671868453e-05 | J65: -2.215571757e-06 | K65: 8.608153893e-06 | L65: 7.599344752e-06 | N65: -0.0001621584082 | O65: -0.002004379135 | P65: 6.273905756e-05 | Q65: 0.0002749130864 | R65: 2.322887824e-07
A66: 30.0114 | B66: ='DF raw data'!A71 -> 1.2010889e-07 | C66: ='DF raw data'!B71 -> 2.8080858e-06 | D66: ='DF raw data'!C71 -> -1.7865044e-06 | F66: 1.201847988e-07 | G66: 2.816114033e-06 | H66: -1.787633471e-06 | J66: -5.803884538e-06 | K66: 6.986259464e-06 | L66: 6.065901228e-06 | N66: -0.0001650614532 | O66: -0.002086941223 | P66: 6.623351468e-05 | Q66: 0.0003080424281 | R66: 2.481108735e-07
A67: 30.51159 | B67: ='DF raw data'!A72 -> -5.4406528e-06 | C67: ='DF raw data'!B72 -> 9.1537468e-06 | D67: ='DF raw data'!C72 -> 5.5430951e-06 | F67: -5.444091293e-06 | G67: 9.179917086e-06 | H67: 5.546598336e-06 | J67: -3.40319326e-06 | K67: -1.766298398e-06 | L67: -6.761444634e-06 | N67: -0.0001667636965 | O67: -0.002170354757 | P67: 6.535002989e-05 | Q67: 0.0003407298595 | R67: 2.641573472e-07
A68: 31.01178 | B68: ='DF raw data'!A73 -> -6.3177404e-06 | C68: ='DF raw data'!B73 -> 1.3813559e-05 | D68: ='DF raw data'!C73 -> 2.1218834e-06 | F68: -6.321733212e-06 | G68: 1.385305155e-05 | H68: 2.12322443e-06 | J68: -9.827322945e-07 | K68: 1.734023789e-05 | L68: -3.389749969e-06 | N68: -0.0001672552493 | O68: -0.00225401416 | P68: 7.402344348e-05 | Q68: 0.0003777556457 | R68: 2.808905978e-07
A69: 31.51197 | B69: ='DF raw data'!A74 -> -4.4422818e-06 | C69: ='DF raw data'!B74 -> 9.7066722e-06 | D69: ='DF raw data'!C74 -> 4.6433511e-06 | F69: -4.445089322e-06 | G69: 9.734423283e-06 | H69: 4.646285698e-06 | J69: -1.284429447e-06 | K69: 6.659233272e-06 | L69: 8.176466663e-06 | N69: -0.0001678977081 | O69: -0.002337994914 | P69: 7.735432537e-05 | Q69: 0.0004164475057 | R69: 2.979837567e-07
A70: 32.01216 | B70: ='DF raw data'!A75 -> -4.1734147e-06 | C70: ='DF raw data'!B75 -> 2.8155582e-06 | D70: ='DF raw data'!C75 -> 2.0989887e-06 | F70: -4.176052298e-06 | G70: 2.823607796e-06 | H70: 2.100315261e-06 | J70: -3.152858648e-06 | K70: 4.925873476e-06 | L70: -5.622118635e-06 | N70: -0.0001694747365 | O70: -0.002422764483 | P70: 7.981819802e-05 | Q70: 0.0004563717702 | R70: 3.155367398e-07
A71: 32.51235 | B71: ='DF raw data'!A76 -> -5.5875016e-06 | C71: ='DF raw data'!B76 -> -1.4171538e-06 | D71: ='DF raw data'!C76 -> -1.7413807e-06 | F71: -5.591032901e-06 | G71: =(1-$G$1*($B$2-$G$2))*C71*$M$2/$M$1 -> -1.4212054e-06 | H71: -1.742481253e-06 | J71: =-CELL("contents", INDEX($F$6:$F$1203,1204-CELL("row",F71))) -> -2.410269228e-06 | K71: =CELL("contents", INDEX($G$6:$G$1203,1204-CELL("row",G71))) -> 6.966189749e-06 | L71: =-CELL("contents", INDEX($H$6:$H$1203,1204-CELL("row",H71))) -> -1.011475949e-05 | N71: -0.000170680329 | O71: -0.002508137077 | P71: 8.330261647e-05 | Q71: 0.0004980389059 | R71: 3.335791437e-07
A72: =A71+$B$1 -> 33.01254 | B72: ='DF raw data'!A77 -> -5.3298486e-06 | C72: ='DF raw data'!B77 -> -4.2624861e-06 | D72: ='DF raw data'!C77 -> 1.8996594e-06 | F72: -5.333217064e-06 | G72: -4.274672419e-06 | H72: 1.900859985e-06 | J72: -1.379674604e-06 | K72: 3.16602286e-06 | L72: -4.073492521e-06 | N72: =J72*$B$1+N71 -> -0.0001713704285 | O72: =N72*$B$1+O71 -> -0.002593854851 | P72: =K72*$B$1+P71 -> 8.488622945e-05 | Q72: =P72*$B$1+Q71 -> 0.0005404981491 | R72: =(N72^2+P72^2)*$B$1+R71 -> 3.518728405e-07
A73: 33.51273 | B73: ='DF raw data'!A78 -> -1.7961337e-06 | C73: ='DF raw data'!B78 -> -5.5730097e-06 | D73: ='DF raw data'!C78 -> 8.5042193e-06 | F73: -1.797268856e-06 | G73: -5.588942767e-06 | H73: 8.509593967e-06 | J73: -6.039568196e-07 | K73: 4.923866855e-06 | L73: -1.416706693e-06 | N73: -0.0001716725216 | O73: -0.00267972373 | P73: 8.734909841e-05 | Q73: 0.0005841892946 | R73: 3.704305496e-07
A74: 34.01292 | B74: ='DF raw data'!A79 -> 6.2079664e-07 | C74: ='DF raw data'!B79 -> -1.323133e-05 | D74: ='DF raw data'!C79 -> 2.4891956e-06 | F74: 6.211889835e-07 | G74: -1.326915797e-05 | H74: 2.490768772e-06 | J74: 5.887654648e-06 | K74: 6.679302987e-06 | L74: 4.946554048e-06 | N74: -0.0001687275757 | O74: -0.002764119576 | P74: 9.069001897e-05 | Q74: 0.0006295515352 | R74: 3.887843585e-07
A75: 34.51311 | B75: ='DF raw data'!A80 -> -9.8379303e-07 | C75: ='DF raw data'!B80 -> -1.8040929e-06 | D75: ='DF raw data'!C80 -> -9.094807e-06 | F75: =(1-$G$1*($B$2-$G$2))*B75 -> -9.844147872e-07 | G75: -1.809250747e-06 | H75: =(1-$G$1*($B$2-$G$2))*D75 -> -9.100554918e-06 | J75: 8.458731042e-06 | K75: 1.041818436e-05 | L75: 2.497680737e-06 | N75: -0.000164496603 | O75: -0.002846399132 | P75: 9.590109061e-05 | Q75: 0.0006775203017 | R75: 4.06919323e-07
A76: 35.0133 | B76: ='DF raw data'!A81 -> -2.487124e-06 | C76: ='DF raw data'!B81 -> -6.6413604e-06 | D76: ='DF raw data'!C81 -> -5.877117e-06 | F76: -2.488695862e-06 | G76: -6.660347849e-06 | H76: -5.880831338e-06 | J76: 5.380466307e-07 | K76: 2.299346622e-06 | L76: 1.418343827e-05 | N76: -0.0001642274774 | O76: -0.002928544074 | P76: 9.705120079e-05 | Q76: 0.0007260643418 | R76: 4.25121037e-07
A77: 35.51349 | B77: ='DF raw data'!A82 -> -7.609342e-06 | C77: ='DF raw data'!B82 -> 1.392337e-05 | D77: ='DF raw data'!C82 -> -5.3071476e-06 | F77: -7.614151104e-06 | G77: 1.39631765e-05 | H77: -5.310501717e-06 | J77: -9.161565953e-06 | K77: 8.501508165e-06 | L77: 8.118660853e-06 | N77: -0.0001688100011 | O77: -0.003012981148 | P77: 0.0001013035702 | Q77: 0.0007767353746 | R77: 4.445080161e-07
A78: 36.01368 | B78: ='DF raw data'!A83 -> -5.0367521e-06 | C78: ='DF raw data'!B83 -> 1.0798106e-05 | D78: ='DF raw data'!C83 -> -6.6109428e-06 | F78: -5.039935327e-06 | G78: 1.082897746e-05 | H78: -6.615120916e-06 | J78: -1.093408097e-05 | K78: 6.124399056e-06 | L78: 3.466122106e-06 | N78: -0.0001742791191 | O78: -0.003100153821 | P78: 0.0001043669333 | Q78: 0.000828938671 | R78: 4.651486906e-07
A79: 36.51387 | B79: ='DF raw data'!A84 -> 4.541057e-06 | C79: ='DF raw data'!B84 -> 5.755358e-06 | D79: ='DF raw data'!C84 -> 1.1868993e-05 | F79: 4.543926948e-06 | G79: 5.771812395e-06 | H79: 1.18764942e-05 | J79: -8.509279068e-06 | K79: 5.042289657e-06 | L79: -1.900128323e-06 | N79: -0.0001785353754 | O79: -0.00318945543 | P79: 0.0001068890362 | Q79: 0.000882403498 | R79: 4.868069908e-07
A80: 37.01406 | B80: ='DF raw data'!A85 -> 6.9223433e-06 | C80: ='DF raw data'!B85 -> 2.9353751e-06 | D80: ='DF raw data'!C85 -> 9.2984092e-06 | F80: 6.926718221e-06 | G80: 2.943767249e-06 | H80: 9.304285795e-06 | J80: -7.330941128e-06 | K80: 7.814536533e-06 | L80: -8.207647457e-06 | N80: -0.0001822022388 | O80: -0.003280591168 | P80: 0.0001107977892 | Q80: 0.0009378234442 | R80: 5.095525338e-07
A81: 37.51425 | B81: ='DF raw data'!A86 -> 3.2066694e-06 | C81: ='DF raw data'!B86 -> -6.1839719e-06 | D81: ='DF raw data'!C86 -> 6.3545226e-06 | F81: 3.208696015e-06 | G81: -6.201651689e-06 | H81: 6.358538658e-06 | J81: -7.289864184e-06 | K81: 4.696394072e-06 | L81: -5.689313575e-06 | N81: -0.000185848556 | O81: -0.003373550757 | P81: 0.0001131468786 | Q81: 0.0009944183813 | R81: 5.332324797e-07
A82: 38.01444 | B82: ='DF raw data'!A87 -> -1.8420642e-09 | C82: ='DF raw data'!B87 -> -1.5374035e-05 | D82: ='DF raw data'!C87 -> 6.861997e-06 | F82: -1.843228385e-09 | G82: -1.54179889e-05 | H82: 6.866333782e-06 | J82: -9.121490141e-06 | K82: 9.727664515e-07 | L82: -4.677318999e-06 | N82: -0.0001904110341 | O82: -0.003468792452 | P82: 0.0001136334466 | Q82: 0.001051256695 | R82: 5.578262829e-07
A83: 38.51463 | B83: ='DF raw data'!A88 -> 1.0539335e-06 | C83: ='DF raw data'!B88 -> 1.0379071e-06 | D83: ='DF raw data'!C88 -> 2.5798422e-06 | F83: 1.054599586e-06 | G83: 1.040874445e-06 | H83: 2.58147266e-06 | J83: -1.172870086e-05 | K83: -1.468117939e-07 | L83: -1.385513191e-05 | N83: -0.000196277613 | O83: -0.003566968552 | P83: 0.0001135600128 | Q83: 0.001108058278 | R83: 5.835464418e-07
A84: 39.01482 | B84: ='DF raw data'!A89 -> 5.0551616e-06 | C84: ='DF raw data'!B89 -> -7.6063052e-06 | D84: ='DF raw data'!C89 -> 5.8622222e-06 | F84: 5.058356462e-06 | G84: -7.628051397e-06 | H84: 5.865927124e-06 | J84: -1.093588511e-05 | K84: -6.366904997e-06 | L84: -8.305676472e-06 | N84: -0.0002017476334 | O84: -0.0036678807 | P84: 0.0001103753506 | Q84: 0.001163266924 | R84: 6.099989027e-07
A85: 39.51501 | B85: ='DF raw data'!A90 -> 6.0205584e-06 | C85: ='DF raw data'!B90 -> 1.2423178e-06 | D85: ='DF raw data'!C90 -> 2.3173529e-06 | F85: 6.024363393e-06 | G85: 1.245869549e-06 | H85: 2.318817467e-06 | J85: -6.070917096e-06 | K85: -1.629009813e-06 | L85: -8.091770169e-06 | N85: -0.0002047842454 | O85: -0.003770311732 | P85: 0.0001095605362 | Q85: 0.001218068009 | R85: 6.369792004e-07
A86: 40.0152 | B86: ='DF raw data'!A91 -> 5.7599691e-06 | C86: ='DF raw data'!B91 -> 8.3478471e-06 | D86: ='DF raw data'!C91 -> 2.5315235e-06 | F86: 5.7636094e-06 | G86: 8.371713343e-06 | H86: 2.533123423e-06 | J86: -6.171146001e-07 | K86: 4.949693783e-06 | L86: -6.805398295e-06 | N86: -0.00020509292 | O86: -0.00387289716 | P86: 0.0001120363235 | Q86: 0.001274107458 | R86: 6.642971991e-07
A87: 40.51539 | B87: ='DF raw data'!A92 -> 7.3272449e-06 | C87: ='DF raw data'!B92 -> 3.4769573e-06 | D87: ='DF raw data'!C92 -> 4.0329837e-06 | F87: 7.331875719e-06 | G87: 3.486897816e-06 | H87: 4.035532546e-06 | J87: -3.650431015e-07 | K87: 1.17334339e-06 | L87: -2.494697553e-06 | N87: -0.0002052755109 | O87: -0.003975573917 | P87: 0.0001126232182 | Q87: 0.001330440465 | R87: 6.917186276e-07
A88: 41.01558 | B88: ='DF raw data'!A93 -> 9.035497e-06 | C88: ='DF raw data'!B93 -> 1.476349e-06 | D88: ='DF raw data'!C93 -> 9.6822923e-06 | F88: 9.041207434e-06 | G88: 1.480569837e-06 | H88: 9.688411509e-06 | J88: -3.86739495e-06 | K88: -5.201700108e-06 | L88: 2.513270083e-07 | N88: -0.0002072099432 | O88: -0.004079218259 | P88: 0.0001100213798 | Q88: 0.001385472059 | R88: 7.192494176e-07
A89: 41.51577 | B89: ='DF raw data'!A94 -> 3.053213e-06 | C89: ='DF raw data'!B94 -> -5.047973e-06 | D89: ='DF raw data'!C94 -> 9.9007229e-06 | F89: 3.055142631e-06 | G89: -5.062405003e-06 | H89: 9.906980157e-06 | J89: -7.924985327e-06 | K89: 1.33980434e-06 | L89: 2.541302189e-06 | N89: -0.0002111739416 | O89: -0.004184845353 | P89: 0.0001106915365 | Q89: 0.001440838859 | R89: 7.476837435e-07
A90: 42.01596 | B90: ='DF raw data'!A95 -> -5.3821136e-06 | C90: ='DF raw data'!B95 -> -5.0510434e-06 | D90: ='DF raw data'!C95 -> 1.0788477e-06 | F90: -5.385515096e-06 | G90: -5.065484181e-06 | H90: 1.079529532e-06 | J90: -4.789052369e-06 | K90: 5.281269446e-06 | L90: 6.509565647e-06 | N90: -0.0002135693777 | O90: -0.00429167062 | P90: 0.0001133331747 | Q90: 0.001497526979 | R90: 7.76922994e-07
A91: 42.51615 | B91: ='DF raw data'!A96 -> -7.4413338e-06 | C91: ='DF raw data'!B96 -> -2.0465277e-06 | D91: ='DF raw data'!C96 -> -3.4843656e-06 | F91: -7.446036723e-06 | G91: -2.052378661e-06 | H91: -3.486567719e-06 | J91: 3.576463898e-06 | K91: -3.909776066e-06 | L91: 8.291610488e-06 | N91: -0.0002117804662 | O91: -0.004397601091 | P91: 0.0001113775438 | Q91: 0.001553236913 | R91: 8.055618342e-07
A92: 43.01634 | B92: ='DF raw data'!A97 -> -4.0489272e-06 | C92: ='DF raw data'!B97 -> -2.9593039e-06 | D92: ='DF raw data'!C97 -> 1.8305105e-06 | F92: -4.051486122e-06 | G92: -2.967764461e-06 | H92: 1.831667383e-06 | J92: 5.338293471e-06 | K92: -1.406438101e-05 | L92: 5.798584691e-06 | N92: -0.0002091103052 | O92: -0.004502195975 | P92: 0.0001043426811 | Q92: 0.001605428079 | R92: 8.328794683e-07
A93: 43.51653 | B93: ='DF raw data'!A98 -> 4.5525769e-07 | C93: ='DF raw data'!B98 -> 1.181829e-05 | D93: ='DF raw data'!C98 -> 9.892271e-06 | F93: 4.555454129e-07 | G93: 1.185207814e-05 | H93: 9.898522915e-06 | J93: 4.936207913e-06 | K93: 8.914112325e-07 | L93: 1.084842387e-08 | N93: -0.0002066412633 | O93: -0.004605555868 | P93: 0.000104788556 | Q93: 0.001657842267 | R93: 8.597302944e-07
A94: 44.01672 | B94: ='DF raw data'!A99 -> 3.1717593e-06 | C94: ='DF raw data'!B99 -> 1.3467717e-05 | D94: ='DF raw data'!C99 -> 4.3242903e-06 | F94: 3.173763852e-06 | G94: 1.35062208e-05 | H94: 4.327023251e-06 | J94: 2.808293621e-06 | K94: -6.968508259e-06 | L94: 3.245022559e-06 | N94: -0.000205236583 | O94: -0.004708213155 | P94: 0.0001013029779 | Q94: 0.001708513003 | R94: 8.859324216e-07
A95: 44.51691 | B95: ='DF raw data'!A100 -> 5.308676e-06 | C95: ='DF raw data'!B100 -> 1.976302e-06 | D95: ='DF raw data'!C100 -> 1.8227234e-06 | F95: 5.312031083e-06 | G95: 1.981952188e-06 | H95: 1.823875361e-06 | J95: -1.301661631e-06 | K95: -4.684126399e-06 | L95: 7.792140622e-06 | N95: -0.0002058876611 | O95: -0.004811196104 | P95: 9.896002471e-05 | Q95: 0.001758011818 | R95: 9.12033744e-07
A96: 45.0171 | B96: ='DF raw data'!A101 -> 1.0086467e-05 | C96: ='DF raw data'!B101 -> 2.8398417e-06 | D96: ='DF raw data'!C101 -> -3.3935853e-06 | F96: 1.009284165e-05 | G96: 2.847960722e-06 | H96: -3.395730046e-06 | J96: -5.513741584e-06 | K96: 6.811239414e-06 | L96: 5.253895365e-06 | N96: -0.0002086455795 | O96: -0.004915558536 | P96: 0.0001023669386 | Q96: 0.001809214737 | R96: 9.390499903e-07
A97: 45.51729 | B97: ='DF raw data'!A102 -> 1.6405167e-05 | C97: ='DF raw data'!B102 -> -7.6301885e-06 | D97: ='DF raw data'!C102 -> -1.7474362e-06 | F97: 1.641553507e-05 | G97: -7.652002979e-06 | H97: -1.74854058e-06 | J97: -8.26762654e-06 | K97: 7.776936241e-06 | L97: -1.883612391e-06 | N97: -0.0002127809636 | O97: -0.005021989446 | P97: 0.0001062568843 | Q97: 0.001862363368 | R97: 9.673438698e-07
A98: 46.01748 | B98: ='DF raw data'!A103 -> 1.7806038e-05 | C98: ='DF raw data'!B103 -> -7.3297097e-06 | D98: ='DF raw data'!C103 -> -8.3653067e-06 | F98: 1.781729142e-05 | G98: -7.350665119e-06 | H98: -8.370593574e-06 | J98: -4.979341556e-06 | K98: -5.170603357e-07 | L98: 1.225767696e-05 | N98: -0.0002152715805 | O98: -0.005129666138 | P98: 0.0001059982559 | Q98: 0.001915382635 | R98: 9.961435514e-07
A99: 46.51767 | B99: ='DF raw data'!A104 -> 1.2453669e-05 | C99: ='DF raw data'!B104 -> 4.9756118e-06 | D99: ='DF raw data'!C104 -> -7.8233683e-07 | F99: 1.246153972e-05 | G99: 4.989836924e-06 | H99: -7.828312669e-07 | J99: 1.418560264e-06 | K99: 9.811942075e-07 | L99: 5.506827417e-06 | N99: -0.0002145620308 | O99: -0.00523698792 | P99: 0.0001064890394 | Q99: 0.001968647388 | R99: 1.024842843e-06
A100: 47.01786 | B100: ='DF raw data'!A105 -> 5.1533498e-06 | C100: ='DF raw data'!B105 -> -3.1142126e-06 | D100: ='DF raw data'!C105 -> 3.2516386e-06 | F100: 5.156606717e-06 | G100: -3.12311604e-06 | H100: 3.253693636e-06 | J100: 8.108235768e-07 | K100: 1.288555639e-06 | L100: -4.678717782e-06 | N100: -0.000214156465 | O100: -0.005344106843 | P100: 0.0001071335621 | Q100: 0.002022234524 | R100: 1.053524034e-06
A101: 47.51805 | B101: ='DF raw data'!A106 -> -2.6953819e-06 | C101: ='DF raw data'!B106 -> -3.7678737e-06 | D101: ='DF raw data'!C106 -> -2.2688651e-08 | F101: -2.697085381e-06 | G101: -3.778645937e-06 | H101: -2.270299023e-08 | J101: -1.440722061e-06 | K101: -1.649349598e-06 | L101: -4.517945038e-07 | N101: -0.0002148770997 | O101: -0.005451586219 | P101: 0.0001063085739 | Q101: 0.00207540901 | R101: 1.082271794e-06
A102: 48.01824 | B102: ='DF raw data'!A107 -> -5.9265885e-06 | C102: ='DF raw data'!B107 -> 5.2778223e-06 | D102: ='DF raw data'!C107 -> -1.4987239e-07 | F102: -5.930334104e-06 | G102: 5.292911435e-06 | H102: -1.499671094e-07 | J102: -4.818374689e-08 | K102: 1.624950841e-06 | L102: 4.656993461e-07 | N102: -0.0002149012008 | O102: -0.005559077651 | P102: 0.000107121358 | Q102: 0.002128990042 | R102: 1.111111505e-06
A103: 48.51843 | B103: ='DF raw data'!A108 -> 2.6354949e-06 | C103: ='DF raw data'!B108 -> 6.6817927e-07 | D103: ='DF raw data'!C108 -> -1.7854403e-06 | F103: 2.637160533e-06 | G103: 6.700895744e-07 | H103: -1.786568698e-06 | J103: 7.006842427e-07 | K103: 5.584883996e-06 | L103: 9.31539321e-06 | N103: -0.0002145507255 | O103: -0.005666393778 | P103: 0.0001099148612 | Q103: 0.002183968357 | R103: 1.140179192e-06
A104: 49.01862 | B104: ='DF raw data'!A109 -> 4.9751288e-06 | C104: ='DF raw data'!B109 -> -2.4005103e-06 | D104: ='DF raw data'!C109 -> -1.5319407e-05 | F104: 4.978273081e-06 | G104: -2.407373287e-06 | H104: -1.532908887e-05 | J104: -7.750098369e-07 | K104: 9.635402694e-06 | L104: 4.343259806e-06 | N104: -0.0002149383777 | O104: -0.005773903805 | P104: 0.0001147343932 | Q104: 0.002241357353 | R104: 1.169871714e-06
A105: 49.51881 | B105: ='DF raw data'!A110 -> -1.0099587e-06 | C105: ='DF raw data'!B110 -> 1.98404e-06 | D105: ='DF raw data'!C110 -> -1.429361e-05 | F105: -1.010596994e-06 | G105: 1.989712311e-06 | H105: -1.430264356e-05 | J105: -3.480872322e-06 | K105: 1.870888064e-06 | L105: -9.320199846e-07 | N105: -0.0002166794752 | O105: -0.005882284712 | P105: 0.0001156701927 | Q105: 0.002299214426 | R105: 1.200047971e-06
A106: 50.019 | B106: ='DF raw data'!A111 -> -1.1365158e-06 | C106: ='DF raw data'!B111 -> -1.6941807e-05 | D106: ='DF raw data'!C111 -> -7.007206e-06 | F106: -1.137234078e-06 | G106: -1.699024312e-05 | H106: -7.011634554e-06 | J106: -2.294919773e-06 | K106: 1.383289408e-06 | L106: -3.585076337e-06 | N106: -0.0002178273711 | O106: -0.005991239785 | P106: 0.0001163621003 | Q106: 0.002357417585 | R106: 1.23055401e-06
A107: 50.51919 | B107: ='DF raw data'!A112 -> -7.304792e-07 | C107: ='DF raw data'!B112 -> -5.4724051e-06 | D107: ='DF raw data'!C112 -> -4.770855e-06 | F107: -7.309408629e-07 | G107: -5.488050541e-06 | H107: -4.77387018e-06 | J107: -2.211096931e-06 | K107: -1.703620916e-07 | L107: -1.699539931e-06 | N107: -0.0002189333397 | O107: -0.006100748052 | P107: 0.0001162768869 | Q107: 0.002415578121 | R107: 1.261291747e-06
A108: 51.01938 | B108: ='DF raw data'!A113 -> -3.437035e-06 | C108: ='DF raw data'!B113 -> 8.5211714e-06 | D108: ='DF raw data'!C113 -> -1.081897e-06 | F108: -3.439207206e-06 | G108: 8.545533172e-06 | H108: -1.082580759e-06 | J108: -3.78457344e-06 | K108: 4.095057169e-06 | L108: 1.522313595e-06 | N108: -0.0002208263455 | O108: -0.006211203182 | P108: 0.0001183251935 | Q108: 0.0024747632 | R108: 1.292686235e-06
A109: 51.51957 | B109: ='DF raw data'!A114 -> -4.3730624e-06 | C109: ='DF raw data'!B114 -> 9.6889262e-06 | D109: ='DF raw data'!C114 -> 7.1001946e-06 | F109: -4.375826175e-06 | G109: 9.716626548e-06 | H109: 7.104681923e-06 | J109: -6.724339699e-06 | K109: 5.090725539e-06 | L109: -6.393634625e-06 | N109: -0.000224189793 | O109: -0.006323340674 | P109: 0.0001208715235 | Q109: 0.002535221927 | R109: 1.325134055e-06
A110: 52.01976 | B110: ='DF raw data'!A115 -> -5.3271788e-06 | C110: ='DF raw data'!B115 -> -2.2761569e-06 | D110: ='DF raw data'!C115 -> 4.2028955e-06 | F110: -5.330545577e-06 | G110: -2.282664364e-06 | H110: 4.20555173e-06 | J110: -1.089146806e-05 | K110: 7.861903367e-06 | L110: -1.045420088e-05 | N110: -0.0002296375964 | O110: -0.006438203104 | P110: 0.000124803969 | Q110: 0.002597647624 | R110: 1.359301762e-06
A111: 52.51995 | B111: ='DF raw data'!A116 -> -3.5296164e-06 | C111: ='DF raw data'!B116 -> 2.880136e-06 | D111: ='DF raw data'!C116 -> 2.2808813e-06 | F111: -3.531847118e-06 | G111: 2.888370222e-06 | H111: 2.282322817e-06 | J111: -1.157882119e-05 | K111: 5.220520261e-06 | L111: -3.349525863e-06 | N111: -0.0002354292069 | O111: -0.006555962439 | P111: 0.000127415221 | Q111: 0.002661379444 | R111: 1.395146152e-06
A112: 53.02014 | B112: ='DF raw data'!A117 -> -2.9902142e-06 | C112: ='DF raw data'!B117 -> 1.7263909e-06 | D112: ='DF raw data'!C117 -> 3.7223094e-06 | F112: -2.992104015e-06 | G112: 1.7313266e-06 | H112: 3.7246619e-06 | J112: -9.155153603e-06 | K112: 4.942668556e-07 | L112: -4.329154698e-06 | N112: -0.0002400085232 | O112: -0.006676012302 | P112: 0.0001276624483 | Q112: 0.002725234924 | R112: 1.43211109e-06
A113: 53.52033 | B113: ='DF raw data'!A118 -> -7.562217e-06 | C113: ='DF raw data'!B118 -> -8.1364133e-06 | D113: ='DF raw data'!C118 -> 3.8242702e-06 | F113: -7.566996321e-06 | G113: -8.15967506e-06 | H113: 3.826687139e-06 | J113: -5.404336684e-06 | K113: 7.276491664e-06 | L113: -1.029715969e-06 | N113: -0.0002427117184 | O113: -0.006797414276 | P113: 0.0001313020767 | Q113: 0.00279091091 | R113: 1.470200165e-06
A114: 54.02052 | B114: ='DF raw data'!A119 -> -7.6601382e-06 | C114: ='DF raw data'!B119 -> -2.9698431e-06 | D114: ='DF raw data'!C119 -> 2.2378867e-06 | F114: -7.664979407e-06 | G114: -2.978333792e-06 | H114: 2.239301044e-06 | J114: -3.527960163e-06 | K114: 1.0747086e-05 | L114: 4.063955898e-06 | N114: -0.0002444763688 | O114: -0.006919698911 | P114: 0.0001366776616 | Q114: 0.002859275709 | R114: 1.509439809e-06
A115: 54.52071 | B115: ='DF raw data'!A120 -> -5.1314028e-06 | C115: ='DF raw data'!B120 -> 3.3620736e-06 | D115: ='DF raw data'!C120 -> 3.9366128e-06 | F115: -5.134645847e-06 | G115: 3.371685667e-06 | H115: 3.939100739e-06 | J115: -1.411466984e-06 | K115: 5.455220549e-06 | L115: 8.350473566e-08 | N115: -0.0002451823705 | O115: -0.007042336681 | P115: 0.0001394063084 | Q115: 0.002929005351 | R115: 1.54922918e-06
A116: 55.0209 | B116: ='DF raw data'!A121 -> -2.5767683e-06 | C116: ='DF raw data'!B121 -> -2.3257899e-06 | D116: ='DF raw data'!C121 -> 5.4098541e-06 | F116: -2.578396818e-06 | G116: -2.332439263e-06 | H116: 5.413273128e-06 | J116: -2.236410519e-06 | K116: 6.46427117e-06 | L116: -8.490398443e-07 | N116: -0.0002463010006 | O116: -0.007165533979 | P116: 0.0001426396722 | Q116: 0.003000352288 | R116: 1.589749702e-06
A117: 55.52109 | B117: ='DF raw data'!A122 -> -9.2305106e-07 | C117: ='DF raw data'!B122 -> -5.9247222e-06 | D117: ='DF raw data'!C122 -> -5.3223889e-06 | F117: -9.236344283e-07 | G117: -5.941660802e-06 | H117: -5.32575265e-06 | J117: -1.048757896e-05 | K117: 6.911996655e-06 | L117: -5.008302248e-06 | N117: -0.0002515467828 | O117: -0.007291355164 | P117: 0.0001460969838 | Q117: 0.003073428539 | R117: 1.632075836e-06
A118: 56.02128 | B118: ='DF raw data'!A123 -> -1.1893147e-06 | C118: ='DF raw data'!B123 -> -5.4617312e-06 | D118: ='DF raw data'!C123 -> -7.9701094e-06 | F118: -1.190066347e-06 | G118: -5.477346125e-06 | H118: -7.975146509e-06 | J118: -1.348992925e-05 | K118: 1.073116261e-05 | L118: -1.653455824e-06 | N118: -0.0002582943105 | O118: -0.007420551395 | P118: 0.000151464604 | Q118: 0.003149189619 | R118: 1.676921609e-06
A119: 56.52147 | B119: ='DF raw data'!A124 -> -9.5555822e-07 | C119: ='DF raw data'!B124 -> 1.7601477e-06 | D119: ='DF raw data'!C124 -> 1.6874852e-06 | F119: -9.561621328e-07 | G119: 1.765179909e-06 | H119: 1.688551691e-06 | J119: -8.406419401e-06 | K119: 9.67313787e-06 | L119: 3.680228736e-06 | N119: -0.0002624991174 | O119: -0.007551850828 | P119: 0.0001563030109 | Q119: 0.003227370822 | R119: 1.723607552e-06
A120: 57.02166 | B120: ='DF raw data'!A125 -> 2.9952746e-06 | C120: ='DF raw data'!B125 -> 2.5891304e-06 | D120: ='DF raw data'!C125 -> -9.6595177e-06 | F120: 2.997167614e-06 | G120: 2.596532646e-06 | H120: -9.665622515e-06 | J120: -4.040919748e-06 | K120: 2.562011733e-06 | L120: 9.021049702e-07 | N120: -0.000264520345 | O120: -0.00768416126 | P120: 0.0001575845035 | Q120: 0.003306193015 | R120: 1.771027509e-06
A121: 57.52185 | B121: ='DF raw data'!A126 -> 2.4833728e-06 | C121: ='DF raw data'!B126 -> -5.334573e-06 | D121: ='DF raw data'!C126 -> -1.0179838e-05 | F121: 2.484942292e-06 | G121: -5.349824383e-06 | H121: -1.018627166e-05 | J121: -2.696471594e-06 | K121: 7.868729527e-06 | L121: 4.31948519e-06 | N121: -0.0002658690932 | O121: -0.007817146322 | P121: 0.0001615203633 | Q121: 0.003386983885 | R121: 1.819433498e-06
A122: 58.02204 | B122: ='DF raw data'!A127 -> 1.5748466e-06 | C122: ='DF raw data'!B127 -> 5.5680275e-06 | D122: ='DF raw data'!C127 -> -3.2734556e-06 | F122: 1.575841903e-06 | G122: 5.583946323e-06 | H122: -3.275524424e-06 | J122: -3.174899669e-06 | K122: 6.615208264e-06 | L122: 3.507411984e-06 | N122: -0.0002674571462 | O122: -0.007950925712 | P122: 0.0001648292244 | Q122: 0.003469429815 | R122: 1.86880325e-06
A123: 58.52223 | B123: ='DF raw data'!A128 -> 4.1221383e-06 | C123: ='DF raw data'!B128 -> 5.5481813e-08 | D123: ='DF raw data'!C128 -> -4.8477381e-07 | F123: 4.124743491e-06 | G123: 5.564043383e-08 | H123: -4.85080187e-07 | J123: -3.271146759e-06 | K123: 5.578252792e-07 | L123: -1.702535823e-06 | N123: -0.0002690933411 | O123: -0.00808552351 | P123: 0.000165108243 | Q123: 0.003552015307 | R123: 1.918658167e-06
A124: 59.02242 | B124: ='DF raw data'!A129 -> 2.4060103e-06 | C124: ='DF raw data'!B129 -> 5.2227178e-06 | D124: ='DF raw data'!C129 -> -2.6191615e-06 | F124: 2.407530899e-06 | G124: 5.237649393e-06 | H124: -2.62081681e-06 | J124: -1.770939827e-06 | K124: 1.436278471e-06 | L124: 1.062268029e-06 | N124: -0.0002699791475 | O124: -0.00822056438 | P124: 0.0001658266551 | Q124: 0.003634960142 | R124: 1.96887085e-06
A125: 59.52261 | B125: ='DF raw data'!A130 -> -1.7638939e-06 | C125: ='DF raw data'!B130 -> -3.7641902e-07 | D125: ='DF raw data'!C130 -> 2.9971357e-06 | F125: -1.765008681e-06 | G125: -3.774951906e-07 | H125: 2.99902989e-06 | J125: -6.995350469e-07 | K125: -1.318036584e-06 | L125: 7.941581409e-06 | N125: -0.0002703290479 | O125: -0.008355780266 | P125: 0.0001651673864 | Q125: 0.003717575217 | R125: 2.019068948e-06
A126: 60.0228 | B126: ='DF raw data'!A131 -> -5.7362195e-06 | C126: ='DF raw data'!B131 -> 3.7468808e-06 | D126: ='DF raw data'!C131 -> 4.289283e-06 | F126: -5.739844791e-06 | G126: 3.757593019e-06 | H126: 4.291993827e-06 | J126: -2.515733539e-06 | K126: -4.279623233e-06 | L126: 4.1667136e-06 | N126: -0.0002715873927 | O126: -0.008491625564 | P126: 0.0001630267616 | Q126: 0.003799119573 | R126: 2.069256731e-06
A127: 60.52299 | B127: ='DF raw data'!A132 -> -3.7476202e-06 | C127: ='DF raw data'!B132 -> 1.5231807e-06 | D127: ='DF raw data'!C132 -> -9.9377794e-06 | F127: -3.749988696e-06 | G127: 1.527535428e-06 | H127: -9.944060077e-06 | J127: -7.691749115e-06 | K127: -3.093196745e-08 | L127: 1.147317547e-05 | N127: -0.0002754347287 | O127: -0.008629395261 | P127: 0.0001630112898 | Q127: 0.00388065619 | R127: 2.120494679e-06
A128: 61.02318 | B128: ='DF raw data'!A133 -> -8.0270172e-07 | C128: ='DF raw data'!B133 -> 1.2617785e-05 | D128: ='DF raw data'!C133 -> -1.1336746e-05 | F128: -8.032090275e-07 | G128: 1.265385887e-05 | H128: -1.134391082e-05 | J128: -1.053226319e-05 | K128: 6.941034135e-06 | L128: 2.898990405e-06 | N128: -0.0002807028614 | O128: -0.008769800025 | P128: 0.0001664831256 | Q128: 0.003963929384 | R128: 2.17377028e-06
A129: 61.52337 | B129: ='DF raw data'!A134 -> -8.157848e-07 | C129: ='DF raw data'!B134 -> 6.2334284e-06 | D129: ='DF raw data'!C134 -> -4.8102561e-06 | F129: -8.16300376e-07 | G129: 6.251249584e-06 | H129: -4.813296182e-06 | J129: -8.787865923e-06 | K129: -1.489981067e-06 | L129: 3.490695826e-06 | N129: -0.0002850984641 | O129: -0.008912403426 | P129: 0.000165737852 | Q129: 0.0040468298 | R129: 2.228166027e-06
A130: 62.02356 | B130: ='DF raw data'!A135 -> -7.1699549e-07 | C130: ='DF raw data'!B135 -> 1.8382042e-06 | D130: ='DF raw data'!C135 -> 1.3961104e-06 | F130: -7.174486311e-07 | G130: 1.84345957e-06 | H130: 1.396992742e-06 | J130: -7.62068353e-06 | K130: -9.210271822e-07 | L130: 6.552358175e-08 | N130: -0.0002889102538 | O130: -0.009056913446 | P130: 0.0001652771634 | Q130: 0.004129499785 | R130: 2.283579914e-06
A131: 62.52375 | B131: ='DF raw data'!A136 -> -5.305485e-06 | C131: ='DF raw data'!B136 -> 6.4094193e-06 | D131: ='DF raw data'!C136 -> -1.6807502e-06 | F131: -5.308838067e-06 | G131: 6.427743637e-06 | H131: -1.681812434e-06 | J131: -4.686460272e-06 | K131: 1.27633139e-05 | L131: 4.275132077e-06 | N131: -0.0002912543743 | O131: -0.009202595971 | P131: 0.0001716612454 | Q131: 0.004215363023 | R131: 2.340749978e-06
A132: 63.02394 | B132: ='DF raw data'!A137 -> -7.9738602e-06 | C132: ='DF raw data'!B137 -> 5.0513981e-06 | D132: ='DF raw data'!C137 -> -3.389127e-06 | F132: -7.97889968e-06 | G132: 5.065839895e-06 | H132: -3.391268928e-06 | J132: -9.052293936e-06 | K132: 1.096720151e-05 | L132: 1.087207781e-05 | N132: -0.0002957822412 | O132: -0.009350543291 | P132: 0.0001771469299 | Q132: 0.004303970146 | R132: 2.400206647e-06
A133: 63.52413 | B133: ='DF raw data'!A138 -> -1.5573709e-06 | C133: ='DF raw data'!B138 -> 2.1328115e-06 | D133: ='DF raw data'!C138 -> -7.5526154e-06 | F133: -1.558355158e-06 | G133: 2.138909144e-06 | H133: -7.557388653e-06 | J133: -1.926626959e-05 | K133: 7.561101836e-06 | L133: 1.1051289e-05 | N133: -0.0003054190366 | O133: -0.009503310839 | P133: 0.0001809289175 | Q133: 0.004394468981 | R133: 2.463238621e-06
A134: 64.02432 | B134: ='DF raw data'!A139 -> 8.3339376e-07 | C134: ='DF raw data'!B139 -> 9.0114452e-07 | D134: ='DF raw data'!C139 -> -5.5000223e-06 | F134: 8.339204649e-07 | G134: 9.03720865e-07 | H134: -5.503498314e-06 | J134: -1.959575169e-05 | K134: 6.108072612e-06 | L134: 9.372998694e-06 | N134: -0.0003152206357 | O134: -0.009660981048 | P134: 0.0001839841143 | Q134: 0.004486495995 | R134: 2.529871033e-06
A135: 64.52451 | B135: ='DF raw data'!A140 -> -3.6125193e-06 | C135: ='DF raw data'!B140 -> 1.1239749e-05 | D135: ='DF raw data'!C140 -> 1.6499486e-06 | F135: -3.614802412e-06 | G135: =(1-$G$1*($B$2-$G$2))*C135*$M$2/$M$1 -> 1.12718831e-05 | H135: 1.650991368e-06 | J135: =-CELL("contents", INDEX($F$6:$F$1203,1204-CELL("row",F135))) -> -1.358043241e-05 | K135: =CELL("contents", INDEX($G$6:$G$1203,1204-CELL("row",G135))) -> 1.676199542e-06 | L135: =-CELL("contents", INDEX($H$6:$H$1203,1204-CELL("row",H135))) -> -1.651524604e-06 | N135: -0.0003220134322 | O135: -0.009822048947 | P135: 0.0001848225326 | Q135: 0.004578942378 | R135: 2.598823235e-06
A136: =A135+$B$1 -> 65.0247 | B136: ='DF raw data'!A141 -> -6.7354586e-06 | C136: ='DF raw data'!B141 -> 1.2434989e-05 | D136: ='DF raw data'!C141 -> 1.1794106e-06 | F136: -6.73971541e-06 | G136: 1.247054026e-05 | H136: 1.180155987e-06 | J136: -1.314682054e-05 | K136: 7.356777946e-06 | L136: -8.856892821e-06 | N136: =J136*$B$1+N135 -> -0.0003285893403 | O136: =N136*$B$1+O135 -> -0.009986406049 | P136: =K136*$B$1+P135 -> 0.0001885023193 | Q136: =P136*$B$1+Q135 -> 0.004673229353 | R136: =(N136^2+P136^2)*$B$1+R135 -> 2.67060254e-06
A137: 65.52489 | B137: ='DF raw data'!A142 -> -2.3946093e-06 | C137: ='DF raw data'!B142 -> 2.0025864e-06 | D137: ='DF raw data'!C142 -> -1.9746535e-06 | F137: -2.396122693e-06 | G137: 2.008311734e-06 | H137: -1.975901481e-06 | J137: -1.570714465e-05 | K137: 2.757772812e-06 | L137: -3.375564709e-06 | N137: -0.000336445897 | O137: -0.01015469292 | P137: 0.0001898817297 | Q137: 0.004768206295 | R137: 2.745256354e-06
A138: 66.02508 | B138: ='DF raw data'!A143 -> 1.1696767e-06 | C138: ='DF raw data'!B143 -> 2.559379e-06 | D138: ='DF raw data'!C143 -> 6.7558688e-08 | F138: 1.170415936e-06 | G138: 2.566696187e-06 | H138: 6.760138509e-08 | J138: -1.288660019e-05 | K138: 9.499186767e-06 | L138: 2.431618812e-06 | N138: -0.0003428916455 | O138: -0.01032620389 | P138: 0.0001946331279 | Q138: 0.00486555984 | R138: 2.823014258e-06
A139: 66.52527 | B139: ='DF raw data'!A144 -> -1.8712934e-06 | C139: ='DF raw data'!B144 -> -3.2655198e-06 | D139: ='DF raw data'!C144 -> 1.5163747e-06 | F139: =(1-$G$1*($B$2-$G$2))*B139 -> -1.872476057e-06 | G139: -3.274855823e-06 | H139: =(1-$G$1*($B$2-$G$2))*D139 -> 1.517333049e-06 | J139: -1.175294717e-05 | K139: 3.967002709e-06 | L139: 4.476652357e-06 | N139: -0.0003487703522 | O139: -0.01050065534 | P139: 0.000196617383 | Q139: 0.004963905888 | R139: 2.903194292e-06
A140: 67.02546 | B140: ='DF raw data'!A145 -> -4.1991802e-06 | C140: ='DF raw data'!B145 -> 1.0672619e-06 | D140: ='DF raw data'!C145 -> 7.1628215e-06 | F140: -4.201834082e-06 | G140: 1.07031317e-06 | H140: 7.167348403e-06 | J140: -1.235253487e-05 | K140: -8.826441993e-06 | L140: 7.282216354e-07 | N140: -0.0003549489666 | O140: -0.01067819726 | P140: 0.000192202485 | Q140: 0.005060043649 | R140: 2.984690531e-06
A141: 67.52565 | B141: ='DF raw data'!A146 -> 6.5083361e-07 | C141: ='DF raw data'!B146 -> 4.4442177e-07 | D141: ='DF raw data'!C146 -> 8.40146e-06 | F141: 6.512449368e-07 | G141: 4.456923585e-07 | H141: 8.406769723e-06 | J141: -1.353701799e-05 | K141: -4.82984632e-06 | L141: -2.165313314e-06 | N141: -0.0003617200476 | O141: -0.01085912601 | P141: 0.0001897866442 | Q141: 0.005154973031 | R141: 3.068152416e-06
A142: 68.02584 | B142: ='DF raw data'!A147 -> 2.1821327e-06 | C142: ='DF raw data'!B147 -> 4.8373795e-06 | D142: ='DF raw data'!C147 -> 7.1497102e-06 | F142: 2.183511808e-06 | G142: 4.851209422e-06 | H142: 7.154228817e-06 | J142: -1.756648901e-05 | K142: -8.817477938e-06 | L142: -2.970791254e-08 | N142: -0.0003705066298 | O142: -0.01104444972 | P142: 0.0001853762299 | Q142: 0.005247696367 | R142: 3.154004782e-06
A143: 68.52603 | B143: ='DF raw data'!A148 -> 6.2927404e-07 | C143: ='DF raw data'!B148 -> 1.446463e-06 | D143: ='DF raw data'!C148 -> 3.5250428e-06 | F143: 6.296717412e-07 | G143: 1.450598394e-06 | H143: 3.527270627e-06 | J143: -2.262495194e-05 | K143: 2.079363891e-06 | L143: -3.146725174e-07 | N143: -0.0003818234045 | O143: -0.01123543397 | P143: 0.0001864163069 | Q143: 0.00534093994 | R143: 3.244309161e-06
A144: 69.02622 | B144: ='DF raw data'!A149 -> 1.6670003e-07 | C144: ='DF raw data'!B149 -> 2.2955928e-06 | D144: ='DF raw data'!C149 -> 4.1665576e-06 | F144: 1.668053844e-07 | G144: 2.302155831e-06 | H144: 4.169190864e-06 | J144: -2.259683318e-05 | K144: 4.724568692e-07 | L144: -5.214283746e-06 | N144: -0.0003931261145 | O144: -0.01143207172 | P144: 0.0001866526251 | Q144: 0.005434301716 | R144: 3.339038816e-06
A145: 69.52641 | B145: ='DF raw data'!A150 -> -1.2026647e-06 | C145: ='DF raw data'!B150 -> 8.6688733e-06 | D145: ='DF raw data'!C150 -> 9.2415057e-06 | F145: -1.203424784e-06 | G145: 8.693657348e-06 | H145: 9.247346332e-06 | J145: -1.657336475e-05 | K145: -9.11547026e-06 | L145: -6.502515394e-07 | N145: -0.0004014159458 | O145: -0.01163285596 | P145: 0.000182093158 | Q145: 0.005525382893 | R145: 3.436222072e-06
A146: 70.0266 | B146: ='DF raw data'!A151 -> -3.4516531e-06 | C146: ='DF raw data'!B151 -> -5.7978332e-06 | D146: ='DF raw data'!C151 -> 1.3905681e-05 | F146: -3.453834545e-06 | G146: -5.81440903e-06 | H146: 1.391446939e-05 | J146: -9.2846619e-06 | K146: 2.867288121e-07 | L146: 2.607631682e-06 | N146: -0.0004060600408 | O146: -0.01183596314 | P146: 0.0001822365769 | Q146: 0.005616535807 | R146: 3.535307173e-06
A147: 70.52679 | B147: ='DF raw data'!A152 -> -7.2203929e-06 | C147: ='DF raw data'!B152 -> 3.6319971e-06 | D147: ='DF raw data'!C152 -> 1.7746916e-05 | F147: -7.224956188e-06 | G147: 3.64238087e-06 | H147: 1.775813205e-05 | J147: -3.679710608e-06 | K147: 1.387392606e-05 | L147: 8.976419314e-08 | N147: -0.0004079005953 | O147: -0.01203999093 | P147: 0.000189176176 | Q147: 0.005711159838 | R147: 3.636430846e-06
A148: 71.02698 | B148: ='DF raw data'!A153 -> -9.7401844e-06 | C148: ='DF raw data'!B153 -> 8.6353857e-06 | D148: ='DF raw data'!C153 -> 8.0726832e-06 | F148: -9.746340197e-06 | G148: 8.660074008e-06 | H148: 8.077785136e-06 | J148: -1.961963578e-06 | K148: 8.677064544e-06 | L148: 8.940990537e-06 | N148: -0.0004088819498 | O148: -0.0122445096 | P148: 0.0001935163569 | Q148: 0.005807954785 | R148: 3.738786241e-06
A149: 71.52717 | B149: ='DF raw data'!A154 -> -7.9555712e-06 | C149: ='DF raw data'!B154 -> 1.1428682e-05 | D149: ='DF raw data'!C154 -> -1.4890742e-06 | F149: -7.960599121e-06 | G149: 1.146135626e-05 | H149: -1.490015295e-06 | J149: -1.778220425e-06 | K149: 8.191074775e-06 | L149: 8.493063426e-06 | N149: -0.0004097713979 | O149: -0.01244947315 | P149: 0.0001976134506 | Q149: 0.005906799056 | R149: 3.842307401e-06
A150: 72.02736 | B150: ='DF raw data'!A155 -> -4.5471447e-06 | C150: ='DF raw data'!B155 -> 1.0315634e-05 | D150: ='DF raw data'!C155 -> 2.2034124e-06 | F150: -4.550018495e-06 | G150: 1.034512609e-05 | H150: 2.204804957e-06 | J150: -1.738879878e-06 | K150: 8.714728317e-07 | L150: -1.976113515e-06 | N150: -0.0004106411682 | O150: -0.01265487176 | P150: 0.0001980493526 | Q150: 0.006005861362 | R150: 3.94627175e-06
A151: 72.52755 | B151: ='DF raw data'!A156 -> -7.1320169e-06 | C151: ='DF raw data'!B156 -> 1.0417437e-05 | D151: ='DF raw data'!C156 -> 9.705187e-06 | F151: -7.136524335e-06 | G151: 1.044722014e-05 | H151: 9.711320678e-06 | J151: -2.252908239e-06 | K151: 6.739714509e-07 | L151: -3.343398293e-06 | N151: -0.0004117680504 | O151: -0.01286083402 | P151: 0.0001983864664 | Q151: 0.006105092289 | R151: 4.050766502e-06
A152: 73.02774 | B152: ='DF raw data'!A157 -> -8.1463413e-06 | C152: ='DF raw data'!B157 -> 1.5706357e-05 | D152: ='DF raw data'!C157 -> 4.639624e-06 | F152: -8.151489788e-06 | G152: 1.5751261e-05 | H152: 4.642556242e-06 | J152: -4.97914133e-06 | K152: 7.251467424e-06 | L152: 7.128776941e-06 | N152: -0.0004142585671 | O152: -0.01306804201 | P152: 0.0002020135779 | Q152: 0.00620613746 | R152: 4.157016685e-06
A153: 73.52793 | B153: ='DF raw data'!A158 -> -2.1378908e-06 | C153: ='DF raw data'!B158 -> 6.9051011e-06 | D153: ='DF raw data'!C158 -> -9.9251372e-07 | F153: -2.139241947e-06 | G153: 6.924842576e-06 | H153: -9.931409887e-07 | J153: -5.22453432e-06 | K153: 1.096920823e-05 | L153: 5.883361336e-06 | N153: -0.0004168718269 | O153: -0.01327655713 | P153: 0.0002075002661 | Q153: 0.006309927018 | R153: 4.265477124e-06
A154: 74.02812 | B154: ='DF raw data'!A159 -> 3.4772449e-07 | C154: ='DF raw data'!B159 -> 1.4522858e-05 | D154: ='DF raw data'!C159 -> 7.0911433e-06 | F154: 3.479442519e-07 | G154: 1.456437841e-05 | H154: 7.095624903e-06 | J154: -7.895797592e-06 | K154: -1.013758041e-06 | L154: 6.358392166e-06 | N154: -0.0004208212259 | O154: -0.0134870477 | P154: 0.0002069931945 | Q154: 0.006413462944 | R154: 4.375487256e-06
A155: 74.52831 | B155: ='DF raw data'!A160 -> 1.0226951e-06 | C155: ='DF raw data'!B160 -> 1.9117288e-05 | D155: ='DF raw data'!C160 -> 1.3932369e-05 | F155: 1.023341443e-06 | G155: 1.917194375e-05 | H155: 1.394117426e-05 | J155: -9.549625051e-06 | K155: -7.886436908e-06 | L155: 2.008267223e-06 | N155: -0.0004255978529 | O155: -0.01369992749 | P155: 0.0002030484776 | Q155: 0.006515025762 | R155: 4.486710613e-06
A156: 75.0285 | B156: ='DF raw data'!A161 -> 4.4021517e-06 | C156: ='DF raw data'!B161 -> 9.5617679e-06 | D156: ='DF raw data'!C161 -> 4.4852181e-06 | F156: 4.40493386e-06 | G156: 9.589104706e-06 | H156: 4.488052758e-06 | J156: -8.629704929e-06 | K156: -7.58630298e-06 | L156: 2.100102326e-06 | N156: -0.000429914345 | O156: -0.01391496635 | P156: 0.0001992538847 | Q156: 0.006614690563 | R156: 4.599017501e-06
A157: 75.52869 | B157: ='DF raw data'!A162 -> 5.7663101e-06 | C157: ='DF raw data'!B162 -> 1.424146e-05 | D157: ='DF raw data'!C162 -> 9.8939893e-07 | F157: 5.769954408e-06 | G157: 1.428217591e-05 | H157: 9.900242301e-07 | J157: -6.165360447e-06 | K157: 1.837436099e-06 | L157: 5.337474353e-06 | N157: -0.0004329981966 | O157: -0.01413154771 | P157: 0.0002001729519 | Q157: 0.006714815072 | R157: 4.712839061e-06
A158: 76.02888 | B158: ='DF raw data'!A163 -> 2.2430079e-06 | C158: ='DF raw data'!B163 -> 8.3817386e-06 | D158: ='DF raw data'!C163 -> 2.36607e-06 | F158: 2.244425481e-06 | G158: 8.405701738e-06 | H158: 2.367565356e-06 | J158: -1.54825678e-06 | K158: -2.250416331e-06 | L158: 2.866156967e-06 | N158: -0.0004337726192 | O158: -0.01434851644 | P158: 0.0001990473161 | Q158: 0.006814376549 | R158: 4.826771598e-06
A159: 76.52907 | B159: ='DF raw data'!A164 -> -1.8828413e-06 | C159: ='DF raw data'!B164 -> 2.9900793e-06 | D159: ='DF raw data'!C164 -> -6.6719062e-06 | F159: -1.884031256e-06 | G159: 2.998627847e-06 | H159: -6.676122845e-06 | J159: -6.104356016e-07 | K159: -8.320243913e-06 | L159: 6.391167267e-07 | N159: -0.000434077953 | O159: -0.01456563789 | P159: 0.0001948856133 | Q159: 0.006911856384 | R159: 4.940016651e-06
A160: 77.02926 | B160: ='DF raw data'!A165 -> -8.1536837e-06 | C160: ='DF raw data'!B165 -> 1.1493395e-05 | D160: ='DF raw data'!C165 -> 4.1375401e-06 | F160: -8.158836828e-06 | G160: 1.152625427e-05 | H160: 4.140155025e-06 | J160: -4.162079973e-06 | K160: -2.112726502e-06 | L160: 7.668804423e-06 | N160: -0.0004361597838 | O160: -0.01478380065 | P160: 0.0001938288487 | Q160: 0.007008807636 | R160: 5.053962424e-06
A161: 77.52945 | B161: ='DF raw data'!A166 -> -1.2236012e-05 | C161: ='DF raw data'!B166 -> 1.2744941e-05 | D161: ='DF raw data'!C166 -> 3.3428846e-06 | F161: -1.224374516e-05 | G161: 1.27813784e-05 | H161: 3.344997303e-06 | J161: -9.41604138e-06 | K161: -3.892515559e-06 | L161: 1.354258251e-05 | N161: -0.0004408695935 | O161: -0.01500431922 | P161: 0.0001918818513 | Q161: 0.007104785019 | R161: 5.16959867e-06
A162: 78.02964 | B162: ='DF raw data'!A167 -> -1.1088857e-05 | C162: ='DF raw data'!B167 -> 9.8964038e-06 | D162: ='DF raw data'!C167 -> 5.8948331e-06 | F162: -1.109586516e-05 | G162: 9.92469732e-06 | H162: 5.898558635e-06 | J162: -1.376330692e-05 | K162: -6.274575482e-06 | L162: 1.142882245e-05 | N162: -0.000447753862 | O162: -0.01522828122 | P162: 0.0001887433714 | Q162: 0.007199192566 | R162: 5.287697321e-06
A163: 78.52983 | B163: ='DF raw data'!A168 -> -6.2279623e-06 | C163: ='DF raw data'!B168 -> 1.258216e-05 | D163: ='DF raw data'!C168 -> 4.4825561e-06 | F163: -6.231898372e-06 | G163: 1.261813202e-05 | H163: 4.485389075e-06 | J163: -1.210747709e-05 | K163: -4.207100785e-06 | L163: 3.054557761e-06 | N163: -0.000453809901 | O163: -0.0154552724 | P163: 0.0001866390217 | Q163: 0.007292547538 | R163: 5.408131844e-06
A164: 79.03002 | B164: ='DF raw data'!A169 -> 9.4600011e-07 | C164: ='DF raw data'!B169 -> 1.5680205e-05 | D164: ='DF raw data'!C169 -> 3.7743544e-06 | F164: 9.465979821e-07 | G164: 1.572503423e-05 | H164: 3.776739792e-06 | J164: -4.301874868e-06 | K164: -2.542253907e-06 | L164: -7.932325663e-07 | N164: -0.0004559616557 | O164: -0.01568333986 | P164: 0.0001853674117 | Q164: 0.007385266464 | R164: 5.529308929e-06
A165: 79.53021 | B165: ='DF raw data'!A170 -> 2.8440866e-06 | C165: ='DF raw data'!B170 -> 7.5408816e-06 | D165: ='DF raw data'!C170 -> -1.0968037e-06 | F165: 2.845884063e-06 | G165: 7.562440753e-06 | H165: -1.09749688e-06 | J165: 2.582070338e-06 | K165: -1.177157062e-05 | L165: -1.362624835e-07 | N165: -0.00045467013 | O165: -0.01591076131 | P165: 0.0001794793898 | Q165: 0.00747504026 | R165: 5.648823216e-06
A166: 80.0304 | B166: ='DF raw data'!A171 -> 9.9552756e-07 | C166: ='DF raw data'!B171 -> 4.1801168e-06 | D166: ='DF raw data'!C171 -> -8.0125062e-08 | F166: 9.961567334e-07 | G166: 4.192067628e-06 | H166: -8.017570104e-08 | J166: 1.843689176e-06 | K166: -1.048633766e-05 | L166: 2.561230775e-07 | N166: -0.0004537479351 | O166: -0.01613772149 | P166: 0.0001742342285 | Q166: 0.007562190478 | R166: 5.76699048e-06
A167: 80.53059 | B167: ='DF raw data'!A172 -> 1.8705862e-07 | C167: ='DF raw data'!B172 -> 2.0961188e-06 | D167: ='DF raw data'!C172 -> 5.8525716e-06 | F167: 1.87176841e-07 | G167: 2.10211154e-06 | H167: 5.856270425e-06 | J167: -1.334094815e-07 | K167: -3.065712493e-06 | L167: -2.10644183e-06 | N167: -0.0004538146652 | O167: -0.01636471505 | P167: 0.0001727007898 | Q167: 0.007648573686 | R167: 5.884921934e-06
A168: 81.03078 | B168: ='DF raw data'!A173 -> 2.5383072e-06 | C168: ='DF raw data'!B173 -> 2.8447785e-06 | D168: ='DF raw data'!C173 -> 1.790511e-06 | F168: 2.53991141e-06 | G168: 2.852911636e-06 | H168: 1.791642603e-06 | J168: -5.402266276e-06 | K168: -3.097960526e-06 | L168: 1.09065746e-05 | N168: -0.0004565168247 | O168: -0.0165930602 | P168: 0.0001711512209 | Q168: 0.007734181816 | R168: 6.003817272e-06
A169: 81.53097 | B169: ='DF raw data'!A174 -> 6.8455811e-06 | C169: ='DF raw data'!B174 -> 2.9663306e-06 | D169: ='DF raw data'!C174 -> 7.7951527e-06 | F169: 6.849907507e-06 | G169: 2.97481125e-06 | H169: 7.800079237e-06 | J169: -7.343230691e-06 | K169: 9.820995686e-06 | L169: 7.950372662e-06 | N169: -0.0004601898353 | O169: -0.01682324255 | P169: 0.0001760635848 | Q169: 0.00782224706 | R169: 6.125249935e-06
A170: 82.03116 | B170: ='DF raw data'!A175 -> 5.8632304e-06 | C170: ='DF raw data'!B175 -> 1.1463507e-05 | D170: ='DF raw data'!C175 -> 9.3529834e-06 | F170: 5.866935962e-06 | G170: 1.149628082e-05 | H170: 9.358894486e-06 | J170: -4.545864472e-06 | K170: 5.589966184e-06 | L170: 1.416625442e-06 | N170: -0.0004624636313 | O170: -0.01705456223 | P170: 0.00017885963 | Q170: 0.007911710858 | R170: 6.248228337e-06
A171: 82.53135 | B171: ='DF raw data'!A176 -> 1.6180028e-08 | C171: ='DF raw data'!B176 -> 1.2669155e-05 | D171: ='DF raw data'!C176 -> 7.6098655e-07 | F171: 1.619025378e-08 | G171: 1.270537573e-05 | H171: 7.614674935e-07 | J171: -6.150866692e-06 | K171: 1.044788905e-05 | L171: -2.862641347e-06 | N171: -0.0004655402333 | O171: -0.0172874208 | P171: 0.0001840855596 | Q171: 0.008003788614 | R171: 6.373583555e-06
A172: 83.03154 | B172: ='DF raw data'!A177 -> -4.4521603e-06 | C172: ='DF raw data'!B177 -> 2.3534794e-05 | D172: ='DF raw data'!C177 -> -7.2708922e-06 | F172: -4.454974065e-06 | G172: 2.360207927e-05 | H172: -7.275487404e-06 | J172: -8.67498813e-06 | K172: 1.638966197e-05 | L172: -2.61603529e-06 | N172: -0.0004698793756 | O172: -0.01752244977 | P172: 0.0001922835046 | Q172: 0.008099966901 | R172: 6.502512316e-06
A173: 83.53173 | B173: ='DF raw data'!A178 -> -3.4609313e-06 | C173: ='DF raw data'!B178 -> 2.5669229e-05 | D173: ='DF raw data'!C178 -> -3.9200281e-06 | F173: -3.463118609e-06 | G173: 2.574261655e-05 | H173: -3.922505558e-06 | J173: -1.08035045e-05 | K173: -5.161823326e-06 | L173: -3.648808591e-06 | N173: -0.0004752831805 | O173: -0.01776018166 | P173: 0.0001897016122 | Q173: 0.00819485375 | R173: 6.633502475e-06
A174: 84.03192 | B174: ='DF raw data'!A179 -> 3.0193044e-06 | C174: ='DF raw data'!B179 -> 7.8533658e-06 | D174: ='DF raw data'!C179 -> 8.4912417e-06 | F174: 3.0212126e-06 | G174: 7.875818336e-06 | H174: 8.496608165e-06 | J174: -1.208710423e-05 | K174: -4.842422272e-06 | L174: 9.337436833e-06 | N174: -0.0004813290292 | O174: -0.01800093763 | P174: 0.000187279481 | Q174: 0.008288529074 | R174: 6.766928777e-06
A175: 84.53211 | B175: ='DF raw data'!A180 -> 4.6637424e-06 | C175: ='DF raw data'!B180 -> 1.5130486e-05 | D175: ='DF raw data'!C180 -> 1.0076293e-05 | F175: 4.666689885e-06 | G175: 1.51737436e-05 | H175: 1.008266122e-05 | J175: -1.299413611e-05 | K175: -4.904375389e-06 | L175: 6.827494751e-06 | N175: -0.0004878285661 | O175: -0.0182449446 | P175: 0.0001848263615 | Q175: 0.008380977371 | R175: 6.90304923e-06
A176: 85.0323 | B176: ='DF raw data'!A181 -> 2.2532879e-06 | C176: ='DF raw data'!B181 -> 1.4344466e-05 | D176: ='DF raw data'!C181 -> -8.0043941e-07 | F176: 2.254711978e-06 | G176: 1.43854764e-05 | H176: -8.009452877e-07 | J176: -1.361883667e-05 | K176: 5.77649685e-06 | L176: 4.651600455e-06 | N176: -0.000494640572 | O176: -0.01849235887 | P176: 0.0001877157074 | Q176: 0.008474870891 | R176: 7.043055654e-06
A177: 85.53249 | B177: ='DF raw data'!A182 -> 6.9087928e-06 | C177: ='DF raw data'!B182 -> 1.2700376e-05 | D177: ='DF raw data'!C182 -> 7.3795815e-07 | F177: 6.913159157e-06 | G177: 1.273668599e-05 | H177: 7.384245396e-07 | J177: -1.337939043e-05 | K177: 1.007122023e-05 | L177: 6.176917046e-06 | N177: -0.0005013328093 | O177: -0.01874312052 | P177: 0.0001927532311 | Q177: 0.00857128413 | R177: 7.187354663e-06
A178: 86.03268 | B178: ='DF raw data'!A183 -> 1.068561e-05 | C178: ='DF raw data'!B183 -> 1.4556482e-05 | D178: ='DF raw data'!C183 -> 7.8267658e-06 | F178: 1.069236331e-05 | G178: 1.459809854e-05 | H178: 7.831712316e-06 | J178: -1.027197679e-05 | K178: -3.346710668e-06 | L178: -2.881021255e-07 | N178: -0.0005064707494 | O178: -0.01899645213 | P178: 0.0001910792399 | Q178: 0.008666860055 | R178: 7.333922286e-06
A179: 86.53287 | B179: ='DF raw data'!A184 -> 4.9656501e-06 | C179: ='DF raw data'!B184 -> 8.3843304e-07 | D179: ='DF raw data'!C184 -> 8.0484569e-06 | F179: 4.968788391e-06 | G179: 8.408300948e-07 | H179: 8.053543525e-06 | J179: -8.105724182e-06 | K179: -1.641392714e-05 | L179: 5.140658044e-08 | N179: -0.0005105251516 | O179: -0.0192518117 | P179: 0.0001828691576 | Q179: 0.008758329379 | R179: 7.48101669e-06
A180: 87.03306 | B180: ='DF raw data'!A185 -> -1.5614427e-06 | C180: ='DF raw data'!B185 -> 3.2789494e-06 | D180: ='DF raw data'!C185 -> 6.2140266e-06 | F180: -1.562429532e-06 | G180: 3.288323818e-06 | H180: 6.217953865e-06 | J180: -4.816971503e-06 | K180: -9.487991651e-06 | L180: 3.969854663e-06 | N180: -0.0005129345525 | O180: -0.01950837644 | P180: 0.0001781233591 | Q180: 0.008847424902 | R180: 7.628487601e-06
A181: 87.53325 | B181: ='DF raw data'!A186 -> -1.7954661e-06 | C181: ='DF raw data'!B186 -> 7.0824235e-06 | D181: ='DF raw data'!C186 -> 5.0489311e-06 | F181: -1.796600835e-06 | G181: 7.102671935e-06 | H181: 5.052122024e-06 | J181: -1.585233034e-07 | K181: -3.332795699e-06 | L181: 6.004700874e-06 | N181: -0.0005130138443 | O181: -0.01976498083 | P181: 0.000176456328 | Q181: 0.008935686592 | R181: 7.775703542e-06
A182: 88.03344 | B182: ='DF raw data'!A187 -> 2.0995378e-07 | C182: ='DF raw data'!B187 -> 1.359468e-06 | D182: ='DF raw data'!C187 -> 1.1698936e-06 | F182: 2.100864708e-07 | G182: 1.363354678e-06 | H182: 1.170632973e-06 | J182: 2.139308789e-06 | K182: -3.113750641e-06 | L182: 9.457309444e-06 | N182: -0.0005119437834 | O182: -0.02002104999 | P182: 0.0001748988611 | Q182: 0.009023169254 | R182: 7.922097175e-06
A183: 88.53363 | B183: ='DF raw data'!A188 -> 7.4141292e-07 | C183: ='DF raw data'!B188 -> 1.9408561e-05 | D183: ='DF raw data'!C188 -> -4.8750229e-07 | F183: 7.41881493e-07 | G183: 1.946404949e-05 | H183: -4.878103914e-07 | J183: -2.633019717e-06 | K183: -1.413690677e-05 | L183: 1.655612486e-05 | N183: -0.0005132607936 | O183: -0.02027777791 | P183: 0.0001678277217 | Q183: 0.009107115002 | R183: 8.067953972e-06
A184: 89.03382 | B184: ='DF raw data'!A189 -> 4.0383002e-06 | C184: ='DF raw data'!B189 -> 1.2170404e-05 | D184: ='DF raw data'!C189 -> 1.1697018e-05 | F184: 4.040852406e-06 | G184: 1.220519882e-05 | H184: 1.170441052e-05 | J184: -8.263618508e-06 | K184: -6.333588016e-06 | L184: 5.632162178e-06 | N184: -0.0005173941729 | O184: -0.0205365733 | P184: 0.0001646597243 | Q184: 0.009189476149 | R184: 8.215414764e-06
A185: 89.53401 | B185: ='DF raw data'!A190 -> 2.8294683e-06 | C185: ='DF raw data'!B190 -> 8.3974837e-06 | D185: ='DF raw data'!C190 -> 9.5316145e-06 | F185: 2.831256524e-06 | G185: 8.421491853e-06 | H185: 9.53763848e-06 | J185: -9.71613682e-06 | K185: -1.066885197e-05 | L185: 6.186146275e-08 | N185: -0.0005222540874 | O185: -0.02079779957 | P185: 0.0001593232712 | Q185: 0.009269168056 | R185: 8.364538027e-06
A186: 90.0342 | B186: ='DF raw data'!A191 -> -4.7521326e-06 | C186: ='DF raw data'!B191 -> 9.4879824e-06 | D186: ='DF raw data'!C191 -> -5.8935552e-06 | F186: -4.755135948e-06 | G186: 9.515108256e-06 | H186: -5.897279927e-06 | J186: -7.759142481e-06 | K186: -3.178378082e-06 | L186: 3.745493457e-06 | N186: -0.0005261351329 | O186: -0.02106096711 | P186: 0.0001577334783 | Q186: 0.009348064765 | R186: 8.515444364e-06
A187: 90.53439 | B187: ='DF raw data'!A192 -> -7.8966987e-06 | C187: ='DF raw data'!B192 -> 8.0320269e-06 | D187: ='DF raw data'!C192 -> -4.7644667e-06 | F187: -7.901689414e-06 | G187: 8.054990223e-06 | H187: -4.767477843e-06 | J187: -6.875422222e-06 | K187: 9.185940558e-06 | L187: 6.627108387e-06 | N187: -0.0005295741503 | O187: -0.0213258548 | P187: 0.0001623281939 | Q187: 0.009429259704 | R187: 8.668902268e-06
A188: 91.03458 | B188: ='DF raw data'!A193 -> -4.0805662e-06 | C188: ='DF raw data'!B193 -> 2.2274975e-05 | D188: ='DF raw data'!C193 -> -2.0661651e-06 | F188: -4.083145118e-06 | G188: 2.233865848e-05 | H188: -2.067470916e-06 | J188: -8.773306628e-06 | K188: -3.382034269e-06 | L188: 5.171848944e-06 | N188: -0.0005339624706 | O188: -0.02159293749 | P188: 0.0001606365342 | Q188: 0.009509608492 | R188: 8.82442135e-06
A189: 91.53477 | B189: ='DF raw data'!A194 -> 2.1117123e-06 | C189: ='DF raw data'!B194 -> 2.356495e-05 | D189: ='DF raw data'!C194 -> 4.5317353e-07 | F189: 2.113046902e-06 | G189: 2.363232148e-05 | H189: 4.534599357e-07 | J189: -1.120158093e-05 | K189: -7.533182543e-06 | L189: -9.956528051e-06 | N189: -0.0005395653893 | O189: -0.0218628227 | P189: 0.0001568685116 | Q189: 0.009588072553 | R189: 8.98235061e-06
A190: 92.03496 | B190: ='DF raw data'!A195 -> 3.4780062e-06 | C190: ='DF raw data'!B195 -> 6.7623323e-06 | D190: ='DF raw data'!C195 -> 4.0908858e-06 | F190: 3.4802043e-06 | G190: 6.781665604e-06 | H190: 4.09347124e-06 | J190: -1.394985674e-05 | K190: 1.54552752e-05 | L190: -1.039646241e-05 | N190: -0.0005465429682 | O190: -0.02213619803 | P190: 0.0001645990857 | Q190: 0.00967040337 | R190: 9.14531355e-06
A191: 92.53515 | B191: ='DF raw data'!A196 -> -2.6304349e-06 | C191: ='DF raw data'!B196 -> 9.6882568e-06 | D191: ='DF raw data'!C196 -> -3.9170341e-06 | F191: -2.632097335e-06 | G191: 9.715955234e-06 | H191: -3.919509666e-06 | J191: -1.259899654e-05 | K191: 1.419867887e-05 | L191: 3.14492944e-06 | N191: -0.0005528448602 | O191: -0.0224127255 | P191: 0.0001717011229 | Q191: 0.009756286554 | R191: 9.31293658e-06
A192: 93.03534 | B192: ='DF raw data'!A197 -> -6.8754321e-06 | C192: ='DF raw data'!B197 -> 7.1243221e-06 | D192: ='DF raw data'!C197 -> -3.7041268e-06 | F192: -6.879777373e-06 | G192: 7.144690322e-06 | H192: -3.706467808e-06 | J192: -7.366473871e-06 | K192: 9.993176342e-08 | L192: 6.025344913e-06 | N192: -0.0005565294968 | O192: -0.02269109599 | P192: 0.0001717511078 | Q192: 0.009842194741 | R192: 9.482612795e-06
A193: 93.53553 | B193: ='DF raw data'!A198 -> -5.7150596e-06 | C193: ='DF raw data'!B198 -> 7.2425382e-06 | D193: ='DF raw data'!C198 -> -1.3413904e-06 | F193: -5.718671518e-06 | G193: 7.263244399e-06 | H193: -1.342238159e-06 | J193: -4.032503433e-06 | K193: -6.397949098e-06 | L193: 4.148998211e-06 | N193: -0.0005585465147 | O193: -0.02297047537 | P193: 0.0001685509176 | Q193: 0.009926502224 | R193: 9.652869278e-06
A194: 94.03572 | B194: ='DF raw data'!A199 -> -3.8527505e-06 | C194: ='DF raw data'!B199 -> 1.885804e-05 | D194: ='DF raw data'!C199 -> -2.7404244e-06 | F194: -3.855185438e-06 | G194: 1.891195457e-05 | H194: -2.742156348e-06 | J194: -2.099888191e-06 | K194: -3.032661771e-06 | L194: 5.84700047e-06 | N194: -0.0005595968578 | O194: -0.02325038012 | P194: 0.0001670340105 | Q194: 0.01001005097 | R194: 9.823458579e-06
A195: 94.53591 | B195: ='DF raw data'!A200 -> -4.6656251e-06 | C195: ='DF raw data'!B200 -> 2.0059684e-05 | D195: ='DF raw data'!C200 -> 5.6651476e-07 | F195: -4.668573775e-06 | G195: 2.011703403e-05 | H195: 5.668727973e-07 | J195: -3.436255242e-06 | K195: 5.661419685e-06 | L195: 2.805688275e-06 | N195: -0.0005613156383 | O195: -0.02353114459 | P195: 0.000169865796 | Q195: 0.01009501614 | R195: 9.995488743e-06
A196: 95.0361 | B196: ='DF raw data'!A201 -> -6.2064023e-06 | C196: ='DF raw data'!B201 -> 2.3926805e-05 | D196: ='DF raw data'!C201 -> 7.0877491e-06 | F196: -6.210324746e-06 | G196: 2.399521101e-05 | H196: 7.092228557e-06 | J196: -8.198965373e-06 | K196: -9.21698486e-07 | L196: -2.050967693e-06 | N196: -0.0005654166788 | O196: -0.02381396036 | P196: 0.0001694047717 | Q196: 0.01017975071 | R196: 1.016975194e-05
A197: 95.53629 | B197: ='DF raw data'!A202 -> -4.8465163e-06 | C197: ='DF raw data'!B202 -> 1.5918773e-05 | D197: ='DF raw data'!C202 -> 1.1173157e-06 | F197: -4.849579298e-06 | G197: 1.596428429e-05 | H197: 1.118021844e-06 | J197: -3.721188005e-06 | K197: 1.83690338e-06 | L197: -1.005236008e-05 | N197: -0.0005672779798 | O197: -0.02409770713 | P197: 0.0001703235724 | Q197: 0.01026494486 | R197: 1.03452258e-05
A198: 96.03648 | B198: ='DF raw data'!A203 -> -4.6474693e-06 | C198: ='DF raw data'!B203 -> 1.7560327e-05 | D198: ='DF raw data'!C203 -> -4.8396055e-06 | F198: -4.650406501e-06 | G198: 1.761053145e-05 | H198: -4.842664131e-06 | J198: 3.288258167e-06 | K198: 2.808403251e-07 | L198: 3.423101334e-06 | N198: -0.000565633226 | O198: -0.02438063121 | P198: 0.0001704640459 | Q198: 0.01035020927 | R198: 1.051979158e-05
A199: 96.53667 | B199: ='DF raw data'!A204 -> -6.5409504e-06 | C199: ='DF raw data'!B204 -> 1.807202e-05 | D199: ='DF raw data'!C204 -> -1.4825513e-06 | F199: -6.545084281e-06 | G199: =(1-$G$1*($B$2-$G$2))*C199*$M$2/$M$1 -> 1.812368736e-05 | H199: -1.483488272e-06 | J199: =-CELL("contents", INDEX($F$6:$F$1203,1204-CELL("row",F199))) -> -1.838599861e-06 | K199: =CELL("contents", INDEX($G$6:$G$1203,1204-CELL("row",G199))) -> -6.614717566e-06 | L199: =-CELL("contents", INDEX($H$6:$H$1203,1204-CELL("row",H199))) -> 1.047796189e-05 | N199: -0.0005665528752 | O199: -0.0246640153 | P199: 0.0001671554303 | Q199: 0.01043381874 | R199: 1.069431943e-05
A200: =A199+$B$1 -> 97.03686 | B200: ='DF raw data'!A205 -> -7.1888871e-06 | C200: ='DF raw data'!B205 -> 2.0425809e-05 | D200: ='DF raw data'!C205 -> 1.8708994e-07 | F200: -7.193430477e-06 | G200: 2.048420577e-05 | H200: 1.872081808e-07 | J200: -7.686205814e-06 | K200: -3.368194113e-07 | L200: 7.313979716e-06 | N200: =J200*$B$1+N199 -> -0.0005703974385 | O200: =N200*$B$1+O199 -> -0.02494932239 | P200: =K200*$B$1+P199 -> 0.0001669869566 | Q200: =P200*$B$1+Q199 -> 0.01051734395 | R200: =(N200^2+P200^2)*$B$1+R199 -> 1.087100548e-05
... 1003 more rows

Sheet 10 y=-0.1
A1: dz | B1: ='DF raw data'!E7 -> 0.5002 | C1: mm | F1: T_coeff | G1: -0.0008 | H1: /degC | L1: Hallref | M1: ='PI vs gap'!B44 -> 0.50549 | N1: T | P1: IBy total | Q1: =P1203*1000 -> -8.048403351 | R1: muTm
A2: Tref | B2: ='DF raw data'!E8 -> 20.8 | C2: degC | F2: Tcorr | G2: 20 | H2: degC | L2: NMRref | M2: ='PI vs gap'!B45 -> 0.506615 | N2: T | P2: JBy total | Q2: =Q1203 -> -7.069436396 | R2: muTm^2
A3: Encoder | B3: ='DF raw data'!E9 -> 390622 | P3: PI total | Q3: =R1203 -> 4522.414431 | R3: T^2mm^3
J4: SXR-rotation
A5: z [mm] | B5: Bx | C5: By | D5: Bz | F5: Bx_corr | G5: By_corr | H5: Bz_corr | J5: Bx_rot | K5: By_rot | L5: Bz_rot | N5: Ix | O5: Jx | P5: Iy | Q5: Jy | R5: PI
A6: 0 | B6: ='DF raw data'!D11 -> -2.9361647e-06 | C6: ='DF raw data'!E11 -> -5.9392014e-06 | D6: ='DF raw data'!F11 -> -2.8284128e-06 | F6: =(1-$G$1*($B$2-$G$2))*B6 -> -2.938043845e-06 | G6: =(1-$G$1*($B$2-$G$2))*C6*$M$2/$M$1 -> -5.956229017e-06 | H6: =(1-$G$1*($B$2-$G$2))*D6 -> -2.830222984e-06 | J6: =-CELL("contents", INDEX($F$6:$F$1203,1204-CELL("row",F6))) -> 8.584118122e-06 | K6: =CELL("contents", INDEX($G$6:$G$1203,1204-CELL("row",G6))) -> 5.037018887e-07 | L6: =-CELL("contents", INDEX($H$6:$H$1203,1204-CELL("row",H6))) -> 1.893741219e-06 | N6: =J6*$B$1 -> 4.293775885e-06 | O6: =N6*$B$1 -> 2.147746697e-06 | P6: =K6*$B$1 -> 2.519516847e-07 | Q6: =P6*$B$1 -> 1.260262327e-07 | R6: =(N6^2+P6)^2*$B$1 -> 3.175716879e-14
A7: =A6+$B$1 -> 0.5002 | B7: ='DF raw data'!D12 -> -3.1565048e-06 | C7: ='DF raw data'!E12 -> 3.0198757e-07 | D7: ='DF raw data'!F12 -> -1.1631635e-06 | F7: =(1-$G$1*($B$2-$G$2))*B7 -> -3.158524963e-06 | G7: =(1-$G$1*($B$2-$G$2))*C7*$M$2/$M$1 -> 3.028533646e-07 | H7: -1.163907925e-06 | J7: =-CELL("contents", INDEX($F$6:$F$1203,1204-CELL("row",F7))) -> 7.570280281e-06 | K7: =CELL("contents", INDEX($G$6:$G$1203,1204-CELL("row",G7))) -> -4.171208516e-06 | L7: =-CELL("contents", INDEX($H$6:$H$1203,1204-CELL("row",H7))) -> 1.76414443e-06 | N7: =J7*$B$1+N6 -> 8.080430081e-06 | O7: =N7*$B$1+O6 -> 6.189577824e-06 | P7: =K7*$B$1+P6 -> -1.834486815e-06 | Q7: =P7*$B$1+Q6 -> -7.915840721e-07 | R7: =(N7^2+P7^2)*$B$1+R6 -> 3.437483499e-11
A8: =A7+$B$1 -> 1.0004 | B8: ='DF raw data'!D13 -> -3.4277075e-06 | C8: ='DF raw data'!E13 -> 8.332835e-06 | D8: ='DF raw data'!F13 -> 3.3967883e-06 | F8: -3.429901233e-06 | G8: 8.356725135e-06 | H8: 3.398962245e-06 | J8: -2.774622323e-06 | K8: 4.607492059e-07 | L8: 1.813092037e-06 | N8: =J8*$B$1+N7 -> 6.692563995e-06 | O8: =N8*$B$1+O7 -> 9.537198334e-06 | P8: =K8*$B$1+P7 -> -1.604020062e-06 | Q8: =P8*$B$1+Q7 -> -1.593914907e-06 | R8: =(N8^2+P8^2)*$B$1+R7 -> 5.806595424e-11
A9: 1.5006 | B9: ='DF raw data'!D14 -> -3.3062236e-06 | C9: ='DF raw data'!E14 -> 4.4554426e-06 | D9: ='DF raw data'!F14 -> 7.9805181e-07 | F9: -3.308339583e-06 | G9: 4.468216299e-06 | H9: 7.985625632e-07 | J9: -6.04904051e-06 | K9: -2.772095042e-06 | L9: 1.913053071e-06 | N9: 3.666833932e-06 | O9: 1.137134867e-05 | P9: -2.990622002e-06 | Q9: -3.089824032e-06 | R9: 6.926517766e-11
A10: 2.0008 | B10: ='DF raw data'!D15 -> -3.1350112e-06 | C10: ='DF raw data'!E15 -> -2.1303906e-06 | D10: ='DF raw data'!F15 -> -1.0636005e-05 | F10: -3.137017607e-06 | G10: -2.136498404e-06 | H10: -1.064281204e-05 | J10: -7.963770653e-06 | K10: -1.053158561e-05 | L10: 1.413511869e-06 | N10: -3.166441487e-07 | O10: 1.121296326e-05 | P10: -8.258521123e-06 | Q10: -7.220736298e-06 | R10: 1.034305557e-10
A11: 2.501 | B11: ='DF raw data'!D16 -> -2.872486e-06 | C11: ='DF raw data'!E16 -> -6.8761265e-06 | D11: ='DF raw data'!F16 -> 3.2085738e-06 | F11: -2.874324391e-06 | G11: -6.89584027e-06 | H11: 3.210627287e-06 | J11: -1.15303377e-05 | K11: -3.476467797e-06 | L11: 6.06960006e-07 | N11: -6.084119064e-06 | O11: 8.169686908e-06 | P11: -9.997450315e-06 | Q11: -1.222146095e-05 | R11: 1.719407076e-10
A12: 3.0012 | B12: ='DF raw data'!D17 -> -3.3187728e-06 | C12: ='DF raw data'!E17 -> 4.1883204e-06 | D12: ='DF raw data'!F17 -> -3.7165107e-06 | F12: -3.320896815e-06 | G12: 4.200328263e-06 | H12: -3.718889267e-06 | J12: -6.614236404e-06 | K12: -4.245205558e-06 | L12: 2.549304812e-07 | N12: -9.392560114e-06 | O12: 3.471528339e-06 | P12: -1.212090214e-05 | Q12: -1.828433619e-05 | R12: 2.895559619e-10
A13: 3.5014 | B13: ='DF raw data'!D18 -> -3.2196497e-06 | C13: ='DF raw data'!E18 -> 1.9651586e-06 | D13: ='DF raw data'!F18 -> -6.5083054e-07 | F13: -3.221710276e-06 | G13: 1.970792685e-06 | H13: -6.512470715e-07 | J13: -1.006500648e-06 | K13: 6.531026744e-06 | L13: 6.793502461e-07 | N13: -9.896011738e-06 | O13: -1.478456732e-06 | P13: -8.854082558e-06 | Q13: -2.271314829e-05 | R13: 3.777541402e-10
A14: 4.0016 | B14: ='DF raw data'!D19 -> -3.2101714e-06 | C14: ='DF raw data'!E19 -> 1.6219809e-06 | D14: ='DF raw data'!F19 -> -1.0173433e-06 | F14: -3.21222591e-06 | G14: 1.626631099e-06 | H14: -1.0179944e-06 | J14: 2.274597411e-06 | K14: 1.887025312e-06 | L14: 1.172898575e-06 | N14: -8.758258113e-06 | O14: -5.85933744e-06 | P14: -7.910192497e-06 | Q14: -2.666982658e-05 | R14: 4.474211111e-10
A15: 4.5018 | B15: ='DF raw data'!D20 -> -3.2135088e-06 | C15: ='DF raw data'!E20 -> 1.6173134e-06 | D15: ='DF raw data'!F20 -> -1.5037874e-06 | F15: -3.215565446e-06 | G15: 1.621950218e-06 | H15: -1.504749824e-06 | J15: 6.037467108e-06 | K15: 1.465123382e-06 | L15: 1.507014072e-06 | N15: -5.738317066e-06 | O15: -8.729643636e-06 | P15: -7.177337781e-06 | Q15: -3.025993093e-05 | R15: 4.896592298e-10
A16: 5.002 | B16: ='DF raw data'!D21 -> -3.3498111e-06 | C16: ='DF raw data'!E21 -> 5.4259899e-06 | D16: ='DF raw data'!F21 -> -8.520235e-07 | F16: -3.351954979e-06 | G16: 5.441546146e-06 | H16: -8.52568795e-07 | J16: 6.592509708e-06 | K16: 6.330980855e-06 | L16: 1.872762101e-06 | N16: -2.44074371e-06 | O16: -9.95050364e-06 | P16: -4.010581157e-06 | Q16: -3.226602363e-05 | R16: 5.006846337e-10
A17: 5.5022 | B17: ='DF raw data'!D22 -> -3.0614535e-06 | C17: ='DF raw data'!E22 -> -1.6180285e-06 | D17: ='DF raw data'!F22 -> 3.7422708e-06 | F17: -3.06341283e-06 | G17: -1.622667368e-06 | H17: 3.744665853e-06 | J17: 3.792716486e-06 | K17: -3.346671937e-06 | L17: 1.86090932e-06 | N17: -5.436269235e-07 | O17: -1.022242583e-05 | P17: -5.68458646e-06 | Q17: -3.510945378e-05 | R17: 5.169961824e-10
A18: 6.0024 | B18: ='DF raw data'!D23 -> -3.0282124e-06 | C18: ='DF raw data'!E23 -> -3.675211e-06 | D18: ='DF raw data'!F23 -> -3.523636e-06 | F18: -3.030150456e-06 | G18: -3.685747785e-06 | H18: -3.525891127e-06 | J18: -4.587428076e-06 | K18: -2.57432205e-06 | L18: 1.345383595e-06 | N18: -2.838258447e-06 | O18: -1.16421227e-05 | P18: -6.97226235e-06 | Q18: -3.85969794e-05 | R18: 5.453415927e-10
A19: 6.5026 | B19: ='DF raw data'!D24 -> -3.8717913e-06 | C19: ='DF raw data'!E24 -> 1.9246243e-05 | D19: ='DF raw data'!F24 -> -3.4102293e-06 | F19: -3.874269246e-06 | G19: 1.930142174e-05 | H19: -3.412411847e-06 | J19: -8.506056294e-06 | K19: -6.20434894e-07 | L19: 8.311246596e-07 | N19: -7.092987806e-06 | O19: -1.51900352e-05 | P19: -7.282603884e-06 | Q19: -4.223973787e-05 | R19: 5.970356597e-10
A20: 7.0028 | B20: ='DF raw data'!D25 -> -3.2430119e-06 | C20: ='DF raw data'!E25 -> 2.5486322e-06 | D20: ='DF raw data'!F25 -> 4.2168836e-07 | F20: -3.245087428e-06 | G20: 2.555939097e-06 | H20: 4.219582406e-07 | J20: -5.894950856e-06 | K20: 2.635423326e-06 | L20: 6.312008101e-07 | N20: -1.004164222e-05 | O20: -2.021286464e-05 | P20: -5.964365136e-06 | Q20: -4.522311331e-05 | R20: 6.652670564e-10
A21: 7.503 | B21: ='DF raw data'!D26 -> -2.8593361e-06 | C21: ='DF raw data'!E26 -> -8.2465567e-06 | D21: ='DF raw data'!F26 -> -1.4572659e-06 | F21: -2.861166075e-06 | G21: -8.270199476e-06 | H21: -1.45819855e-06 | J21: -3.974810852e-06 | K21: 1.11989635e-06 | L21: 7.998908227e-07 | N21: -1.202984261e-05 | O21: -2.623019192e-05 | P21: -5.404192982e-06 | Q21: -4.792629064e-05 | R21: 7.522630484e-10
A22: 8.0032 | B22: ='DF raw data'!D27 -> -3.3809831e-06 | C22: ='DF raw data'!E27 -> -1.1507786e-05 | D22: ='DF raw data'!F27 -> -3.727492e-06 | F22: -3.383146929e-06 | G22: -1.154077868e-05 | H22: -3.729877595e-06 | J22: -1.491277607e-06 | K22: 1.18811387e-05 | L22: 1.420238271e-06 | N22: -1.277577967e-05 | O22: -3.262063691e-05 | P22: 5.387525954e-07 | Q22: -4.765680659e-05 | R22: 8.340511508e-10
A23: 8.5034 | B23: ='DF raw data'!D28 -> -4.3849609e-06 | C23: ='DF raw data'!E28 -> -7.6797596e-06 | D23: ='DF raw data'!F28 -> 1.8968597e-06 | F23: =(1-$G$1*($B$2-$G$2))*B23 -> -4.387767275e-06 | G23: -7.701777376e-06 | H23: 1.89807369e-06 | J23: -5.319736854e-06 | K23: 4.552619992e-07 | L23: 2.334078255e-06 | N23: -1.543671205e-05 | O23: -4.034208027e-05 | P23: 7.664746474e-07 | Q23: -4.727341597e-05 | R23: 9.535387078e-10
A24: 9.0036 | B24: ='DF raw data'!D29 -> -3.6041263e-06 | C24: ='DF raw data'!E29 -> -1.3096903e-05 | D24: ='DF raw data'!F29 -> 3.9051952e-06 | F24: -3.606432941e-06 | G24: -1.313445166e-05 | H24: 3.907694525e-06 | J24: -1.075948967e-05 | K24: 2.851997767e-09 | L24: 4.686937722e-06 | N24: -2.081860878e-05 | O24: -5.075554838e-05 | P24: 7.679012167e-07 | Q24: -4.688931178e-05 | R24: 1.170627581e-09
A25: 9.5038 | B25: ='DF raw data'!D30 -> -4.5792685e-06 | C25: ='DF raw data'!E30 -> 6.0546981e-06 | D25: ='DF raw data'!F30 -> -3.4038392e-06 | F25: -4.582199232e-06 | G25: 6.072056845e-06 | H25: -3.406017657e-06 | J25: -1.397412872e-05 | K25: 1.055160584e-05 | L25: 3.703104871e-06 | N25: -2.780846796e-05 | O25: -6.466534406e-05 | P25: 6.045814459e-06 | Q25: -4.386519539e-05 | R25: 1.575720935e-09
A26: 10.004 | B26: ='DF raw data'!D31 -> -1.2047509e-06 | C26: ='DF raw data'!E31 -> -1.3665205e-06 | D26: ='DF raw data'!F31 -> -2.3735818e-06 | F26: -1.205521941e-06 | G26: -1.370438297e-06 | H26: -2.375100892e-06 | J26: -1.380534577e-05 | K26: 8.731258047e-06 | L26: 8.121660738e-06 | N26: -3.471390192e-05 | O26: -8.20292378e-05 | P26: 1.041318973e-05 | Q26: -3.865651788e-05 | R26: 2.232728386e-09
A27: 10.5042 | B27: ='DF raw data'!D32 -> 6.4024812e-06 | C27: ='DF raw data'!E32 -> -1.2577776e-06 | D27: ='DF raw data'!F32 -> 1.2811681e-06 | F27: 6.406578788e-06 | G27: -1.261383633e-06 | H27: 1.281988048e-06 | J27: -1.189228419e-05 | K27: -8.720872858e-06 | L27: 1.217386829e-05 | N27: -4.066242247e-05 | O27: -0.0001023685815 | P27: 6.05100913e-06 | Q27: -3.562980312e-05 | R27: 3.078090052e-09
A28: 11.0044 | B28: ='DF raw data'!D33 -> 3.7445855e-06 | C28: ='DF raw data'!E33 -> 6.9490625e-06 | D28: ='DF raw data'!F33 -> 2.7731105e-06 | F28: 3.746982035e-06 | G28: 6.968985377e-06 | H28: 2.774885291e-06 | J28: -1.26684086e-05 | K28: 2.369410551e-06 | L28: 3.907203011e-07 | N28: -4.699916045e-05 | O28: -0.0001258775616 | P28: 7.236188288e-06 | Q28: -3.201026174e-05 | R28: 4.209184061e-09
A29: 11.5046 | B29: ='DF raw data'!D34 -> -8.9456682e-07 | C29: ='DF raw data'!E34 -> 7.2755583e-06 | D29: ='DF raw data'!F34 -> 3.1416205e-06 | F29: -8.951393428e-07 | G29: 7.296417236e-06 | H29: 3.143631137e-06 | J29: -1.033602783e-05 | K29: -8.832370807e-07 | L29: 1.925240766e-06 | N29: -5.216924157e-05 | O29: -0.0001519726162 | P29: 6.7943931e-06 | Q29: -2.861170631e-05 | R29: 5.593634391e-09
A30: 12.0048 | B30: ='DF raw data'!D35 -> -2.8667969e-07 | C30: ='DF raw data'!E35 -> -1.3186164e-05 | D30: ='DF raw data'!F35 -> 4.364751e-06 | F30: -2.86863165e-07 | G30: -1.322396857e-05 | H30: 4.367544441e-06 | J30: -4.732032964e-06 | K30: 3.010224404e-06 | L30: 1.729808269e-05 | N30: -5.453620446e-05 | O30: -0.0001792516257 | P30: 8.300107347e-06 | Q30: -2.445999261e-05 | R30: 7.115787698e-09
A31: 12.505 | B31: ='DF raw data'!D36 -> -1.2743709e-06 | C31: ='DF raw data'!E36 -> -6.7193514e-06 | D31: ='DF raw data'!F36 -> 1.9707343e-06 | F31: -1.275186497e-06 | G31: -6.738615698e-06 | H31: 1.97199557e-06 | J31: 1.502813986e-06 | K31: 8.218767844e-06 | L31: 7.460555101e-06 | N31: -5.37844969e-05 | O31: -0.000206154631 | P31: 1.241113502e-05 | Q31: -1.825194287e-05 | R31: 8.63980125e-09
A32: 13.0052 | B32: ='DF raw data'!D37 -> -5.6969714e-07 | C32: ='DF raw data'!E37 -> -1.3519734e-05 | D32: ='DF raw data'!F37 -> 6.2335894e-06 | F32: -5.700617462e-07 | G32: -1.355849491e-05 | H32: 6.237578897e-06 | J32: 2.841061516e-06 | K32: -4.001940614e-06 | L32: -5.335260983e-06 | N32: -5.236339793e-05 | O32: -0.0002323468027 | P32: 1.040936433e-05 | Q32: -1.304517884e-05 | R32: 1.006551146e-08
A33: 13.5054 | B33: ='DF raw data'!D38 -> -4.2938942e-07 | C33: ='DF raw data'!E38 -> -7.5715516e-06 | D33: ='DF raw data'!F38 -> 5.7578613e-06 | F33: -4.296642292e-07 | G33: -7.593259145e-06 | H33: 5.761546331e-06 | J33: 3.76432983e-06 | K33: 6.811758999e-06 | L33: 1.66468912e-08 | N33: -5.048048015e-05 | O33: -0.0002575971389 | P33: 1.381660618e-05 | Q33: -6.134112427e-06 | R33: 1.143564804e-08
A34: 14.0056 | B34: ='DF raw data'!D39 -> 1.5507325e-06 | C34: ='DF raw data'!E39 -> 2.8931285e-07 | D34: ='DF raw data'!F39 -> -5.2020628e-06 | F34: 1.551724969e-06 | G34: 2.901423064e-07 | H34: -5.20539212e-06 | J34: 4.164681491e-06 | K34: 2.359373758e-06 | L34: 4.005719821e-06 | N34: -4.839730647e-05 | O34: -0.0002818054716 | P34: 1.499676493e-05 | Q34: 1.367269393e-06 | R34: 1.271976259e-08
A35: 14.5058 | B35: ='DF raw data'!D40 -> 1.038719e-07 | C35: ='DF raw data'!E40 -> 5.0015578e-06 | D35: ='DF raw data'!F40 -> -1.2214648e-06 | F35: 1.03938378e-07 | G35: 5.015897205e-06 | H35: -1.222246537e-06 | J35: 6.577548038e-06 | K35: 1.833503203e-06 | L35: 4.894120334e-06 | N35: -4.510721694e-05 | O35: -0.0003043681015 | P35: 1.591388323e-05 | Q35: 9.327393787e-06 | R35: 1.386417653e-08
A36: 15.006 | B36: ='DF raw data'!D41 -> -1.8275902e-06 | C36: ='DF raw data'!E41 -> -1.1179422e-05 | D36: ='DF raw data'!F41 -> -2.9515384e-06 | F36: -1.828759858e-06 | G36: -1.121147327e-05 | H36: -2.953427385e-06 | J36: 7.179345442e-06 | K36: 2.701390212e-06 | L36: -4.97013175e-07 | N36: -4.151610835e-05 | O36: -0.0003251344589 | P36: 1.726511862e-05 | Q36: 1.796340612e-05 | R36: 1.487541665e-08
A37: 15.5062 | B37: ='DF raw data'!D42 -> -2.0015393e-06 | C37: ='DF raw data'!E42 -> -9.5800287e-06 | D37: ='DF raw data'!F42 -> 2.0788186e-06 | F37: -2.002820285e-06 | G37: -9.607494524e-06 | H37: 2.080149044e-06 | J37: 7.503287733e-06 | K37: 8.760563926e-06 | L37: 1.371791185e-05 | N37: -3.776296383e-05 | O37: -0.0003440234934 | P37: 2.164715269e-05 | Q37: 2.87913119e-05 | R37: 1.58231159e-08
A38: 16.0064 | B38: ='DF raw data'!D43 -> 4.1205325e-07 | C38: ='DF raw data'!E43 -> -1.115447e-05 | D38: ='DF raw data'!F43 -> 3.6591448e-06 | F38: 4.123169641e-07 | G38: -1.118644973e-05 | H38: 3.661486653e-06 | J38: 7.999753267e-06 | K38: 5.633430604e-06 | L38: 2.049605208e-05 | N38: -3.376148724e-05 | O38: -0.0003609109893 | P38: 2.446499468e-05 | Q38: 4.102870224e-05 | R38: 1.669265057e-08
A39: 16.5066 | B39: ='DF raw data'!D44 -> 3.4721809e-06 | C39: ='DF raw data'!E44 -> -7.2980229e-06 | D39: ='DF raw data'!F44 -> 3.2286728e-06 | F39: 3.474403096e-06 | G39: -7.318946242e-06 | H39: 3.230739151e-06 | J39: 1.623040181e-06 | K39: -7.321624097e-06 | L39: 7.468547313e-06 | N39: -3.294964254e-05 | O39: -0.0003773924005 | P39: 2.080271831e-05 | Q39: 5.143422194e-05 | R39: 1.745217027e-08
A40: 17.0068 | B40: ='DF raw data'!D45 -> -3.1153202e-06 | C40: ='DF raw data'!E45 -> -4.2041147e-06 | D40: ='DF raw data'!F45 -> 3.5571841e-06 | F40: -3.117314005e-06 | G40: -4.216167845e-06 | H40: 3.559460698e-06 | J40: -8.686863036e-06 | K40: 2.633416689e-06 | L40: -2.12523428e-06 | N40: -3.729481144e-05 | O40: -0.0003960472652 | P40: 2.211995334e-05 | Q40: 6.24986226e-05 | R40: 1.839264396e-08
A41: 17.507 | B41: ='DF raw data'!D46 -> -8.145691e-06 | C41: ='DF raw data'!E46 -> -5.9464082e-06 | D41: ='DF raw data'!F46 -> 1.2424337e-06 | F41: -8.150904242e-06 | G41: -5.963456479e-06 | H41: 1.243228858e-06 | J41: -8.512133781e-06 | K41: 1.724981262e-06 | L41: 1.286634019e-05 | N41: -4.155258075e-05 | O41: -0.0004168318661 | P41: 2.298278896e-05 | Q41: 7.399461364e-05 | R41: 1.95205077e-08
A42: 18.0072 | B42: ='DF raw data'!D47 -> -5.6449235e-06 | C42: ='DF raw data'!E47 -> -1.6018292e-05 | D42: ='DF raw data'!F47 -> -3.154468e-08 | F42: -5.648536251e-06 | G42: -1.606421625e-05 | H42: -3.15648686e-08 | J42: 2.727782464e-06 | K42: -4.312912718e-06 | L42: 1.712639488e-05 | N42: -4.018814396e-05 | O42: -0.0004369339757 | P42: 2.082547002e-05 | Q42: 8.441151374e-05 | R42: 2.054531102e-08
A43: 18.5074 | B43: ='DF raw data'!D48 -> -5.1514448e-06 | C43: ='DF raw data'!E48 -> 2.4624412e-06 | D43: ='DF raw data'!F48 -> -6.3045977e-06 | F43: -5.154741725e-06 | G43: 2.469500989e-06 | H43: -6.308632643e-06 | J43: 3.388890903e-06 | K43: -5.89949262e-06 | L43: 7.749386535e-06 | N43: -3.849302073e-05 | O43: -0.0004561881846 | P43: 1.787454381e-05 | Q43: 9.335236056e-05 | R43: 2.144627724e-08
A44: 19.0076 | B44: ='DF raw data'!D49 -> -9.3278904e-06 | C44: ='DF raw data'!E49 -> -1.7310423e-06 | D44: ='DF raw data'!F49 -> -6.9655475e-06 | F44: -9.33386025e-06 | G44: -1.736005177e-06 | H44: -6.97000545e-06 | J44: -7.353692053e-06 | K44: -6.564300968e-07 | L44: 6.374163656e-06 | N44: -4.21713375e-05 | O44: -0.0004772822877 | P44: 1.754619748e-05 | Q44: 0.0001021289685 | R44: 2.248983988e-08
A45: 19.5078 | B45: ='DF raw data'!D50 -> -9.0361282e-06 | C45: ='DF raw data'!E50 -> -4.6839205e-06 | D45: ='DF raw data'!F50 -> -1.6551974e-06 | F45: -9.041911322e-06 | G45: -4.697349242e-06 | H45: -1.656256726e-06 | J45: -8.788853569e-06 | K45: -5.778835085e-07 | L45: 6.381622626e-06 | N45: -4.656752205e-05 | O45: -0.0005005753622 | P45: 1.725714015e-05 | Q45: 0.00011076099 | R45: 2.372350464e-08
A46: 20.008 | B46: ='DF raw data'!D51 -> -8.3805826e-06 | C46: ='DF raw data'!E51 -> 6.4959449e-06 | D46: ='DF raw data'!F51 -> -6.1219075e-06 | F46: -8.385946173e-06 | G46: 6.514568694e-06 | H46: -6.125825521e-06 | J46: -2.625028544e-07 | K46: 4.771964652e-06 | L46: 2.699093615e-06 | N46: -4.669882598e-05 | O46: -0.0005239341149 | P46: 1.964407687e-05 | Q46: 0.0001205869573 | R46: 2.500735303e-08
A47: 20.5082 | B47: ='DF raw data'!D52 -> -4.9061405e-06 | C47: ='DF raw data'!E52 -> 1.5996891e-05 | D47: ='DF raw data'!F52 -> -8.2287434e-06 | F47: -4.90928043e-06 | G47: 1.604275389e-05 | H47: -8.234009796e-06 | J47: 2.397228045e-06 | K47: 6.011712232e-06 | L47: 3.120850567e-06 | N47: -4.549973251e-05 | O47: -0.0005466930812 | P47: 2.265113533e-05 | Q47: 0.0001319170552 | R47: 2.629951949e-08
A48: 21.0084 | B48: ='DF raw data'!D53 -> -2.9590599e-06 | C48: ='DF raw data'!E53 -> 1.0764546e-05 | D48: ='DF raw data'!F53 -> -5.9842737e-06 | F48: -2.960953698e-06 | G48: 1.079540782e-05 | H48: -5.988103635e-06 | J48: -2.93418878e-06 | K48: 8.646155256e-06 | L48: 1.754286525e-06 | N48: -4.696741374e-05 | O48: -0.0005701861815 | P48: 2.697594219e-05 | Q48: 0.0001454104215 | R48: 2.776692592e-08
A49: 21.5086 | B49: ='DF raw data'!D54 -> -4.2354422e-06 | C49: ='DF raw data'!E54 -> 1.103567e-05 | D49: ='DF raw data'!F54 -> -4.7101626e-06 | F49: -4.238152883e-06 | G49: 1.106730913e-05 | H49: -4.713177104e-06 | J49: -3.742173159e-06 | K49: -7.253114342e-06 | L49: 1.527707207e-07 | N49: -4.883924876e-05 | O49: -0.0005946155737 | P49: 2.334793439e-05 | Q49: 0.0001570890582 | R49: 2.923271113e-08
A50: 22.0088 | B50: ='DF raw data'!D55 -> -6.0377438e-06 | C50: ='DF raw data'!E55 -> 1.3448834e-05 | D50: ='DF raw data'!F55 -> 5.1936818e-06 | F50: -6.041607956e-06 | G50: 1.348739164e-05 | H50: 5.197005756e-06 | J50: -1.542574116e-06 | K50: 2.164815055e-06 | L50: 5.736034214e-06 | N50: -4.961084433e-05 | O50: -0.0006194309181 | P50: 2.443077488e-05 | Q50: 0.0001693093318 | R50: 3.076237207e-08
A51: 22.509 | B51: ='DF raw data'!D56 -> -5.5594173e-06 | C51: ='DF raw data'!E56 -> 6.3691868e-06 | D51: ='DF raw data'!F56 -> 6.7259566e-06 | F51: -5.562975327e-06 | G51: 6.38744718e-06 | H51: 6.730261212e-06 | J51: -4.009007924e-06 | K51: 8.280854637e-06 | L51: 1.238311512e-05 | N51: -5.161615009e-05 | O51: -0.0006452493163 | P51: 2.857285837e-05 | Q51: 0.0001836014756 | R51: 3.250338579e-08
A52: 23.0092 | B52: ='DF raw data'!D57 -> -2.0775667e-06 | C52: ='DF raw data'!E57 -> -2.5133279e-06 | D52: ='DF raw data'!F57 -> -8.4455105e-06 | F52: -2.078896343e-06 | G52: -2.52053358e-06 | H52: -8.450915627e-06 | J52: -4.506809914e-06 | K52: 9.260476171e-06 | L52: 7.029209617e-06 | N52: -5.387045641e-05 | O52: -0.0006721953186 | P52: 3.320494855e-05 | Q52: 0.0002002105909 | R52: 3.450648405e-08
A53: 23.5094 | B53: ='DF raw data'!D58 -> -1.1533544e-06 | C53: ='DF raw data'!E58 -> 1.0456461e-05 | D53: ='DF raw data'!F58 -> -5.1824959e-06 | F53: -1.154092547e-06 | G53: 1.048643954e-05 | H53: -5.185812697e-06 | J53: -6.998958669e-06 | K53: -2.743725038e-06 | L53: 1.097710686e-06 | N53: -5.737133554e-05 | O53: -0.0007008924607 | P53: 3.183253729e-05 | Q53: 0.000216133226 | R53: 3.665973529e-08
A54: 24.0096 | B54: ='DF raw data'!D59 -> 2.8789995e-07 | C54: ='DF raw data'!E59 -> 5.5760966e-06 | D54: ='DF raw data'!F59 -> -5.2163055e-06 | F54: 2.88084206e-07 | G54: 5.5920832e-06 | H54: -5.219643936e-06 | J54: -9.565847927e-06 | K54: 3.850551725e-06 | L54: 5.69434535e-06 | N54: -6.215617267e-05 | O54: -0.0007319829782 | P54: 3.375858326e-05 | Q54: 0.0002330192694 | R54: 3.916225177e-08
A55: 24.5098 | B55: ='DF raw data'!D60 -> -1.8444108e-06 | C55: ='DF raw data'!E60 -> 6.6491184e-06 | D55: ='DF raw data'!F60 -> -1.8190538e-06 | F55: -1.845591223e-06 | G55: 6.668181341e-06 | H55: -1.820217994e-06 | J55: -9.201161977e-06 | K55: 3.456880802e-06 | L55: 7.865197507e-06 | N55: -6.675859389e-05 | O55: -0.0007653756269 | P55: 3.548771504e-05 | Q55: 0.0002507702244 | R55: 4.202143887e-08
A56: 25.01 | B56: ='DF raw data'!D61 -> -1.2761542e-07 | C56: ='DF raw data'!E61 -> -7.9274005e-06 | D56: ='DF raw data'!F61 -> 3.2538967e-06 | F56: -1.276970939e-07 | G56: -7.95012826e-06 | H56: 3.255979194e-06 | J56: -9.31811598e-06 | K56: 1.945366898e-06 | L56: 1.077194263e-05 | N56: -7.14195155e-05 | O56: -0.0008010996686 | P56: 3.646078756e-05 | Q56: 0.0002690079104 | R56: 4.523779301e-08
A57: 25.5102 | B57: ='DF raw data'!D62 -> -3.4889838e-06 | C57: ='DF raw data'!E62 -> 5.5910169e-07 | D57: ='DF raw data'!F62 -> -6.9498406e-06 | F57: -3.49121675e-06 | G57: 5.607046277e-07 | H57: -6.954288498e-06 | J57: -7.082449068e-06 | K57: -3.864003882e-07 | L57: 1.313319287e-05 | N57: -7.496215653e-05 | O57: -0.0008385957393 | P57: 3.626751009e-05 | Q57: 0.0002871489189 | R57: 4.870650854e-08
A58: 26.0104 | B58: ='DF raw data'!D63 -> -4.3936384e-06 | C58: ='DF raw data'!E63 -> 3.9234683e-06 | D58: ='DF raw data'!F63 -> -8.9358809e-06 | F58: -4.396450329e-06 | G58: 3.934716835e-06 | H58: -8.941599864e-06 | J58: -4.14693364e-06 | K58: -1.137472196e-05 | L58: 3.166070389e-06 | N58: -7.703645274e-05 | O58: -0.0008771293729 | P58: 3.057787416e-05 | Q58: 0.0003024439716 | R58: 5.214269319e-08
A59: 26.5106 | B59: ='DF raw data'!D64 -> -2.0384516e-06 | C59: ='DF raw data'!E64 -> 3.5102446e-06 | D59: ='DF raw data'!F64 -> -1.6752299e-06 | F59: -2.039756209e-06 | G59: 3.520308428e-06 | H59: -1.676302047e-06 | J59: -4.183335823e-06 | K59: -1.842528706e-05 | L59: -1.436957765e-06 | N59: -7.912895731e-05 | O59: -0.0009167096774 | P59: 2.136154558e-05 | Q59: 0.0003131290167 | R59: 5.550289049e-08
A60: 27.0108 | B60: ='DF raw data'!D65 -> -4.3998461e-06 | C60: ='DF raw data'!E65 -> 6.0325501e-06 | D60: ='DF raw data'!F65 -> -9.0007484e-07 | F60: -4.402662002e-06 | G60: 6.049845347e-06 | H60: -9.006508879e-07 | J60: -8.045792214e-06 | K60: -9.249020121e-06 | L60: 3.52982084e-06 | N60: -8.315346258e-05 | O60: -0.0009583030393 | P60: 1.673518571e-05 | Q60: 0.0003214999566 | R60: 5.910161179e-08
A61: 27.511 | B61: ='DF raw data'!D66 -> -1.0461496e-05 | C61: ='DF raw data'!E66 -> 6.4775295e-06 | D61: ='DF raw data'!F66 -> -1.9435108e-06 | F61: -1.046819136e-05 | G61: 6.496100497e-06 | H61: -1.944754647e-06 | J61: -1.424189899e-05 | K61: 1.907098898e-06 | L61: 2.165188034e-06 | N61: -9.027726045e-05 | O61: -0.001003459725 | P61: 1.768911658e-05 | Q61: 0.0003303480527 | R61: 6.333474867e-08
A62: 28.0112 | B62: ='DF raw data'!D67 -> -9.0813846e-06 | C62: ='DF raw data'!E67 -> 7.3815937e-07 | D62: ='DF raw data'!F67 -> -4.7766503e-06 | F62: -9.087196686e-06 | G62: 7.402756638e-07 | H62: -4.779707356e-06 | J62: -1.469147653e-05 | K62: 3.129450747e-06 | L62: 4.232614641e-06 | N62: -9.762593701e-05 | O62: -0.001052292219 | P62: 1.925446785e-05 | Q62: 0.0003399791375 | R62: 6.828750803e-08
A63: 28.5114 | B63: ='DF raw data'!D68 -> 1.7555861e-06 | C63: ='DF raw data'!E68 -> 1.1100227e-06 | D63: ='DF raw data'!F68 -> -7.2545904e-06 | F63: 1.756709675e-06 | G63: 1.113205121e-06 | H63: -7.259233338e-06 | J63: -1.017793071e-05 | K63: 9.624705928e-06 | L63: 8.167745214e-06 | N63: -0.000102716938 | O63: -0.001103671231 | P63: 2.406874575e-05 | Q63: 0.0003520183241 | R63: 7.385477098e-08
A64: 29.0116 | B64: ='DF raw data'!D69 -> 3.1730772e-06 | C64: ='DF raw data'!E69 -> 1.0855009e-05 | D64: ='DF raw data'!F69 -> -1.4468674e-07 | F64: 3.175107969e-06 | G64: 1.088613018e-05 | H64: -1.447793395e-07 | J64: -6.006026699e-06 | K64: 4.485476944e-06 | L64: 6.475924841e-06 | N64: -0.0001057211525 | O64: -0.001156552952 | P64: 2.631238132e-05 | Q64: 0.0003651797772 | R64: 7.979179659e-08
A65: 29.5118 | B65: ='DF raw data'!D70 -> -1.8932716e-06 | C65: ='DF raw data'!E70 -> 1.7340598e-06 | D65: ='DF raw data'!F70 -> 2.3860987e-06 | F65: -1.894483294e-06 | G65: 1.739031328e-06 | H65: 2.387625803e-06 | J65: -1.381537819e-06 | K65: 8.35324639e-06 | L65: 1.356047816e-05 | N65: -0.0001064121977 | O65: -0.001209780333 | P65: 3.049067516e-05 | Q65: 0.000380431213 | R65: 8.592086579e-08
A66: 30.012 | B66: ='DF raw data'!D71 -> -1.0530963e-06 | C66: ='DF raw data'!E71 -> -4.9344972e-06 | D66: ='DF raw data'!F71 -> -3.2599498e-06 | F66: -1.053770282e-06 | G66: -4.948644343e-06 | H66: -3.262036168e-06 | J66: -1.416069805e-06 | K66: 6.957744642e-06 | L66: 1.571447983e-05 | N66: -0.0001071205158 | O66: -0.001263362015 | P66: 3.397093903e-05 | Q66: 0.0003974234767 | R66: 9.223780636e-08
A67: 30.5122 | B67: ='DF raw data'!D72 -> -3.98887e-06 | C67: ='DF raw data'!E72 -> -1.4676563e-06 | D67: ='DF raw data'!F72 -> -6.6239249e-06 | F67: -3.991422877e-06 | G67: -1.471864053e-06 | H67: -6.628164212e-06 | J67: -5.366171053e-07 | K67: 2.838548519e-06 | L67: 1.969762742e-05 | N67: -0.0001073889317 | O67: -0.001317077959 | P67: 3.5390781e-05 | Q67: 0.0004151259453 | R67: 9.863280835e-08
A68: 31.0124 | B68: ='DF raw data'!D73 -> -6.3016046e-06 | C68: ='DF raw data'!E73 -> 5.0866475e-07 | D68: ='DF raw data'!F73 -> -5.7010861e-06 | F68: -6.305637627e-06 | G68: 5.101230856e-07 | H68: -5.704734795e-06 | J68: 7.277396655e-06 | K68: 8.882329529e-06 | L68: 1.673540581e-05 | N68: -0.0001037487779 | O68: -0.001368973097 | P68: 3.983372223e-05 | Q68: 0.0004350507732 | R68: 1.048105456e-07
A69: 31.5126 | B69: ='DF raw data'!D74 -> -4.4401627e-06 | C69: ='DF raw data'!E74 -> -1.9530646e-06 | D69: ='DF raw data'!F74 -> 4.108399e-07 | F69: -4.443004404e-06 | G69: -1.958664012e-06 | H69: 4.111028375e-07 | J69: 1.115721905e-05 | K69: 2.131362822e-06 | L69: 9.071462423e-06 | N69: -9.816793694e-05 | O69: -0.001418076699 | P69: 4.089982992e-05 | Q69: 0.0004555088681 | R69: 1.104676775e-07
A70: 32.0128 | B70: ='DF raw data'!D75 -> -8.6726113e-06 | C70: ='DF raw data'!E75 -> 6.5062186e-06 | D70: ='DF raw data'!F75 -> -3.8667899e-06 | F70: -8.678161771e-06 | G70: 6.524871849e-06 | H70: -3.869264646e-06 | J70: 4.598964255e-06 | K70: -3.598769733e-06 | L70: 3.669674189e-06 | N70: -9.586753502e-05 | O70: -0.00146602964 | P70: 3.90997253e-05 | Q70: 0.0004750665507 | R70: 1.158295078e-07
A71: 32.513 | B71: ='DF raw data'!D76 -> -8.3383966e-06 | C71: ='DF raw data'!E76 -> 1.0024291e-05 | D71: ='DF raw data'!F76 -> 2.0825457e-06 | F71: -8.343733174e-06 | G71: =(1-$G$1*($B$2-$G$2))*C71*$M$2/$M$1 -> 1.005303052e-05 | H71: 2.083878529e-06 | J71: =-CELL("contents", INDEX($F$6:$F$1203,1204-CELL("row",F71))) -> -4.370353838e-06 | K71: =CELL("contents", INDEX($G$6:$G$1203,1204-CELL("row",G71))) -> -2.661050489e-07 | L71: =-CELL("contents", INDEX($H$6:$H$1203,1204-CELL("row",H71))) -> 1.261114197e-05 | N71: -9.805358601e-05 | O71: -0.001515076044 | P71: 3.896661955e-05 | Q71: 0.0004945576538 | R71: 1.21398186e-07
A72: =A71+$B$1 -> 33.0132 | B72: ='DF raw data'!D77 -> 1.5667523e-06 | C72: ='DF raw data'!E77 -> -1.2297929e-07 | D72: ='DF raw data'!F77 -> 9.4127631e-07 | F72: 1.567755021e-06 | G72: -1.233318701e-07 | H72: 9.418787268e-07 | J72: -5.582497914e-06 | K72: -6.506722864e-06 | L72: 1.545854814e-05 | N72: =J72*$B$1+N71 -> -0.0001008459515 | O72: =N72*$B$1+O71 -> -0.001565519189 | P72: =K72*$B$1+P71 -> 3.571195677e-05 | Q72: =P72*$B$1+Q71 -> 0.0005124207746 | R72: =(N72^2+P72^2)*$B$1+R71 -> 1.271230999e-07
A73: 33.5134 | B73: ='DF raw data'!D78 -> 3.8609301e-06 | C73: ='DF raw data'!E78 -> 1.6267867e-06 | D73: ='DF raw data'!F78 -> -1.1843361e-05 | F73: 3.863401095e-06 | G73: 1.631450677e-06 | H73: -1.185094075e-05 | J73: 1.106669415e-06 | K73: -8.463042374e-07 | L73: 2.029246787e-05 | N73: -0.0001002923954 | O73: -0.001615685445 | P73: 3.528863539e-05 | Q73: 0.00053007215 | R73: 1.327772869e-07
A74: 34.0136 | B74: ='DF raw data'!D79 -> 3.6101521e-06 | C74: ='DF raw data'!E79 -> -1.3103975e-05 | D74: ='DF raw data'!F79 -> -1.0211189e-05 | F74: 3.612462597e-06 | G74: -1.314154393e-05 | H74: -1.021772416e-05 | J74: -5.965301851e-07 | K74: -5.249849626e-06 | L74: 1.13464701e-05 | N74: -0.0001005907798 | O74: -0.001666000953 | P74: 3.266266061e-05 | Q74: 0.0005464100128 | R74: 1.383722011e-07
A75: 34.5138 | B75: ='DF raw data'!D80 -> 3.1972406e-06 | C75: ='DF raw data'!E80 -> -2.8682418e-06 | D75: ='DF raw data'!F80 -> -2.0317609e-06 | F75: 3.199286834e-06 | G75: -2.876465014e-06 | H75: -2.033061227e-06 | J75: -2.559684951e-06 | K75: -9.852499843e-06 | L75: 5.92483687e-06 | N75: -0.0001018711342 | O75: -0.001716956895 | P75: 2.773444019e-05 | Q75: 0.0005602827798 | R75: 1.439478941e-07
A76: 35.014 | B76: ='DF raw data'!D81 -> 2.4443063e-06 | C76: ='DF raw data'!E81 -> -7.0985525e-06 | D76: ='DF raw data'!F81 -> -4.7556191e-06 | F76: 2.445870656e-06 | G76: -7.118903963e-06 | H76: -4.758662696e-06 | J76: 2.766387956e-06 | K76: -5.011933273e-06 | L76: 1.435617407e-05 | N76: -0.000100487387 | O76: -0.001767220686 | P76: 2.522747117e-05 | Q76: 0.0005729015609 | R76: 1.493171111e-07
A77: 35.5142 | B77: ='DF raw data'!D82 -> -4.4312078e-08 | C77: ='DF raw data'!E82 -> 1.8416021e-06 | D77: ='DF raw data'!F82 -> -6.6611942e-06 | F77: -4.434043773e-08 | G77: 1.846881951e-06 | H77: -6.665457364e-06 | J77: 7.693912855e-06 | K77: 3.840781193e-06 | L77: 1.326452086e-05 | N77: -9.663889177e-05 | O77: -0.001815559459 | P77: 2.714862992e-05 | Q77: 0.0005864813056 | R77: 1.54357188e-07
A78: 36.0144 | B78: ='DF raw data'!D83 -> -3.7835487e-06 | C78: ='DF raw data'!E83 -> -1.0890818e-05 | D78: ='DF raw data'!F83 -> 1.1270952e-06 | F78: -3.785970171e-06 | G78: -1.092204184e-05 | H78: 1.127816541e-06 | J78: 5.296541719e-06 | K78: -1.221905874e-05 | L78: 7.89736328e-06 | N78: -9.39895616e-05 | O78: -0.001862573038 | P78: 2.103665674e-05 | Q78: 0.0005970038413 | R78: 1.589973327e-07
A79: 36.5146 | B79: ='DF raw data'!D84 -> -4.0871919e-06 | C79: ='DF raw data'!E84 -> -1.1509118e-05 | D79: ='DF raw data'!F84 -> 6.0644757e-06 | F79: -4.089807703e-06 | G79: -1.15421145e-05 | H79: 6.068356964e-06 | J79: 1.341177104e-06 | K79: 5.247790138e-06 | L79: 1.077020953e-05 | N79: -9.331870481e-05 | O79: -0.001909251054 | P79: 2.366160136e-05 | Q79: 0.0006088393743 | R79: 1.636333123e-07
A80: 37.0148 | B80: ='DF raw data'!D85 -> 7.0114527e-07 | C80: ='DF raw data'!E85 -> -3.0242202e-06 | D80: ='DF raw data'!F85 -> 3.8964104e-06 | F80: 7.01594003e-07 | G80: -3.032890602e-06 | H80: 3.898904103e-06 | J80: 1.206176059e-07 | K80: 8.805121908e-06 | L80: 5.587324e-06 | N80: -9.325837189e-05 | O80: -0.001955898892 | P80: 2.806592334e-05 | Q80: 0.0006228779491 | R80: 1.683776193e-07
A81: 37.515 | B81: ='DF raw data'!D86 -> 2.7734479e-06 | C81: ='DF raw data'!E86 -> 1.643998e-06 | D81: ='DF raw data'!F86 -> 1.1370965e-05 | F81: 2.775222907e-06 | G81: 1.648711322e-06 | H81: 1.137824242e-05 | J81: 6.659747312e-07 | K81: 1.297998507e-05 | L81: 1.309488337e-06 | N81: -9.292525133e-05 | O81: -0.002002380102 | P81: 3.455851187e-05 | Q81: 0.0006401641168 | R81: 1.732942817e-07
A82: 38.0152 | B82: ='DF raw data'!D87 -> -2.894313e-06 | C82: ='DF raw data'!E87 -> -3.4453162e-06 | D82: ='DF raw data'!F87 -> 1.5563139e-05 | F82: -2.89616536e-06 | G82: -3.455193879e-06 | H82: 1.557309941e-05 | J82: -1.985272662e-06 | K82: -1.011048577e-05 | L82: 1.594283989e-05 | N82: -9.391828471e-05 | O82: -0.002049358028 | P82: 2.950124689e-05 | Q82: 0.0006549206405 | R82: 1.781417038e-07
A83: 38.5154 | B83: ='DF raw data'!D88 -> -9.3931712e-06 | C83: ='DF raw data'!E88 -> 1.9874376e-06 | D83: ='DF raw data'!F88 -> 1.3711072e-05 | F83: -9.39918283e-06 | G83: 1.993135559e-06 | H83: 1.371984709e-05 | J83: -1.070086818e-06 | K83: -1.46510513e-05 | L83: 1.208855773e-05 | N83: -9.445354214e-05 | O83: -0.00209660369 | P83: 2.217279103e-05 | Q83: 0.0006660114705 | R83: 1.828501385e-07
A84: 39.0156 | B84: ='DF raw data'!D89 -> -5.7704792e-06 | C84: ='DF raw data'!E89 -> -7.646403e-06 | D84: ='DF raw data'!F89 -> 8.7024127e-06 | F84: -5.774172307e-06 | G84: -7.668325143e-06 | H84: 8.707982244e-06 | J84: 2.929160564e-06 | K84: -1.111113041e-06 | L84: 7.749852533e-06 | N84: -9.298837602e-05 | O84: -0.002143116476 | P84: 2.161701229e-05 | Q84: 0.0006768243001 | R84: 1.87409028e-07
A85: 39.5158 | B85: ='DF raw data'!D90 -> -2.4113808e-06 | C85: ='DF raw data'!E90 -> 6.4325641e-06 | D85: ='DF raw data'!F90 -> 4.6457421e-06 | F85: -2.412924084e-06 | G85: 6.451006182e-06 | H85: 4.648715375e-06 | J85: 2.632269475e-06 | K85: 3.498228205e-06 | L85: 7.92200444e-06 | N85: -9.167171483e-05 | O85: -0.002188970668 | P85: 2.336682604e-05 | Q85: 0.0006885123865 | R85: 1.918856739e-07
A86: 40.016 | B86: ='DF raw data'!D91 -> -9.1005279e-07 | C86: ='DF raw data'!E91 -> 1.1790066e-05 | D86: ='DF raw data'!F91 -> 2.575179e-06 | F86: -9.106352238e-07 | G86: 1.182386797e-05 | H86: 2.576827115e-06 | J86: -1.375058975e-06 | K86: -3.769777909e-06 | L86: -1.916187776e-06 | N86: -9.235951933e-05 | O86: -0.002235168899 | P86: 2.148118313e-05 | Q86: 0.0006992572743 | R86: 1.963833333e-07
A87: 40.5162 | B87: ='DF raw data'!D92 -> 1.9674492e-06 | C87: ='DF raw data'!E92 -> 1.5500542e-05 | D87: ='DF raw data'!F92 -> -8.3857935e-07 | F87: =(1-$G$1*($B$2-$G$2))*B87 -> 1.968708367e-06 | G87: 1.554498186e-05 | H87: -8.391160408e-07 | J87: -6.399097903e-06 | K87: 6.080087001e-06 | L87: -1.893362377e-07 | N87: -9.55603481e-05 | O87: -0.002282968185 | P87: 2.452244264e-05 | Q87: 0.0007115234001 | R87: 2.01251845e-07
A88: 41.0164 | B88: ='DF raw data'!D93 -> 4.9656333e-06 | C88: ='DF raw data'!E93 -> 4.9882174e-06 | D88: ='DF raw data'!F93 -> -4.6408791e-06 | F88: 4.968811305e-06 | G88: 5.002518558e-06 | H88: -4.643849263e-06 | J88: -6.820490822e-06 | K88: 8.666628284e-06 | L88: 7.288736208e-06 | N88: -9.897195761e-05 | O88: -0.002332473959 | P88: 2.885749011e-05 | Q88: 0.0007259579166 | R88: 2.065680723e-07
A89: 41.5166 | B89: ='DF raw data'!D94 -> 5.0047488e-06 | C89: ='DF raw data'!E94 -> 2.5118086e-06 | D89: ='DF raw data'!F94 -> -5.9068047e-06 | F89: 5.007951839e-06 | G89: 2.519009924e-06 | H89: -5.910585055e-06 | J89: -5.98592214e-06 | K89: 4.279677506e-06 | L89: 1.547120124e-05 | N89: -0.0001019661159 | O89: -0.00238347741 | P89: 3.09981848e-05 | Q89: 0.0007414632087 | R89: 2.12249332e-07
A90: 42.0168 | B90: ='DF raw data'!D95 -> 6.8422928e-06 | C90: ='DF raw data'!E95 -> -6.4734459e-06 | D90: ='DF raw data'!F95 -> -5.867671e-06 | F90: 6.846671867e-06 | G90: -6.49200519e-06 | H90: -5.871426309e-06 | J90: -8.905006659e-06 | K90: -1.256834127e-06 | L90: 1.77777765e-05 | N90: -0.0001064204002 | O90: -0.002436708894 | P90: 3.036951637e-05 | Q90: 0.0007566540408 | R90: 2.18375586e-07
A91: 42.517 | B91: ='DF raw data'!D96 -> 8.3218602e-06 | C91: ='DF raw data'!E96 -> -4.7858666e-08 | D91: ='DF raw data'!F96 -> -4.6792816e-06 | F91: 8.327186191e-06 | G91: -4.799587621e-08 | H91: -4.68227634e-06 | J91: -1.044269405e-05 | K91: -6.227998951e-06 | L91: 1.307671975e-05 | N91: -0.0001116438358 | O91: -0.002492553141 | P91: 2.725427129e-05 | Q91: 0.0007702866273 | R91: 2.249817982e-07
A92: 43.0172 | B92: ='DF raw data'!D97 -> 5.0313151e-06 | C92: ='DF raw data'!E97 -> 5.680703e-06 | D92: ='DF raw data'!F97 -> -1.2037615e-06 | F92: 5.034535142e-06 | G92: 5.696989505e-06 | H92: -1.204531907e-06 | J92: -8.6284871e-06 | K92: -4.633520269e-06 | L92: 1.286747292e-05 | N92: -0.000115959805 | O92: -0.002550556235 | P92: 2.493658446e-05 | Q92: 0.0007827599068 | R92: 2.320188667e-07
A93: 43.5174 | B93: ='DF raw data'!D98 -> 1.4427318e-06 | C93: ='DF raw data'!E98 -> -1.3048749e-06 | D93: ='DF raw data'!F98 -> 4.4438843e-06 | F93: 1.443655148e-06 | G93: -1.30861596e-06 | H93: 4.446728386e-06 | J93: -9.68821139e-06 | K93: -2.017407046e-06 | L93: 1.692054622e-05 | N93: -0.0001208058483 | O93: -0.00261098332 | P93: 2.392747745e-05 | Q93: 0.000794728431 | R93: 2.396051886e-07
A94: 44.0176 | B94: ='DF raw data'!D99 -> 3.4511552e-06 | C94: ='DF raw data'!E99 -> 9.6245431e-06 | D94: ='DF raw data'!F99 -> -5.2557367e-09 | F94: 3.453363939e-06 | G94: 9.652136546e-06 | H94: -5.259100371e-09 | J94: -1.173331952e-05 | K94: 2.829449406e-06 | L94: 1.433199961e-05 | N94: -0.0001266748548 | O94: -0.002674346083 | P94: 2.534276804e-05 | Q94: 0.0008074048836 | R94: 2.479529137e-07
A95: 44.5178 | B95: ='DF raw data'!D100 -> 6.392002e-06 | C95: ='DF raw data'!E100 -> 2.7609155e-06 | D95: ='DF raw data'!F100 -> -3.7443958e-06 | F95: 6.396092881e-06 | G95: 2.768831011e-06 | H95: -3.746792213e-06 | J95: -7.138620895e-06 | K95: 1.360081991e-06 | L95: 1.760276156e-05 | N95: -0.0001302455929 | O95: -0.002739494928 | P95: 2.602308106e-05 | Q95: 0.0008204216287 | R95: 2.567769995e-07
A96: 45.018 | B96: ='DF raw data'!D101 -> 3.8722314e-07 | C96: ='DF raw data'!E101 -> 6.896892e-06 | D96: ='DF raw data'!F101 -> -1.351046e-06 | F96: 3.874709628e-07 | G96: 6.916665304e-06 | H96: -1.351910669e-06 | J96: -2.410003716e-06 | K96: 4.457778259e-06 | L96: 2.086986017e-05 | N96: -0.0001314510768 | O96: -0.002805246757 | P96: 2.825286174e-05 | Q96: 0.0008345537102 | R96: 2.658194199e-07
A97: 45.5182 | B97: ='DF raw data'!D102 -> -2.4353437e-06 | C97: ='DF raw data'!E102 -> 2.6102778e-06 | D97: ='DF raw data'!F102 -> -4.6807304e-07 | F97: -2.43690232e-06 | G97: 2.617761434e-06 | H97: -4.683726067e-07 | J97: -2.241620319e-06 | K97: 6.553103256e-06 | L97: 1.861736249e-05 | N97: -0.0001325723353 | O97: -0.002871559439 | P97: 3.153072399e-05 | Q97: 0.0008503253783 | R97: 2.751079392e-07
A98: 46.0184 | B98: ='DF raw data'!D103 -> -2.1873027e-06 | C98: ='DF raw data'!E103 -> -9.8304838e-07 | D98: ='DF raw data'!F103 -> -3.1265088e-06 | F98: -2.188702574e-06 | G98: -9.858667676e-07 | H98: -3.128509766e-06 | J98: -3.770560215e-06 | K98: -2.507953817e-06 | L98: 1.535985202e-05 | N98: -0.0001344583695 | O98: -0.002938815515 | P98: 3.027624549e-05 | Q98: 0.0008654695563 | R98: 2.846095904e-07
A99: 46.5186 | B99: ='DF raw data'!D104 -> -6.6648374e-07 | C99: ='DF raw data'!E104 -> -6.0514149e-06 | D99: ='DF raw data'!F104 -> 6.516178e-06 | F99: -6.669102896e-07 | G99: -6.068764232e-06 | H99: 6.520348354e-06 | J99: -2.214436333e-06 | K99: 4.139713578e-06 | L99: 1.288072539e-05 | N99: -0.0001355660306 | O99: -0.003006625644 | P99: 3.234693022e-05 | Q99: 0.0008816494908 | R99: 2.943257116e-07
A100: 47.0188 | B100: ='DF raw data'!D105 -> 3.1673364e-06 | C100: ='DF raw data'!E105 -> -4.4333606e-07 | D100: ='DF raw data'!F105 -> 3.7802731e-06 | F100: 3.169363495e-06 | G100: -4.44607099e-07 | H100: 3.782692475e-06 | J100: 1.039676868e-06 | K100: 4.525219058e-06 | L100: 7.562647499e-06 | N100: -0.0001350459842 | O100: -0.003074175645 | P100: 3.46104448e-05 | Q100: 0.0008989616353 | R100: 3.04047249e-07
A101: 47.519 | B101: ='DF raw data'!D106 -> 6.2610402e-06 | C101: ='DF raw data'!E106 -> 2.2072967e-07 | D101: ='DF raw data'!F106 -> 8.3227878e-06 | F101: 6.265047266e-06 | G101: 2.213624992e-07 | H101: 8.328114384e-06 | J101: -9.01789246e-08 | K101: -4.207605066e-06 | L101: 5.138728983e-06 | N101: -0.0001350910917 | O101: -0.003141748209 | P101: 3.250580074e-05 | Q101: 0.0009152210368 | R101: 3.137042253e-07
A102: 48.0192 | B102: ='DF raw data'!D107 -> 8.574174e-06 | C102: ='DF raw data'!E107 -> 3.2716769e-06 | D102: ='DF raw data'!F107 -> 4.088552e-06 | F102: 8.579661471e-06 | G102: 3.281056757e-06 | H102: 4.091168673e-06 | J102: -1.77075786e-07 | K102: 3.624944761e-06 | L102: 4.567663035e-06 | N102: -0.000135179665 | O102: -0.003209365078 | P102: 3.431899811e-05 | Q102: 0.0009323873997 | R102: 3.234337833e-07
A103: 48.5194 | B103: ='DF raw data'!D108 -> 1.0139182e-05 | C103: ='DF raw data'!E108 -> 2.0197283e-06 | D103: ='DF raw data'!F108 -> 3.7484599e-06 | F103: 1.014567108e-05 | G103: 2.025518836e-06 | H103: 3.750858914e-06 | J103: -2.164342093e-06 | K103: -9.288627249e-06 | L103: 8.700919227e-06 | N103: -0.0001362622689 | O103: -0.003277523465 | P103: 2.967282676e-05 | Q103: 0.0009472297476 | R103: 3.331616142e-07
A104: 49.0196 | B104: ='DF raw data'!D109 -> 6.7580554e-06 | C104: ='DF raw data'!E109 -> -4.6588789e-07 | D104: ='DF raw data'!F109 -> 2.4933172e-06 | F104: 6.762380555e-06 | G104: -4.672235848e-07 | H104: 2.494912923e-06 | J104: -1.667141788e-06 | K104: -4.774421877e-06 | L104: 1.799568187e-05 | N104: -0.0001370961732 | O104: -0.00334609897 | P104: 2.728466094e-05 | Q104: 0.000960877535 | R104: 3.429354289e-07
A105: 49.5198 | B105: ='DF raw data'!D110 -> -3.5055896e-07 | C105: ='DF raw data'!E110 -> -3.1683205e-06 | D105: ='DF raw data'!F110 -> 4.8804791e-06 | F105: -3.507833177e-07 | G105: -3.177404036e-06 | H105: 4.883602607e-06 | J105: 7.819931455e-07 | K105: -2.26415264e-06 | L105: 1.086098058e-05 | N105: -0.0001367050203 | O105: -0.003414478822 | P105: 2.615213179e-05 | Q105: 0.0009739588314 | R105: 3.526254016e-07
A106: 50.02 | B106: ='DF raw data'!D111 -> -3.062388e-06 | C106: ='DF raw data'!E111 -> -7.582491e-06 | D106: ='DF raw data'!F111 -> 2.1383178e-06 | F106: -3.064347928e-06 | G106: -7.604229908e-06 | H106: 2.139686323e-06 | J106: -2.050995698e-06 | K106: 7.591334543e-06 | L106: 9.8527087e-06 | N106: -0.0001377309283 | O106: -0.003483371832 | P106: 2.994931733e-05 | Q106: 0.0009889394799 | R106: 3.6256276e-07
A107: 50.5202 | B107: ='DF raw data'!D112 -> 3.0096746e-06 | C107: ='DF raw data'!E112 -> -4.3151276e-06 | D107: ='DF raw data'!F112 -> 3.8859612e-06 | F107: 3.011600792e-06 | G107: -4.327499018e-06 | H107: 3.888448215e-06 | J107: -8.686662808e-06 | K107: -4.487934168e-06 | L107: 1.636339688e-05 | N107: -0.000142075997 | O107: -0.003554438246 | P107: 2.770445265e-05 | Q107: 0.001002797247 | R107: 3.730435135e-07
A108: 51.0204 | B108: ='DF raw data'!D113 -> 8.2038478e-06 | C108: ='DF raw data'!E113 -> 5.318182e-06 | D108: ='DF raw data'!F113 -> -1.4414925e-06 | F108: 8.209098263e-06 | G108: 5.333429162e-06 | H108: -1.442415055e-06 | J108: -9.377360172e-06 | K108: -2.863888962e-06 | L108: 1.881948277e-05 | N108: -0.0001467665526 | O108: -0.003627850875 | P108: 2.62719354e-05 | Q108: 0.001015938469 | R108: 3.841632774e-07
A109: 51.5206 | B109: ='DF raw data'!D114 -> 4.643834e-06 | C109: ='DF raw data'!E114 -> 8.848664e-06 | D109: ='DF raw data'!F114 -> -9.2542077e-06 | F109: 4.646806054e-06 | G109: 8.874033011e-06 | H109: -9.260130393e-06 | J109: -6.616506156e-06 | K109: -1.275564974e-06 | L109: 1.064254387e-05 | N109: -0.000150076129 | O109: -0.003702918955 | P109: 2.56338978e-05 | Q109: 0.001028760545 | R109: 3.95757884e-07
A110: 52.0208 | B110: ='DF raw data'!D115 -> 1.8948252e-06 | C110: ='DF raw data'!E115 -> -7.1190998e-06 | D110: ='DF raw data'!F115 -> -5.9907293e-06 | F110: 1.896037888e-06 | G110: -7.139510171e-06 | H110: -5.994563367e-06 | J110: -4.620624108e-06 | K110: 4.599883809e-06 | L110: 5.34371469e-06 | N110: -0.0001523873652 | O110: -0.003779143115 | P110: 2.793475968e-05 | Q110: 0.001042733512 | R110: 4.077638144e-07
A111: 52.521 | B111: ='DF raw data'!D116 -> 4.7522358e-06 | C111: ='DF raw data'!E116 -> -5.0400349e-06 | D111: ='DF raw data'!F116 -> 7.1319505e-07 | F111: 4.755277231e-06 | G111: -5.054484618e-06 | H111: 7.136514948e-07 | J111: -4.60299043e-06 | K111: 1.630208025e-07 | L111: 1.047785154e-05 | N111: -0.000154689781 | O111: -0.003856518943 | P111: 2.801630268e-05 | Q111: 0.001056747266 | R111: 4.201256779e-07
A112: 53.0212 | B112: ='DF raw data'!D117 -> 1.1235074e-05 | C112: ='DF raw data'!E117 -> 1.3189719e-05 | D112: ='DF raw data'!F117 -> 6.9793277e-06 | F112: 1.124226445e-05 | G112: 1.322753376e-05 | H112: 6.98379447e-06 | J112: -5.62096952e-06 | K112: -6.292626909e-06 | L112: 1.532988285e-05 | N112: -0.0001575013899 | O112: -0.003935301139 | P112: 2.48687307e-05 | Q112: 0.001069186605 | R112: 4.328433337e-07
A113: 53.5214 | B113: ='DF raw data'!D118 -> 9.1522234e-06 | C113: ='DF raw data'!E118 -> 5.4490729e-06 | D113: ='DF raw data'!F118 -> 3.2325336e-06 | F113: 9.158080823e-06 | G113: 5.464695325e-06 | H113: 3.234602422e-06 | J113: -6.00435673e-06 | K113: -5.24275715e-06 | L113: 1.305900342e-05 | N113: -0.0001605047692 | O113: -0.004015585624 | P113: 2.224630358e-05 | Q113: 0.001080314206 | R113: 4.459769245e-07
A114: 54.0216 | B114: ='DF raw data'!D119 -> 3.5473526e-09 | C114: ='DF raw data'!E119 -> 3.2002924e-06 | D114: ='DF raw data'!F119 -> 2.7884846e-06 | F114: 3.549622906e-09 | G114: 3.209467599e-06 | H114: 2.79026923e-06 | J114: -6.10748389e-06 | K114: -4.789544509e-06 | L114: 1.590021763e-05 | N114: -0.0001635597326 | O114: -0.004097398203 | P114: 1.985057341e-05 | Q114: 0.001090243463 | R114: 4.595552694e-07
A115: 54.5218 | B115: ='DF raw data'!D120 -> 9.1848176e-07 | C115: ='DF raw data'!E120 -> 1.4483948e-06 | D115: ='DF raw data'!F120 -> 3.0589601e-06 | F115: 9.190695883e-07 | G115: 1.45254733e-06 | H115: 3.060917834e-06 | J115: -5.108339646e-06 | K115: -3.180213367e-06 | L115: 1.119889271e-05 | N115: -0.0001661149241 | O115: -0.004180488888 | P115: 1.825983069e-05 | Q115: 0.001099377031 | R115: 4.735246496e-07
A116: 55.022 | B116: ='DF raw data'!D121 -> 3.0288986e-06 | C116: ='DF raw data'!E121 -> 5.1453645e-07 | D116: ='DF raw data'!F121 -> 1.607815e-06 | F116: 3.030837095e-06 | G116: 5.160116197e-07 | H116: 1.608844002e-06 | J116: -2.435184621e-06 | K116: 2.253128425e-06 | L116: -6.039007893e-07 | N116: -0.0001673330034 | O116: -0.004264188856 | P116: 1.938684552e-05 | Q116: 0.001109074331 | R116: 4.877184168e-07
A117: 55.5222 | B117: ='DF raw data'!D122 -> 1.6068019e-06 | C117: ='DF raw data'!E122 -> -7.2096964e-06 | D117: ='DF raw data'!F122 -> 3.4032439e-06 | F117: 1.607830253e-06 | G117: -7.230366511e-06 | H117: 3.405421976e-06 | J117: -4.022314935e-07 | K117: -6.471800228e-06 | L117: 7.130485692e-07 | N117: -0.0001675341996 | O117: -0.004347989463 | P117: 1.614965105e-05 | Q117: 0.001117152386 | R117: 5.018883421e-07
A118: 56.0224 | B118: ='DF raw data'!D123 -> -2.2512488e-06 | C118: ='DF raw data'!E123 -> -5.3993544e-06 | D118: ='DF raw data'!F123 -> -2.2294269e-06 | F118: -2.252689599e-06 | G118: -5.414834283e-06 | H118: -2.230853733e-06 | J118: -2.635828251e-06 | K118: -2.421377112e-06 | L118: 1.629950901e-06 | N118: -0.0001688526409 | O118: -0.004432449554 | P118: 1.493847822e-05 | Q118: 0.001124624613 | R118: 5.162612752e-07
A119: 56.5226 | B119: ='DF raw data'!D124 -> -3.0089884e-06 | C119: ='DF raw data'!E124 -> 3.9271876e-07 | D119: ='DF raw data'!F124 -> -5.6428512e-06 | F119: -3.010914153e-06 | G119: 3.938446798e-07 | H119: -5.646462625e-06 | J119: -5.947316748e-06 | K119: 3.445640067e-06 | L119: 6.01899069e-07 | N119: -0.0001718274888 | O119: -0.004518397663 | P119: 1.666198738e-05 | Q119: 0.001132958939 | R119: 5.311683896e-07
A120: 57.0228 | B120: ='DF raw data'!D125 -> 2.1777098e-06 | C120: ='DF raw data'!E125 -> -1.8213733e-06 | D120: ='DF raw data'!F125 -> 3.9333477e-06 | F120: 2.179103534e-06 | G120: -1.826595155e-06 | H120: 3.935865043e-06 | J120: -4.915844828e-06 | K120: -4.772954281e-08 | L120: 6.135748968e-06 | N120: -0.0001742863944 | O120: -0.004605575718 | P120: 1.663811306e-05 | Q120: 0.001141281323 | R120: 5.465008071e-07
A121: 57.523 | B121: ='DF raw data'!D126 -> 3.7327711e-06 | C121: ='DF raw data'!E126 -> -4.4949857e-06 | D121: ='DF raw data'!F126 -> 1.0072694e-05 | F121: 3.735160074e-06 | G121: -4.507872769e-06 | H121: 1.007914052e-05 | J121: 9.360827898e-07 | K121: -4.52205772e-06 | L121: 4.87685349e-07 | N121: -0.0001738181657 | O121: -0.004692519564 | P121: 1.437617979e-05 | Q121: 0.001148472288 | R121: 5.617166056e-07
A122: 58.0232 | B122: ='DF raw data'!D127 -> 2.5346192e-06 | C122: ='DF raw data'!E127 -> 2.1011208e-06 | D122: ='DF raw data'!F127 -> 8.079799e-06 | F122: 2.536241356e-06 | G122: 2.107144687e-06 | H122: 8.084970071e-06 | J122: 4.46671557e-06 | K122: 4.771428319e-06 | L122: 3.474145931e-06 | N122: -0.0001715839146 | O122: -0.004778345838 | P122: 1.676284824e-05 | Q122: 0.001156857065 | R122: 5.765835665e-07
A123: 58.5234 | B123: ='DF raw data'!D128 -> 4.7437584e-06 | C123: ='DF raw data'!E128 -> -6.904458e-07 | D123: ='DF raw data'!F128 -> -3.778257e-07 | F123: 4.746794405e-06 | G123: -6.924252996e-07 | H123: -3.780675084e-07 | J123: 3.427682714e-07 | K123: -5.707910025e-07 | L123: 9.961726827e-06 | N123: -0.0001714124619 | O123: -0.004864086352 | P123: 1.647733858e-05 | Q123: 0.00116509903 | R123: 5.914163646e-07
A124: 59.0236 | B124: ='DF raw data'!D129 -> 8.7164844e-06 | C124: ='DF raw data'!E129 -> -8.4568392e-06 | D124: ='DF raw data'!F129 -> 6.2248205e-07 | F124: 8.72206295e-06 | G124: -8.481084854e-06 | H124: 6.228804385e-07 | J124: -1.781356439e-06 | K124: -1.721631786e-05 | L124: 8.983554398e-06 | N124: -0.0001723034964 | O124: -0.004950272561 | P124: 7.865736382e-06 | Q124: 0.001169033471 | R124: 6.06297497e-07
A125: 59.5238 | B125: ='DF raw data'!D130 -> 9.8824621e-06 | C125: ='DF raw data'!E130 -> -1.7631161e-05 | D125: ='DF raw data'!F130 -> -1.1845025e-08 | F125: 9.888786876e-06 | G125: -1.768170932e-05 | H125: -1.185260582e-08 | J125: 1.307981072e-06 | K125: -3.819691803e-06 | L125: 4.109544927e-06 | N125: -0.0001716492443 | O125: -0.005036131513 | P125: 5.955126542e-06 | Q125: 0.001172012225 | R125: 6.210528601e-07
A126: 60.024 | B126: ='DF raw data'!D131 -> 1.1078146e-05 | C126: ='DF raw data'!E131 -> -8.8459137e-06 | D126: ='DF raw data'!F131 -> -3.4469656e-06 | F126: 1.108523601e-05 | G126: -8.871274826e-06 | H126: -3.449171658e-06 | J126: -1.98153227e-06 | K126: -1.105629464e-06 | L126: 5.895401344e-06 | N126: -0.0001726404067 | O126: -0.005122486244 | P126: 5.402090684e-06 | Q126: 0.001174714351 | R126: 6.359757732e-07
A127: 60.5242 | B127: ='DF raw data'!D132 -> 8.9852165e-06 | C127: ='DF raw data'!E132 -> 2.6045407e-06 | D127: ='DF raw data'!F132 -> -1.5819728e-07 | F127: 8.990967039e-06 | G127: 2.612007886e-06 | H127: -1.582985263e-07 | J127: -1.212218223e-05 | K127: -4.740166949e-06 | L127: 7.519427956e-06 | N127: -0.0001787039223 | O127: -0.005211873946 | P127: 3.031059176e-06 | Q127: 0.001176230487 | R127: 6.519543016e-07
A128: 61.0244 | B128: ='DF raw data'!D133 -> 3.6595468e-06 | C128: ='DF raw data'!E133 -> 1.3672715e-06 | D128: ='DF raw data'!F133 -> 3.0402582e-06 | F128: 3.66188891e-06 | G128: 1.371191451e-06 | H128: 3.042203965e-06 | J128: -1.575774651e-05 | K128: 3.491135729e-06 | L128: 7.409476132e-06 | N128: -0.0001865859471 | O128: -0.005305204237 | P128: 4.777325268e-06 | Q128: 0.001178620105 | R128: 6.693798383e-07
A129: 61.5246 | B129: ='DF raw data'!D134 -> 3.0083395e-06 | C129: ='DF raw data'!E134 -> 5.1219095e-06 | D129: ='DF raw data'!F134 -> 1.8508038e-06 | F129: 3.010264837e-06 | G129: 5.136593951e-06 | H129: 1.851988314e-06 | J129: -1.034531277e-05 | K129: -8.243590607e-07 | L129: 5.06087739e-06 | N129: -0.0001917606725 | O129: -0.005401122925 | P129: 4.364980865e-06 | Q129: 0.001180803468 | R129: 6.877828008e-07
A130: 62.0248 | B130: ='DF raw data'!D135 -> 6.2300683e-06 | C130: ='DF raw data'!E135 -> 5.127381e-06 | D130: ='DF raw data'!F135 -> -2.0318726e-07 | F130: 6.234055544e-06 | G130: 5.142081138e-06 | H130: -2.033172998e-07 | J130: -4.548822685e-06 | K130: -1.879449655e-06 | L130: 8.009178896e-06 | N130: -0.0001940359936 | O130: -0.005498179729 | P130: 3.424880148e-06 | Q130: 0.001182516594 | R130: 7.066211815e-07
A131: 62.525 | B131: ='DF raw data'!D136 -> 5.870756e-06 | C131: ='DF raw data'!E136 -> -3.2725544e-07 | D131: ='DF raw data'!F136 -> -5.7076591e-07 | F131: 5.874513284e-06 | G131: -3.281936773e-07 | H131: -5.711312002e-07 | J131: -2.954559909e-06 | K131: 2.365127306e-06 | L131: 1.264210877e-05 | N131: -0.0001955138645 | O131: -0.005595975764 | P131: 4.607916827e-06 | Q131: 0.001184821474 | R131: 7.257522829e-07
A132: 63.0252 | B132: ='DF raw data'!D137 -> 2.591489e-06 | C132: ='DF raw data'!E137 -> 3.4840912e-06 | D132: ='DF raw data'!F137 -> -5.0147141e-06 | F132: 2.593147553e-06 | G132: 3.494080047e-06 | H132: -5.017923517e-06 | J132: -2.617192632e-06 | K132: -7.729742422e-06 | L132: 1.52259934e-05 | N132: -0.0001968229843 | O132: -0.005694426621 | P132: 7.414996669e-07 | Q132: 0.001185192372 | R132: 7.451299494e-07
A133: 63.5254 | B133: ='DF raw data'!D138 -> 1.3552229e-06 | C133: ='DF raw data'!E138 -> 1.7069655e-07 | D133: ='DF raw data'!F138 -> -4.3924324e-06 | F133: 1.356090243e-06 | G133: 1.711859349e-07 | H133: -4.395243557e-06 | J133: -5.543557508e-06 | K133: 8.541184466e-08 | L133: 1.144483501e-05 | N133: -0.0001995958717 | O133: -0.005794264476 | P133: 7.842226716e-07 | Q133: 0.00118558464 | R133: 7.650574807e-07
A134: 64.0256 | B134: ='DF raw data'!D139 -> -5.9659726e-07 | C134: ='DF raw data'!E139 -> 1.1757244e-05 | D134: ='DF raw data'!F139 -> -3.2943578e-06 | F134: -5.969790822e-07 | G134: 1.179095187e-05 | H134: -3.296466189e-06 | J134: -7.718777958e-06 | K134: 5.120402263e-06 | L134: 7.974215634e-06 | N134: -0.0002034568045 | O134: -0.00589603357 | P134: 3.345447883e-06 | Q134: 0.001187258033 | R134: 7.857686935e-07
A135: 64.5258 | B135: ='DF raw data'!D140 -> 1.9553675e-06 | C135: ='DF raw data'!E140 -> 4.6208906e-06 | D135: ='DF raw data'!F140 -> -2.9649595e-07 | F135: 1.956618935e-06 | G135: =(1-$G$1*($B$2-$G$2))*C135*$M$2/$M$1 -> 4.634138636e-06 | H135: -2.966857074e-07 | J135: =-CELL("contents", INDEX($F$6:$F$1203,1204-CELL("row",F135))) -> -5.994137394e-06 | K135: =CELL("contents", INDEX($G$6:$G$1203,1204-CELL("row",G135))) -> -8.906598709e-06 | L135: =-CELL("contents", INDEX($H$6:$H$1203,1204-CELL("row",H135))) -> 7.085217539e-06 | N135: -0.000206455072 | O135: -0.005999302397 | P135: -1.109632791e-06 | Q135: 0.001186702995 | R135: 8.070896825e-07
A136: =A135+$B$1 -> 65.026 | B136: ='DF raw data'!D141 -> 4.9719742e-06 | C136: ='DF raw data'!E141 -> -4.9150293e-07 | D136: ='DF raw data'!F141 -> -6.1207088e-06 | F136: 4.975156263e-06 | G136: -4.929120628e-07 | H136: -6.124626054e-06 | J136: -4.99372464e-06 | K136: -1.577306691e-06 | L136: 6.485114719e-06 | N136: =J136*$B$1+N135 -> -0.000208952933 | O136: =N136*$B$1+O135 -> -0.006103820654 | P136: =K136*$B$1+P135 -> -1.898601598e-06 | Q136: =P136*$B$1+Q135 -> 0.001185753314 | R136: =(N136^2+P136^2)*$B$1+R135 -> 8.28930882e-07
A137: 65.5262 | B137: ='DF raw data'!D142 -> 6.3527536e-06 | C137: ='DF raw data'!E142 -> 6.3719881e-06 | D137: ='DF raw data'!F142 -> -4.5717957e-06 | F137: 6.356819362e-06 | G137: 6.390256511e-06 | H137: -4.574721649e-06 | J137: -1.079195043e-05 | K137: 2.649473392e-06 | L137: 1.23541456e-05 | N137: -0.0002143510666 | O137: -0.006211039057 | P137: -5.73335007e-07 | Q137: 0.001185466532 | R137: 8.519134255e-07
A138: 66.0264 | B138: ='DF raw data'!D143 -> 6.3698412e-06 | C138: ='DF raw data'!E143 -> 1.7727533e-06 | D138: ='DF raw data'!F143 -> 2.1847056e-06 | F138: 6.373917898e-06 | G138: 1.777835762e-06 | H138: 2.186103812e-06 | J138: -1.539960745e-05 | K138: -1.062512e-05 | L138: 3.321240334e-06 | N138: -0.0002220539503 | O138: -0.006322110443 | P138: -5.888020033e-06 | Q138: 0.001182521344 | R138: 8.765946069e-07
A139: 66.5266 | B139: ='DF raw data'!D144 -> 2.9251698e-06 | C139: ='DF raw data'!E144 -> -5.9255917e-06 | D139: ='DF raw data'!F144 -> 3.8600715e-06 | F139: 2.927041909e-06 | G139: -5.942580298e-06 | H139: 3.862541946e-06 | J139: -8.597360592e-06 | K139: -1.225344805e-05 | L139: 2.03519269e-06 | N139: -0.0002263543501 | O139: -0.006435332889 | P139: -1.201719475e-05 | Q139: 0.001176510343 | R139: 9.022952354e-07
A140: 67.0268 | B140: ='DF raw data'!D145 -> -3.6389026e-06 | C140: ='DF raw data'!E145 -> 1.5241571e-07 | D140: ='DF raw data'!F145 -> 6.9385965e-06 | F140: -3.641231498e-06 | G140: 1.52852684e-07 | H140: 6.943037202e-06 | J140: -4.553363889e-06 | K140: -4.919737905e-06 | L140: 1.42398957e-05 | N140: -0.0002286319427 | O140: -0.006549694587 | P140: -1.447804765e-05 | Q140: 0.001169268424 | R140: 9.285468214e-07
A141: 67.527 | B141: ='DF raw data'!D146 -> -6.9564162e-06 | C141: ='DF raw data'!E146 -> -2.7895196e-06 | D141: ='DF raw data'!F146 -> 7.0056831e-06 | F141: -6.960868306e-06 | G141: -2.797517118e-06 | H141: 7.010166737e-06 | J141: -3.473068042e-06 | K141: -1.351795e-05 | L141: 1.85179309e-05 | N141: -0.0002303691713 | O141: -0.006664925246 | P141: -2.123972624e-05 | Q141: 0.001158644313 | R141: 9.553180661e-07
A142: 68.0272 | B142: ='DF raw data'!D147 -> -5.1111947e-06 | C142: ='DF raw data'!E147 -> -1.7509238e-06 | D142: ='DF raw data'!F147 -> 6.7731435e-06 | F142: -5.114465865e-06 | G142: -1.755943677e-06 | H142: 6.777478312e-06 | J142: -2.200476704e-06 | K142: -1.002230408e-05 | L142: 1.000974214e-05 | N142: -0.0002314698498 | O142: -0.006780706465 | P142: -2.625288274e-05 | Q142: 0.001145512621 | R142: 9.824626722e-07
A143: 68.5274 | B143: ='DF raw data'!D148 -> -4.3531218e-06 | C143: ='DF raw data'!E148 -> 1.3520443e-07 | D143: ='DF raw data'!F148 -> 2.7999454e-07 | F143: -4.355907798e-06 | G143: 1.355920594e-07 | H143: 2.801737365e-07 | J143: -5.247267403e-06 | K143: -9.447190749e-06 | L143: 7.249644805e-06 | N143: -0.0002340945329 | O143: -0.006897800551 | P143: -3.097836755e-05 | Q143: 0.001130017242 | R143: 1.010353779e-06
A144: 69.0276 | B144: ='DF raw data'!D149 -> -3.007787e-06 | C144: ='DF raw data'!E149 -> 2.9503815e-06 | D144: ='DF raw data'!F149 -> -1.0811041e-05 | F144: -3.009711984e-06 | G144: 2.958840207e-06 | H144: -1.081796007e-05 | J144: -6.120375135e-06 | K144: -7.673141011e-06 | L144: 9.06780028e-06 | N144: -0.0002371559446 | O144: -0.007016425954 | P144: -3.481647269e-05 | Q144: 0.001112602042 | R144: 1.039092834e-06
A145: 69.5278 | B145: ='DF raw data'!D150 -> 6.7104099e-07 | C145: ='DF raw data'!E150 -> 6.1090059e-06 | D145: ='DF raw data'!F150 -> -5.7102702e-06 | F145: 6.714704562e-07 | G145: 6.126520345e-06 | H145: -5.713924773e-06 | J145: -4.917514797e-06 | K145: -5.202094604e-07 | L145: 9.700334543e-06 | N145: -0.0002396156855 | O145: -0.00713628172 | P145: -3.507668146e-05 | Q145: 0.001095056686 | R145: 1.068427589e-06
A146: 70.028 | B146: ='DF raw data'!D151 -> 7.7273235e-06 | C146: ='DF raw data'!E151 -> -3.5332425e-06 | D146: ='DF raw data'!F151 -> -1.0198726e-06 | F146: 7.732268987e-06 | G146: -3.543372263e-06 | H146: -1.020525318e-06 | J146: -5.503148262e-06 | K146: -8.181886107e-06 | L146: 9.068266178e-06 | N146: -0.0002423683602 | O146: -0.007257514374 | P146: -3.916926089e-05 | Q146: 0.001075464222 | R146: 1.098577971e-06
A147: 70.5282 | B147: ='DF raw data'!D152 -> 1.1628694e-05 | C147: ='DF raw data'!E152 -> -1.3965578e-07 | D147: ='DF raw data'!F152 -> -2.4871904e-06 | F147: 1.163613636e-05 | G147: -1.400561714e-07 | H147: -2.488782202e-06 | J147: -7.130939782e-06 | K147: -1.614907183e-06 | L147: 3.238194019e-06 | N147: -0.0002459352563 | O147: -0.007380531189 | P147: -3.997703746e-05 | Q147: 0.001055467707 | R147: 1.129631544e-06
A148: 71.0284 | B148: ='DF raw data'!D153 -> 8.2199349e-06 | C148: ='DF raw data'!E153 -> 8.2717261e-06 | D148: ='DF raw data'!F153 -> 5.5840481e-08 | F148: 8.225195658e-06 | G148: 8.295441037e-06 | H148: 5.587621891e-08 | J148: -5.003142063e-06 | K148: -5.237003602e-06 | L148: 4.90710714e-06 | N148: -0.000248437828 | O148: -0.00750479979 | P148: -4.259658666e-05 | Q148: 0.001034160895 | R148: 1.161412163e-06
A149: 71.5286 | B149: ='DF raw data'!D154 -> 3.9724014e-06 | C149: ='DF raw data'!E154 -> 2.885125e-07 | D149: ='DF raw data'!F154 -> 7.5059893e-07 | F149: 3.974943737e-06 | G149: 2.893396618e-07 | H149: 7.510793133e-07 | J149: -2.630417891e-06 | K149: -2.408936046e-06 | L149: 5.807892074e-06 | N149: -0.000249753563 | O149: -0.007629726523 | P149: -4.380153647e-05 | Q149: 0.001012251366 | R149: 1.19357273e-06
A150: 72.0288 | B150: ='DF raw data'!D155 -> 3.3386152e-06 | C150: ='DF raw data'!E155 -> -6.2262052e-06 | D150: ='DF raw data'!F155 -> 1.1373443e-06 | F150: 3.340751914e-06 | G150: -6.244055654e-06 | H150: 1.1380722e-06 | J150: -1.202401945e-06 | K150: 5.007469411e-06 | L150: 2.246969341e-06 | N150: -0.0002503550044 | O150: -0.007754954096 | P150: -4.129680027e-05 | Q150: 0.0009915947067 | R150: 1.225777134e-06
A151: 72.529 | B151: ='DF raw data'!D156 -> 5.4378856e-06 | C151: ='DF raw data'!E156 -> 4.6278283e-06 | D151: ='DF raw data'!F156 -> 1.947574e-06 | F151: =(1-$G$1*($B$2-$G$2))*B151 -> 5.441365847e-06 | G151: 4.641096227e-06 | H151: 1.948820447e-06 | J151: -3.590689071e-06 | K151: -8.111500991e-06 | L151: 1.948549674e-06 | N151: -0.0002521510671 | O151: -0.00788108006 | P151: -4.535417307e-05 | Q151: 0.0009689085493 | R151: 1.258608842e-06
A152: 73.0292 | B152: ='DF raw data'!D157 -> 1.8832783e-06 | C152: ='DF raw data'!E157 -> 7.1341265e-06 | D152: ='DF raw data'!F157 -> 6.6088364e-07 | F152: 1.884483598e-06 | G152: 7.154579953e-06 | H152: 6.613066055e-07 | J152: -5.918328908e-06 | K152: -4.262064855e-06 | L152: 1.149757974e-05 | N152: -0.0002551114152 | O152: -0.00800868679 | P152: -4.748605791e-05 | Q152: 0.0009451560232 | R152: 1.29229069e-06
A153: 73.5294 | B153: ='DF raw data'!D158 -> -4.7590247e-06 | C153: ='DF raw data'!E158 -> 4.6996129e-06 | D153: ='DF raw data'!F158 -> 3.8295389e-07 | F153: -4.762070476e-06 | G153: 4.713086632e-06 | H153: 3.831989805e-07 | J153: -2.727199992e-06 | K153: -4.009299451e-06 | L153: 1.195150207e-05 | N153: -0.0002564755607 | O153: -0.008136975865 | P153: -4.94915095e-05 | Q153: 0.0009204003701 | R153: 1.326418897e-06
A154: 74.0296 | B154: ='DF raw data'!D159 -> -3.2281266e-06 | C154: ='DF raw data'!E159 -> 8.3719287e-06 | D154: ='DF raw data'!F159 -> 3.0497761e-06 | F154: -3.230192601e-06 | G154: 8.395930916e-06 | H154: 3.051727957e-06 | J154: 1.117756907e-06 | K154: 9.535856225e-06 | L154: 6.249162806e-06 | N154: -0.0002559164587 | O154: -0.008264985278 | P154: -4.472167421e-05 | Q154: 0.0008980305887 | R154: 1.360179026e-06
A155: 74.5298 | B155: ='DF raw data'!D160 -> 9.3203141e-07 | C155: ='DF raw data'!E160 -> 8.8833558e-06 | D155: ='DF raw data'!F160 -> 1.2699868e-06 | F155: 9.326279101e-07 | G155: 8.908824272e-06 | H155: 1.270799592e-06 | J155: -4.917330279e-07 | K155: 5.467909514e-06 | L155: 4.809343011e-06 | N155: -0.0002561624235 | O155: -0.008393117722 | P155: -4.198662587e-05 | Q155: 0.0008770288784 | R155: 1.393883535e-06
A156: 75.03 | B156: ='DF raw data'!D161 -> 6.2651941e-07 | C156: ='DF raw data'!E161 -> 1.1272369e-05 | D156: ='DF raw data'!F161 -> -8.9036685e-06 | F156: 6.269203824e-07 | G156: 1.130468674e-05 | H156: -8.909366848e-06 | J156: -1.382339632e-06 | K156: -1.954384478e-06 | L156: 3.415941104e-06 | N156: -0.0002568538698 | O156: -0.008521596028 | P156: -4.296420899e-05 | Q156: 0.0008555381811 | R156: 1.427807016e-06
A157: 75.5302 | B157: ='DF raw data'!D162 -> -7.9304084e-07 | C157: ='DF raw data'!E162 -> 4.2727592e-07 | D157: ='DF raw data'!F162 -> -1.0731109e-05 | F157: -7.935483861e-07 | G157: 4.285009148e-07 | H157: -1.073797691e-05 | J157: -3.737230498e-06 | K157: -9.82854797e-06 | L157: 5.353370566e-06 | N157: -0.0002587232325 | O157: -0.008651009388 | P157: -4.788044868e-05 | Q157: 0.0008315883806 | R157: 1.462435986e-06
A158: 76.0304 | B158: ='DF raw data'!D163 -> 2.0671062e-06 | C158: ='DF raw data'!E163 -> 6.520494e-06 | D158: ='DF raw data'!F163 -> -6.2998065e-06 | F158: 2.068429148e-06 | G158: 6.539188176e-06 | H158: -6.303838376e-06 | J158: -6.528674679e-06 | K158: -6.370235877e-06 | L158: 8.075776491e-06 | N158: -0.0002619888756 | O158: -0.008782056224 | P158: -5.106684067e-05 | Q158: 0.0008060447469 | R158: 1.498073232e-06
A159: 76.5306 | B159: ='DF raw data'!D164 -> 6.1032438e-06 | C159: ='DF raw data'!E164 -> 9.7642414e-06 | D159: ='DF raw data'!F164 -> -1.8645103e-06 | F159: 6.107149876e-06 | G159: 9.79223536e-06 | H159: -1.865703587e-06 | J159: -2.413142523e-06 | K159: -6.089104079e-06 | L159: 9.110022385e-06 | N159: -0.0002631959295 | O159: -0.008913706828 | P159: -5.411261053e-05 | Q159: 0.0007789776191 | R159: 1.534187808e-06
A160: 77.0308 | B160: ='DF raw data'!D165 -> 7.297926e-06 | C160: ='DF raw data'!E165 -> 1.9400711e-06 | D160: ='DF raw data'!F165 -> -5.2583023e-06 | F160: 7.302596673e-06 | G160: 1.94563326e-06 | H160: -5.261667613e-06 | J160: -1.556199731e-06 | K160: 2.674899079e-06 | L160: 9.869823647e-06 | N160: -0.0002639743406 | O160: -0.009045746793 | P160: -5.277462601e-05 | Q160: 0.0007525797512 | R160: 1.570436108e-06
A161: 77.531 | B161: ='DF raw data'!D166 -> 5.7335187e-06 | C161: ='DF raw data'!E166 -> 7.9785868e-06 | D161: ='DF raw data'!F166 -> -1.0413713e-05 | F161: 5.737188152e-06 | G161: 8.00146131e-06 | H161: -1.042037778e-05 | J161: -5.953728249e-06 | K161: -7.868907366e-06 | L161: 1.384571059e-05 | N161: -0.0002669523954 | O161: -0.009179276381 | P161: -5.671065347e-05 | Q161: 0.0007242130823 | R161: 1.607690844e-06
A162: 78.0312 | B162: ='DF raw data'!D167 -> 1.9733227e-06 | C162: ='DF raw data'!E167 -> 3.8552853e-06 | D162: ='DF raw data'!F167 -> -1.0819826e-05 | F162: 1.974585627e-06 | G162: 3.866338355e-06 | H162: -1.082675069e-05 | J162: -4.396469441e-06 | K162: -1.53551582e-05 | L162: 1.295158371e-05 | N162: -0.0002691515095 | O162: -0.009313905966 | P162: -6.43913036e-05 | Q162: 0.0006920045523 | R162: 1.646000549e-06
A163: 78.5314 | B163: ='DF raw data'!D168 -> -1.808145e-07 | C163: ='DF raw data'!E168 -> 3.8331373e-06 | D163: ='DF raw data'!F168 -> -7.2243752e-06 | F163: -1.809302213e-07 | G163: 3.844126857e-06 | H163: -7.2289988e-06 | J163: -2.366856019e-06 | K163: -3.329145032e-06 | L163: 7.985005435e-06 | N163: -0.0002703354108 | O163: -0.009449127739 | P163: -6.605654195e-05 | Q163: 0.00065896307 | R163: 1.684738388e-06
A164: 79.0316 | B164: ='DF raw data'!D169 -> 1.049911e-06 | C164: ='DF raw data'!E169 -> 1.5681202e-05 | D164: ='DF raw data'!F169 -> -7.744763e-06 | F164: 1.050582943e-06 | G164: 1.572615981e-05 | H164: -7.749719648e-06 | J164: -7.313415692e-06 | K164: 2.256474089e-06 | L164: 7.40687877e-06 | N164: -0.0002739935814 | O164: -0.009586179328 | P164: -6.492785361e-05 | Q164: 0.0006264861576 | R164: 1.724398301e-06
A165: 79.5318 | B165: ='DF raw data'!D170 -> 3.1231486e-06 | C165: ='DF raw data'!E170 -> 5.2756177e-06 | D165: ='DF raw data'!F170 -> -4.7735889e-06 | F165: 3.125147415e-06 | G165: 5.290742831e-06 | H165: -4.776643997e-06 | J165: -1.421084112e-05 | K165: 3.81522393e-06 | L165: 4.223492006e-06 | N165: -0.0002811018441 | O165: -0.009726786471 | P165: -6.30194786e-05 | Q165: 0.0005949638144 | R165: 1.765909749e-06
A166: 80.032 | B166: ='DF raw data'!D171 -> 5.2464479e-06 | C166: ='DF raw data'!E171 -> -9.2650089e-06 | D166: ='DF raw data'!F171 -> 3.5728237e-06 | F166: 5.249805627e-06 | G166: -9.291571566e-06 | H166: 3.575110307e-06 | J166: -1.536347233e-05 | K166: -1.290016388e-06 | L166: 9.217975631e-06 | N166: -0.000288786653 | O166: -0.009871237554 | P166: -6.36647448e-05 | Q166: 0.0005631187091 | R166: 1.809652705e-06
A167: 80.5322 | B167: ='DF raw data'!D172 -> 3.2626551e-06 | C167: ='DF raw data'!E172 -> -4.4354792e-06 | D167: ='DF raw data'!F172 -> 3.558049e-06 | F167: 3.264743199e-06 | G167: -4.448195664e-06 | H167: 3.560326151e-06 | J167: -1.057420917e-05 | K167: -2.044168151e-06 | L167: 1.036610106e-05 | N167: -0.0002940758724 | O167: -0.01001833431 | P167: -6.468723771e-05 | Q167: 0.0005307621528 | R167: 1.855003366e-06
A168: 81.0324 | B168: ='DF raw data'!D173 -> -1.2763736e-06 | C168: ='DF raw data'!E173 -> 4.6311643e-06 | D168: ='DF raw data'!F173 -> 2.211061e-06 | F168: -1.277190479e-06 | G168: 4.644441791e-06 | H168: 2.212476079e-06 | J168: -6.650837914e-06 | K168: 1.559996605e-06 | L168: 1.261938624e-06 | N168: -0.0002974026215 | O168: -0.0101670951 | P168: -6.39069274e-05 | Q168: 0.0004987959077 | R168: 1.90128808e-06
A169: 81.5326 | B169: ='DF raw data'!D174 -> -3.0340864e-06 | C169: ='DF raw data'!E174 -> -1.8251095e-06 | D169: ='DF raw data'!F174 -> 3.5332243e-06 | F169: -3.036028215e-06 | G169: -1.830342066e-06 | H169: 3.535485564e-06 | J169: -9.553090467e-06 | K169: -8.105616167e-06 | L169: -4.258392628e-06 | N169: -0.0003021810774 | O169: -0.01031824607 | P169: -6.796135661e-05 | Q169: 0.0004648016371 | R169: 1.949273341e-06
A170: 82.0328 | B170: ='DF raw data'!D175 -> -3.5889077e-06 | C170: ='DF raw data'!E175 -> 7.1119766e-06 | D170: ='DF raw data'!F175 -> 3.7907887e-06 | F170: -3.591204601e-06 | G170: 7.132366549e-06 | H170: 3.793214805e-06 | J170: -5.951724167e-06 | K170: -1.210839839e-05 | L170: -1.636415636e-06 | N170: -0.0003051581298 | O170: -0.01047088617 | P170: -7.401797748e-05 | Q170: 0.0004277778448 | R170: 1.998593134e-06
A171: 82.533 | B171: ='DF raw data'!D176 -> -4.0732411e-06 | C171: ='DF raw data'!E176 -> 9.0584117e-06 | D171: ='DF raw data'!F176 -> 4.4659132e-06 | F171: -4.075847974e-06 | G171: 9.084382055e-06 | H171: 4.468771384e-06 | J171: -2.665150105e-06 | K171: 1.288361557e-06 | L171: 4.858558188e-06 | N171: -0.0003064912379 | O171: -0.01062419309 | P171: -7.337353903e-05 | Q171: 0.0003910764006 | R171: 2.048273276e-06
A172: 83.0332 | B172: ='DF raw data'!D177 -> -4.6664436e-06 | C172: ='DF raw data'!E177 -> 3.9493525e-06 | D172: ='DF raw data'!F177 -> 6.395449e-06 | F172: -4.669430124e-06 | G172: 3.960675245e-06 | H172: 6.399542087e-06 | J172: -1.570961272e-06 | K172: -9.177164701e-06 | L172: 7.599276226e-06 | N172: -0.0003072770327 | O172: -0.01077789306 | P172: -7.796395682e-05 | Q172: 0.0003520788294 | R172: 2.098542152e-06
A173: 83.5334 | B173: ='DF raw data'!D178 -> -4.0912637e-06 | C173: ='DF raw data'!E178 -> 9.0768253e-06 | D173: ='DF raw data'!F178 -> 3.2976898e-06 | F173: -4.093882109e-06 | G173: 9.102848446e-06 | H173: 3.299800321e-06 | J173: 1.084895789e-06 | K173: -7.863018832e-06 | L173: 2.944302949e-06 | N173: -0.0003067343678 | O173: -0.01093132159 | P173: -8.189703884e-05 | Q173: 0.0003111139305 | R173: 2.148958859e-06
A174: 84.0336 | B174: ='DF raw data'!D179 -> -4.1583467e-06 | C174: ='DF raw data'!E179 -> 4.1606731e-07 | D174: ='DF raw data'!F179 -> -2.5889519e-06 | F174: -4.161008042e-06 | G174: 4.172601698e-07 | H174: -2.590608829e-06 | J174: 1.650157725e-06 | K174: -1.593602578e-05 | L174: 2.932115153e-06 | N174: -0.0003059089589 | O174: -0.01108433725 | P174: -8.986823893e-05 | Q174: 0.0002661618374 | R174: 2.199807486e-06
A175: 84.5338 | B175: ='DF raw data'!D180 -> -8.5872182e-07 | C175: ='DF raw data'!E180 -> 3.2253763e-06 | D175: ='DF raw data'!F180 -> -3.3117947e-06 | F175: -8.59271402e-07 | G175: 3.234623414e-06 | H175: -3.313914249e-06 | J175: -3.790545698e-07 | K175: -1.286241496e-05 | L175: 3.735337987e-06 | N175: -0.000306098562 | O175: -0.01123744775 | P175: -9.630201889e-05 | Q175: 0.0002179915676 | R175: 2.251313285e-06
A176: 85.034 | B176: ='DF raw data'!D181 -> -1.6135247e-06 | C176: ='DF raw data'!E181 -> 7.523332e-06 | D176: ='DF raw data'!F181 -> -5.6289414e-06 | F176: -1.614557356e-06 | G176: 7.5449013e-06 | H176: -5.632543922e-06 | J176: -1.151664694e-05 | K176: -9.895988869e-06 | L176: 1.730378834e-06 | N176: -0.0003118591888 | O176: -0.01139343972 | P176: -0.0001012519925 | Q176: 0.0001673453209 | R176: 2.305088846e-06
A177: 85.5342 | B177: ='DF raw data'!D182 -> -6.5054573e-06 | C177: ='DF raw data'!E182 -> 1.9880155e-05 | D177: ='DF raw data'!F182 -> -7.4114428e-07 | F177: -6.509620793e-06 | G177: 1.993715116e-05 | H177: -7.416186123e-07 | J177: -1.895996262e-05 | K177: -8.061324446e-06 | L177: -1.868437935e-06 | N177: -0.0003213429621 | O177: -0.01155417547 | P177: -0.000105284267 | Q177: 0.0001146821305 | R177: 2.362284753e-06
A178: 86.0344 | B178: ='DF raw data'!D183 -> -7.7511349e-06 | C178: ='DF raw data'!E183 -> 1.8231129e-05 | D178: ='DF raw data'!F183 -> 4.0968712e-06 | F178: -7.756095626e-06 | G178: 1.828339742e-05 | H178: 4.099493198e-06 | J178: -1.555790469e-05 | K178: -1.652777647e-06 | L178: 1.282383501e-06 | N178: -0.000329125026 | O178: -0.0117188038 | P178: -0.0001061109864 | Q178: 6.160541515e-05 | R178: 2.422100082e-06
A179: 86.5346 | B179: ='DF raw data'!D184 -> -2.4466246e-06 | C179: ='DF raw data'!E184 -> 1.1855046e-05 | D179: ='DF raw data'!F184 -> -1.2614635e-06 | F179: -2.44819044e-06 | G179: 1.188903427e-05 | H179: -1.262270837e-06 | J179: -1.687745066e-05 | K179: -1.022799571e-06 | L179: 1.170809139e-05 | N179: -0.0003375671269 | O179: -0.01188765488 | P179: -0.0001066225907 | Q179: 8.272795261e-06 | R179: 2.484785117e-06
A180: 87.0348 | B180: ='DF raw data'!D185 -> 4.877324e-06 | C180: ='DF raw data'!E185 -> 4.6315645e-06 | D180: ='DF raw data'!F185 -> -6.2218046e-06 | F180: 4.880445487e-06 | G180: 4.644843138e-06 | H180: -6.225786555e-06 | J180: -1.37536477e-05 | K180: -1.573999637e-05 | L180: 1.037442639e-05 | N180: -0.0003444467015 | O180: -0.01205994712 | P180: -0.0001144957369 | Q180: -4.899797235e-05 | R180: 2.55068787e-06
A181: 87.535 | B181: ='DF raw data'!D186 -> 2.6014352e-06 | C181: ='DF raw data'!E186 -> 1.402724e-05 | D181: ='DF raw data'!F186 -> 3.2085738e-06 | F181: 2.603100119e-06 | G181: 1.406745592e-05 | H181: 3.210627287e-06 | J181: -7.655926259e-06 | K181: -1.33548377e-05 | L181: 1.015226029e-05 | N181: -0.0003482761958 | O181: -0.01223415487 | P181: -0.0001211758267 | Q181: -0.0001096101209 | R181: 2.61870501e-06
A182: 88.0352 | B182: ='DF raw data'!D187 -> -3.498262e-06 | C182: ='DF raw data'!E187 -> 9.4073248e-06 | D182: ='DF raw data'!F187 -> 1.084379e-05 | F182: -3.500500888e-06 | G182: 9.434295484e-06 | H182: 1.085073003e-05 | J182: -9.581342937e-06 | K182: -2.436233484e-06 | L182: 1.168937842e-05 | N182: -0.0003530687835 | O182: -0.01241075988 | P182: -0.0001223944307 | Q182: -0.0001708318151 | R182: 2.688551919e-06
A183: 88.5354 | B183: ='DF raw data'!D188 -> -2.6716368e-06 | C183: ='DF raw data'!E188 -> 3.8336721e-06 | D183: ='DF raw data'!F188 -> 2.1966191e-06 | F183: -2.673346648e-06 | G183: 3.844663191e-06 | H183: 2.198024936e-06 | J183: -9.201964691e-06 | K183: -5.271524791e-06 | L183: 8.559667984e-06 | N183: -0.0003576716062 | O183: -0.01258966722 | P183: -0.0001250312474 | Q183: -0.0002333724451 | R183: 2.760361527e-06
A184: 89.0356 | B184: ='DF raw data'!D189 -> 2.3144787e-06 | C184: ='DF raw data'!E189 -> -1.7203685e-06 | D184: ='DF raw data'!F189 -> -4.8364823e-06 | F184: 2.315959966e-06 | G184: -1.725300775e-06 | H184: -4.839577649e-06 | J184: -5.355871465e-06 | K184: -6.521976872e-06 | L184: 3.288341092e-06 | N184: -0.0003603506131 | O184: -0.01276991459 | P184: -0.0001282935403 | Q184: -0.0002975448739 | R184: 2.833546688e-06
A185: 89.5358 | B185: ='DF raw data'!D190 -> 3.2897553e-06 | C185: ='DF raw data'!E190 -> 8.3209607e-06 | D185: ='DF raw data'!F190 -> -9.0579406e-06 | F185: 3.291860743e-06 | G185: 8.344816792e-06 | H185: -9.063737682e-06 | J185: -9.752464685e-06 | K185: -1.006218068e-05 | L185: 2.892956408e-06 | N185: -0.000365228796 | O185: -0.01295260204 | P185: -0.000133326643 | Q185: -0.0003642348608 | R185: 2.909160955e-06
A186: 90.036 | B186: ='DF raw data'!D191 -> 1.1774695e-06 | C186: ='DF raw data'!E191 -> 1.0765746e-05 | D186: ='DF raw data'!F191 -> -6.404362e-06 | F186: 1.17822308e-06 | G186: 1.079661126e-05 | H186: -6.408460792e-06 | J186: -1.200242564e-05 | K186: -4.093865909e-06 | L186: 6.9502259e-06 | N186: -0.0003712324093 | O186: -0.01313829249 | P186: -0.0001353743948 | Q186: -0.000431949133 | R186: 2.987262047e-06
A187: 90.5362 | B187: ='DF raw data'!D192 -> -2.2302895e-06 | C187: ='DF raw data'!E192 -> 7.5805738e-06 | D187: ='DF raw data'!F192 -> 4.2116767e-06 | F187: -2.231716885e-06 | G187: 7.602307212e-06 | H187: 4.214372173e-06 | J187: -1.153240902e-05 | K187: -3.513666941e-06 | L187: 9.795235541e-06 | N187: -0.0003770009203 | O187: -0.01332686835 | P187: -0.000137131931 | Q187: -0.0005005425249 | R187: 3.067761664e-06
A188: 91.0364 | B188: ='DF raw data'!D193 -> -2.8282309e-06 | C188: ='DF raw data'!E193 -> 7.620427e-07 | D188: ='DF raw data'!F193 -> 5.4160396e-06 | F188: -2.830040968e-06 | G188: 7.64227467e-07 | H188: 5.419505865e-06 | J188: -1.493065951e-05 | K188: -8.950489083e-06 | L188: 9.225434602e-06 | N188: -0.0003844692362 | O188: -0.01351917986 | P188: -0.0001416089656 | Q188: -0.0005713753295 | R188: 3.151730085e-06
A189: 91.5366 | B189: ='DF raw data'!D194 -> -3.0667936e-06 | C189: ='DF raw data'!E194 -> 8.4421126e-06 | D189: ='DF raw data'!F194 -> -1.8777544e-06 | F189: -3.068756348e-06 | G189: 8.466316033e-06 | H189: -1.878956163e-06 | J189: -1.341381135e-05 | K189: -1.545605163e-05 | L189: 9.623815302e-06 | N189: -0.0003911788246 | O189: -0.01371484751 | P189: -0.0001493400826 | Q189: -0.0006460752388 | R189: 3.239426816e-06
A190: 92.0368 | B190: ='DF raw data'!D195 -> -5.7922393e-06 | C190: ='DF raw data'!E195 -> 1.5865733e-05 | D190: ='DF raw data'!F195 -> -2.011994e-06 | F190: -5.795946333e-06 | G190: 1.591121986e-05 | H190: -2.013281676e-06 | J190: -8.531704098e-06 | K190: -1.585975574e-05 | L190: 1.981115903e-06 | N190: -0.000395446383 | O190: -0.01391264979 | P190: -0.0001572731324 | Q190: -0.0007247432597 | R190: 3.330019378e-06
A191: 92.537 | B191: ='DF raw data'!D196 -> -4.7184281e-07 | C191: ='DF raw data'!E196 -> 6.9371863e-06 | D191: ='DF raw data'!F196 -> 2.2708266e-06 | F191: -4.721447894e-07 | G191: 6.957075128e-06 | H191: 2.272279929e-06 | J191: -1.2085849e-05 | K191: -3.686415493e-06 | L191: 1.919295063e-07 | N191: -0.0004014917247 | O191: -0.01411347595 | P191: -0.0001591170775 | Q191: -0.0008043336218 | R191: 3.423313606e-06
A192: 93.0372 | B192: ='DF raw data'!D197 -> 8.6646196e-06 | C192: ='DF raw data'!E197 -> 5.6911113e-06 | D192: ='DF raw data'!F197 -> 2.8209627e-06 | F192: 8.670164957e-06 | G192: 5.707427646e-06 | H192: 2.822768116e-06 | J192: -1.592733197e-05 | K192: -8.241030488e-06 | L192: 6.145071831e-06 | N192: -0.0004094585761 | O192: -0.01431828713 | P192: -0.0001632392409 | Q192: -0.0008859858902 | R192: 3.520504154e-06
A193: 93.5374 | B193: ='DF raw data'!D198 -> 4.041754e-06 | C193: ='DF raw data'!E198 -> 8.396747e-06 | D193: ='DF raw data'!F198 -> 7.6916717e-07 | F193: 4.044340723e-06 | G193: 8.42082037e-06 | H193: 7.69659437e-07 | J193: -1.270167187e-05 | K193: -5.056494865e-06 | L193: 1.145942034e-05 | N193: -0.0004158119524 | O193: -0.01452627627 | P193: -0.0001657684997 | Q193: -0.0009689032937 | R193: 3.620733617e-06
A194: 94.0376 | B194: ='DF raw data'!D199 -> -7.1026643e-06 | C194: ='DF raw data'!E199 -> 9.8931332e-06 | D194: ='DF raw data'!F199 -> -7.7106206e-06 | F194: -7.107210005e-06 | G194: 9.921496691e-06 | H194: -7.715555397e-06 | J194: -4.941627219e-06 | K194: -8.188978583e-06 | L194: 5.500349772e-06 | N194: -0.0004182837543 | O194: -0.0147355018 | P194: -0.0001698646267 | Q194: -0.00105386958 | R194: 3.722682026e-06
A195: 94.5378 | B195: ='DF raw data'!D200 -> -1.0293688e-05 | C195: ='DF raw data'!E200 -> 3.164e-06 | D195: ='DF raw data'!F200 -> -5.017841e-06 | F195: -1.030027596e-05 | G195: 3.173071149e-06 | H195: -5.021052418e-06 | J195: -2.903531071e-06 | K195: 1.622216579e-06 | L195: 1.284489548e-05 | N195: -0.0004197361006 | O195: -0.0149454538 | P195: -0.000169053194 | Q195: -0.001138429988 | R195: 3.825101665e-06
A196: 95.038 | B196: ='DF raw data'!D201 -> -2.8099414e-06 | C196: ='DF raw data'!E201 -> -6.9552489e-06 | D196: ='DF raw data'!F201 -> 9.0633534e-07 | F196: -2.811739762e-06 | G196: -6.975189513e-06 | H196: 9.069153946e-07 | J196: -5.396080483e-06 | K196: -6.739418392e-06 | L196: 1.747203095e-05 | N196: -0.00042243522 | O196: -0.0151567559 | P196: -0.0001724242511 | Q196: -0.001224676598 | R196: 3.929234121e-06
A197: 95.5382 | B197: ='DF raw data'!D202 -> 2.4814192e-06 | C197: ='DF raw data'!E202 -> 2.1982548e-06 | D197: ='DF raw data'!F202 -> 4.2525412e-06 | F197: 2.483007308e-06 | G197: 2.204557169e-06 | H197: 4.255262826e-06 | J197: 2.801167701e-07 | K197: -7.80896039e-06 | L197: 7.870259344e-06 | N197: -0.0004222951056 | O197: -0.01536798791 | P197: -0.0001763302931 | Q197: -0.001312877011 | R197: 4.03398877e-06
A198: 96.0384 | B198: ='DF raw data'!D203 -> -2.0931715e-07 | C198: ='DF raw data'!E203 -> 1.2757947e-05 | D198: ='DF raw data'!F203 -> 7.8762769e-06 | F198: -2.09451113e-07 | G198: 1.279452388e-05 | H198: 7.881317717e-06 | J198: 7.013433927e-06 | K198: -1.481233137e-06 | L198: 6.444024738e-06 | N198: -0.000418786986 | O198: -0.01557746516 | P198: -0.0001770712059 | Q198: -0.001401448028 | R198: 4.137398493e-06
A199: 96.5386 | B199: ='DF raw data'!D204 -> -3.2028286e-06 | C199: ='DF raw data'!E204 -> 1.5638507e-05 | D199: ='DF raw data'!F204 -> 1.7000596e-06 | F199: -3.20487841e-06 | G199: =(1-$G$1*($B$2-$G$2))*C199*$M$2/$M$1 -> 1.568334241e-05 | H199: 1.701147638e-06 | J199: =-CELL("contents", INDEX($F$6:$F$1203,1204-CELL("row",F199))) -> 5.972745212e-06 | K199: =CELL("contents", INDEX($G$6:$G$1203,1204-CELL("row",G199))) -> -9.673596396e-06 | L199: =-CELL("contents", INDEX($H$6:$H$1203,1204-CELL("row",H199))) -> 1.173959053e-05 | N199: -0.0004157994188 | O199: -0.01578544803 | P199: -0.0001819099388 | Q199: -0.001492439379 | R199: 4.24042988e-06
A200: =A199+$B$1 -> 97.0388 | B200: ='DF raw data'!D205 -> -3.7065199e-06 | C200: ='DF raw data'!E205 -> 9.7171423e-06 | D200: ='DF raw data'!F205 -> -1.1919817e-06 | F200: -3.708892073e-06 | G200: 9.745001227e-06 | H200: -1.192744568e-06 | J200: 8.637471546e-07 | K200: -3.775801429e-06 | L200: 7.633840933e-06 | N200: =J200*$B$1+N199 -> -0.0004153673725 | O200: =N200*$B$1+O199 -> -0.01599321479 | P200: =K200*$B$1+P199 -> -0.0001837985947 | Q200: =P200*$B$1+Q199 -> -0.001584375436 | R200: =(N200^2+P200^2)*$B$1+R199 -> 4.343627132e-06
... 1003 more rows

Sheet 10 y=0
A1: dz | B1: ='DF raw data'!H7 -> 0.50021 | C1: mm | F1: T_coeff | G1: -0.0008 | H1: /degC | L1: Hallref | M1: ='PI vs gap'!B44 -> 0.50549 | N1: T | P1: IBy total | Q1: =P1203*1000 -> -9.215414258 | R1: muTm
A2: Tref | B2: ='DF raw data'!H8 -> 20.82 | C2: degC | F2: Tcorr | G2: 20 | H2: degC | L2: NMRref | M2: ='PI vs gap'!B45 -> 0.506615 | N2: T | P2: JBy total | Q2: =Q1203 -> -7.530793692 | R2: muTm^2
A3: Encoder | B3: ='DF raw data'!H9 -> 390616 | P3: PI total | Q3: =R1203 -> 4522.756413 | R3: T^2mm^3
J4: SXR-rotation
A5: z [mm] | B5: Bx | C5: By | D5: Bz | F5: Bx_corr | G5: By_corr | H5: Bz_corr | J5: Bx_rot | K5: By_rot | L5: Bz_rot | N5: Ix | O5: Jx | P5: Iy | Q5: Jy | R5: PI
A6: 0 | B6: ='DF raw data'!G11 -> -5.3526733e-06 | C6: ='DF raw data'!H11 -> -4.2004335e-06 | D6: ='DF raw data'!I11 -> 5.4798061e-06 | F6: =(1-$G$1*($B$2-$G$2))*B6 -> -5.356184654e-06 | G6: =(1-$G$1*($B$2-$G$2))*C6*$M$2/$M$1 -> -4.212543448e-06 | H6: =(1-$G$1*($B$2-$G$2))*D6 -> 5.483400853e-06 | J6: =-CELL("contents", INDEX($F$6:$F$1203,1204-CELL("row",F6))) -> 2.025072877e-06 | K6: =CELL("contents", INDEX($G$6:$G$1203,1204-CELL("row",G6))) -> -3.080227038e-06 | L6: =-CELL("contents", INDEX($H$6:$H$1203,1204-CELL("row",H6))) -> 1.14634581e-05 | N6: =J6*$B$1 -> 1.012961704e-06 | O6: =N6*$B$1 -> 5.066935738e-07 | P6: =K6*$B$1 -> -1.540760366e-06 | Q6: =P6*$B$1 -> -7.707037429e-07 | R6: =(N6^2+P6)^2*$B$1 -> 1.1874682e-12
A7: =A6+$B$1 -> 0.50021 | B7: ='DF raw data'!G12 -> -5.1060338e-06 | C7: ='DF raw data'!H12 -> -1.0861652e-05 | D7: ='DF raw data'!I12 -> 5.3268645e-06 | F7: =(1-$G$1*($B$2-$G$2))*B7 -> -5.109383358e-06 | G7: =(1-$G$1*($B$2-$G$2))*C7*$M$2/$M$1 -> -1.08929664e-05 | H7: 5.330358923e-06 | J7: =-CELL("contents", INDEX($F$6:$F$1203,1204-CELL("row",F7))) -> -1.690634029e-06 | K7: =CELL("contents", INDEX($G$6:$G$1203,1204-CELL("row",G7))) -> -7.51767974e-07 | L7: =-CELL("contents", INDEX($H$6:$H$1203,1204-CELL("row",H7))) -> 1.155476296e-05 | N7: =J7*$B$1+N6 -> 1.672896562e-07 | O7: =N7*$B$1+O6 -> 5.903735328e-07 | P7: =K7*$B$1+P6 -> -1.916802225e-06 | Q7: =P7*$B$1+Q6 -> -1.729507384e-06 | R7: =(N7^2+P7^2)*$B$1+R6 -> 3.039303943e-12
A8: =A7+$B$1 -> 1.00042 | B8: ='DF raw data'!G13 -> -5.1714483e-06 | C8: ='DF raw data'!H13 -> -1.0242148e-05 | D8: ='DF raw data'!I13 -> -2.4898452e-06 | F8: -5.17484077e-06 | G8: -1.027167635e-05 | H8: -2.491478538e-06 | J8: -1.100327842e-05 | K8: -4.730527314e-06 | L8: 1.165006443e-05 | N8: =J8*$B$1+N7 -> -5.336660242e-06 | O8: =N8*$B$1+O7 -> -2.079077287e-06 | P8: =K8*$B$1+P7 -> -4.283059293e-06 | Q8: =P8*$B$1+Q7 -> -3.871936472e-06 | R8: =(N8^2+P8^2)*$B$1+R7 -> 2.646140682e-11
A9: 1.50063 | B9: ='DF raw data'!G14 -> -5.7881466e-06 | C9: ='DF raw data'!H14 -> 6.8678842e-06 | D9: ='DF raw data'!I14 -> -7.3800834e-07 | F9: -5.791943624e-06 | G9: 6.88768447e-06 | H9: -7.384924735e-07 | J9: -1.394117842e-05 | K9: 3.093594867e-07 | L9: 1.163514665e-05 | N9: -1.23101771e-05 | O9: -8.236750973e-06 | P9: -4.128314584e-06 | Q9: -5.93696071e-06 | R9: 1.107885301e-10
A10: 2.00084 | B10: ='DF raw data'!G15 -> -5.6306176e-06 | C10: ='DF raw data'!H15 -> 2.7668671e-06 | D10: ='DF raw data'!I15 -> 1.1333589e-06 | F10: -5.634311285e-06 | G10: 2.774844042e-06 | H10: 1.134102383e-06 | J10: -7.981954229e-06 | K10: -7.042126751e-06 | L10: 1.14219669e-05 | N10: -1.630283042e-05 | O10: -1.639158978e-05 | P10: -7.650856806e-06 | Q10: -9.763995793e-06 | R10: 2.730155817e-10
A11: 2.50105 | B11: ='DF raw data'!G16 -> -5.4348416e-06 | C11: ='DF raw data'!H16 -> -1.7436373e-06 | D11: ='DF raw data'!I16 -> 6.6755829e-06 | F11: -5.438406856e-06 | G11: -1.748664247e-06 | H11: 6.679962082e-06 | J11: -7.698895965e-07 | K11: 3.103217028e-06 | L11: 1.11698276e-05 | N11: -1.66879369e-05 | O11: -2.473906269e-05 | P11: -6.098596616e-06 | Q11: -1.281457481e-05 | R11: 4.309219338e-10
A12: 3.00126 | B12: ='DF raw data'!G17 -> -5.5690748e-06 | C12: ='DF raw data'!H17 -> 1.8670348e-06 | D12: ='DF raw data'!I17 -> 6.6675298e-06 | F12: -5.572728113e-06 | G12: 1.872417505e-06 | H12: 6.6719037e-06 | J12: 2.610515576e-06 | K12: -5.25881801e-06 | L12: 1.077849906e-05 | N12: -1.53821309e-05 | O12: -3.243335839e-05 | P12: -8.729109973e-06 | Q12: -1.718096291e-05 | R12: 5.873912793e-10
A13: 3.50147 | B13: ='DF raw data'!G18 -> -5.1476854e-06 | C13: ='DF raw data'!H18 -> -1.0272704e-05 | D13: ='DF raw data'!I18 -> 2.4312969e-06 | F13: -5.151062282e-06 | G13: -1.030232044e-05 | H13: 2.432891831e-06 | J13: 1.729112254e-06 | K13: 6.618588089e-06 | L13: 1.089717686e-05 | N13: -1.451721166e-05 | O13: -3.969501284e-05 | P13: -5.418426025e-06 | Q13: -1.989131379e-05 | R13: 7.074960897e-10
A14: 4.00168 | B14: ='DF raw data'!G19 -> -4.9305495e-06 | C14: ='DF raw data'!H19 -> -1.6148571e-05 | D14: ='DF raw data'!I19 -> 1.5282915e-06 | F14: -4.93378394e-06 | G14: -1.619512771e-05 | H14: 1.529294059e-06 | J14: -2.40238263e-06 | K14: 9.415658526e-06 | L14: 1.140658281e-05 | N14: -1.571890748e-05 | O14: -4.755776755e-05 | P14: -7.086194735e-07 | Q14: -2.024577233e-05 | R14: 8.313411797e-10
A15: 4.50189 | B15: ='DF raw data'!G20 -> -5.5202809e-06 | C15: ='DF raw data'!H20 -> 1.975643e-06 | D15: ='DF raw data'!I20 -> 1.3120878e-05 | F15: -5.523902204e-06 | G15: 1.981338825e-06 | H15: 1.31294853e-05 | J15: -4.230513097e-06 | K15: -4.128217533e-07 | L15: 1.164973121e-05 | N15: -1.783505243e-05 | O15: -5.647903912e-05 | P15: -9.151170427e-07 | Q15: -2.070352303e-05 | R15: 9.908714215e-10
A16: 5.0021 | B16: ='DF raw data'!G21 -> -5.9643648e-06 | C16: ='DF raw data'!H21 -> 1.1902092e-05 | D16: ='DF raw data'!I21 -> 1.0102342e-06 | F16: -5.968277423e-06 | G16: 1.193640601e-05 | H16: 1.010896914e-06 | J16: -2.854506028e-06 | K16: 9.982084953e-06 | L16: 1.1984984e-05 | N16: -1.926290489e-05 | O16: -6.611453678e-05 | P16: 4.078021671e-06 | Q16: -1.866365581e-05 | R16: 1.184797719e-09
A17: 5.50231 | B17: ='DF raw data'!G22 -> -5.7258026e-06 | C17: ='DF raw data'!H22 -> 4.4533867e-06 | D17: ='DF raw data'!I22 -> -3.3250979e-06 | F17: -5.729558727e-06 | G17: 4.466225918e-06 | H17: -3.327279164e-06 | J17: -3.624231237e-06 | K17: 5.194295826e-06 | L17: 1.242466123e-05 | N17: -2.10757816e-05 | O17: -7.66568535e-05 | P17: 6.676260386e-06 | Q17: -1.53241236e-05 | R17: 1.42928087e-09
A18: 6.00252 | B18: ='DF raw data'!G23 -> -5.3221688e-06 | C18: ='DF raw data'!H23 -> -5.9970312e-06 | D18: ='DF raw data'!I23 -> 1.0410009e-07 | F18: -5.325660143e-06 | G18: -6.014320781e-06 | H18: 1.041683797e-07 | J18: -6.663455761e-06 | K18: -2.564651193e-06 | L18: 1.21414886e-05 | N18: -2.440890881e-05 | O18: -8.886643377e-05 | P18: 5.393396213e-06 | Q18: -1.262629288e-05 | R18: 1.741853872e-09
A19: 6.50273 | B19: ='DF raw data'!G24 -> -5.0549038e-06 | C19: ='DF raw data'!H24 -> -1.3387959e-05 | D19: ='DF raw data'!I24 -> -1.513097e-06 | F19: -5.058219817e-06 | G19: -1.34265568e-05 | H19: -1.514089592e-06 | J19: -8.72208964e-06 | K19: -1.703437833e-06 | L19: 1.134804344e-05 | N19: -2.877178527e-05 | O19: -0.0001032583685 | P19: 4.541319575e-06 | Q19: -1.035467942e-05 | R19: 2.16625165e-09
A20: 7.00294 | B20: ='DF raw data'!G25 -> -5.4094767e-06 | C20: ='DF raw data'!H25 -> -3.4425661e-06 | D20: ='DF raw data'!I25 -> -5.4919451e-07 | F20: -5.413025317e-06 | G20: -3.452491098e-06 | H20: -5.495547816e-07 | J20: -8.565927064e-06 | K20: 4.188431632e-06 | L20: 1.14729133e-05 | N20: -3.305654764e-05 | O20: -0.0001197935842 | P20: 6.636414961e-06 | Q20: -7.035078291e-06 | R20: 2.734879046e-09
A21: 7.50315 | B21: ='DF raw data'!G26 -> -5.7175257e-06 | C21: ='DF raw data'!H26 -> 3.7430204e-06 | D21: ='DF raw data'!I26 -> -7.4159102e-06 | F21: -5.721276397e-06 | G21: 3.753811615e-06 | H21: -7.420775037e-06 | J21: -6.755162882e-06 | K21: 8.33633255e-06 | L21: 1.242066662e-05 | N21: -3.643554767e-05 | O21: -0.0001380190095 | P21: 1.080633187e-05 | Q21: -1.629643028e-06 | R21: 3.457345325e-09
A22: 8.00336 | B22: ='DF raw data'!G27 -> -8.1585522e-06 | C22: ='DF raw data'!H27 -> 1.1487959e-06 | D22: ='DF raw data'!I27 -> -6.3230923e-06 | F22: -8.16390421e-06 | G22: 1.152107905e-06 | H22: -6.327240249e-06 | J22: -5.680525582e-08 | K22: -7.582727435e-06 | L22: 1.247587581e-05 | N22: -3.646396222e-05 | O22: -0.000156258648 | P22: 7.013375776e-06 | Q22: 1.878517669e-06 | R22: 4.147038865e-09
A23: 8.50357 | B23: ='DF raw data'!G28 -> -1.1970546e-05 | C23: ='DF raw data'!H28 -> -1.3458278e-05 | D23: ='DF raw data'!I28 -> -1.2836188e-06 | F23: =(1-$G$1*($B$2-$G$2))*B23 -> -1.197839868e-05 | G23: -1.349707853e-05 | H23: -1.284460854e-06 | J23: 1.689036081e-06 | K23: -5.836884799e-06 | L23: 1.65623788e-05 | N23: -3.561908949e-05 | O23: -0.0001740756728 | P23: 4.093707631e-06 | Q23: 3.926231163e-06 | R23: 4.790047805e-09
A24: 9.00378 | B24: ='DF raw data'!G29 -> -1.1372805e-05 | C24: ='DF raw data'!H29 -> 8.4067005e-06 | D24: ='DF raw data'!I29 -> 7.1673117e-07 | F24: -1.138026556e-05 | G24: 8.430937213e-06 | H24: 7.172013456e-07 | J24: -6.397819218e-06 | K24: 1.261299302e-06 | L24: 1.4111383e-05 | N24: -3.881934264e-05 | O24: -0.0001934934961 | P24: 4.724622155e-06 | Q24: 6.289534411e-06 | R24: 5.555000659e-09
A25: 9.50399 | B25: ='DF raw data'!G30 -> -5.1091042e-06 | C25: ='DF raw data'!H30 -> -3.2661751e-06 | D25: ='DF raw data'!I30 -> -1.8394508e-07 | F25: -5.112455772e-06 | G25: -3.275591559e-06 | H25: -1.84065748e-07 | J25: -1.292184717e-05 | K25: -3.179516468e-06 | L25: 1.329322864e-05 | N25: -4.528297981e-05 | O25: -0.0002161444955 | P25: 3.134196222e-06 | Q25: 7.857290703e-06 | R25: 6.58561906e-09
A26: 10.0042 | B26: ='DF raw data'!G31 -> 1.6624923e-06 | C26: ='DF raw data'!H31 -> -1.4163438e-05 | D26: ='DF raw data'!I31 -> 6.8385075e-06 | F26: 1.663582895e-06 | G26: -1.420427152e-05 | H26: 6.842993561e-06 | J26: -1.697145398e-05 | K26: -3.158508576e-06 | L26: 1.476097685e-05 | N26: -5.377227081e-05 | O26: -0.0002430419231 | P26: 1.554278647e-06 | Q26: 8.634756425e-06 | R26: 8.033163218e-09
A27: 10.50441 | B27: ='DF raw data'!G32 -> 2.7308834e-06 | C27: ='DF raw data'!H32 -> -1.22106e-05 | D27: ='DF raw data'!I32 -> -3.9738438e-07 | F27: 2.73267486e-06 | G27: -1.224580344e-05 | H27: -3.976450642e-07 | J27: -1.887806589e-05 | K27: -5.390086272e-06 | L27: -2.109426276e-06 | N27: -6.321526815e-05 | O27: -0.0002746628323 | P27: -1.141896407e-06 | Q27: 8.063568423e-06 | R27: 1.003273971e-08
A28: 11.00462 | B28: ='DF raw data'!G33 -> 3.8501385e-06 | C28: ='DF raw data'!H33 -> -2.0051571e-06 | D28: ='DF raw data'!I33 -> 2.618913e-06 | F28: 3.852664191e-06 | G28: -2.010938015e-06 | H28: 2.620631007e-06 | J28: -1.39165983e-05 | K28: 1.052147947e-05 | L28: -8.939156442e-06 | N28: -7.017648978e-05 | O28: -0.0003097658143 | P28: 4.121052838e-06 | Q28: 1.012496026e-05 | R28: 1.250463887e-08
A29: 11.50483 | B29: ='DF raw data'!G34 -> 4.1364929e-06 | C29: ='DF raw data'!H34 -> -4.3051746e-06 | D29: ='DF raw data'!I34 -> 2.5697293e-06 | F29: 4.139206439e-06 | G29: -4.317586519e-06 | H29: 2.571415042e-06 | J29: -6.88474173e-06 | K29: 1.387694555e-05 | L29: 9.188546035e-06 | N29: -7.362030644e-05 | O29: -0.0003465914278 | P29: 1.106243977e-05 | Q29: 1.565850326e-05 | R29: 1.527696631e-08
A30: 12.00504 | B30: ='DF raw data'!G35 -> 1.0284394e-06 | C30: ='DF raw data'!H35 -> -9.7791572e-06 | D30: ='DF raw data'!I35 -> -4.0838145e-06 | F30: 1.029114056e-06 | G30: -9.807350738e-06 | H30: -4.086493482e-06 | J30: -4.877004718e-06 | K30: -1.257778881e-05 | L30: 1.8440436e-05 | N30: -7.605983297e-05 | O30: -0.0003846373168 | P30: 4.770904027e-06 | Q30: 1.804495716e-05 | R30: 1.818211582e-08
A31: 12.50525 | B31: ='DF raw data'!G36 -> 3.9872529e-07 | C31: ='DF raw data'!H36 -> 5.8039456e-07 | D31: ='DF raw data'!I36 -> -2.0766763e-06 | F31: 3.989868538e-07 | G31: 5.82067851e-07 | H31: -2.0780386e-06 | J31: -4.34025374e-06 | K31: 2.423051532e-06 | L31: 9.256808285e-06 | N31: -7.82308713e-05 | O31: -0.000423769181 | P31: 5.982938634e-06 | Q31: 2.10376829e-05 | R31: 2.126134094e-08
A32: 13.00546 | B32: ='DF raw data'!G37 -> 1.6146997e-06 | C32: ='DF raw data'!H37 -> -8.1582812e-06 | D32: ='DF raw data'!I37 -> -3.1635043e-06 | F32: 1.615758943e-06 | G32: -8.181801715e-06 | H32: -3.165579559e-06 | J32: -6.070532158e-06 | K32: -1.206074244e-05 | L32: -2.716464533e-06 | N32: -8.126741219e-05 | O32: -0.0004644199532 | P32: -4.996534347e-08 | Q32: 2.101268973e-05 | R32: 2.456492525e-08
A33: 13.50567 | B33: ='DF raw data'!G38 -> -4.9952212e-07 | C33: ='DF raw data'!H38 -> 1.9691056e-06 | D33: ='DF raw data'!I38 -> -4.0721485e-08 | F33: -4.998498065e-07 | G33: 1.974782577e-06 | H33: -4.074819829e-08 | J33: -6.900104101e-06 | K33: -3.807227973e-06 | L33: 7.780136023e-06 | N33: -8.471891326e-05 | O33: -0.0005067972008 | P33: -1.954378848e-06 | Q33: 2.003508989e-05 | R33: 2.815699022e-08
A34: 14.00588 | B34: ='DF raw data'!G39 -> -4.6327805e-06 | C34: ='DF raw data'!H39 -> 5.326669e-06 | D34: ='DF raw data'!I39 -> 2.2741626e-06 | F34: -4.635819604e-06 | G34: 5.342025911e-06 | H34: 2.275654451e-06 | J34: -6.987670307e-06 | K34: -6.865095834e-06 | L34: 1.736568042e-05 | N34: -8.821421582e-05 | O34: -0.0005509228337 | P34: -5.388368435e-06 | Q34: 1.733977412e-05 | R34: 3.206402168e-08
A35: 14.50609 | B35: ='DF raw data'!G40 -> -9.5129653e-06 | C35: ='DF raw data'!H40 -> -2.7344699e-06 | D35: ='DF raw data'!I40 -> -3.7666848e-06 | F35: -9.519205805e-06 | G35: -2.74235344e-06 | H35: -3.769155745e-06 | J35: -9.535230711e-06 | K35: -3.810573591e-06 | L35: 1.989359764e-05 | N35: -9.298383358e-05 | O35: -0.0005974342771 | P35: -7.294455451e-06 | Q35: 1.369101455e-05 | R35: 3.64154497e-08
A36: 15.0063 | B36: ='DF raw data'!G41 -> -1.0870649e-05 | C36: ='DF raw data'!H41 -> 9.4243505e-06 | D36: ='DF raw data'!I41 -> 5.6239173e-07 | F36: -1.087778015e-05 | G36: 9.451521122e-06 | H36: 5.62760659e-07 | J36: -1.236372228e-05 | K36: -8.196121881e-06 | L36: 1.499753193e-05 | N36: -9.91682911e-05 | O36: -0.000647039248 | P36: -1.139423758e-05 | Q36: 7.991502976e-06 | R36: 4.139963148e-08
A37: 15.50651 | B37: ='DF raw data'!G42 -> -6.9835619e-06 | C37: ='DF raw data'!H42 -> -8.7092021e-06 | D37: ='DF raw data'!I42 -> 5.8678161e-06 | F37: -6.988143117e-06 | G37: -8.734310932e-06 | H37: 5.871665387e-06 | J37: -7.323506771e-06 | K37: -8.966072486e-06 | L37: 9.567952162e-06 | N37: -0.0001028315824 | O37: -0.0006984766338 | P37: -1.587915669e-05 | Q37: 4.859000605e-08 | R37: 4.681514603e-08
A38: 16.00672 | B38: ='DF raw data'!G43 -> -8.5216689e-06 | C38: ='DF raw data'!H43 -> -1.2839043e-05 | D38: ='DF raw data'!I43 -> -6.6014886e-06 | F38: -8.527259115e-06 | G38: -1.287605826e-05 | H38: -6.605819177e-06 | J38: 1.972239541e-06 | K38: -6.441983097e-06 | L38: 2.723970453e-06 | N38: -0.0001018450485 | O38: -0.0007494205455 | P38: -1.910150106e-05 | Q38: -9.506171839e-06 | R38: 5.218604148e-08
A39: 16.50693 | B39: ='DF raw data'!G44 -> -1.2512151e-05 | C39: ='DF raw data'!H44 -> -5.7085613e-06 | D39: ='DF raw data'!I44 -> -2.95732e-06 | F39: -1.252035897e-05 | G39: -5.725019215e-06 | H39: -2.959260002e-06 | J39: 1.64862619e-06 | K39: -1.937873774e-06 | L39: 1.283696953e-05 | N39: -0.0001010203892 | O39: -0.0007999519544 | P39: -2.00708449e-05 | Q39: -1.954580917e-05 | R39: 5.749224807e-08
A40: 17.00714 | B40: ='DF raw data'!G45 -> -1.2802311e-05 | C40: ='DF raw data'!H45 -> 5.1622869e-06 | D40: ='DF raw data'!I45 -> -8.9181481e-07 | F40: -1.281070932e-05 | G40: 5.177169893e-06 | H40: -8.923998405e-07 | J40: -5.443010474e-06 | K40: -2.358447212e-06 | L40: 1.23115791e-05 | N40: -0.0001037430374 | O40: -0.0008518452592 | P40: -2.125056378e-05 | Q40: -3.017555367e-05 | R40: 6.310170519e-08
A41: 17.50735 | B41: ='DF raw data'!G46 -> -5.2960695e-06 | C41: ='DF raw data'!H46 -> 5.8042046e-06 | D41: ='DF raw data'!I46 -> 2.513025e-06 | F41: -5.299543722e-06 | G41: 5.820938257e-06 | H41: 2.514673544e-06 | J41: -8.921668077e-06 | K41: 1.992043498e-06 | L41: 1.186757302e-05 | N41: -0.000108205745 | O41: -0.0009059708549 | P41: -2.02541237e-05 | Q41: -4.030686889e-05 | R41: 6.916360652e-08
A42: 18.00756 | B42: ='DF raw data'!G47 -> 1.7871799e-06 | C42: ='DF raw data'!H47 -> 6.7277856e-06 | D42: ='DF raw data'!I47 -> -1.8658336e-06 | F42: 1.78835229e-06 | G42: 6.747181963e-06 | H42: -1.867057587e-06 | J42: -8.717814937e-06 | K42: -5.575818803e-06 | L42: 9.553967694e-06 | N42: -0.0001125664832 | O42: -0.0009622777355 | P42: -2.304320403e-05 | Q42: -5.183330998e-05 | R42: 7.576748018e-08
A43: 18.50777 | B43: ='DF raw data'!G48 -> 2.4012851e-07 | C43: ='DF raw data'!H48 -> 7.4975273e-06 | D43: ='DF raw data'!I48 -> -3.5815972e-06 | F43: 2.402860343e-07 | G43: 7.519142846e-06 | H43: -3.583946728e-06 | J43: -6.081553384e-06 | K43: -1.502184784e-06 | L43: 1.028268002e-05 | N43: -0.0001156085371 | O43: -0.001020106282 | P43: -2.379461188e-05 | Q43: -6.373561278e-05 | R43: 8.27361645e-08
A44: 19.00798 | B44: ='DF raw data'!G49 -> -5.995003e-06 | C44: ='DF raw data'!H49 -> 5.4802426e-06 | D44: ='DF raw data'!I49 -> -4.8974375e-06 | F44: -5.998935722e-06 | G44: 5.496042267e-06 | H44: -4.900650219e-06 | J44: -1.637800493e-06 | K44: -3.694289605e-06 | L44: 7.033309126e-06 | N44: -0.0001164277812 | O44: -0.001078344622 | P44: -2.564253248e-05 | Q44: -7.656226396e-05 | R44: 8.984563308e-08
A45: 19.50819 | B45: ='DF raw data'!G50 -> -9.8991104e-06 | C45: ='DF raw data'!H50 -> -2.0411803e-06 | D45: ='DF raw data'!I50 -> 4.5328084e-06 | F45: -9.905604216e-06 | G45: -2.04706507e-06 | H45: 4.535781922e-06 | J45: 1.773622934e-08 | K45: -3.639292703e-06 | L45: 1.120852097e-05 | N45: -0.0001164189094 | O45: -0.001136578525 | P45: -2.746294308e-05 | Q45: -9.029950271e-05 | R45: 9.700242552e-08
A46: 20.0084 | B46: ='DF raw data'!G51 -> -8.4384992e-06 | C46: ='DF raw data'!H51 -> -4.6140255e-07 | D46: ='DF raw data'!I51 -> 5.8568571e-07 | F46: -8.444034855e-06 | G46: -4.627327843e-07 | H46: 5.860699198e-07 | J46: 9.121644076e-07 | K46: 7.705543498e-06 | L46: 1.096011112e-05 | N46: -0.0001159626356 | O46: -0.001194584195 | P46: -2.360855317e-05 | Q46: -0.0001021087371 | R46: 1.040077148e-07
A47: 20.50861 | B47: ='DF raw data'!G52 -> -3.3274953e-06 | C47: ='DF raw data'!H52 -> -6.942229e-06 | D47: ='DF raw data'!I52 -> 2.447003e-06 | F47: -3.329678137e-06 | G47: -6.962243608e-06 | H47: 2.448608234e-06 | J47: -5.563516874e-07 | K47: 1.117889737e-05 | L47: 1.679314008e-05 | N47: -0.0001162409283 | O47: -0.00125272907 | P47: -1.801675692e-05 | Q47: -0.0001111208991 | R47: 1.10928899e-07
A48: 21.00882 | B48: ='DF raw data'!G53 -> 3.3644692e-06 | C48: ='DF raw data'!H53 -> -1.9184305e-05 | D48: ='DF raw data'!I53 -> 3.8446392e-06 | F48: 3.366676292e-06 | G48: -1.92396138e-05 | H48: 3.847161283e-06 | J48: -3.037519006e-06 | K48: 4.594684803e-06 | L48: 1.103669933e-05 | N48: -0.0001177603257 | O48: -0.001311633962 | P48: -1.571844963e-05 | Q48: -0.0001189834248 | R48: 1.17989145e-07
A49: 21.50903 | B49: ='DF raw data'!G54 -> 3.4992363e-06 | C49: ='DF raw data'!H54 -> -1.3327252e-05 | D49: ='DF raw data'!I54 -> 7.8196472e-06 | F49: 3.501531799e-06 | G49: -1.336567478e-05 | H49: 7.824776889e-06 | J49: -3.186334365e-06 | K49: 6.383214553e-06 | L49: 8.320111415e-06 | N49: -0.000119354162 | O49: -0.001371336108 | P49: -1.252550188e-05 | Q49: -0.0001252488061 | R49: 1.251933216e-07
A50: 22.00924 | B50: ='DF raw data'!G55 -> -8.6691068e-07 | C50: ='DF raw data'!H55 -> 2.0307511e-06 | D50: ='DF raw data'!I55 -> -8.1600933e-07 | F50: -8.674793734e-07 | G50: 2.036605803e-06 | H50: -8.165446321e-07 | J50: -4.175141397e-06 | K50: 8.660157661e-06 | L50: 1.437777364e-05 | N50: -0.0001214426095 | O50: -0.001432082915 | P50: -8.193604415e-06 | Q50: -0.0001293473289 | R50: 1.326041541e-07
A51: 22.50945 | B51: ='DF raw data'!G56 -> -1.792058e-06 | C51: ='DF raw data'!H56 -> -3.3347583e-06 | D51: ='DF raw data'!I56 -> -9.2677783e-06 | F51: -1.79323359e-06 | G51: -3.344372486e-06 | H51: -9.273857963e-06 | J51: -5.977155844e-06 | K51: -1.76724105e-05 | L51: 8.653299443e-06 | N51: -0.0001244324426 | O51: -0.001494325267 | P51: -1.703352087e-05 | Q51: -0.0001378676664 | R51: 1.404942534e-07
A52: 23.00966 | B52: ='DF raw data'!G57 -> -3.5261417e-06 | C52: ='DF raw data'!H57 -> 1.8618325e-06 | D52: ='DF raw data'!I57 -> -1.2685102e-06 | F52: -3.528454849e-06 | G52: 1.867200206e-06 | H52: -1.269342343e-06 | J52: -5.907423729e-06 | K52: -8.027785258e-06 | L52: 4.353217539e-06 | N52: -0.000127387395 | O52: -0.001558045716 | P52: -2.104909934e-05 | Q52: -0.0001483966364 | R52: 1.488330607e-07
A53: 23.50987 | B53: ='DF raw data'!G58 -> -4.8503171e-06 | C53: ='DF raw data'!H58 -> -3.5547796e-06 | D53: ='DF raw data'!I58 -> 6.8582071e-06 | F53: -4.853498908e-06 | G53: -3.565028112e-06 | H53: 6.862706084e-06 | J53: -4.009895167e-06 | K53: 1.643465228e-06 | L53: 8.587967613e-06 | N53: -0.0001293931847 | O53: -0.001622769481 | P53: -2.02270216e-05 | Q53: -0.0001585143948 | R53: 1.574125269e-07
A54: 24.01008 | B54: ='DF raw data'!G59 -> -3.0725125e-06 | C54: ='DF raw data'!H59 -> -5.5605901e-06 | D54: ='DF raw data'!I59 -> 8.1156795e-06 | F54: -3.074528068e-06 | G54: -5.576621411e-06 | H54: 8.121003386e-06 | J54: -2.511589523e-06 | K54: 5.853854783e-06 | L54: 1.602779834e-05 | N54: -0.0001306495069 | O54: -0.001688121671 | P54: -1.729886489e-05 | Q54: -0.0001671674601 | R54: 1.661004465e-07
A55: 24.51029 | B55: ='DF raw data'!G60 -> 2.2330741e-07 | C55: ='DF raw data'!H60 -> 3.2421362e-06 | D55: ='DF raw data'!I60 -> 2.2338975e-06 | F55: 2.234538997e-07 | G55: 3.251483354e-06 | H55: 2.235362937e-06 | J55: -5.141572761e-06 | K55: -6.266287518e-06 | L55: 1.438343435e-05 | N55: -0.000133221373 | O55: -0.001754760334 | P55: -2.043332457e-05 | Q55: -0.0001773884133 | R55: 1.751869887e-07
A56: 25.0105 | B56: ='DF raw data'!G61 -> 2.9964131e-06 | C56: ='DF raw data'!H61 -> 9.6490412e-06 | D56: ='DF raw data'!I61 -> -7.7161781e-07 | F56: 2.998378747e-06 | G56: 9.67685961e-06 | H56: -7.721239913e-07 | J56: -8.615354067e-06 | K56: -1.301455039e-05 | L56: 7.416379255e-06 | N56: -0.0001375308593 | O56: -0.001823554645 | P56: -2.694333282e-05 | Q56: -0.0001908657379 | R56: 1.850114535e-07
A57: 25.51071 | B57: ='DF raw data'!G62 -> 2.4116875e-06 | C57: ='DF raw data'!H62 -> 1.0499506e-05 | D57: ='DF raw data'!I62 -> -1.003968e-08 | F57: 2.413269567e-06 | G57: 1.052977632e-05 | H57: -1.004626603e-08 | J57: -1.088405226e-05 | K57: -7.243248523e-06 | L57: 3.956759933e-06 | N57: -0.0001429751711 | O57: -0.001895072255 | P57: -3.056647817e-05 | Q57: -0.0002061553959 | R57: 1.957040471e-07
A58: 26.01092 | B58: ='DF raw data'!G63 -> 2.1423539e-06 | C58: ='DF raw data'!H63 -> -3.6723263e-06 | D58: ='DF raw data'!I63 -> 1.3226393e-06 | F58: 2.143759284e-06 | G58: -3.682913702e-06 | H58: 1.323506951e-06 | J58: -1.028171138e-05 | K58: -1.781715761e-06 | L58: 2.578121039e-06 | N58: -0.0001481181859 | O58: -0.001969162453 | P58: -3.145771021e-05 | Q58: -0.0002218908571 | R58: 2.071731543e-07
A59: 26.51113 | B59: ='DF raw data'!G64 -> 1.8570669e-06 | C59: ='DF raw data'!H64 -> 1.9137356e-06 | D59: ='DF raw data'!I64 -> 3.9963156e-06 | F59: 1.858285136e-06 | G59: 1.919252944e-06 | H59: 3.998937183e-06 | J59: -4.463153409e-06 | K59: 4.568860966e-06 | L59: 9.228569973e-06 | N59: -0.0001503506999 | O59: -0.002044369377 | P59: -2.917232026e-05 | Q59: -0.0002364831434 | R59: 2.189062588e-07
A60: 27.01134 | B60: ='DF raw data'!G65 -> -2.875926e-07 | C60: ='DF raw data'!H65 -> -2.2796135e-06 | D60: ='DF raw data'!I65 -> 5.4523193e-06 | F60: -2.877812607e-07 | G60: -2.286185679e-06 | H60: 5.455896021e-06 | J60: 1.441087834e-07 | K60: -3.089994015e-06 | L60: 1.488891172e-05 | N60: -0.0001502786152 | O60: -0.002119540243 | P60: -3.071796617e-05 | Q60: -0.0002518485773 | R60: 2.306748273e-07
A61: 27.51155 | B61: ='DF raw data'!G66 -> -4.8143272e-07 | C61: ='DF raw data'!H66 -> -1.0051482e-05 | D61: ='DF raw data'!I66 -> 5.0656404e-06 | F61: -4.817485399e-07 | G61: -1.008046066e-05 | H61: 5.06896346e-06 | J61: 3.149069335e-06 | K61: 3.155671019e-06 | L61: 9.972733424e-06 | N61: -0.0001487034192 | O61: -0.00219392318 | P61: -2.913946797e-05 | Q61: -0.0002664244306 | R61: 2.42160557e-07
A62: 28.01176 | B62: ='DF raw data'!G67 -> 2.0787415e-06 | C62: ='DF raw data'!H67 -> -1.25419e-05 | D62: ='DF raw data'!I67 -> -6.9487664e-06 | F62: 2.080105154e-06 | G62: -1.257805859e-05 | H62: -6.953324791e-06 | J62: 2.318695867e-06 | K62: 5.753095026e-06 | L62: -3.611538416e-06 | N62: -0.0001475435844 | O62: -0.002267725957 | P62: -2.626171231e-05 | Q62: -0.0002795608017 | R62: 2.533946668e-07
A63: 28.51197 | B63: ='DF raw data'!G68 -> 3.6462852e-06 | C63: ='DF raw data'!H68 -> -2.9011185e-06 | D63: ='DF raw data'!I68 -> -7.8911726e-06 | F63: 3.648677163e-06 | G63: -2.909482492e-06 | H63: -7.896349209e-06 | J63: -2.827321107e-06 | K63: 2.200257859e-06 | L63: 4.830922708e-06 | N63: -0.0001489578387 | O63: -0.002342236157 | P63: -2.516112132e-05 | Q63: -0.0002921466462 | R63: 2.648102192e-07
A64: 29.01218 | B64: ='DF raw data'!G69 -> 1.7797707e-06 | C64: ='DF raw data'!H69 -> -9.517475e-07 | D64: ='DF raw data'!I69 -> -8.9210316e-06 | F64: 1.78093823e-06 | G64: -9.544914102e-07 | H64: -8.926883797e-06 | J64: -2.648649275e-06 | K64: -1.070374042e-06 | L64: 8.350146205e-06 | N64: -0.0001502827195 | O64: -0.002417409076 | P64: -2.569653312e-05 | Q64: -0.000305000309 | R64: 2.764377045e-07
A65: 29.51239 | B65: ='DF raw data'!G70 -> 2.7537117e-06 | C65: ='DF raw data'!H70 -> -3.2965959e-06 | D65: ='DF raw data'!I70 -> -8.3184495e-06 | F65: 2.755518135e-06 | G65: -3.306100063e-06 | H65: -8.323906403e-06 | J65: 1.69324414e-06 | K65: 7.067834052e-07 | L65: 6.235468486e-06 | N65: -0.0001494357419 | O65: -0.002492158329 | P65: -2.5342993e-05 | Q65: -0.0003176771275 | R65: 2.87929183e-07
A66: 30.0126 | B66: ='DF raw data'!G71 -> 5.7862053e-06 | C66: ='DF raw data'!H71 -> -8.9512405e-06 | D66: ='DF raw data'!I71 -> -3.5716801e-06 | F66: 5.790001051e-06 | G66: -8.977047135e-06 | H66: -3.574023122e-06 | J66: -2.858388374e-07 | K66: 1.193640601e-05 | L66: 1.186637324e-05 | N66: -0.0001495787213 | O66: -0.002566979101 | P66: -1.937228335e-05 | Q66: -0.0003273673374 | R66: 2.993084999e-07
A67: 30.51281 | B67: ='DF raw data'!G72 -> 4.6257001e-06 | C67: ='DF raw data'!H72 -> -3.7801378e-06 | D67: ='DF raw data'!I72 -> -7.1518002e-07 | F67: 4.628734559e-06 | G67: -3.791036025e-06 | H67: -7.156491781e-07 | J67: -4.260303127e-06 | K67: 1.49653785e-06 | L67: 1.53675495e-05 | N67: -0.0001517097675 | O67: -0.002642865844 | P67: -1.862370015e-05 | Q67: -0.0003366830984 | R67: 3.10994754e-07
A68: 31.01302 | B68: ='DF raw data'!G73 -> -7.7793391e-07 | C68: ='DF raw data'!H73 -> 2.4199567e-06 | D68: ='DF raw data'!I73 -> -8.148605e-06 | F68: -7.784442346e-07 | G68: 2.426933492e-06 | H68: -8.153950485e-06 | J68: -4.683849591e-07 | K68: 1.371023229e-06 | L68: 1.150854366e-05 | N68: -0.0001519440584 | O68: -0.002718869781 | P68: -1.793790062e-05 | Q68: -0.0003456558157 | R68: 3.227040524e-07
A69: 31.51323 | B69: ='DF raw data'!G74 -> -4.6648111e-07 | C69: ='DF raw data'!H74 -> 4.399883e-06 | D69: ='DF raw data'!I74 -> -8.0522727e-07 | F69: -4.667871216e-07 | G69: 4.412567965e-06 | H69: -8.057554991e-07 | J69: 3.174584262e-06 | K69: -2.21178971e-06 | L69: 3.358580785e-06 | N69: -0.0001503560996 | O69: -0.002794079406 | P69: -1.904425995e-05 | Q69: -0.000355181945 | R69: 3.341936963e-07
A70: 32.01344 | B70: ='DF raw data'!G75 -> 1.303447e-06 | C70: ='DF raw data'!H75 -> -9.4753423e-06 | D70: ='DF raw data'!I75 -> 1.1919931e-06 | F70: 1.304302061e-06 | G70: -9.502659932e-06 | H70: 1.192775047e-06 | J70: 1.850475416e-06 | K70: -5.341915493e-06 | L70: 1.027881748e-05 | N70: -0.0001494304733 | O70: -0.002868826023 | P70: -2.17163395e-05 | Q70: -0.0003660446752 | R70: 3.455990174e-07
A71: 32.51365 | B71: ='DF raw data'!G76 -> -7.9467924e-08 | C71: ='DF raw data'!H76 -> 1.1067664e-06 | D71: ='DF raw data'!I76 -> 6.1927999e-06 | F71: -7.952005496e-08 | G71: =(1-$G$1*($B$2-$G$2))*C71*$M$2/$M$1 -> 1.109957233e-06 | H71: 6.196862377e-06 | J71: =-CELL("contents", INDEX($F$6:$F$1203,1204-CELL("row",F71))) -> 6.791896663e-07 | K71: =CELL("contents", INDEX($G$6:$G$1203,1204-CELL("row",G71))) -> -3.626712739e-06 | L71: =-CELL("contents", INDEX($H$6:$H$1203,1204-CELL("row",H71))) -> 2.299476568e-06 | N71: -0.0001490907358 | O71: -0.0029434027 | P71: -2.353045748e-05 | Q71: -0.0003778148453 | R71: 3.569946665e-07
A72: =A71+$B$1 -> 33.01386 | B72: ='DF raw data'!G77 -> 1.3892201e-06 | C72: ='DF raw data'!H77 -> 2.0410248e-06 | D72: ='DF raw data'!I77 -> -4.0844802e-06 | F72: 1.390131428e-06 | G72: 2.046909122e-06 | H72: -4.087159619e-06 | J72: 1.002802707e-06 | K72: 6.771805449e-06 | L72: 3.115298796e-06 | N72: =J72*$B$1+N71 -> -0.0001485891239 | O72: =N72*$B$1+O71 -> -0.003017728465 | P72: =K72*$B$1+P71 -> -2.014313267e-05 | Q72: =P72*$B$1+Q71 -> -0.0003878906417 | R72: =(N72^2+P72^2)*$B$1+R71 -> 3.68241625e-07
A73: 33.51407 | B73: ='DF raw data'!G78 -> 1.0943322e-07 | C73: ='DF raw data'!H78 -> 2.0420907e-06 | D73: ='DF raw data'!I78 -> -1.1898726e-05 | F73: 1.095050082e-07 | G73: 2.047978095e-06 | H73: -1.190653156e-05 | J73: -4.258377364e-07 | K73: 6.477819316e-06 | L73: 7.349915284e-06 | N73: -0.0001488021322 | O73: -0.00309216078 | P73: -1.690286267e-05 | Q73: -0.0003963456226 | R73: 3.794602255e-07
A74: 34.01428 | B74: ='DF raw data'!G79 -> -2.336333e-06 | C74: ='DF raw data'!H79 -> 2.5835384e-06 | D74: ='DF raw data'!I79 -> -5.5589858e-06 | F74: -2.337865634e-06 | G74: 2.590986801e-06 | H74: -5.562632495e-06 | J74: -4.740278984e-06 | K74: -8.461201315e-06 | L74: 1.156814873e-05 | N74: -0.0001511732671 | O74: -0.00316777916 | P74: -2.113524018e-05 | Q74: -0.0004069176811 | R74: 3.91115146e-07
A75: 34.51449 | B75: ='DF raw data'!G80 -> -1.239306e-06 | C75: ='DF raw data'!H80 -> -2.1856745e-07 | D75: ='DF raw data'!I80 -> 1.6080232e-06 | F75: -1.240118985e-06 | G75: -2.19197585e-07 | H75: 1.609078063e-06 | J75: -8.570735917e-06 | K75: -2.330478008e-06 | L75: 7.458669379e-06 | N75: -0.0001554604349 | O75: -0.003245542024 | P75: -2.230096859e-05 | Q75: -0.0004180728486 | R75: 4.034529658e-07
A76: 35.0147 | B76: ='DF raw data'!G81 -> 2.3257144e-06 | C76: ='DF raw data'!H81 -> -1.4352895e-06 | D76: ='DF raw data'!I81 -> 7.7855952e-07 | F76: 2.327240069e-06 | G76: -1.439427473e-06 | H76: 7.79070255e-07 | J76: -9.627070818e-06 | K76: 1.034524986e-05 | L76: 2.013505894e-06 | N76: -0.000160275992 | O76: -0.003325713678 | P76: -1.712617116e-05 | Q76: -0.0004266395307 | R76: 4.164492716e-07
A77: 35.51491 | B77: ='DF raw data'!G82 -> 3.8342514e-06 | C77: ='DF raw data'!H82 -> -6.6234264e-07 | D77: ='DF raw data'!I82 -> -9.5721953e-06 | F77: 3.836766669e-06 | G77: -6.642521893e-07 | H77: -9.57847466e-06 | J77: -8.675868839e-06 | K77: -2.362194183e-06 | L77: 2.477958175e-06 | N77: -0.0001646157484 | O77: -0.003408056122 | P77: -1.830776431e-05 | Q77: -0.0004357972575 | R77: 4.301717921e-07
A78: 36.01512 | B78: ='DF raw data'!G83 -> 5.8196465e-06 | C78: ='DF raw data'!H83 -> 4.1803964e-06 | D78: ='DF raw data'!I83 -> -6.410944e-06 | F78: 5.823464188e-06 | G78: 4.19244858e-06 | H78: -6.415149579e-06 | J78: -6.437694859e-06 | K78: -5.507307853e-06 | L78: -7.856077608e-06 | N78: -0.0001678359477 | O78: -0.003492009341 | P78: -2.106257477e-05 | Q78: -0.000446332968 | R78: 4.444840694e-07
A79: 36.51533 | B79: ='DF raw data'!G84 -> 7.586571e-06 | C79: ='DF raw data'!H84 -> 5.328971e-07 | D79: ='DF raw data'!I84 -> -2.2392012e-06 | F79: 7.591547791e-06 | G79: 5.344334547e-07 | H79: -2.240670116e-06 | J79: -8.490584172e-06 | K79: -1.686844632e-06 | L79: -1.273922245e-05 | N79: -0.0001720830228 | O79: -0.00357808699 | P79: -2.190635132e-05 | Q79: -0.000457290744 | R79: 4.595366163e-07
A80: 37.01554 | B80: ='DF raw data'!G85 -> 3.990579e-06 | C80: ='DF raw data'!H85 -> -1.1477151e-05 | D80: ='DF raw data'!I85 -> -1.3753295e-06 | F80: 3.99319682e-06 | G80: -1.151023989e-05 | H80: -1.376231716e-06 | J80: -1.38209496e-05 | K80: -1.802055934e-06 | L80: -1.119349012e-05 | N80: -0.0001789964 | O80: -0.003667622779 | P80: -2.280775772e-05 | Q80: -0.0004686994125 | R80: 4.758234064e-07
A81: 37.51575 | B81: ='DF raw data'!G86 -> -1.459579e-06 | C81: ='DF raw data'!H86 -> -7.3255628e-06 | D81: ='DF raw data'!I86 -> 4.7853141e-06 | F81: -1.460536484e-06 | G81: -7.346682568e-06 | H81: 4.788453266e-06 | J81: -1.508113874e-05 | K81: 5.033886491e-07 | L81: 1.295382814e-06 | N81: -0.0001865401364 | O81: -0.003760932021 | P81: -2.255595769e-05 | Q81: -0.0004799821281 | R81: 4.934838175e-07
A82: 38.01596 | B82: ='DF raw data'!G87 -> -2.9415501e-06 | C82: ='DF raw data'!H87 -> -8.8220813e-06 | D82: ='DF raw data'!I87 -> 4.9074411e-06 | F82: -2.943479757e-06 | G82: -8.847515566e-06 | H82: 4.910660381e-06 | J82: -9.528150169e-06 | K82: 7.323377071e-06 | L82: 5.499696035e-06 | N82: -0.0001913062124 | O82: -0.003856625301 | P82: -1.889273124e-05 | Q82: -0.0004894324612 | R82: 5.119690792e-07
A83: 38.51617 | B83: ='DF raw data'!G88 -> 4.1508438e-06 | C83: ='DF raw data'!H88 -> -4.3018385e-06 | D83: ='DF raw data'!I88 -> 1.3002102e-06 | F83: 4.153566754e-06 | G83: -4.314240801e-06 | H83: 1.301063138e-06 | J83: -6.146744121e-06 | K83: -1.074028548e-05 | L83: -1.773307727e-06 | N83: -0.0001943808753 | O83: -0.003953856559 | P83: -2.426512944e-05 | Q83: -0.0005015701216 | R83: 5.311634981e-07
A84: 39.01638 | B84: ='DF raw data'!G89 -> 7.005784e-06 | C84: ='DF raw data'!H89 -> 7.5633056e-06 | D84: ='DF raw data'!I89 -> -1.2662474e-06 | F84: 7.010379794e-06 | G84: 7.585110786e-06 | H84: -1.267078058e-06 | J84: -6.599468113e-06 | K84: -2.165089359e-06 | L84: -2.607910668e-06 | N84: -0.0001976819953 | O84: -0.00405273907 | P84: -2.534812879e-05 | Q84: -0.0005142495091 | R84: 5.510321888e-07
A85: 39.51659 | B85: ='DF raw data'!G90 -> -1.3414993e-06 | C85: ='DF raw data'!H90 -> 6.050645e-06 | D85: ='DF raw data'!I90 -> 6.7429262e-08 | F85: -1.342379324e-06 | G85: 6.06808915e-06 | H85: 6.74734956e-08 | J85: -9.000083384e-06 | K85: 1.152107905e-06 | L85: 7.220782428e-06 | N85: -0.000202183927 | O85: -0.004153873492 | P85: -2.477183289e-05 | Q85: -0.0005266406276 | R85: 5.717868942e-07
A86: 40.0168 | B86: ='DF raw data'!G91 -> -6.5273298e-06 | C86: ='DF raw data'!H91 -> -5.3373674e-06 | D86: ='DF raw data'!I91 -> -4.4846688e-06 | F86: -6.531611728e-06 | G86: -5.352755154e-06 | H86: -4.487610743e-06 | J86: -9.036352361e-06 | K86: 2.747026976e-07 | L86: 1.245303283e-05 | N86: -0.0002067040008 | O86: -0.0042572689 | P86: -2.463442386e-05 | Q86: -0.0005389630128 | R86: 5.934626936e-07
A87: 40.51701 | B87: ='DF raw data'!G92 -> -3.4947693e-06 | C87: ='DF raw data'!H92 -> 2.2054387e-07 | D87: ='DF raw data'!I92 -> -5.4053776e-06 | F87: =(1-$G$1*($B$2-$G$2))*B87 -> -3.497061869e-06 | G87: 2.211797031e-07 | H87: -5.408923528e-06 | J87: -5.202020188e-06 | K87: -3.682782425e-06 | L87: 4.390778863e-06 | N87: -0.0002093061033 | O87: -0.004361965906 | P87: -2.647658845e-05 | Q87: -0.0005522068671 | R87: 6.15727068e-07
A88: 41.01722 | B88: ='DF raw data'!G93 -> 7.9147878e-07 | C88: ='DF raw data'!H93 -> -7.5174233e-07 | D88: ='DF raw data'!I93 -> -7.5643925e-06 | F88: 7.919979901e-07 | G88: -7.539096206e-07 | H88: -7.569354741e-06 | J88: -3.916517951e-06 | K88: -7.215950749e-06 | L88: 7.530927049e-06 | N88: -0.0002112651848 | O88: -0.004467642864 | P88: -3.008607918e-05 | Q88: -0.0005672562247 | R88: 6.385057062e-07
A89: 41.51743 | B89: ='DF raw data'!G94 -> 2.7105916e-06 | C89: ='DF raw data'!H94 -> -5.4421048e-06 | D89: ='DF raw data'!I94 -> -3.2373789e-06 | F89: 2.712369748e-06 | G89: -5.457794515e-06 | H89: -3.239502621e-06 | J89: -5.110780774e-06 | K89: 2.120637371e-06 | L89: 8.509914544e-06 | N89: -0.0002138216484 | O89: -0.004574598591 | P89: -2.902531516e-05 | Q89: -0.0005817749776 | R89: 6.617965674e-07
A90: 42.01764 | B90: ='DF raw data'!G95 -> 4.273129e-06 | C90: ='DF raw data'!H95 -> 1.1402407e-05 | D90: ='DF raw data'!I95 -> 5.5841629e-06 | F90: 4.275932173e-06 | G90: 1.14352804e-05 | H90: 5.587826111e-06 | J90: -3.878780112e-06 | K90: 1.271066179e-06 | L90: 1.230432034e-05 | N90: -0.000215761853 | O90: -0.004682524827 | P90: -2.838951515e-05 | Q90: -0.000595975697 | R90: 6.854860837e-07
A91: 42.51785 | B91: ='DF raw data'!G96 -> 5.0000308e-06 | C91: ='DF raw data'!H96 -> 5.2798337e-06 | D91: ='DF raw data'!I96 -> -7.9610959e-07 | F91: 5.00331082e-06 | G91: 5.295055583e-06 | H91: -7.966318379e-07 | J91: -1.299225533e-06 | K91: 2.949736913e-06 | L91: -1.277155064e-06 | N91: -0.0002164117386 | O91: -0.004790776143 | P91: -2.691402724e-05 | Q91: -0.0006094383626 | R91: 7.092752737e-07
A92: 43.01806 | B92: ='DF raw data'!G97 -> 4.3117107e-06 | C92: ='DF raw data'!H97 -> -7.3088863e-06 | D92: ='DF raw data'!I97 -> -9.7741213e-06 | F92: 4.314539182e-06 | G92: -7.329957989e-06 | H92: -9.780533124e-06 | J92: 8.356193569e-07 | K92: 1.355900956e-05 | L92: -1.293462155e-05 | N92: -0.0002159937534 | O92: -0.004898818379 | P92: -2.013167507e-05 | Q92: -0.0006195084278 | R92: 7.32814449e-07
A93: 43.51827 | B93: ='DF raw data'!G98 -> 3.533879e-06 | C93: ='DF raw data'!H98 -> 1.9784479e-06 | D93: ='DF raw data'!I98 -> -3.2988753e-06 | F93: 3.536197225e-06 | G93: 1.984151811e-06 | H93: -3.301039362e-06 | J93: 1.811802163e-06 | K93: -3.72091986e-06 | L93: -2.105563844e-06 | N93: -0.0002150874719 | O93: -0.005006407283 | P93: -2.199291639e-05 | Q93: -0.0006305095045 | R93: 7.561974202e-07
A94: 44.01848 | B94: ='DF raw data'!G99 -> 2.7563151e-06 | C94: ='DF raw data'!H99 -> -2.3204252e-07 | D94: ='DF raw data'!I99 -> 8.3748409e-06 | F94: 2.758123243e-06 | G94: -2.32711504e-07 | H94: 8.380334796e-06 | J94: -1.269770023e-06 | K94: 6.953254667e-06 | L94: 4.60076062e-06 | N94: -0.0002157226236 | O94: -0.005114313896 | P94: -1.851482888e-05 | Q94: -0.000639770807 | R94: 7.796467894e-07
A95: 44.51869 | B95: ='DF raw data'!G100 -> 3.8973967e-06 | C95: ='DF raw data'!H100 -> 2.6824077e-06 | D95: ='DF raw data'!I100 -> 7.9210758e-06 | F95: 3.899953392e-06 | G95: 2.690141144e-06 | H95: 7.926272026e-06 | J95: -1.013677036e-05 | K95: -5.982874581e-06 | L95: 3.161982901e-06 | N95: -0.0002207931375 | O95: -0.005224756832 | P95: -2.150752257e-05 | Q95: -0.0006505290849 | R95: 8.042632155e-07
A96: 45.0189 | B96: ='DF raw data'!G101 -> 2.3276502e-06 | C96: ='DF raw data'!H101 -> 7.3937213e-06 | D96: ='DF raw data'!I101 -> 2.8432662e-06 | F96: 2.329177139e-06 | G96: 7.415037571e-06 | H96: 2.845131383e-06 | J96: -1.301549157e-05 | K96: -7.470591875e-06 | L96: 1.057371181e-05 | N96: -0.0002273036165 | O96: -0.005338456374 | P96: -2.524438733e-05 | Q96: -0.0006631565799 | R96: 8.304263059e-07
A97: 45.51911 | B97: ='DF raw data'!G102 -> -3.3924425e-06 | C97: ='DF raw data'!H102 -> -2.3595398e-06 | D97: ='DF raw data'!I102 -> -2.8622142e-06 | F97: -3.394667942e-06 | G97: -2.366342408e-06 | H97: -2.864091813e-06 | J97: -9.014911505e-06 | K97: 7.433772428e-06 | L97: 9.354706865e-06 | N97: -0.0002318129654 | O97: -0.005454411537 | P97: -2.152594003e-05 | Q97: -0.0006739240703 | R97: 8.575379966e-07
A98: 46.01932 | B98: ='DF raw data'!G103 -> -7.0722722e-06 | C98: ='DF raw data'!H103 -> -3.9677375e-06 | D98: ='DF raw data'!I103 -> 1.247766e-06 | F98: -7.076911611e-06 | G98: -3.97917658e-06 | H98: 1.248584534e-06 | J98: -6.88915022e-06 | K98: 6.345212106e-06 | L98: 8.872673358e-06 | N98: -0.0002352589872 | O98: -0.005572090435 | P98: -1.835200148e-05 | Q98: -0.000683103925 | R98: 8.853914836e-07
A99: 46.51953 | B99: ='DF raw data'!G104 -> 6.3109013e-08 | C99: ='DF raw data'!H104 -> -4.4562125e-06 | D99: ='DF raw data'!I104 -> 6.5723575e-06 | F99: 6.315041251e-08 | G99: -4.469059864e-06 | H99: 6.576668967e-06 | J99: -6.398019449e-06 | K99: -1.227175204e-07 | L99: 1.82450359e-05 | N99: -0.0002384593405 | O99: -0.005691370182 | P99: -1.841338601e-05 | Q99: -0.0006923144848 | R99: 9.14004451e-07
A100: 47.01974 | B100: ='DF raw data'!G105 -> 9.8794144e-06 | C100: ='DF raw data'!H105 -> 6.5931586e-06 | D100: ='DF raw data'!I105 -> 6.8597383e-06 | F100: 9.885895296e-06 | G100: 6.61216683e-06 | H100: 6.864238288e-06 | J100: -3.40033966e-06 | K100: -2.686553831e-06 | L100: 1.768455046e-05 | N100: -0.0002401602244 | O100: -0.005811500728 | P100: -1.97572271e-05 | Q100: -0.0007021972474 | R100: 9.430502858e-07
A101: 47.51995 | B101: ='DF raw data'!G106 -> 1.3633869e-05 | C101: ='DF raw data'!H106 -> 1.6798353e-06 | D101: ='DF raw data'!I106 -> 2.0269811e-06 | F101: 1.364281282e-05 | G101: 1.684678304e-06 | H101: 2.0283108e-06 | J101: 1.475498192e-06 | K101: -4.459694241e-06 | L101: 6.590167416e-06 | N101: -0.0002394221655 | O101: -0.005931262089 | P101: -2.198801076e-05 | Q101: -0.0007131958702 | R101: 9.719656481e-07
A102: 48.02016 | B102: ='DF raw data'!G107 -> 1.3389433e-05 | C102: ='DF raw data'!H107 -> 1.4719576e-06 | D102: ='DF raw data'!I107 -> -2.7836811e-06 | F102: 1.339821647e-05 | G102: 1.476201288e-06 | H102: -2.785507195e-06 | J102: 4.725311672e-07 | K102: -9.796646065e-06 | L102: 5.561565795e-06 | N102: -0.0002391858007 | O102: -0.006050905218 | P102: -2.688839109e-05 | Q102: -0.0007266457123 | R102: 1.00094423e-06
A103: 48.52037 | B103: ='DF raw data'!G108 -> 1.36591e-05 | C103: ='DF raw data'!H108 -> 6.9123148e-06 | D103: ='DF raw data'!I108 -> -8.0061782e-06 | F103: 1.366806037e-05 | G103: 6.932243165e-06 | H103: -8.011430253e-06 | J103: -5.629429985e-06 | K103: -6.537120592e-06 | L103: 2.906847842e-06 | N103: -0.0002420016978 | O103: -0.006171956888 | P103: -3.015832418e-05 | Q103: -0.0007417312077 | R103: 1.030693893e-06
A104: 49.02058 | B104: ='DF raw data'!G109 -> 1.2167852e-05 | C104: ='DF raw data'!H109 -> 1.1219746e-05 | D104: ='DF raw data'!I109 -> -3.3955127e-06 | F104: 1.217583411e-05 | G104: 1.125209279e-05 | H104: -3.397740156e-06 | J104: -9.903996062e-06 | K104: -2.212723795e-06 | L104: 1.075911936e-05 | N104: -0.0002469557757 | O104: -0.006295486636 | P104: -3.126515075e-05 | Q104: -0.0007573703487 | R104: 1.061689238e-06
A105: 49.52079 | B105: ='DF raw data'!G110 -> 6.9079961e-06 | C105: ='DF raw data'!H110 -> 8.827531e-06 | D105: ='DF raw data'!I110 -> 4.6988603e-06 | F105: 6.912527745e-06 | G105: 8.852980977e-06 | H105: 4.701942752e-06 | J105: -1.128394341e-05 | K105: -4.716970642e-07 | L105: 1.341463723e-05 | N105: -0.000252600117 | O105: -0.006421839741 | P105: -3.150109833e-05 | Q105: -0.0007731275131 | R105: 1.094102415e-06
A106: 50.021 | B106: ='DF raw data'!G111 -> 4.4023564e-06 | C106: ='DF raw data'!H111 -> 1.9819149e-06 | D106: ='DF raw data'!I111 -> 5.5944788e-06 | F106: 4.405244346e-06 | G106: 1.987628807e-06 | H106: 5.598148778e-06 | J106: -6.696718667e-06 | K106: 9.654111415e-06 | L106: 4.670488132e-06 | N106: -0.0002559498827 | O106: -0.006549868432 | P106: -2.667201526e-05 | Q106: -0.0007864691219 | R106: 1.127227191e-06
A107: 50.52121 | B107: ='DF raw data'!G112 -> 8.7405351e-06 | C107: ='DF raw data'!H112 -> 7.6583083e-06 | D107: ='DF raw data'!I112 -> -1.8867311e-06 | F107: 8.746268891e-06 | G107: 7.680387381e-06 | H107: -1.887968796e-06 | J107: -2.9918998e-06 | K107: 6.960478634e-06 | L107: 1.310942014e-05 | N107: -0.0002574464609 | O107: -0.006678645726 | P107: -2.319031425e-05 | Q107: -0.000798069149 | R107: 1.160649458e-06
A108: 51.02142 | B108: ='DF raw data'!G113 -> 9.1609227e-06 | C108: ='DF raw data'!H113 -> -3.3148767e-06 | D108: ='DF raw data'!I113 -> -3.1923898e-06 | F108: 9.166932265e-06 | G108: -3.324433567e-06 | H108: -3.194484008e-06 | J108: -6.09858575e-06 | K108: -5.169164279e-06 | L108: 1.460254099e-05 | N108: -0.0002604970345 | O108: -0.006808948947 | P108: -2.577598191e-05 | Q108: -0.0008109625529 | R108: 1.194925401e-06
A109: 51.52163 | B109: ='DF raw data'!G114 -> 1.8302336e-06 | C109: ='DF raw data'!H114 -> -1.1217901e-05 | D109: ='DF raw data'!I114 -> 2.2436145e-06 | F109: 1.831434233e-06 | G109: -1.125024247e-05 | H109: 2.245086311e-06 | J109: -8.526586474e-06 | K109: -7.282454931e-06 | L109: 2.166080817e-06 | N109: -0.0002647621183 | O109: -0.006941385607 | P109: -2.941873869e-05 | Q109: -0.0008256781002 | R109: 1.230422524e-06
A110: 52.02184 | B110: ='DF raw data'!G115 -> -5.49278e-06 | C110: ='DF raw data'!H115 -> 3.2025077e-06 | D110: ='DF raw data'!I115 -> 2.9986697e-06 | F110: -5.496383264e-06 | G110: 3.211740604e-06 | H110: 3.000636827e-06 | J110: -8.389993628e-06 | K110: 6.861189303e-06 | L110: 5.743443929e-06 | N110: -0.000268958877 | O110: -0.007075921526 | P110: -2.598670319e-05 | Q110: -0.000838676909 | R110: 1.26694495e-06
A111: 52.52205 | B111: ='DF raw data'!G116 -> -6.6209791e-06 | C111: ='DF raw data'!H116 -> 4.6233713e-06 | D111: ='DF raw data'!I116 -> 2.3643436e-06 | F111: -6.625322462e-06 | G111: 4.636700587e-06 | H111: 2.365894609e-06 | J111: -1.163060067e-05 | K111: -6.527087248e-06 | L111: 5.87357614e-06 | N111: -0.0002747766197 | O111: -0.007213367539 | P111: -2.92516175e-05 | Q111: -0.0008533088606 | R111: 1.305139909e-06
A112: 53.02226 | B112: ='DF raw data'!G117 -> -5.9191088e-06 | C112: ='DF raw data'!H117 -> 1.0110699e-05 | D112: ='DF raw data'!I117 -> 6.321116e-06 | F112: -5.922991735e-06 | G112: 1.013984838e-05 | H112: 6.325262652e-06 | J112: -1.550981877e-05 | K112: -8.731235291e-06 | L112: 1.086101315e-05 | N112: -0.0002825347862 | O112: -0.007354694265 | P112: -3.361906871e-05 | Q112: -0.0008701254549 | R112: 1.345634984e-06
A113: 53.52247 | B113: ='DF raw data'!G118 -> -4.3988239e-06 | C113: ='DF raw data'!H118 -> 1.0272147e-05 | D113: ='DF raw data'!I118 -> 4.4040257e-06 | F113: -4.401709528e-06 | G113: 1.030176184e-05 | H113: 4.406914741e-06 | J113: -1.326796908e-05 | K113: -2.839231238e-06 | L113: 1.468871948e-05 | N113: -0.000289171557 | O113: -0.007499340769 | P113: -3.503928056e-05 | Q113: -0.0008876524535 | R113: 1.388076772e-06
A114: 54.02268 | B114: ='DF raw data'!G119 -> 1.3733335e-06 | C114: ='DF raw data'!H119 -> 1.6276667e-06 | D114: ='DF raw data'!I119 -> -3.8666963e-07 | F114: 1.374234407e-06 | G114: 1.632359301e-06 | H114: -3.869232853e-07 | J114: -5.896002142e-06 | K114: -7.967570958e-06 | L114: 6.733885433e-06 | N114: -0.0002921207962 | O114: -0.007645462513 | P114: -3.902473923e-05 | Q114: -0.0009071730183 | R114: 1.431523757e-06
A115: 54.52289 | B115: ='DF raw data'!G120 -> 1.9955719e-06 | C115: ='DF raw data'!H120 -> 1.2121181e-05 | D115: ='DF raw data'!I120 -> -5.0534395e-06 | F115: 1.996880995e-06 | G115: 1.215612665e-05 | H115: -5.056754556e-06 | J115: -1.171917874e-06 | K115: -1.21466494e-05 | L115: 1.077210687e-05 | N115: -0.0002927070013 | O115: -0.007791877482 | P115: -4.510061473e-05 | Q115: -0.0009297327968 | R115: 1.475397904e-06
A116: 55.0231 | B116: ='DF raw data'!G121 -> -3.9920528e-06 | C116: ='DF raw data'!H121 -> 7.3397183e-07 | D116: ='DF raw data'!I121 -> -5.238327e-06 | F116: -3.994671587e-06 | G116: 7.360878879e-07 | H116: -5.241763343e-06 | J116: -5.839428054e-06 | K116: 2.769356668e-06 | L116: 1.535483017e-05 | N116: -0.0002956279416 | O116: -0.007939753535 | P116: -4.371535483e-05 | Q116: -0.0009515996544 | R116: 1.520070114e-06
A117: 55.52331 | B117: ='DF raw data'!G122 -> -9.120211e-06 | C117: ='DF raw data'!H122 -> 6.6127709e-06 | D117: ='DF raw data'!I122 -> 3.0602325e-06 | F117: -9.126193858e-06 | G117: 6.631835672e-06 | H117: 3.062240013e-06 | J117: -1.247827438e-05 | K117: -3.770159511e-06 | L117: 1.666760378e-05 | N117: -0.0003018696992 | O117: -0.008090751777 | P117: -4.560122632e-05 | Q117: -0.0009744098438 | R117: 1.566692081e-06
A118: 56.02352 | B118: ='DF raw data'!G123 -> -9.2795426e-06 | C118: ='DF raw data'!H123 -> 3.8095991e-06 | D118: ='DF raw data'!I123 -> 1.4179421e-05 | F118: -9.28562998e-06 | G118: 3.820582263e-06 | H118: 1.41887227e-05 | J118: -1.328293089e-05 | K118: -8.28336769e-06 | L118: 1.655305569e-05 | N118: -0.0003085139541 | O118: -0.008245073542 | P118: -4.974464967e-05 | Q118: -0.000999292615 | R118: 1.615540283e-06
A119: 56.52373 | B119: ='DF raw data'!G124 -> -9.2872851e-06 | C119: ='DF raw data'!H124 -> 1.0708741e-06 | D119: ='DF raw data'!I124 -> 2.9377063e-06 | F119: -9.293377559e-06 | G119: 1.073961455e-06 | H119: 2.939633435e-06 | J119: -7.717519874e-06 | K119: -8.172837344e-06 | L119: 1.944646252e-05 | N119: -0.0003123743347 | O119: -0.008401326308 | P119: -5.383278464e-05 | Q119: -0.001026220312 | R119: 1.66579923e-06
A120: 57.02394 | B120: ='DF raw data'!G125 -> -6.8527333e-06 | C120: ='DF raw data'!H125 -> 8.6260543e-06 | D120: ='DF raw data'!I125 -> -4.0910686e-06 | F120: -6.857228693e-06 | G120: 8.650923415e-06 | H120: -4.093752341e-06 | J120: 2.780291776e-07 | K120: -1.267373263e-05 | L120: 1.148330311e-05 | N120: -0.0003122352617 | O120: -0.008557509508 | P120: -6.017231244e-05 | Q120: -0.001056319105 | R120: 1.716376246e-06
A121: 57.52415 | B121: ='DF raw data'!G126 -> -8.7271826e-07 | C121: ='DF raw data'!H126 -> 5.4987891e-06 | D121: ='DF raw data'!I126 -> -2.3610626e-06 | F121: -8.732907632e-07 | G121: 5.514642237e-06 | H121: -2.362611457e-06 | J121: 2.75325265e-06 | K121: -8.832797656e-06 | L121: 4.373661841e-06 | N121: -0.0003108580572 | O121: -0.008713003817 | P121: -6.459056615e-05 | Q121: -0.001088627952 | R121: 1.766799752e-06
A122: 58.02436 | B122: ='DF raw data'!G127 -> 2.2364707e-06 | C122: ='DF raw data'!H127 -> 7.2490861e-06 | D122: ='DF raw data'!I127 -> 4.9253445e-06 | F122: 2.237937825e-06 | G122: 7.269985384e-06 | H122: 4.928575526e-06 | J122: -5.044532744e-07 | K122: -1.697684193e-06 | L122: 4.748140738e-06 | N122: -0.0003111103898 | O122: -0.008868624345 | P122: -6.543976476e-05 | Q122: -0.001121361576 | R122: 1.817356996e-06
A123: 58.52457 | B123: ='DF raw data'!G128 -> 1.7054787e-06 | C123: ='DF raw data'!H128 -> 3.5203288e-06 | D123: ='DF raw data'!I128 -> 7.4846807e-06 | F123: 1.706597494e-06 | G123: 3.53047799e-06 | H123: 7.489590651e-06 | J123: -4.702139782e-06 | K123: -3.886578485e-06 | L123: 9.872638005e-06 | N123: -0.0003134624471 | O123: -0.009025421396 | P123: -6.738387019e-05 | Q123: -0.001155067662 | R123: 1.868778229e-06
A124: 59.02478 | B124: ='DF raw data'!G129 -> -3.2243006e-06 | C124: ='DF raw data'!H129 -> 4.6516602e-06 | D124: ='DF raw data'!I129 -> 5.6740773e-06 | F124: -3.226415741e-06 | G124: 4.665071045e-06 | H124: 5.677799495e-06 | J124: -9.717442863e-06 | K124: -3.750089314e-06 | L124: 1.791802152e-06 | N124: -0.0003183232092 | O124: -0.009184649848 | P124: -6.925970236e-05 | Q124: -0.001189712058 | R124: 1.921863802e-06
A125: 59.52499 | B125: ='DF raw data'!G130 -> -1.2519226e-05 | C125: ='DF raw data'!H130 -> 2.42943e-06 | D125: ='DF raw data'!I130 -> 3.3351009e-06 | F125: -1.252743861e-05 | G125: 2.436434103e-06 | H125: 3.337288726e-06 | J125: -1.354536193e-05 | K125: -4.814161139e-06 | L125: -4.471514891e-06 | N125: -0.0003250987347 | O125: -0.009347267486 | P125: -7.166779391e-05 | Q125: -0.001225561005 | R125: 1.977299805e-06
A126: 60.0252 | B126: ='DF raw data'!G131 -> -1.4276005e-05 | C126: ='DF raw data'!H131 -> -1.6854624e-06 | D126: ='DF raw data'!I131 -> 7.6361575e-06 | F126: -1.428537006e-05 | G126: -1.690321627e-06 | H126: 7.641166819e-06 | J126: -1.352672672e-05 | K126: 7.704783413e-07 | L126: 7.16950251e-06 | N126: -0.0003318649387 | O126: -0.009513269647 | P126: -7.128239294e-05 | Q126: -0.001261217171 | R126: 2.034931759e-06
A127: 60.52541 | B127: ='DF raw data'!G132 -> -5.4854377e-06 | C127: ='DF raw data'!H132 -> 1.4408674e-06 | D127: ='DF raw data'!I132 -> 9.4735824e-06 | F127: -5.489036147e-06 | G127: 1.445021454e-06 | H127: 9.47979707e-06 | J127: -1.360193702e-05 | K127: -9.233964905e-06 | L127: 7.699687584e-06 | N127: -0.0003386687636 | O127: -0.009682675149 | P127: -7.590131452e-05 | Q127: -0.001299183767 | R127: 2.095185826e-06
A128: 61.02562 | B128: ='DF raw data'!G133 -> 1.6228429e-06 | C128: ='DF raw data'!H133 -> 2.636642e-06 | D128: ='DF raw data'!I133 -> -9.314806e-07 | F128: 1.623907485e-06 | G128: 2.6442435e-06 | H128: -9.320916513e-07 | J128: -1.537249074e-05 | K128: -7.377727414e-06 | L128: -9.29806253e-08 | N128: -0.0003463582372 | O128: -0.009855927003 | P128: -7.959172755e-05 | Q128: -0.001338996345 | R128: 2.158361784e-06
A129: 61.52583 | B129: ='DF raw data'!G134 -> 2.0844818e-06 | C129: ='DF raw data'!H134 -> 8.3210407e-06 | D129: ='DF raw data'!I134 -> -6.7308697e-06 | F129: 2.08584922e-06 | G129: 8.345030454e-06 | H129: -6.735285151e-06 | J129: -1.708066157e-05 | K129: -4.790596497e-07 | L129: 2.321853938e-06 | N129: -0.0003549021549 | O129: -0.01003345261 | P129: -7.983135798e-05 | Q129: -0.001378928789 | R129: 2.224553866e-06
A130: 62.02604 | B130: ='DF raw data'!G135 -> 9.7084552e-08 | C130: ='DF raw data'!H135 -> 2.9465941e-06 | D130: ='DF raw data'!I135 -> -1.2892758e-06 | F130: 9.714823947e-08 | G130: 2.955089199e-06 | H130: -1.290121565e-06 | J130: -1.395680866e-05 | K130: 2.702451132e-06 | L130: -3.304722076e-06 | N130: -0.0003618834902 | O130: -0.01021447035 | P130: -7.84795649e-05 | Q130: -0.001418185052 | R130: 2.293142012e-06
A131: 62.52625 | B131: ='DF raw data'!G136 -> 2.773746e-07 | C131: ='DF raw data'!H136 -> -1.3221411e-06 | D131: ='DF raw data'!I136 -> 1.4895818e-07 | F131: 2.775565577e-07 | G131: -1.325952864e-06 | H131: 1.490558966e-07 | J131: -7.506052843e-06 | K131: -4.763312463e-06 | L131: 6.086030319e-08 | N131: -0.0003656380929 | O131: -0.01039736618 | P131: -8.086222143e-05 | Q131: -0.001458633144 | R131: 2.363286417e-06
A132: 63.02646 | B132: ='DF raw data'!G137 -> 3.8068847e-06 | C132: ='DF raw data'!H137 -> 6.5209738e-06 | D132: ='DF raw data'!I137 -> 1.3262991e-06 | F132: 3.809382016e-06 | G132: 6.539773919e-06 | H132: 1.327169152e-06 | J132: -5.405339078e-06 | K132: -1.133266341e-06 | L132: 9.459398297e-06 | N132: -0.0003683418975 | O132: -0.01058161448 | P132: -8.142909258e-05 | Q132: -0.00149936479 | R132: 2.434469527e-06
A133: 63.52667 | B133: ='DF raw data'!G138 -> 3.166424e-06 | C133: ='DF raw data'!H138 -> 5.4970537e-06 | D133: ='DF raw data'!I138 -> -1.7269347e-06 | F133: 3.168501174e-06 | G133: 5.512901834e-06 | H133: -1.728067569e-06 | J133: -8.298220064e-06 | K133: -3.097757934e-06 | L133: 7.743974417e-06 | N133: -0.0003724927502 | O133: -0.01076793908 | P133: -8.297862208e-05 | Q133: -0.001540871527 | R133: 2.507318261e-06
A134: 64.02688 | B134: ='DF raw data'!G139 -> 1.1381086e-06 | C134: ='DF raw data'!H139 -> 7.3781107e-06 | D134: ='DF raw data'!I139 -> 3.7790437e-07 | F134: 1.138855199e-06 | G134: 7.399381965e-06 | H134: 3.781522753e-07 | J134: -7.29491893e-06 | K134: 2.594733773e-06 | L134: 2.823667311e-06 | N134: -0.0003761417416 | O134: -0.01095608894 | P134: -8.16807103e-05 | Q134: -0.001581729035 | R134: 2.581426547e-06
A135: 64.52709 | B135: ='DF raw data'!G140 -> 2.0588504e-06 | C135: ='DF raw data'!H140 -> 4.3689274e-06 | D135: ='DF raw data'!I140 -> 4.1745475e-06 | F135: 2.060201006e-06 | G135: =(1-$G$1*($B$2-$G$2))*C135*$M$2/$M$1 -> 4.381523119e-06 | H135: 4.177286003e-06 | J135: =-CELL("contents", INDEX($F$6:$F$1203,1204-CELL("row",F135))) -> -1.455989203e-06 | K135: =CELL("contents", INDEX($G$6:$G$1203,1204-CELL("row",G135))) -> 2.247359564e-06 | L135: =-CELL("contents", INDEX($H$6:$H$1203,1204-CELL("row",H135))) -> 1.205875336e-06 | N135: -0.0003768700419 | O135: -0.0111446031 | P135: -8.055655857e-05 | Q135: -0.001622024231 | R135: 2.65571793e-06
A136: =A135+$B$1 -> 65.0273 | B136: ='DF raw data'!G141 -> 3.7913987e-06 | C136: ='DF raw data'!H141 -> 3.6330771e-06 | D136: ='DF raw data'!I141 -> -9.1331162e-07 | F136: 3.793885858e-06 | G136: 3.643551346e-06 | H136: -9.139107524e-07 | J136: 2.464705887e-06 | K136: 4.362130471e-07 | L136: -2.404281575e-07 | N136: =J136*$B$1+N135 -> -0.0003756371714 | O136: =N136*$B$1+O135 -> -0.01133250057 | P136: =K136*$B$1+P135 -> -8.033836044e-05 | Q136: =P136*$B$1+Q135 -> -0.001662210282 | R136: =(N136^2+P136^2)*$B$1+R135 -> 2.729527686e-06
A137: 65.52751 | B137: ='DF raw data'!G142 -> 3.049011e-06 | C137: ='DF raw data'!H142 -> 4.6573973e-06 | D137: ='DF raw data'!I142 -> -1.4593877e-06 | F137: 3.051011151e-06 | G137: 4.670824685e-06 | H137: -1.460345058e-06 | J137: -2.381476024e-06 | K137: -4.862836067e-07 | L137: 2.215830032e-06 | N137: -0.0003768284095 | O137: -0.01152099391 | P137: -8.058160436e-05 | Q137: -0.001702518007 | R137: 2.803805392e-06
A138: 66.02772 | B138: ='DF raw data'!G143 -> 1.7118201e-06 | C138: ='DF raw data'!H143 -> 3.1019031e-06 | D138: ='DF raw data'!I143 -> 1.1425439e-06 | F138: 1.712943054e-06 | G138: 3.110845959e-06 | H138: 1.143293409e-06 | J138: -5.568047044e-06 | K138: -2.996191959e-06 | L138: -9.39437457e-07 | N138: -0.0003796136023 | O138: -0.01171088043 | P138: -8.208032954e-05 | Q138: -0.001743575408 | R138: 2.879258903e-06
A139: 66.52793 | B139: ='DF raw data'!G144 -> 2.5342397e-06 | C139: ='DF raw data'!H144 -> 2.3043927e-05 | D139: ='DF raw data'!I144 -> -2.0538489e-06 | F139: 2.535902161e-06 | G139: 2.311036318e-05 | H139: -2.055196225e-06 | J139: -3.957222136e-08 | K139: -6.054194808e-06 | L139: -2.515205993e-06 | N139: -0.0003796333968 | O139: -0.01190077685 | P139: -8.510869833e-05 | Q139: -0.00178614763 | R139: 2.954973193e-06
A140: 67.02814 | B140: ='DF raw data'!G145 -> 6.4870073e-06 | C140: ='DF raw data'!H145 -> 1.5334239e-05 | D140: ='DF raw data'!I145 -> -1.566928e-05 | F140: 6.491262777e-06 | G140: 1.537844797e-05 | H140: -1.567955905e-05 | J140: 5.460782825e-06 | K140: -1.101072091e-05 | L140: 7.767549372e-06 | N140: -0.0003769018586 | O140: -0.01208930693 | P140: -9.061637104e-05 | Q140: -0.001831474845 | R140: 3.030137918e-06
A141: 67.52835 | B141: ='DF raw data'!G146 -> 6.9704074e-06 | C141: ='DF raw data'!H146 -> 2.2347972e-07 | D141: ='DF raw data'!I146 -> -1.6696875e-05 | F141: 6.974979987e-06 | G141: 2.241240172e-07 | H141: -1.670782815e-05 | J141: 8.049353714e-06 | K141: 1.30050571e-06 | L141: 1.301678341e-05 | N141: -0.0003728754914 | O141: -0.01227582298 | P141: -8.996584507e-05 | Q141: -0.001876476661 | R141: 3.103733808e-06
A142: 68.02856 | B142: ='DF raw data'!G147 -> 1.2895631e-06 | C142: ='DF raw data'!H147 -> 1.3347243e-05 | D142: ='DF raw data'!I147 -> -5.4978877e-06 | F142: 1.290409053e-06 | G142: 1.338572341e-05 | H142: -5.501494314e-06 | J142: 3.765437107e-06 | K142: -1.548605531e-05 | L142: 8.965442575e-06 | N142: -0.0003709919821 | O142: -0.01246139688 | P142: -9.77121248e-05 | Q142: -0.001925353243 | R142: 3.177356071e-06
A143: 68.52877 | B143: ='DF raw data'!G148 -> -3.8580197e-06 | C143: ='DF raw data'!H148 -> 1.3776077e-05 | D143: ='DF raw data'!I148 -> -2.5702207e-07 | F143: -3.860550561e-06 | G143: 1.381579375e-05 | H143: -2.571906765e-07 | J143: -5.646339671e-07 | K143: -7.187715179e-06 | L143: 1.231914906e-06 | N143: -0.0003712744176 | O143: -0.01264711206 | P143: -0.0001013074918 | Q143: -0.001976028263 | R143: 3.251441124e-06
A144: 69.02898 | B144: ='DF raw data'!G149 -> -5.0169233e-06 | C144: ='DF raw data'!H149 -> 8.5477341e-06 | D144: ='DF raw data'!I149 -> -1.4794e-07 | F144: -5.020214402e-06 | G144: 8.572377416e-06 | H144: -1.480370486e-07 | J144: -7.988109364e-07 | K144: 4.909437333e-07 | L144: 2.627802909e-06 | N144: -0.0003716739908 | O144: -0.01283302711 | P144: -0.0001010619168 | Q144: -0.002026580445 | R144: 3.325649812e-06
A145: 69.52919 | B145: ='DF raw data'!G150 -> -7.1405464e-07 | C145: ='DF raw data'!H150 -> 2.8314448e-06 | D145: ='DF raw data'!I150 -> 1.5808021e-06 | F145: -7.145230598e-07 | G145: 2.839607921e-06 | H145: 1.581839106e-06 | J145: -4.383869933e-06 | K145: -4.669645294e-06 | L145: 1.372718013e-05 | N145: -0.0003738668464 | O145: -0.01302003904 | P145: -0.0001033977201 | Q145: -0.002078301018 | R145: 3.400915164e-06
A146: 70.0294 | B146: ='DF raw data'!G151 -> 2.1685864e-06 | C146: ='DF raw data'!H151 -> 7.6617753e-06 | D146: ='DF raw data'!I151 -> 3.2858702e-07 | F146: 2.170008993e-06 | G146: 7.683864377e-06 | H146: 3.288025731e-07 | J146: -9.210147896e-06 | K146: 8.54909288e-06 | L146: 1.165006443e-05 | N146: -0.0003784738545 | O146: -0.01320935545 | P146: -9.912137837e-05 | Q146: -0.002127882523 | R146: 3.477481061e-06
A147: 70.52961 | B147: ='DF raw data'!G152 -> 8.7838646e-07 | C147: ='DF raw data'!H152 -> -8.1318658e-06 | D147: ='DF raw data'!I152 -> -1.0258543e-06 | F147: 8.789626815e-07 | G147: -8.155310158e-06 | H147: -1.02652726e-06 | J147: -8.686355814e-06 | K147: 9.599917121e-06 | L147: 2.263913854e-06 | N147: -0.0003828188565 | O147: -0.01340084527 | P147: -9.431940383e-05 | Q147: -0.002175062032 | R147: 3.555236918e-06
A148: 71.02982 | B148: ='DF raw data'!G153 -> -1.9864992e-06 | C148: ='DF raw data'!H153 -> 2.5551185e-06 | D148: ='DF raw data'!I153 -> 3.5727248e-07 | F148: -1.987802343e-06 | G148: 2.562484966e-06 | H148: 3.575068507e-07 | J148: -7.397179569e-06 | K148: 3.350502809e-06 | L148: 8.304526998e-06 | N148: -0.0003865189997 | O148: -0.01359418594 | P148: -9.264344882e-05 | Q148: -0.002221403211 | R148: 3.634259967e-06
A149: 71.53003 | B149: ='DF raw data'!G154 -> -4.060671e-06 | C149: ='DF raw data'!H154 -> 1.0374485e-05 | D149: ='DF raw data'!I154 -> 5.4635188e-07 | F149: -4.0633348e-06 | G149: 1.040439488e-05 | H149: 5.467102868e-07 | J149: -8.613551185e-06 | K149: -4.700420164e-06 | L149: 3.673426688e-07 | N149: -0.0003908275842 | O149: -0.0137896818 | P149: -9.499464599e-05 | Q149: -0.002268920483 | R149: 3.71517903e-06
A150: 72.03024 | B150: ='DF raw data'!G155 -> -2.8926227e-06 | C150: ='DF raw data'!H155 -> 9.1409908e-07 | D150: ='DF raw data'!I155 -> -8.445611e-07 | F150: -2.89452026e-06 | G150: 9.167344489e-07 | H150: -8.451151321e-07 | J150: -1.001213365e-05 | K150: 2.070861278e-06 | L150: -4.368222275e-06 | N150: -0.0003958357536 | O150: -0.0139876828 | P150: -9.395878047e-05 | Q150: -0.002315919605 | R150: 3.797970887e-06
A151: 72.53045 | B151: ='DF raw data'!G156 -> 9.1289587e-07 | C151: ='DF raw data'!H156 -> -7.5641306e-06 | D151: ='DF raw data'!I156 -> 2.6953833e-06 | F151: =(1-$G$1*($B$2-$G$2))*B151 -> 9.134947297e-07 | G151: -7.585938165e-06 | H151: 2.697151471e-06 | J151: -1.14964127e-05 | K151: 2.566899657e-06 | L151: 1.42904634e-05 | N151: -0.0004015863742 | O151: -0.01418856032 | P151: -9.267479159e-05 | Q151: -0.002362276462 | R151: 3.882936674e-06
A152: 73.03066 | B152: ='DF raw data'!G157 -> 4.424317e-06 | C152: ='DF raw data'!H157 -> -1.1786299e-05 | D152: ='DF raw data'!I157 -> -1.8813876e-07 | F152: 4.427219352e-06 | G152: -1.182027917e-05 | H152: -1.88262179e-07 | J152: -9.509715384e-06 | K152: -7.31068679e-06 | L152: 1.421181184e-05 | N152: -0.0004063432289 | O152: -0.01439181727 | P152: -9.633167023e-05 | Q152: -0.002410462527 | R152: 3.970170602e-06
A153: 73.53087 | B153: ='DF raw data'!G158 -> 2.9775892e-06 | C153: ='DF raw data'!H158 -> -2.2179715e-06 | D153: ='DF raw data'!I158 -> 1.379942e-06 | F153: 2.979542499e-06 | G153: -2.224365963e-06 | H153: 1.380847242e-06 | J153: -1.970096536e-06 | K153: -1.769542567e-05 | L153: 5.06354751e-06 | N153: -0.0004073286909 | O153: -0.01459556716 | P153: -0.0001051830991 | Q153: -0.002463076165 | R153: 4.058697841e-06
A154: 74.03108 | B154: ='DF raw data'!G159 -> -2.7953688e-06 | C154: ='DF raw data'!H159 -> 8.3289133e-06 | D154: ='DF raw data'!I159 -> 5.9775864e-08 | F154: -2.797202562e-06 | G154: 8.352925751e-06 | H154: 5.981507697e-08 | J154: 2.733882751e-06 | K154: -1.919675258e-06 | L154: 7.863849804e-06 | N154: -0.0004059611754 | O154: -0.014798633 | P154: -0.0001061433399 | Q154: -0.002516170125 | R154: 4.146770258e-06
A155: 74.53129 | B155: ='DF raw data'!G160 -> -7.2894081e-06 | C155: ='DF raw data'!H160 -> 9.7310995e-06 | D155: ='DF raw data'!I160 -> -5.1942693e-06 | F155: -7.294189952e-06 | G155: 9.759154486e-06 | H155: -5.197676741e-06 | J155: -1.322870634e-06 | K155: -2.275615994e-06 | L155: 1.525892829e-05 | N155: -0.0004066228885 | O155: -0.01500202983 | P155: -0.0001072816257 | Q155: -0.002569833467 | R155: 4.235233157e-06
A156: 75.0315 | B156: ='DF raw data'!G161 -> -6.6508828e-06 | C156: ='DF raw data'!H161 -> 7.8222902e-06 | D156: ='DF raw data'!I161 -> 3.3054841e-06 | F156: -6.655245779e-06 | G156: 7.844842045e-06 | H156: 3.307652498e-06 | J156: -4.881479651e-06 | K156: -1.066655352e-05 | L156: 1.61779768e-05 | N156: -0.0004090646534 | O156: -0.01520664806 | P156: -0.0001126171425 | Q156: -0.002626165688 | R156: 4.325279216e-06
A157: 75.53171 | B157: ='DF raw data'!G162 -> -6.66203e-06 | C157: ='DF raw data'!H162 -> 1.3100403e-05 | D157: ='DF raw data'!I162 -> 2.7371791e-06 | F157: -6.666400292e-06 | G157: 1.313817177e-05 | H157: 2.738974689e-06 | J157: -6.775001087e-06 | K157: -1.119912753e-05 | L157: 8.932409919e-06 | N157: -0.0004124535767 | O157: -0.01541296146 | P157: -0.0001182190581 | Q157: -0.002685300043 | R157: 4.417364725e-06
A158: 76.03192 | B158: ='DF raw data'!G163 -> -4.1287553e-06 | C158: ='DF raw data'!H163 -> 3.1421973e-06 | D158: ='DF raw data'!I163 -> -3.6187337e-06 | F158: -4.131463763e-06 | G158: 3.151256328e-06 | H158: -3.621107589e-06 | J158: -8.086084994e-06 | K158: -6.624501388e-06 | L158: 5.848202706e-06 | N158: -0.0004164983173 | O158: -0.01562129809 | P158: -0.0001215326999 | Q158: -0.002746091915 | R158: 4.511524779e-06
A159: 76.53213 | B159: ='DF raw data'!G164 -> 7.3854665e-07 | C159: ='DF raw data'!H164 -> 6.3415159e-06 | D159: ='DF raw data'!I164 -> -9.8168493e-06 | F159: 7.390311366e-07 | G159: 6.359798638e-06 | H159: -9.823289153e-06 | J159: -1.014565319e-05 | K159: -1.076958972e-05 | L159: 2.120374054e-07 | N159: -0.0004215732745 | O159: -0.01583217325 | P159: -0.0001269197564 | Q159: -0.002809578446 | R159: 4.608481809e-06
A160: 77.03234 | B160: ='DF raw data'!G165 -> 4.4313256e-06 | C160: ='DF raw data'!H165 -> 1.0467617e-05 | D160: ='DF raw data'!I165 -> -8.7193712e-06 | F160: 4.43423255e-06 | G160: 1.049779538e-05 | H160: -8.725091108e-06 | J160: -1.045844624e-05 | K160: -9.12410589e-06 | L160: -3.979977253e-07 | N160: -0.0004268046939 | O160: -0.01604566523 | P160: -0.0001314837254 | Q160: -0.00287534792 | R160: 4.708248802e-06
A161: 77.53255 | B161: ='DF raw data'!G166 -> 4.8464399e-06 | C161: ='DF raw data'!H166 -> 1.7247185e-05 | D161: ='DF raw data'!I166 -> -3.9683432e-06 | F161: 4.849619165e-06 | G161: 1.729690904e-05 | H161: -3.970946433e-06 | J161: -7.589744008e-06 | K161: -6.373738511e-06 | L161: 4.109402301e-06 | N161: -0.0004306011597 | O161: -0.01626105624 | P161: -0.0001346719331 | Q161: -0.002942712168 | R161: 4.810068492e-06
A162: 78.03276 | B162: ='DF raw data'!G167 -> -3.0181027e-07 | C162: ='DF raw data'!H167 -> 1.9430587e-05 | D162: ='DF raw data'!I167 -> -7.3787064e-06 | F162: -3.020082575e-07 | G162: 1.948660583e-05 | H162: -7.383546831e-06 | J162: -5.125208433e-06 | K162: -1.822396107e-06 | L162: 9.272325358e-06 | N162: -0.0004331648402 | O162: -0.01647772962 | P162: -0.0001355835139 | Q162: -0.003010532398 | R162: 4.913119089e-06
A163: 78.53297 | B163: ='DF raw data'!G168 -> -5.9537422e-07 | C163: ='DF raw data'!H168 -> -1.0977178e-06 | D163: ='DF raw data'!I168 -> -2.9800156e-06 | F163: -5.957647855e-07 | G163: -1.100882546e-06 | H163: -2.98197049e-06 | J163: -5.79915205e-06 | K163: 8.534239981e-06 | L163: 4.290614198e-06 | N163: -0.0004360656341 | O163: -0.01669585401 | P163: -0.0001313146017 | Q163: -0.003076217274 | R163: 5.016861023e-06
A164: 79.03318 | B164: ='DF raw data'!G169 -> 5.4542606e-06 | C164: ='DF raw data'!H169 -> 2.7898434e-07 | D164: ='DF raw data'!I169 -> -6.1708829e-06 | F164: 5.457838595e-06 | G164: 2.797886583e-07 | H164: -6.174930999e-06 | J164: -9.262379838e-06 | K164: -4.467319561e-06 | L164: 5.825026412e-06 | N164: -0.0004406987691 | O164: -0.01691629594 | P164: -0.0001335491996 | Q164: -0.00314301992 | R164: 5.122930951e-06
A165: 79.53339 | B165: ='DF raw data'!G170 -> 6.2688705e-06 | C165: ='DF raw data'!H170 -> 9.6686554e-06 | D165: ='DF raw data'!I170 -> -8.9499827e-06 | F165: 6.272982879e-06 | G165: 9.696530359e-06 | H165: -8.955853889e-06 | J165: -1.148732875e-05 | K165: -1.716312143e-05 | L165: 1.183993491e-05 | N165: -0.0004464448458 | O165: -0.01713961212 | P165: -0.0001421343646 | Q165: -0.00321411695 | R165: 5.232734638e-06
A166: 80.0336 | B166: ='DF raw data'!G171 -> 2.8790673e-06 | C166: ='DF raw data'!H171 -> 3.8034618e-06 | D166: ='DF raw data'!I171 -> -6.9807788e-06 | F166: 2.880955968e-06 | G166: 3.814427269e-06 | H166: -6.985358191e-06 | J166: -1.108136061e-05 | K166: -1.032198899e-05 | L166: 1.126739256e-05 | N166: -0.0004519878532 | O166: -0.01736570096 | P166: -0.0001472975267 | Q166: -0.003287796646 | R166: 5.345776886e-06
A167: 80.53381 | B167: ='DF raw data'!G172 -> 2.116522e-06 | C167: ='DF raw data'!H172 -> 7.9962783e-06 | D167: ='DF raw data'!I172 -> -7.0353303e-07 | F167: 2.117910438e-06 | G167: 8.019331757e-06 | H167: -7.039945477e-07 | J167: -7.261121773e-06 | K167: -4.60969736e-06 | L167: 1.497455587e-05 | N167: -0.0004556199389 | O167: -0.01759360661 | P167: -0.0001496033434 | Q167: -0.003362629734 | R167: 5.460810525e-06
A168: 81.03402 | B168: ='DF raw data'!G173 -> 1.6536147e-06 | C168: ='DF raw data'!H173 -> 9.7457769e-06 | D168: ='DF raw data'!I173 -> -2.3167374e-06 | F168: 1.654699471e-06 | G168: 9.773874202e-06 | H168: -2.31825718e-06 | J168: -4.982270427e-06 | K168: 2.389467386e-06 | L168: 1.376853924e-05 | N168: -0.0004581121204 | O168: -0.01782275888 | P168: -0.0001484081079 | Q168: -0.003436864954 | R168: 5.576805063e-06
A169: 81.53423 | B169: ='DF raw data'!G174 -> -2.412294e-06 | C169: ='DF raw data'!H174 -> 1.3225167e-06 | D169: ='DF raw data'!I174 -> -6.4559349e-06 | F169: -2.413876465e-06 | G169: 1.326329546e-06 | H169: -6.460169993e-06 | J169: -8.271168429e-06 | K169: -3.202396041e-06 | L169: 3.204340369e-06 | N169: -0.0004622494416 | O169: -0.01805398067 | P169: -0.0001500099784 | Q169: -0.003511901445 | R169: 5.69494343e-06
A170: 82.03444 | B170: ='DF raw data'!G175 -> -8.1771086e-06 | C170: ='DF raw data'!H175 -> 7.5518315e-06 | D170: ='DF raw data'!I175 -> -1.1165673e-06 | F170: -8.182472783e-06 | G170: 7.573603606e-06 | H170: -1.117299768e-06 | J170: -1.10018765e-05 | K170: -2.087610528e-06 | L170: 1.844214311e-06 | N170: -0.0004677526902 | O170: -0.01828795524 | P170: -0.0001510542221 | Q170: -0.003587460278 | R170: 5.815799147e-06
A171: 82.53465 | B171: ='DF raw data'!G176 -> -1.0274309e-05 | C171: ='DF raw data'!H176 -> 1.7139642e-05 | D171: ='DF raw data'!I176 -> 1.2011117e-06 | F171: -1.028104895e-05 | G171: 1.718905599e-05 | H171: 1.201899629e-06 | J171: -1.122529897e-05 | K171: -7.555149455e-07 | L171: 8.665885994e-06 | N171: -0.000473367697 | O171: -0.0185247385 | P171: -0.0001514321382 | Q171: -0.003663208148 | R171: 5.939355353e-06
A172: 83.03486 | B172: ='DF raw data'!G177 -> -6.2897016e-06 | C172: ='DF raw data'!H177 -> 8.86609e-06 | D172: ='DF raw data'!I177 -> -3.1726229e-06 | F172: -6.293827644e-06 | G172: 8.891651144e-06 | H172: -3.174704141e-06 | J172: -1.316156833e-05 | K172: -4.548410376e-06 | L172: 6.172268053e-06 | N172: -0.0004799512451 | O172: -0.01876481491 | P172: -0.0001537072986 | Q172: -0.003740094075 | R172: 6.066398254e-06
A173: 83.53507 | B173: ='DF raw data'!G178 -> -5.4704776e-07 | C173: ='DF raw data'!H178 -> 1.0448553e-06 | D173: ='DF raw data'!I178 -> -3.6788986e-06 | F173: -5.474066233e-07 | G173: 1.047867642e-06 | H173: -3.681311957e-06 | J173: -1.220168306e-05 | K173: -3.709142603e-06 | L173: 6.337429628e-06 | N173: -0.000486054649 | O173: -0.01900794431 | P173: -0.0001555626488 | Q173: -0.003817908068 | R173: 6.196677378e-06
A174: 84.03528 | B174: ='DF raw data'!G179 -> 7.7659354e-07 | C174: ='DF raw data'!H179 -> 3.1317891e-06 | D174: ='DF raw data'!I179 -> 8.7506328e-07 | F174: 7.771029854e-07 | G174: 3.140818121e-06 | H174: 8.756373215e-07 | J174: -8.508284576e-06 | K174: -6.899752663e-06 | L174: 1.748513673e-06 | N174: -0.000490310578 | O174: -0.01925320256 | P174: -0.0001590139741 | Q174: -0.003897448448 | R174: 6.329578127e-06
A175: 84.53549 | B175: ='DF raw data'!G180 -> -2.8635868e-06 | C175: ='DF raw data'!H180 -> 1.6879592e-05 | D175: ='DF raw data'!I180 -> -6.4496521e-07 | F175: -2.865465313e-06 | G175: 1.692825626e-05 | H175: -6.453883072e-07 | J175: -6.248335821e-06 | K175: -1.594717491e-05 | L175: 3.486115493e-06 | N175: -0.0004934360581 | O175: -0.01950002421 | P175: -0.0001669909105 | Q175: -0.003980978971 | R175: 6.465317667e-06
A176: 85.0357 | B176: ='DF raw data'!G181 -> -6.9323651e-06 | C176: ='DF raw data'!H181 -> -9.0474224e-08 | D176: ='DF raw data'!I181 -> -1.4214518e-06 | F176: -6.936912732e-06 | G176: -9.073506329e-08 | H176: -1.422384272e-06 | J176: -6.945323746e-06 | K176: -1.120501245e-05 | L176: 8.831114914e-06 | N176: -0.0004969101785 | O176: -0.01974858365 | P176: -0.0001725957697 | Q176: -0.004067313101 | R176: 6.603730289e-06
A177: 85.53591 | B177: ='DF raw data'!G182 -> -1.0194143e-05 | C177: ='DF raw data'!H182 -> -2.4593405e-06 | D177: ='DF raw data'!I182 -> 3.6801168e-06 | F177: -1.020083036e-05 | G177: -2.466430836e-06 | H177: 3.682530957e-06 | J177: -1.022720865e-05 | K177: -4.667233662e-06 | L177: 3.086394347e-06 | N177: -0.0005020259305 | O177: -0.01999970204 | P177: -0.0001749303667 | Q177: -0.00415481502 | R177: 6.745104975e-06
A178: 86.03612 | B178: ='DF raw data'!G183 -> -1.1326814e-05 | C178: ='DF raw data'!H183 -> 9.0710355e-06 | D178: ='DF raw data'!I183 -> -5.7388547e-07 | F178: -1.133424439e-05 | G178: 9.097187507e-06 | H178: -5.742619389e-07 | J178: -1.312002309e-05 | K178: -5.420864752e-06 | L178: 2.051732454e-06 | N178: -0.0005085886973 | O178: -0.0202541032 | P178: -0.0001776419374 | Q178: -0.004243673294 | R178: 6.890275482e-06
A179: 86.53633 | B179: ='DF raw data'!G184 -> -1.0121119e-05 | C179: ='DF raw data'!H184 -> 1.3710297e-05 | D179: ='DF raw data'!I184 -> 3.9932543e-06 | F179: -1.012775845e-05 | G179: 1.374982411e-05 | H179: 3.995873875e-06 | J179: -1.402159814e-05 | K179: -6.223465516e-06 | L179: 5.278725874e-06 | N179: -0.0005156024409 | O179: -0.02051201269 | P179: -0.0001807549771 | Q179: -0.004334088741 | R179: 7.03959729e-06
A180: 87.03654 | B180: ='DF raw data'!G185 -> -6.4551737e-06 | C180: ='DF raw data'!H185 -> 2.3673971e-05 | D180: ='DF raw data'!I185 -> 7.1497143e-06 | F180: -6.459408294e-06 | G180: 2.374222361e-05 | H180: 7.154404513e-06 | J180: -1.305356252e-05 | K180: -1.462818717e-05 | L180: 2.533233512e-06 | N180: -0.0005221319634 | O180: -0.02077318832 | P180: -0.0001880721426 | Q180: -0.004428164307 | R180: 7.193658427e-06
A181: 87.53675 | B181: ='DF raw data'!G186 -> -2.3408052e-06 | C181: ='DF raw data'!H186 -> 1.4040664e-05 | D181: ='DF raw data'!I186 -> 1.9033898e-06 | F181: -2.342340768e-06 | G181: 1.408114356e-05 | H181: 1.904638424e-06 | J181: -9.317951869e-06 | K181: -6.02970631e-06 | L181: 1.924598109e-06 | N181: -0.0005267928961 | O181: -0.0210366954 | P181: -0.000191088262 | Q181: -0.004523748567 | R181: 7.350737112e-06
A182: 88.03696 | B182: ='DF raw data'!G187 -> -4.5353173e-07 | C182: ='DF raw data'!H187 -> 5.5013247e-06 | D182: ='DF raw data'!I187 -> -7.6292158e-06 | F182: -4.538292468e-07 | G182: 5.517185147e-06 | H182: -7.634220566e-06 | J182: -3.260474969e-06 | K182: 2.709408733e-06 | L182: 7.202668053e-06 | N182: -0.0005284238183 | O182: -0.02130101828 | P182: -0.0001897329887 | Q182: -0.004618654905 | R182: 7.50841848e-06
A183: 88.53717 | B183: ='DF raw data'!G188 -> 5.5178145e-07 | C183: ='DF raw data'!H188 -> 1.3902833e-05 | D183: ='DF raw data'!I188 -> -3.5731443e-06 | F183: 5.521434186e-07 | G183: 1.394291519e-05 | H183: -3.575488283e-06 | J183: -1.439090725e-06 | K183: -1.497529501e-05 | L183: 1.699599706e-05 | N183: -0.0005291436658 | O183: -0.02156570123 | P183: -0.000197223781 | Q183: -0.004717308212 | R183: 7.667930566e-06
A184: 89.03738 | B184: ='DF raw data'!G189 -> -3.2744211e-07 | C184: ='DF raw data'!H189 -> 1.3900965e-05 | D184: ='DF raw data'!I189 -> -2.2202337e-06 | F184: -3.27656912e-07 | G184: 1.394104181e-05 | H184: -2.221690173e-06 | J184: -2.22411126e-06 | K184: -5.70159969e-06 | L184: 1.957572826e-05 | N184: -0.0005302561885 | O184: -0.02183094068 | P184: -0.0002000757782 | Q184: -0.004817388117 | R184: 7.82859899e-06
A185: 89.53759 | B185: ='DF raw data'!G190 -> -2.2164511e-06 | C185: ='DF raw data'!H190 -> 1.3422362e-05 | D185: ='DF raw data'!I190 -> -1.4080749e-06 | F185: -2.217905092e-06 | G185: 1.346105898e-05 | H185: -1.408998597e-06 | J185: -6.04762244e-06 | K185: -6.623698681e-06 | L185: 1.88405563e-05 | N185: -0.0005332812698 | O185: -0.0220976933 | P185: -0.0002033890185 | Q185: -0.004919125338 | R185: 7.991545402e-06
A186: 90.0378 | B186: ='DF raw data'!G191 -> -8.1411224e-07 | C186: ='DF raw data'!H191 -> 1.3151905e-05 | D186: ='DF raw data'!I191 -> 9.5559358e-07 | F186: -8.146462976e-07 | G186: 1.318982225e-05 | H186: 9.562204494e-07 | J186: -1.001781138e-05 | K186: -8.845910251e-06 | L186: 4.345357986e-06 | N186: -0.0005382922792 | O186: -0.02236695248 | P186: -0.0002078138313 | Q186: -0.005023075895 | R186: 8.158087903e-06
A187: 90.53801 | B187: ='DF raw data'!G192 -> 4.7163458e-06 | C187: ='DF raw data'!H192 -> 1.1868736e-05 | D187: ='DF raw data'!I192 -> -4.4481981e-06 | F187: 4.719439723e-06 | G187: 1.190295384e-05 | H187: -4.451116118e-06 | J187: -1.172992278e-05 | K187: -9.577595753e-06 | L187: 1.329589339e-05 | N187: -0.0005441597039 | O187: -0.02263914661 | P187: -0.0002126046404 | Q187: -0.005129422862 | R187: 8.328814837e-06
A188: 91.03822 | B188: ='DF raw data'!G193 -> 9.9160598e-06 | C188: ='DF raw data'!H193 -> 8.2611323e-06 | D188: ='DF raw data'!I193 -> -5.4755269e-06 | F188: 9.922564735e-06 | G188: 8.284949337e-06 | H188: -5.479118846e-06 | J188: -1.133383812e-05 | K188: -9.343692543e-06 | L188: 1.530621229e-05 | N188: -0.000549829003 | O188: -0.02291417657 | P188: -0.0002172784489 | Q188: -0.005238107715 | R188: 8.503649165e-06
A189: 91.53843 | B189: ='DF raw data'!G194 -> 8.6896725e-06 | C189: ='DF raw data'!H194 -> 9.3420249e-06 | D189: ='DF raw data'!I194 -> -3.0667138e-07 | F189: 8.695372925e-06 | G189: 9.368958175e-06 | H189: -3.068725564e-07 | J189: -9.957430292e-06 | K189: -1.281930411e-06 | L189: 1.193536947e-05 | N189: -0.0005548098092 | O189: -0.02319169799 | P189: -0.0002179196833 | Q189: -0.00534711332 | R189: 8.681375235e-06
A190: 92.03864 | B190: ='DF raw data'!G195 -> 2.0173989e-06 | C190: ='DF raw data'!H195 -> 1.4649892e-05 | D190: ='DF raw data'!I195 -> -5.4974221e-06 | F190: 2.018722314e-06 | G190: 1.469212798e-05 | H190: -5.501028409e-06 | J190: -8.934625972e-06 | K190: -1.269005956e-05 | L190: 1.206363556e-05 | N190: -0.0005592789985 | O190: -0.02347145493 | P190: -0.000224267378 | Q190: -0.005459294105 | R190: 8.862995911e-06
A191: 92.53885 | B191: ='DF raw data'!G196 -> -4.1063277e-06 | C191: ='DF raw data'!H196 -> 1.2521595e-05 | D191: ='DF raw data'!I196 -> -1.0098573e-05 | F191: -4.109021451e-06 | G191: 1.255769505e-05 | H191: -1.010519766e-05 | J191: -7.5194112e-06 | K191: -1.594730629e-05 | L191: 1.034228509e-05 | N191: -0.0005630402832 | O191: -0.02375309331 | P191: -0.0002322443801 | Q191: -0.005575465066 | R191: 9.048549717e-06
A192: 93.03906 | B192: ='DF raw data'!G197 -> -5.7733282e-06 | C192: ='DF raw data'!H197 -> 7.7762588e-06 | D192: ='DF raw data'!I197 -> -4.7032986e-06 | F192: -5.777115503e-06 | G192: 7.798677935e-06 | H192: -4.706383964e-06 | J192: -8.955265003e-06 | K192: -3.321087949e-06 | L192: 6.180458923e-06 | N192: -0.0005675197963 | O192: -0.02403697239 | P192: -0.0002339056215 | Q192: -0.005692466997 | R192: 9.237024123e-06
A193: 93.53927 | B193: ='DF raw data'!G198 -> -1.7596846e-06 | C193: ='DF raw data'!H198 -> 1.1154901e-05 | D193: ='DF raw data'!I198 -> 1.660201e-06 | F193: -1.760838953e-06 | G193: 1.118706084e-05 | H193: 1.661290092e-06 | J193: -9.466299521e-06 | K193: -1.211945523e-06 | L193: 1.496323345e-05 | N193: -0.000572254934 | O193: -0.02432322003 | P193: -0.0002345118487 | Q193: -0.005809772169 | R193: 9.4283402e-06
A194: 94.03948 | B194: ='DF raw data'!G199 -> 1.8130123e-06 | C194: ='DF raw data'!H199 -> 2.1667627e-05 | D194: ='DF raw data'!I199 -> -1.0264537e-06 | F194: 1.814201636e-06 | G194: 2.173009527e-05 | H194: -1.027127054e-06 | J194: -7.841888406e-06 | K194: -1.34798139e-05 | L194: 1.233581999e-05 | N194: -0.000576177525 | O194: -0.02461142979 | P194: -0.0002412545864 | Q194: -0.005930450126 | R194: 9.623514296e-06
A195: 94.53969 | B195: ='DF raw data'!G200 -> 8.7037654e-07 | C195: ='DF raw data'!H200 -> 1.9439925e-05 | D195: ='DF raw data'!I200 -> 1.7134446e-06 | F195: 8.70947507e-07 | G195: 1.949597076e-05 | H195: 1.71456862e-06 | J195: -8.849798162e-06 | K195: -5.29788953e-06 | L195: 1.581501885e-05 | N195: -0.0005806042825 | O195: -0.02490185386 | P195: -0.0002439046438 | Q195: -0.006052453668 | R195: 9.821892985e-06
A196: 95.0399 | B196: ='DF raw data'!G201 -> -2.5819709e-06 | C196: ='DF raw data'!H201 -> 2.2480197e-05 | D196: ='DF raw data'!I201 -> 4.2605357e-06 | F196: -2.583664673e-06 | G196: 2.254500793e-05 | H196: 4.263330611e-06 | J196: -1.457651493e-05 | K196: 8.596997192e-06 | L196: 1.811197667e-05 | N196: -0.000587895601 | O196: -0.02519592512 | P196: -0.0002396043398 | Q196: -0.006172306154 | R196: 1.002349336e-05
A197: 95.54011 | B197: ='DF raw data'!G202 -> -4.3099135e-06 | C197: ='DF raw data'!H202 -> 1.0864295e-05 | D197: ='DF raw data'!I202 -> -1.5426465e-06 | F197: -4.312740803e-06 | G197: 1.089561702e-05 | H197: -1.543658476e-06 | J197: -1.757419712e-05 | K197: -5.909544075e-06 | L197: 1.805469912e-05 | N197: -0.0005966863902 | O197: -0.02549439362 | P197: -0.0002425603528 | Q197: -0.006293637268 | R197: 1.023101557e-05
A198: 96.04032 | B198: ='DF raw data'!G203 -> -1.147659e-06 | C198: ='DF raw data'!H203 -> 7.3164688e-06 | D198: ='DF raw data'!I203 -> -1.8335547e-06 | F198: -1.148411864e-06 | G198: 7.33756235e-06 | H198: -1.834757512e-06 | J198: -1.379463335e-05 | K198: -7.182629258e-06 | L198: 1.604964266e-05 | N198: -0.0006035866037 | O198: -0.02579631367 | P198: -0.0002461531758 | Q198: -0.006416765549 | R198: 1.044355889e-05
A199: 96.54053 | B199: ='DF raw data'!G204 -> 1.1696812e-06 | C199: ='DF raw data'!H204 -> 1.1449508e-05 | D199: ='DF raw data'!I204 -> 8.3552936e-07 | F199: 1.170448511e-06 | G199: =(1-$G$1*($B$2-$G$2))*C199*$M$2/$M$1 -> 1.14825172e-05 | H199: 8.360774673e-07 | J199: =-CELL("contents", INDEX($F$6:$F$1203,1204-CELL("row",F199))) -> -1.290735267e-05 | K199: =CELL("contents", INDEX($G$6:$G$1203,1204-CELL("row",G199))) -> -8.995245651e-06 | L199: =-CELL("contents", INDEX($H$6:$H$1203,1204-CELL("row",H199))) -> 6.439057753e-06 | N199: -0.0006100429906 | O199: -0.02610146328 | P199: -0.0002506526877 | Q199: -0.006542144529 | R199: 1.066113984e-05
A200: =A199+$B$1 -> 97.04074 | B200: ='DF raw data'!G205 -> -2.3804544e-06 | C200: ='DF raw data'!H205 -> 1.0798382e-05 | D200: ='DF raw data'!I205 -> 8.3193595e-07 | F200: -2.382015978e-06 | G200: 1.082951399e-05 | H200: 8.324817e-07 | J200: -1.597336266e-05 | K200: 6.220766558e-06 | L200: 1.189960602e-05 | N200: =J200*$B$1+N199 -> -0.0006180330263 | O200: =N200*$B$1+O199 -> -0.02641060958 | P200: =K200*$B$1+P199 -> -0.000247540998 | Q200: =P200*$B$1+Q199 -> -0.006665967012 | R200: =(N200^2+P200^2)*$B$1+R199 -> 1.088285361e-05
... 1003 more rows

Sheet 10 y=0.1
A1: dz | B1: ='DF raw data'!K7 -> 0.5002 | C1: mm | F1: T_coeff | G1: -0.0008 | H1: /degC | L1: Hallref | M1: ='PI vs gap'!B44 -> 0.50549 | N1: T | P1: IBy total | Q1: =P1203*1000 -> -7.963163979 | R1: muTm
A2: Tref | B2: ='DF raw data'!K8 -> 20.81 | C2: degC | F2: Tcorr | G2: 20 | H2: degC | L2: NMRref | M2: ='PI vs gap'!B45 -> 0.506615 | N2: T | P2: JBy total | Q2: =Q1203 -> -7.236055233 | R2: muTm^2
A3: Encoder | B3: ='DF raw data'!K9 -> 390623 | P3: PI total | Q3: =R1203 -> 4524.62229 | R3: T^2mm^3
J4: SXR-rotation
A5: z [mm] | B5: Bx | C5: By | D5: Bz | F5: Bx_corr | G5: By_corr | H5: Bz_corr | J5: Bx_rot | K5: By_rot | L5: Bz_rot | N5: Ix | O5: Jx | P5: Iy | Q5: Jy | R5: PI
A6: 0 | B6: ='DF raw data'!J11 -> -4.8635326e-07 | C6: ='DF raw data'!K11 -> 1.376479e-06 | D6: ='DF raw data'!L11 -> 5.2858518e-06 | F6: =(1-$G$1*($B$2-$G$2))*B6 -> -4.866684169e-07 | G6: =(1-$G$1*($B$2-$G$2))*C6*$M$2/$M$1 -> 1.380436385e-06 | H6: =(1-$G$1*($B$2-$G$2))*D6 -> 5.289277032e-06 | J6: =-CELL("contents", INDEX($F$6:$F$1203,1204-CELL("row",F6))) -> -3.900208899e-06 | K6: =CELL("contents", INDEX($G$6:$G$1203,1204-CELL("row",G6))) -> -4.168699375e-06 | L6: =-CELL("contents", INDEX($H$6:$H$1203,1204-CELL("row",H6))) -> 3.357702782e-06 | N6: =J6*$B$1 -> -1.950884491e-06 | O6: =N6*$B$1 -> -9.758324225e-07 | P6: =K6*$B$1 -> -2.085183428e-06 | Q6: =P6*$B$1 -> -1.04300875e-06 | R6: =(N6^2+P6)^2*$B$1 -> 2.174856622e-12
A7: =A6+$B$1 -> 0.5002 | B7: ='DF raw data'!J12 -> -3.2395158e-07 | C7: ='DF raw data'!K12 -> -1.7434517e-06 | D7: ='DF raw data'!L12 -> 1.2611657e-05 | F7: =(1-$G$1*($B$2-$G$2))*B7 -> -3.241615006e-07 | G7: =(1-$G$1*($B$2-$G$2))*C7*$M$2/$M$1 -> -1.748464133e-06 | H7: 1.261982935e-05 | J7: =-CELL("contents", INDEX($F$6:$F$1203,1204-CELL("row",F7))) -> 1.336738746e-06 | K7: =CELL("contents", INDEX($G$6:$G$1203,1204-CELL("row",G7))) -> 1.268731252e-05 | L7: =-CELL("contents", INDEX($H$6:$H$1203,1204-CELL("row",H7))) -> 4.530546293e-06 | N7: =J7*$B$1+N6 -> -1.282247771e-06 | O7: =N7*$B$1+O6 -> -1.617212757e-06 | P7: =K7*$B$1+P6 -> 4.261010297e-06 | Q7: =P7*$B$1+Q6 -> 1.0883486e-06 | R7: =(N7^2+P7^2)*$B$1+R6 -> 1.207900075e-11
A8: =A7+$B$1 -> 1.0004 | B8: ='DF raw data'!J13 -> 2.6638051e-07 | C8: ='DF raw data'!K13 -> -1.7162429e-05 | D8: ='DF raw data'!L13 -> 1.5757469e-05 | F8: 2.665531246e-07 | G8: -1.721177108e-05 | H8: 1.576767984e-05 | J8: 6.552245706e-06 | K8: 2.566802716e-06 | L8: 6.151720934e-06 | N8: =J8*$B$1+N7 -> 1.995185531e-06 | O8: =N8*$B$1+O7 -> -6.192209544e-07 | P8: =K8*$B$1+P7 -> 5.544925016e-06 | Q8: =P8*$B$1+Q7 -> 3.861920093e-06 | R8: =(N8^2+P8^2)*$B$1+R7 -> 2.944942551e-11
A9: 1.5006 | B9: ='DF raw data'!J14 -> -7.6616658e-07 | C9: ='DF raw data'!K14 -> 9.742228e-06 | D9: ='DF raw data'!L14 -> 8.0396594e-06 | F9: -7.666630559e-07 | G9: 9.770236959e-06 | H9: 8.044869099e-06 | J9: 6.874520605e-06 | K9: -1.755286692e-06 | L9: 6.508282736e-06 | N9: 5.433820738e-06 | O9: 2.098776179e-06 | P9: 4.666930613e-06 | Q9: 6.196318786e-06 | R9: 5.511301141e-11
A10: 2.0008 | B10: ='DF raw data'!J15 -> -5.0023669e-07 | C10: ='DF raw data'!K15 -> 1.8916386e-06 | D10: ='DF raw data'!L15 -> 5.0604335e-06 | F10: -5.005608434e-07 | G10: 1.897077071e-06 | H10: 5.063712661e-06 | J10: 3.898906155e-06 | K10: -1.183514456e-06 | L10: 6.08392513e-06 | N10: 7.384053597e-06 | O10: 5.792279788e-06 | P10: 4.074936682e-06 | Q10: 8.234602114e-06 | R10: 9.069191553e-11
A11: 2.501 | B11: ='DF raw data'!J16 -> -1.7877169e-07 | C11: ='DF raw data'!K16 -> -6.7313572e-06 | D11: ='DF raw data'!L16 -> 6.0053676e-06 | F11: -1.788875341e-07 | G11: -6.750709889e-06 | H11: 6.009259078e-06 | J11: 1.068232066e-06 | K11: -2.656100512e-06 | L11: 5.730694185e-06 | N11: 7.918383276e-06 | O11: 9.753055102e-06 | P11: 2.746355206e-06 | Q11: 9.608328988e-06 | R11: 1.258275945e-10
A12: 3.0012 | B12: ='DF raw data'!J17 -> -4.0725493e-07 | C12: ='DF raw data'!K17 -> -7.3247185e-07 | D12: ='DF raw data'!L17 -> 4.3146952e-06 | F12: -4.075188312e-07 | G12: -7.345777106e-07 | H12: 4.317491122e-06 | J12: -7.516010521e-07 | K12: -2.478264699e-06 | L12: 5.638457154e-06 | N12: 7.54243243e-06 | O12: 1.35257798e-05 | P12: 1.506727203e-06 | Q12: 1.036199394e-05 | R12: 1.554186831e-10
A13: 3.5014 | B13: ='DF raw data'!J18 -> -5.4903063e-07 | C13: ='DF raw data'!K18 -> 3.0591279e-06 | D13: ='DF raw data'!L18 -> 4.1668786e-06 | F13: -5.493864018e-07 | G13: 3.067922909e-06 | H13: 4.169578737e-06 | J13: -1.430215279e-06 | K13: 6.442071496e-07 | L13: 5.749740419e-06 | N13: 6.827038747e-06 | O13: 1.694066459e-05 | P13: 1.82895962e-06 | Q13: 1.127683954e-05 | R13: 1.804054495e-10
A14: 4.0016 | B14: ='DF raw data'!J19 -> -4.3121784e-07 | C14: ='DF raw data'!K19 -> -4.3412851e-07 | D14: ='DF raw data'!L19 -> 3.1255072e-06 | F14: -4.314972692e-07 | G14: -4.353766318e-07 | H14: 3.127532529e-06 | J14: -3.073782521e-06 | K14: -3.504862211e-06 | L14: 5.7378201e-06 | N14: 5.28953273e-06 | O14: 1.958648886e-05 | P14: 7.58275416e-08 | Q14: 1.131476847e-05 | R14: 1.944034996e-10
A15: 4.5018 | B15: ='DF raw data'!J20 -> -7.7646327e-08 | C15: ='DF raw data'!K20 -> -9.61352e-06 | D15: ='DF raw data'!L20 -> 6.0346515e-06 | F15: -7.769664182e-08 | G15: -9.641158923e-06 | H15: 6.038561954e-06 | J15: -4.096245548e-06 | K15: -2.875951774e-06 | L15: 5.616879081e-06 | N15: 3.240590707e-06 | O15: 2.120743233e-05 | P15: -1.362723536e-06 | Q15: 1.063313416e-05 | R15: 2.005851931e-10
A16: 5.002 | B16: ='DF raw data'!J21 -> -3.0873162e-09 | C16: ='DF raw data'!K21 -> -1.1534737e-05 | D16: ='DF raw data'!L21 -> 6.173816e-06 | F16: -3.089316781e-09 | G16: -1.156789943e-05 | H16: 6.177816633e-06 | J16: -3.339750957e-06 | K16: 1.44586746e-06 | L16: 5.555477518e-06 | N16: 1.570047278e-06 | O16: 2.199276998e-05 | P16: -6.39500632e-07 | Q16: 1.031325594e-05 | R16: 2.020227727e-10
A17: 5.5022 | B17: ='DF raw data'!J22 -> 1.6512145e-07 | C17: ='DF raw data'!K22 -> -1.5865649e-05 | D17: ='DF raw data'!L22 -> 7.2307616e-06 | F17: 1.652284487e-07 | G17: -1.591126283e-05 | H17: 7.235447134e-06 | J17: -6.206760476e-06 | K17: -4.805906297e-06 | L17: 5.374465398e-06 | N17: -1.534574312e-06 | O17: 2.122517591e-05 | P17: -3.043414962e-06 | Q17: 8.790939781e-06 | R17: 2.078337426e-10
A18: 6.0024 | B18: ='DF raw data'!J23 -> -3.2281699e-07 | C18: ='DF raw data'!K23 -> -2.8432889e-06 | D18: ='DF raw data'!L23 -> 5.5691057e-06 | F18: -3.230261754e-07 | G18: -2.851463371e-06 | H18: 5.57271448e-06 | J18: -8.852484995e-06 | K18: 2.594632999e-06 | L18: 5.212834529e-06 | N18: -5.962587307e-06 | O18: 1.824268973e-05 | P18: -1.745579535e-06 | Q18: 7.917800897e-06 | R18: 2.271412101e-10
A19: 6.5026 | B19: ='DF raw data'!J24 -> -1.1030388e-08 | C19: ='DF raw data'!K24 -> -1.235171e-05 | D19: ='DF raw data'!L24 -> -5.0109026e-07 | F19: -1.103753569e-08 | G19: -1.238722123e-05 | H19: -5.014149665e-07 | J19: -1.107374314e-05 | K19: 1.826826379e-06 | L19: 5.097288404e-06 | N19: -1.150167362e-05 | O19: 1.248955259e-05 | P19: -8.318009806e-07 | Q19: 7.501734047e-06 | R19: 2.936580007e-10
A20: 7.0028 | B20: ='DF raw data'!J25 -> 2.3821208e-07 | C20: ='DF raw data'!K25 -> -1.9622157e-05 | D20: ='DF raw data'!L25 -> -3.599182e-06 | F20: 2.383664414e-07 | G20: -1.967857081e-05 | H20: -3.60151427e-06 | J20: -1.411187557e-05 | K20: 2.747714147e-06 | L20: 5.015506444e-06 | N20: -1.856043379e-05 | O20: 3.205623608e-06 | P20: 5.426056356e-07 | Q20: 7.773145385e-06 | R20: 4.661190192e-10
A21: 7.503 | B21: ='DF raw data'!J26 -> -8.4893605e-07 | C21: ='DF raw data'!K26 -> 1.0246583e-05 | D21: ='DF raw data'!L26 -> -1.8903397e-06 | F21: -8.494861606e-07 | G21: 1.027604198e-05 | H21: -1.89156464e-06 | J21: -1.43155925e-05 | K21: 8.596047435e-06 | L21: 5.168413263e-06 | N21: -2.572109315e-05 | O21: -9.660067188e-06 | P21: 4.842348563e-06 | Q21: 1.019528814e-05 | R21: 8.087675101e-10
A22: 8.0032 | B22: ='DF raw data'!J27 -> -3.8282454e-07 | C22: ='DF raw data'!K27 -> -1.6242981e-05 | D22: ='DF raw data'!L27 -> -4.4227895e-06 | F22: -3.830726103e-07 | G22: -1.628967966e-05 | H22: -4.425655468e-06 | J22: -1.293979756e-05 | K22: 7.808035892e-06 | L22: 5.665561306e-06 | N22: -3.219357989e-05 | O22: -2.576329585e-05 | P22: 8.747928116e-06 | Q22: 1.457100178e-05 | R22: 1.365466517e-09
A23: 8.5034 | B23: ='DF raw data'!J28 -> -2.2128938e-06 | C23: ='DF raw data'!K28 -> -1.8826531e-05 | D23: ='DF raw data'!L28 -> -9.4603338e-06 | F23: =(1-$G$1*($B$2-$G$2))*B23 -> -2.214327755e-06 | G23: -1.888065738e-05 | H23: -9.466464096e-06 | J23: -7.701580893e-06 | K23: 9.567380217e-06 | L23: 6.851258841e-06 | N23: -3.604591065e-05 | O23: -4.379346036e-05 | P23: 1.35335317e-05 | Q23: 2.134047434e-05 | R23: 2.106995087e-09
A24: 9.0036 | B24: ='DF raw data'!J29 -> -5.3939716e-06 | C24: ='DF raw data'!K29 -> -3.7648837e-07 | D24: ='DF raw data'!L29 -> -6.3003467e-06 | F24: -5.397466894e-06 | G24: -3.775707761e-07 | H24: -6.304429325e-06 | J24: -3.678056437e-06 | K24: 3.028983178e-06 | L24: 6.894080071e-06 | N24: -3.788567448e-05 | O24: -6.274387474e-05 | P24: 1.504862909e-05 | Q24: 2.886779861e-05 | R24: 2.938220229e-09
A25: 9.5038 | B25: ='DF raw data'!J30 -> -5.5422888e-06 | C25: ='DF raw data'!K30 -> 1.9965144e-06 | D25: ='DF raw data'!L30 -> -7.8962466e-06 | F25: -5.545880203e-06 | G25: 2.00225439e-06 | H25: -7.901363368e-06 | J25: -5.92723276e-06 | K25: 3.717173457e-06 | L25: 4.525218643e-06 | N25: -4.085047631e-05 | O25: -8.317728299e-05 | P25: 1.690795925e-05 | Q25: 3.732515982e-05 | R25: 3.915931407e-09
A26: 10.004 | B26: ='DF raw data'!J31 -> -4.1286694e-06 | C26: ='DF raw data'!K31 -> -1.1649351e-05 | D26: ='DF raw data'!L31 -> -8.7515336e-06 | F26: -4.131344778e-06 | G26: -1.168284295e-05 | H26: -8.757204594e-06 | J26: -1.070999058e-05 | K26: 7.054414037e-06 | L26: 2.369400677e-06 | N26: -4.62076136e-05 | O26: -0.0001062903313 | P26: 2.043657715e-05 | Q26: 4.754753571e-05 | R26: 5.192840587e-09
A27: 10.5042 | B27: ='DF raw data'!J32 -> -5.0143676e-06 | C27: ='DF raw data'!K32 -> -6.7685846e-06 | D27: ='DF raw data'!L32 -> -5.1224056e-06 | F27: -5.01761691e-06 | G27: -6.788044318e-06 | H27: -5.125724919e-06 | J27: -1.056030865e-05 | K27: 2.164299736e-06 | L27: 1.191244627e-05 | N27: -5.148987999e-05 | O27: -0.0001320455693 | P27: 2.151915988e-05 | Q27: 5.831141948e-05 | R27: 6.750604435e-09
A28: 11.0044 | B28: ='DF raw data'!J33 -> 5.7629762e-07 | C28: ='DF raw data'!K33 -> -1.5190774e-05 | D28: ='DF raw data'!L33 -> -5.9687741e-06 | F28: 5.766710609e-07 | G28: -1.523444756e-05 | H28: -5.972641866e-06 | J28: -8.064598776e-06 | K28: -4.634896753e-06 | L28: 7.509771981e-06 | N28: -5.552379229e-05 | O28: -0.0001598185702 | P28: 1.920078452e-05 | Q28: 6.79156519e-05 | R28: 8.477075565e-09
A29: 11.5046 | B29: ='DF raw data'!J34 -> 6.8711033e-06 | C29: ='DF raw data'!K34 -> -1.5881395e-05 | D29: ='DF raw data'!L34 -> -2.8226973e-06 | F29: 6.875555775e-06 | G29: -1.59270541e-05 | H29: -2.824526408e-06 | J29: -9.071498524e-06 | K29: -1.121158998e-06 | L29: 8.431260419e-07 | N29: -6.006135585e-05 | O29: -0.0001898612604 | P29: 1.863998079e-05 | Q29: 7.723937029e-05 | R29: 1.04552742e-08
A30: 12.0048 | B30: ='DF raw data'!J35 -> 6.113497e-06 | C30: ='DF raw data'!K35 -> -2.5853782e-07 | D30: ='DF raw data'!L35 -> 1.0108985e-07 | F30: 6.117458546e-06 | G30: -2.592811176e-07 | H30: 1.011553562e-07 | J30: -9.705628675e-06 | K30: 1.450285726e-06 | L30: 1.835623614e-06 | N30: -6.491611132e-05 | O30: -0.0002223322993 | P30: 1.936541371e-05 | Q30: 8.692595023e-05 | R30: 1.275075241e-08
A31: 12.505 | B31: ='DF raw data'!J36 -> 3.786412e-06 | C31: ='DF raw data'!K36 -> 3.7762973e-06 | D31: ='DF raw data'!L36 -> 7.8791309e-06 | F31: 3.788865595e-06 | G31: 3.787154175e-06 | H31: 7.884236577e-06 | J31: -7.773650363e-06 | K31: -3.367305067e-06 | L31: -1.891968802e-07 | N31: -6.880449123e-05 | O31: -0.0002567483058 | P31: 1.768108772e-05 | Q31: 9.577003031e-05 | R31: 1.527510118e-08
A32: 13.0052 | B32: ='DF raw data'!J37 -> 2.860731e-06 | C32: ='DF raw data'!K37 -> -3.2914013e-08 | D32: ='DF raw data'!L37 -> 1.0593472e-05 | F32: 2.862584754e-06 | G32: -3.300864097e-08 | H32: 1.060033657e-05 | J32: -8.100333317e-06 | K32: 3.572925131e-06 | L32: 6.445947469e-06 | N32: -7.285627795e-05 | O32: -0.000293191016 | P32: 1.946826487e-05 | Q32: 0.0001055080564 | R32: 1.811976388e-08
A33: 13.5054 | B33: ='DF raw data'!J38 -> 5.3355989e-06 | C33: ='DF raw data'!K38 -> -1.6112625e-05 | D33: ='DF raw data'!L38 -> 3.4431691e-06 | F33: 5.339056368e-06 | G33: -1.615894889e-05 | H33: 3.445400274e-06 | J33: -1.032900486e-05 | K33: 5.525222306e-06 | L33: 5.505328242e-06 | N33: -7.802284619e-05 | O33: -0.0003322180437 | P33: 2.223198107e-05 | Q33: 0.0001166284933 | R33: 2.1411993e-08
A34: 14.0056 | B34: ='DF raw data'!J39 -> 9.516717e-06 | C34: ='DF raw data'!K39 -> -1.1227586e-05 | D34: ='DF raw data'!L39 -> -4.4315752e-06 | F34: 9.522883833e-06 | G34: -1.125986537e-05 | H34: -4.434446861e-06 | J34: -7.416242213e-06 | K34: -6.093304764e-07 | L34: 4.800464487e-06 | N34: -8.173245054e-05 | O34: -0.0003731006154 | P34: 2.192719396e-05 | Q34: 0.0001275964757 | R34: 2.499392285e-08
A35: 14.5058 | B35: ='DF raw data'!J40 -> 7.796184e-06 | C35: ='DF raw data'!K40 -> -3.8373232e-06 | D35: ='DF raw data'!L40 -> -8.8695333e-06 | F35: 7.801235927e-06 | G35: -3.848355525e-06 | H35: -8.875280758e-06 | J35: -3.153332937e-06 | K35: -5.279462671e-06 | L35: 3.689823357e-06 | N35: -8.330974768e-05 | O35: -0.0004147721512 | P35: 1.928640673e-05 | Q35: 0.0001372435364 | R35: 2.865162512e-08
A36: 15.006 | B36: ='DF raw data'!J41 -> 1.2977926e-06 | C36: ='DF raw data'!K41 -> 6.9746483e-07 | D36: ='DF raw data'!L41 -> -2.3039743e-06 | F36: 1.29863357e-06 | G36: 6.994700452e-07 | H36: -2.305467275e-06 | J36: -4.516638887e-06 | K36: -4.502958317e-06 | L36: -7.022735986e-06 | N36: -8.556897045e-05 | O36: -0.0004575737502 | P36: 1.703402698e-05 | Q36: 0.0001457639567 | R36: 3.245925095e-08
A37: 15.5062 | B37: ='DF raw data'!J42 -> 2.9391613e-06 | C37: ='DF raw data'!K42 -> -4.9007372e-06 | D37: ='DF raw data'!L42 -> 8.4985495e-06 | F37: 2.941065877e-06 | G37: -4.914826846e-06 | H37: 8.50405656e-06 | J37: -1.500890147e-05 | K37: 4.180291307e-06 | L37: -3.763002346e-06 | N37: -9.307642296e-05 | O37: -0.000504130577 | P37: 1.912500869e-05 | Q37: 0.000155330286 | R37: 3.697554998e-08
A38: 16.0064 | B38: ='DF raw data'!J43 -> 5.6730842e-06 | C38: ='DF raw data'!K43 -> 4.452641e-06 | D38: ='DF raw data'!L43 -> 1.1662331e-05 | F38: 5.676760359e-06 | G38: 4.465442367e-06 | H38: 1.166988819e-05 | J38: -2.248821192e-05 | K38: 2.851552326e-06 | L38: 2.358344918e-06 | N38: -0.0001043250266 | O38: -0.0005563139553 | P38: 2.055135517e-05 | Q38: 0.0001656100739 | R38: 4.263084588e-08
A39: 16.5066 | B39: ='DF raw data'!J44 -> 3.9417373e-06 | C39: ='DF raw data'!K44 -> -8.1867811e-06 | D39: ='DF raw data'!L44 -> 1.0984478e-05 | F39: 3.944291546e-06 | G39: -8.210318141e-06 | H39: 1.099159594e-05 | J39: -1.999417183e-05 | K39: 3.198788771e-06 | L39: 4.693309395e-06 | N39: -0.0001143261113 | O39: -0.0006134998762 | P39: 2.215138931e-05 | Q39: 0.0001766901988 | R39: 4.941412999e-08
A40: 17.0068 | B40: ='DF raw data'!J45 -> 2.2537115e-06 | C40: ='DF raw data'!K45 -> 1.6829532e-07 | D40: ='DF raw data'!L45 -> 7.8284165e-06 | F40: 2.255171905e-06 | G40: 1.6877917e-07 | H40: 7.833489314e-06 | J40: -1.237065699e-05 | K40: 6.423496947e-06 | L40: 4.451095942e-06 | N40: -0.0001205139139 | O40: -0.0006737809359 | P40: 2.536442248e-05 | Q40: 0.000189377483 | R40: 5.700064208e-08
A41: 17.507 | B41: ='DF raw data'!J46 -> -3.7497327e-06 | C41: ='DF raw data'!K46 -> -6.3123966e-06 | D41: ='DF raw data'!L46 -> 7.6657589e-06 | F41: -3.752162527e-06 | G41: -6.330544775e-06 | H41: 7.670726312e-06 | J41: -8.317876093e-06 | K41: -4.557152178e-06 | L41: 1.826816711e-07 | N41: -0.0001246745156 | O41: -0.0007361431286 | P41: 2.308493497e-05 | Q41: 0.0002009245674 | R41: 6.504218193e-08
A42: 18.0072 | B42: ='DF raw data'!J47 -> -7.3078113e-06 | C42: ='DF raw data'!K47 -> -2.765531e-07 | D42: ='DF raw data'!L47 -> 1.0721589e-05 | F42: -7.312546762e-06 | G42: -2.773481917e-07 | H42: 1.072853659e-05 | J42: -9.52796032e-06 | K42: -1.339806208e-06 | L42: -5.438255007e-06 | N42: -0.0001294404013 | O42: -0.0008008892174 | P42: 2.24147639e-05 | Q42: 0.0002121364323 | R42: 7.367425295e-08
A43: 18.5074 | B43: ='DF raw data'!J48 -> -4.2430779e-06 | C43: ='DF raw data'!K48 -> -6.0994475e-06 | D43: ='DF raw data'!L48 -> 2.9054795e-06 | F43: -4.245827414e-06 | G43: -6.116983445e-06 | H43: 2.907362251e-06 | J43: -1.110366752e-05 | K43: 1.241286675e-05 | L43: -2.408749059e-06 | N43: -0.0001349944558 | O43: -0.0008684134442 | P43: 2.862367985e-05 | Q43: 0.000226453997 | R43: 8.319947059e-08
A44: 19.0076 | B44: ='DF raw data'!J49 -> -1.698189e-06 | C44: ='DF raw data'!K49 -> -8.5489019e-06 | D44: ='DF raw data'!L49 -> -1.1261952e-05 | F44: -1.699289426e-06 | G44: -8.57348004e-06 | H44: -1.126924974e-05 | J44: -1.438104888e-05 | K44: -1.047026377e-06 | L44: 5.163952074e-06 | N44: -0.0001421878565 | O44: -0.00093953581 | P44: 2.809995726e-05 | Q44: 0.0002405095956 | R44: 9.370716905e-08
A45: 19.5078 | B45: ='DF raw data'!J50 -> -6.5849969e-07 | C45: ='DF raw data'!K50 -> 2.4703138e-06 | D45: ='DF raw data'!L50 -> -9.2745822e-06 | F45: -6.589263978e-07 | G45: 2.477415966e-06 | H45: -9.280592129e-06 | J45: -1.413157833e-05 | K45: 1.903232016e-06 | L45: 1.410522427e-05 | N45: -0.0001492564719 | O45: -0.001014193897 | P45: 2.905195391e-05 | Q45: 0.000255041383 | R45: 1.052725486e-07
A46: 20.008 | B46: ='DF raw data'!J51 -> 7.0258824e-07 | C46: ='DF raw data'!K51 -> 7.6121964e-06 | D46: ='DF raw data'!L51 -> 2.246195e-06 | F46: 7.030435172e-07 | G46: 7.634081506e-06 | H46: 2.247650534e-06 | J46: -1.116444788e-05 | K46: 3.728144308e-06 | L46: 1.206888257e-05 | N46: -0.0001548409288 | O46: -0.00109164533 | P46: 3.091677169e-05 | Q46: 0.0002705059522 | R46: 1.177433149e-07
A47: 20.5082 | B47: ='DF raw data'!J52 -> 3.7101836e-06 | C47: ='DF raw data'!K52 -> 1.1222201e-05 | D47: ='DF raw data'!L52 -> 2.424094e-06 | F47: 3.712587799e-06 | G47: 1.125446489e-05 | H47: 2.425664813e-06 | J47: -1.355696222e-05 | K47: 7.51953884e-06 | L47: 8.73602698e-06 | N47: -0.0001616221213 | O47: -0.001172488715 | P47: 3.467804502e-05 | Q47: 0.0002878519103 | R47: 1.314109182e-07
A48: 21.0084 | B48: ='DF raw data'!J53 -> 3.6151323e-06 | C48: ='DF raw data'!K53 -> -5.5571995e-06 | D48: ='DF raw data'!L53 -> -3.0735396e-06 | F48: 3.617474906e-06 | G48: -5.573176479e-06 | H48: -3.075531254e-06 | J48: -1.776216143e-05 | K48: 6.137809649e-06 | L48: 3.814426648e-06 | N48: -0.0001705067544 | O48: -0.001257776193 | P48: 3.774817741e-05 | Q48: 0.0003067335486 | R48: 1.466657568e-07
A49: 21.5086 | B49: ='DF raw data'!J54 -> 2.7445682e-07 | C49: ='DF raw data'!K54 -> 1.5275185e-05 | D49: ='DF raw data'!L54 -> -1.0729241e-06 | F49: 2.74634668e-07 | G49: 1.531910124e-05 | H49: -1.073619355e-06 | J49: -1.674804771e-05 | K49: -1.575312849e-06 | L49: 1.112843956e-06 | N49: -0.0001788841279 | O49: -0.001347254034 | P49: 3.696020592e-05 | Q49: 0.0003252210436 | R49: 1.633552239e-07
A50: 22.0088 | B50: ='DF raw data'!J55 -> 3.4230279e-06 | C50: ='DF raw data'!K55 -> -2.122649e-06 | D50: ='DF raw data'!L55 -> 2.9962589e-06 | F50: 3.425246022e-06 | G50: -2.128751628e-06 | H50: 2.998200476e-06 | J50: -1.118521933e-05 | K50: -9.036733077e-06 | L50: 2.16445786e-07 | N50: -0.0001844789746 | O50: -0.001439530417 | P50: 3.244003204e-05 | Q50: 0.0003414475476 | R50: 1.809046648e-07
A51: 22.509 | B51: ='DF raw data'!J56 -> 6.5014447e-06 | C51: ='DF raw data'!K56 -> -8.0561558e-06 | D51: ='DF raw data'!L56 -> 5.7812808e-06 | F51: 6.505657636e-06 | G51: -8.079317292e-06 | H51: 5.78502707e-06 | J51: -6.97768181e-06 | K51: -6.592411084e-07 | L51: 9.186466375e-07 | N51: -0.000187969211 | O51: -0.001533552617 | P51: 3.211027963e-05 | Q51: 0.0003575091095 | R51: 1.990936846e-07
A52: 23.0092 | B52: ='DF raw data'!J57 -> 2.5425361e-06 | C52: ='DF raw data'!K57 -> 1.1669984e-05 | D52: ='DF raw data'!L57 -> 5.7426128e-06 | F52: 2.544183663e-06 | G52: 1.170353527e-05 | H52: 5.746334013e-06 | J52: -8.391349073e-06 | K52: -2.72354185e-06 | L52: 3.358834916e-06 | N52: -0.0001921665638 | O52: -0.001629674332 | P52: 3.0747964e-05 | Q52: 0.0003728892411 | R52: 2.180379721e-07
A53: 23.5094 | B53: ='DF raw data'!J58 -> -1.0603312e-06 | C53: ='DF raw data'!K58 -> -2.8552979e-06 | D53: ='DF raw data'!L58 -> -5.760308e-07 | F53: -1.061018295e-06 | G53: -2.863506897e-06 | H53: -5.76404068e-07 | J53: -1.182896721e-05 | K53: 3.155434384e-06 | L53: 1.769160173e-06 | N53: -0.0001980834132 | O53: -0.001728755655 | P53: 3.232631228e-05 | Q53: 0.0003890588625 | R53: 2.38187043e-07
A54: 24.0096 | B54: ='DF raw data'!J59 -> -3.0138203e-06 | C54: ='DF raw data'!K59 -> 1.2780632e-05 | D54: ='DF raw data'!L59 -> 3.8248024e-07 | F54: -3.015773256e-06 | G54: 1.281737639e-05 | H54: 3.827280872e-07 | J54: -7.655627034e-06 | K54: 5.351669772e-06 | L54: -1.104042556e-06 | N54: -0.0002019127579 | O54: -0.001829752417 | P54: 3.50032175e-05 | Q54: 0.0004065674719 | R54: 2.591924353e-07
A55: 24.5098 | B55: ='DF raw data'!J60 -> -5.9156754e-08 | C55: ='DF raw data'!K60 -> 3.657681e-06 | D55: ='DF raw data'!L60 -> 2.7057508e-06 | F55: -5.919508758e-08 | G55: 3.668196853e-06 | H55: 2.707504127e-06 | J55: -1.850808847e-06 | K55: 9.360240095e-06 | L55: -1.29326089e-07 | N55: -0.0002028385325 | O55: -0.001931212251 | P55: 3.968520959e-05 | Q55: 0.0004264180137 | R55: 2.805601721e-07
A56: 25.01 | B56: ='DF raw data'!J61 -> -2.0829325e-06 | C56: ='DF raw data'!K61 -> -1.0381792e-05 | D56: ='DF raw data'!L61 -> 5.8952214e-06 | F56: -2.08428224e-06 | G56: -1.041163971e-05 | H56: 5.899041503e-06 | J56: -4.807053053e-06 | K56: -5.822868286e-06 | L56: 5.080905094e-06 | N56: -0.0002052430204 | O56: -0.002033874809 | P56: 3.677261088e-05 | Q56: 0.0004448116737 | R56: 3.023073286e-07
A57: 25.5102 | B57: ='DF raw data'!J62 -> -2.7689166e-06 | C57: ='DF raw data'!K62 -> -8.2872511e-06 | D57: ='DF raw data'!L62 -> -1.2875612e-06 | F57: -2.770710858e-06 | G57: -8.311076992e-06 | H57: -1.28839554e-06 | J57: -9.888774076e-06 | K57: -1.165152818e-05 | L57: 6.788923574e-06 | N57: -0.0002101893852 | O57: -0.00213901154 | P57: 3.094451648e-05 | Q57: 0.0004602901208 | R57: 3.248849264e-07
A58: 26.0104 | B58: ='DF raw data'!J63 -> -1.4639822e-07 | C58: ='DF raw data'!K63 -> 1.3465893e-06 | D58: ='DF raw data'!L63 -> -1.1497953e-05 | F58: -1.46493086e-07 | G58: 1.350460752e-06 | H58: -1.150540367e-05 | J58: -6.010457154e-06 | K58: -6.85361038e-06 | L58: 7.879519622e-06 | N58: -0.0002131958159 | O58: -0.002245652087 | P58: 2.751634057e-05 | Q58: 0.0004740537944 | R58: 3.479989708e-07
A59: 26.5106 | B59: ='DF raw data'!J64 -> 2.9612556e-06 | C59: ='DF raw data'!K64 -> -1.5331692e-06 | D59: ='DF raw data'!L64 -> -5.5773694e-06 | F59: 2.963174494e-06 | G59: -1.53757707e-06 | H59: -5.580983535e-06 | J59: -4.184945989e-06 | K59: 1.357017047e-06 | L59: 8.547022584e-06 | N59: -0.0002152891258 | O59: -0.002353339708 | P59: 2.81951205e-05 | Q59: 0.0004881569937 | R59: 3.715805859e-07
A60: 27.0108 | B60: ='DF raw data'!J65 -> 4.680187e-06 | C60: ='DF raw data'!K65 -> 5.5838377e-06 | D60: ='DF raw data'!L65 -> 9.9007775e-06 | F60: 4.683219761e-06 | G60: 5.599891264e-06 | H60: 9.907193204e-06 | J60: -1.003344646e-05 | K60: 9.915287986e-06 | L60: 1.336319975e-05 | N60: -0.0002203078558 | O60: -0.002463537697 | P60: 3.315474755e-05 | Q60: 0.0005047409984 | R60: 3.964079072e-07
A61: 27.511 | B61: ='DF raw data'!J66 -> 6.2304425e-06 | C61: ='DF raw data'!K66 -> 9.1228384e-07 | D61: ='DF raw data'!L66 -> 8.2103043e-06 | F61: 6.234479827e-06 | G61: 9.14906661e-07 | H61: 8.215624577e-06 | J61: -1.453106503e-05 | K61: 5.111212237e-06 | L61: 1.777619652e-05 | N61: -0.0002275762945 | O61: -0.00257737136 | P61: 3.571137591e-05 | Q61: 0.0005226038286 | R61: 4.229516566e-07
A62: 28.0112 | B62: ='DF raw data'!J67 -> 7.3262672e-06 | C62: ='DF raw data'!K67 -> 5.3215176e-06 | D62: ='DF raw data'!L67 -> 5.1724442e-06 | F62: 7.331014621e-06 | G62: 5.336816992e-06 | H62: 5.175795944e-06 | J62: -1.149927871e-05 | K62: -5.348374324e-06 | L62: 1.513188611e-05 | N62: -0.0002333282337 | O62: -0.002694082142 | P62: 3.303611907e-05 | Q62: 0.0005391284954 | R62: 4.507294881e-07
A63: 28.5114 | B63: ='DF raw data'!J68 -> 6.8522131e-06 | C63: ='DF raw data'!K68 -> -4.5526263e-06 | D63: ='DF raw data'!L68 -> 5.6590211e-06 | F63: 6.856653334e-06 | G63: -4.565715126e-06 | H63: 5.662688146e-06 | J63: -8.135198595e-06 | K63: 4.974724158e-06 | L63: 7.311777764e-06 | N63: -0.00023739746 | O63: -0.002812828352 | P63: 3.55244761e-05 | Q63: 0.0005568978383 | R63: 4.795507833e-07
A64: 29.0116 | B64: ='DF raw data'!J69 -> 1.882785e-06 | C64: ='DF raw data'!K69 -> -8.1368789e-06 | D64: ='DF raw data'!L69 -> 7.5130843e-06 | F64: 1.884005045e-06 | G64: -8.160272471e-06 | H64: 7.517952779e-06 | J64: -1.000098554e-05 | K64: -1.12319002e-05 | L64: 1.050498082e-05 | N64: -0.000242399953 | O64: -0.002934076808 | P64: 2.990627962e-05 | Q64: 0.0005718569594 | R64: 5.093887751e-07
A65: 29.5118 | B65: ='DF raw data'!J70 -> -3.7471964e-06 | C65: ='DF raw data'!K70 -> 3.8670282e-06 | D65: ='DF raw data'!L70 -> 3.4886257e-06 | F65: -3.749624583e-06 | G65: 3.878145927e-06 | H65: 3.490886329e-06 | J65: -1.41046619e-05 | K65: -5.48285214e-06 | L65: 9.685969043e-06 | N65: -0.0002494551049 | O65: -0.003058854252 | P65: 2.716375697e-05 | Q65: 0.0005854442706 | R65: 5.408842278e-07
A66: 30.012 | B66: ='DF raw data'!J71 -> -2.272835e-06 | C66: ='DF raw data'!K71 -> -7.6262705e-07 | D66: ='DF raw data'!L71 -> 1.5768605e-06 | F66: -2.274307797e-06 | G66: -7.648196069e-07 | H66: 1.577882306e-06 | J66: -1.758242203e-05 | K66: -2.582905579e-06 | L66: 7.29273153e-06 | N66: -0.0002582498324 | O66: -0.003188030818 | P66: 2.58717876e-05 | Q66: 0.0005983853388 | R66: 5.745788629e-07
A67: 30.5122 | B67: ='DF raw data'!J72 -> 1.2035425e-06 | C67: ='DF raw data'!K72 -> -6.8826644e-06 | D67: ='DF raw data'!L72 -> 5.0088005e-07 | F67: 1.204322396e-06 | G67: -6.902452098e-06 | H67: 5.012046203e-07 | J67: -1.536530627e-05 | K67: -6.833138994e-06 | L67: 1.50690214e-05 | N67: -0.0002659355586 | O67: -0.003321051784 | P67: 2.245385148e-05 | Q67: 0.0006096167553 | R67: 6.102060565e-07
A68: 31.0124 | B68: ='DF raw data'!J73 -> 2.5406007e-06 | C68: ='DF raw data'!K73 -> 8.4349076e-06 | D68: ='DF raw data'!L73 -> 4.0078291e-07 | F68: 2.542247009e-06 | G68: 8.459158006e-06 | H68: 4.010426173e-07 | J68: -7.646477108e-06 | K68: -1.190229306e-05 | L68: 1.299891384e-05 | N68: -0.0002697603264 | O68: -0.0034559859 | P68: 1.650032449e-05 | Q68: 0.0006178702176 | R68: 6.467421122e-07
A69: 31.5126 | B69: ='DF raw data'!J74 -> 3.9124343e-06 | C69: ='DF raw data'!K74 -> 1.5896936e-06 | D69: ='DF raw data'!L74 -> 4.3969562e-06 | F69: 3.914969557e-06 | G69: 1.594263978e-06 | H69: 4.399805428e-06 | J69: -4.358724424e-07 | K69: 4.540377589e-06 | L69: -6.59573807e-07 | N69: -0.0002699783498 | O69: -0.00359102907 | P69: 1.877142136e-05 | Q69: 0.0006272596826 | R69: 6.833770982e-07
A70: 32.0128 | B70: ='DF raw data'!J75 -> 3.1709824e-06 | C70: ='DF raw data'!K75 -> 2.9650607e-06 | D70: ='DF raw data'!L75 -> 2.9675743e-06 | F70: 3.173037197e-06 | G70: 2.973585266e-06 | H70: 2.969497288e-06 | J70: -8.060377242e-07 | K70: 1.729413118e-06 | L70: -2.919815815e-06 | N70: -0.0002703815299 | O70: -0.003726273911 | P70: 1.96364738e-05 | Q70: 0.0006370818468 | R70: 7.20137678e-07
A71: 32.513 | B71: ='DF raw data'!J76 -> 6.8389812e-07 | C71: ='DF raw data'!K76 -> 4.2160741e-06 | D71: ='DF raw data'!L76 -> 2.3053822e-07 | F71: 6.84341286e-07 | G71: =(1-$G$1*($B$2-$G$2))*C71*$M$2/$M$1 -> 4.228195336e-06 | H71: 2.306876088e-07 | J71: =-CELL("contents", INDEX($F$6:$F$1203,1204-CELL("row",F71))) -> -3.932937293e-06 | K71: =CELL("contents", INDEX($G$6:$G$1203,1204-CELL("row",G71))) -> -1.035423514e-05 | L71: =-CELL("contents", INDEX($H$6:$H$1203,1204-CELL("row",H71))) -> 5.383189548e-06 | N71: -0.0002723487851 | O71: -0.003862502774 | P71: 1.445728538e-05 | Q71: 0.0006443133809 | R71: 7.573439915e-07
A72: =A71+$B$1 -> 33.0132 | B72: ='DF raw data'!J77 -> 3.6188703e-06 | C72: ='DF raw data'!K77 -> 2.7983938e-07 | D72: ='DF raw data'!L77 -> -3.2455814e-06 | F72: 3.621215328e-06 | G72: 2.806439198e-07 | H72: -3.247684537e-06 | J72: -4.824151726e-06 | K72: -9.060017427e-06 | L72: 5.455047882e-06 | N72: =J72*$B$1+N71 -> -0.0002747618258 | O72: =N72*$B$1+O71 -> -0.003999938639 | P72: =K72*$B$1+P71 -> 9.925464666e-06 | Q72: =P72*$B$1+Q71 -> 0.0006492780983 | R72: =(N72^2+P72^2)*$B$1+R71 -> 7.951553979e-07
A73: 33.5134 | B73: ='DF raw data'!J78 -> 6.0359343e-06 | C73: ='DF raw data'!K78 -> -1.9850861e-06 | D73: ='DF raw data'!L78 -> -1.011802e-05 | F73: 6.039845585e-06 | G73: -1.990793233e-06 | H73: -1.012457648e-05 | J73: -6.69808755e-06 | K73: -7.861472683e-06 | L73: 7.999394051e-06 | N73: -0.0002781122092 | O73: -0.004139050366 | P73: 5.99315603e-06 | Q73: 0.000652275875 | R73: 8.338620338e-07
A74: 34.0136 | B74: ='DF raw data'!J79 -> 3.805636e-06 | C74: ='DF raw data'!K79 -> 1.1667716e-05 | D74: ='DF raw data'!L79 -> -3.3643796e-06 | F74: 3.808102052e-06 | G74: 1.170126075e-05 | H74: -3.366559718e-06 | J74: -9.874412876e-06 | K74: -3.410393191e-06 | L74: 2.395705712e-06 | N74: -0.0002830513905 | O74: -0.004280632672 | P74: 4.287277356e-06 | Q74: 0.0006544203711 | R74: 8.739462963e-07
A75: 34.5138 | B75: ='DF raw data'!J80 -> -2.4603341e-06 | C75: ='DF raw data'!K80 -> 1.6063738e-06 | D75: ='DF raw data'!L80 -> -1.1194837e-07 | F75: -2.461928396e-06 | G75: 1.610992133e-06 | H75: -1.120209125e-07 | J75: -9.27074145e-06 | K75: -2.639376067e-06 | L75: 2.199709989e-06 | N75: -0.0002876886154 | O75: -0.004424534517 | P75: 2.967061448e-06 | Q75: 0.0006559044953 | R75: 9.153496224e-07
A76: 35.014 | B76: ='DF raw data'!J81 -> -4.9362707e-06 | C76: ='DF raw data'!K81 -> -2.4846388e-06 | D76: ='DF raw data'!L81 -> 2.8176942e-06 | F76: -4.939469403e-06 | G76: -2.49178215e-06 | H76: 2.819520066e-06 | J76: -5.953683388e-06 | K76: -7.513299052e-06 | L76: 6.814163819e-06 | N76: -0.0002906666479 | O76: -0.004569925974 | P76: -7.910907381e-07 | Q76: 0.0006555087917 | R76: 9.57610383e-07
A77: 35.5142 | B77: ='DF raw data'!J82 -> 2.0971838e-06 | C77: ='DF raw data'!K82 -> -6.0590187e-06 | D77: ='DF raw data'!L82 -> 1.3110481e-05 | F77: 2.098542775e-06 | G77: -6.076438412e-06 | H77: 1.311897659e-05 | J77: -6.470458242e-06 | K77: 5.897217127e-06 | L77: 1.348700392e-05 | N77: -0.0002939031711 | O77: -0.00471693634 | P77: 2.158697269e-06 | Q77: 0.000656588572 | R77: 1.000819527e-06
A78: 36.0144 | B78: ='DF raw data'!J83 -> 1.1740341e-05 | C78: ='DF raw data'!K83 -> 8.0895979e-06 | D78: ='DF raw data'!L83 -> 7.0154588e-06 | F78: 1.174794874e-05 | G78: 8.112855538e-06 | H78: 7.020004817e-06 | J78: -1.073637366e-05 | K78: -1.253630061e-06 | L78: 1.466970181e-05 | N78: -0.0002992735052 | O78: -0.004866632948 | P78: 1.531631512e-06 | Q78: 0.0006573546941 | R78: 1.045620928e-06
A79: 36.5146 | B79: ='DF raw data'!J84 -> 1.3221376e-05 | C79: ='DF raw data'!K84 -> 9.3279368e-06 | D79: ='DF raw data'!L84 -> -5.3182071e-06 | F79: 1.322994345e-05 | G79: 9.354754669e-06 | H79: -5.321653298e-06 | J79: -1.370931588e-05 | K79: 1.102509334e-06 | L79: 3.796179431e-06 | N79: -0.000306130905 | O79: -0.005019759626 | P79: 2.083106681e-06 | Q79: 0.0006583966641 | R79: 1.092499908e-06
A80: 37.0148 | B80: ='DF raw data'!J85 -> 4.7526764e-06 | C80: ='DF raw data'!K85 -> -3.0651802e-06 | D80: ='DF raw data'!L85 -> -5.7854836e-06 | F80: 4.755756134e-06 | G80: -3.07399261e-06 | H80: -5.789232593e-06 | J80: -1.103493801e-05 | K80: -2.871402131e-06 | L80: -2.397360283e-06 | N80: -0.000311650581 | O80: -0.005175647247 | P80: 6.468313351e-07 | Q80: 0.0006587202091 | R80: 1.141082585e-06
A81: 37.515 | B81: ='DF raw data'!J86 -> -1.9739309e-06 | C81: ='DF raw data'!K86 -> 5.6724338e-07 | D81: ='DF raw data'!L86 -> 1.1000835e-07 | F81: -1.975210007e-06 | G81: 5.688742078e-07 | H81: 1.100796354e-07 | J81: -5.0555888e-06 | K81: -5.527680453e-06 | L81: 3.311417709e-06 | N81: -0.0003141793865 | O81: -0.005332799776 | P81: -2.118114427e-06 | Q81: 0.0006576607283 | R81: 1.190458914e-06
A82: 38.0152 | B82: ='DF raw data'!J87 -> -2.81751e-06 | C82: ='DF raw data'!K87 -> 5.313645e-06 | D82: ='DF raw data'!L87 -> 2.4194346e-06 | F82: -2.819335746e-06 | G82: 5.328921758e-06 | H82: 2.421002394e-06 | J82: -3.073849865e-06 | K82: -1.797355393e-05 | L82: 2.506457533e-06 | N82: -0.0003157169262 | O82: -0.005490721383 | P82: -1.11084861e-05 | Q82: 0.0006521042635 | R82: 1.240379162e-06
A83: 38.5154 | B83: ='DF raw data'!J88 -> -4.2080346e-06 | C83: ='DF raw data'!K88 -> 8.1741919e-06 | D83: ='DF raw data'!L88 -> -1.6873514e-06 | F83: -4.210761406e-06 | G83: 8.197692747e-06 | H83: -1.688444804e-06 | J83: -2.87133432e-06 | K83: -2.844907176e-06 | L83: 6.142132224e-06 | N83: -0.0003171531676 | O83: -0.005649361397 | P83: -1.253150867e-05 | Q83: 0.0006458360029 | R83: 1.290770896e-06
A84: 39.0156 | B84: ='DF raw data'!J89 -> -9.7872862e-06 | C84: ='DF raw data'!K89 -> 1.5294265e-05 | D84: ='DF raw data'!L89 -> 2.5368358e-06 | F84: -9.793628361e-06 | G84: 1.53382361e-05 | H84: 2.53847967e-06 | J84: -7.191418622e-06 | K84: 1.58376177e-05 | L84: 7.184910207e-06 | N84: -0.0003207503152 | O84: -0.005809800705 | P84: -4.609532296e-06 | Q84: 0.0006435303149 | R84: 1.342242482e-06
A85: 39.5158 | B85: ='DF raw data'!J90 -> -1.3272207e-05 | C85: ='DF raw data'!K90 -> 3.0755389e-06 | D85: ='DF raw data'!L90 -> 4.6227074e-06 | F85: -1.328080739e-05 | G85: 3.084381091e-06 | H85: 4.625702914e-06 | J85: -1.306443227e-05 | K85: 1.668704882e-05 | L85: 1.761509719e-05 | N85: -0.0003272851442 | O85: -0.005973508734 | P85: 3.737329525e-06 | Q85: 0.0006453997271 | R85: 1.395828675e-06
A86: 40.016 | B86: ='DF raw data'!J91 -> -1.2354937e-05 | C86: ='DF raw data'!K91 -> 1.3057603e-06 | D86: ='DF raw data'!L91 -> -8.3950699e-06 | F86: -1.2362943e-05 | G86: 1.309514368e-06 | H86: -8.400509905e-06 | J86: -1.515831523e-05 | K86: 2.68696399e-06 | L86: 2.056475233e-05 | N86: -0.0003348673335 | O86: -0.006141009374 | P86: 5.081348913e-06 | Q86: 0.0006479414178 | R86: 1.451932083e-06
A87: 40.5162 | B87: ='DF raw data'!J92 -> -9.5558653e-06 | C87: ='DF raw data'!K92 -> -6.1109217e-06 | D87: ='DF raw data'!L92 -> -4.9450188e-07 | F87: =(1-$G$1*($B$2-$G$2))*B87 -> -9.562057501e-06 | G87: -6.128490633e-06 | H87: -4.948223172e-07 | J87: -1.122042012e-05 | K87: -1.028104031e-05 | L87: 1.652037227e-05 | N87: -0.0003404797877 | O87: -0.006311317364 | P87: -6.122745063e-08 | Q87: 0.0006479107918 | R87: 1.509918513e-06
A88: 41.0164 | B88: ='DF raw data'!J93 -> -9.5773594e-06 | C88: ='DF raw data'!K93 -> -8.811222e-06 | D88: ='DF raw data'!L93 -> 9.433169e-06 | F88: -9.583565529e-06 | G88: -8.836554312e-06 | H88: 9.439281694e-06 | J88: -5.174679721e-06 | K88: -8.879908698e-06 | L88: 5.550348297e-06 | N88: -0.0003430681625 | O88: -0.006482920059 | P88: -4.502957782e-06 | Q88: 0.0006456584124 | R88: 1.568800077e-06
A89: 41.5166 | B89: ='DF raw data'!J94 -> -7.313819e-06 | C89: ='DF raw data'!K94 -> -5.0520443e-06 | D89: ='DF raw data'!L94 -> 7.5600347e-08 | F89: -7.318558355e-06 | G89: -5.066568955e-06 | H89: 7.564933602e-08 | J89: -3.818855616e-06 | K89: -1.161647067e-05 | L89: 4.477601307e-06 | N89: -0.000344978354 | O89: -0.006655478231 | P89: -1.031351641e-05 | Q89: 0.0006404995914 | R89: 1.628382117e-06
A90: 42.0168 | B90: ='DF raw data'!J95 -> -2.8347317e-06 | C90: ='DF raw data'!K95 -> 9.8357605e-06 | D90: ='DF raw data'!L95 -> -8.0016025e-06 | F90: -2.836568606e-06 | G90: 9.864038365e-06 | H90: -8.006787538e-06 | J90: -1.161376184e-05 | K90: -7.966248551e-06 | L90: 6.839404064e-06 | N90: -0.0003507875577 | O90: -0.006830942168 | P90: -1.429823394e-05 | Q90: 0.0006333476148 | R90: 1.690034943e-06
A91: 42.517 | B91: ='DF raw data'!J96 -> 1.1931625e-08 | C91: ='DF raw data'!K96 -> -2.9639098e-06 | D91: ='DF raw data'!L96 -> -2.9713779e-06 | F91: 1.193935669e-08 | G91: -2.972431057e-06 | H91: -2.973303353e-06 | J91: -1.69917075e-05 | K91: -1.033670489e-05 | L91: -4.824695478e-06 | N91: -0.0003592868098 | O91: -0.00701065743 | P91: -1.946865372e-05 | Q91: 0.0006236093942 | R91: 1.754793856e-06
A92: 43.0172 | B92: ='DF raw data'!J97 -> -2.036691e-07 | C92: ='DF raw data'!K97 -> -9.6865015e-06 | D92: ='DF raw data'!L97 -> -5.3303717e-07 | F92: -2.038010776e-07 | G92: -9.714350245e-06 | H92: -5.333825781e-07 | J92: -1.187672513e-05 | K92: 4.318249701e-06 | L92: -2.105331571e-06 | N92: -0.0003652275477 | O92: -0.007193344249 | P92: -1.730866522e-05 | Q92: 0.0006149515999 | R92: 1.82166597e-06
A93: 43.5174 | B93: ='DF raw data'!J98 -> 8.2500623e-07 | C93: ='DF raw data'!K98 -> 8.8685474e-06 | D93: ='DF raw data'!L98 -> -3.2047833e-06 | F93: 8.25540834e-07 | G93: 8.894044522e-06 | H93: -3.20686e-06 | J93: -5.161989503e-06 | K93: -7.457233525e-06 | L93: 9.288316932e-06 | N93: -0.0003678095749 | O93: -0.007377322599 | P93: -2.103877343e-05 | Q93: 0.0006044280054 | R93: 1.889556372e-06
A94: 44.0176 | B94: ='DF raw data'!J99 -> 3.3410597e-06 | C94: ='DF raw data'!K99 -> 7.6803763e-06 | D94: ='DF raw data'!L99 -> -3.4649424e-06 | F94: 3.343224707e-06 | G94: 7.702457424e-06 | H94: -3.467187683e-06 | J94: -4.647418877e-06 | K94: -1.120754639e-05 | L94: 8.299814597e-06 | N94: -0.0003701342138 | O94: -0.007562463733 | P94: -2.664478813e-05 | Q94: 0.0005911002824 | R94: 1.958438554e-06
A95: 44.5178 | B95: ='DF raw data'!J100 -> 2.2584509e-06 | C95: ='DF raw data'!K100 -> 6.531688e-07 | D95: ='DF raw data'!L100 -> -5.0235726e-06 | F95: 2.259914376e-06 | G95: 6.550466639e-07 | H95: -5.026827875e-06 | J95: -7.143794881e-06 | K95: -1.471312304e-05 | L95: 6.52457969e-07 | N95: -0.00037370754 | O95: -0.007749392244 | P95: -3.400429228e-05 | Q95: 0.0005740913354 | R95: 2.028873526e-06
A96: 45.018 | B96: ='DF raw data'!J101 -> 1.3475024e-07 | C96: ='DF raw data'!K101 -> 5.4106481e-06 | D96: ='DF raw data'!L101 -> -6.7487204e-06 | F96: 1.348375582e-07 | G96: 5.426203743e-06 | H96: -6.753093571e-06 | J96: -7.017289559e-06 | K96: -4.264372347e-06 | L96: 1.457152423e-06 | N96: -0.0003772175882 | O96: -0.007938076482 | P96: -3.613733133e-05 | Q96: 0.0005560154423 | R96: 2.100701753e-06
A97: 45.5182 | B97: ='DF raw data'!J102 -> 4.2617827e-07 | C97: ='DF raw data'!K102 -> 3.213371e-06 | D97: ='DF raw data'!L102 -> -1.276461e-05 | F97: 4.264544335e-07 | G97: 3.222609459e-06 | H97: -1.277288147e-05 | J97: -8.537357425e-06 | K97: -5.507340443e-06 | L97: 8.004455929e-06 | N97: -0.0003814879744 | O97: -0.008128896766 | P97: -3.889210302e-05 | Q97: 0.0005365616123 | R97: 2.174253998e-06
A98: 46.0184 | B98: ='DF raw data'!J103 -> -6.7365187e-07 | C98: ='DF raw data'!K103 -> 1.3052823e-05 | D98: ='DF raw data'!L103 -> -1.5478219e-05 | F98: -6.740883964e-07 | G98: 1.309034994e-05 | H98: -1.548824889e-05 | J98: -1.25141279e-05 | K98: -3.09981624e-06 | L98: 6.632886027e-06 | N98: -0.0003877475412 | O98: -0.008322848087 | P98: -4.04426311e-05 | Q98: 0.0005163322083 | R98: 2.250276275e-06
A99: 46.5186 | B99: ='DF raw data'!J104 -> -3.9330935e-06 | C99: ='DF raw data'!K104 -> -1.3706534e-06 | D99: ='DF raw data'!L104 -> -6.6000398e-06 | F99: -3.935642145e-06 | G99: -1.374594036e-06 | H99: -6.604316626e-06 | J99: -1.602848974e-05 | K99: 5.838583338e-07 | L99: 1.241125929e-05 | N99: -0.0003957649917 | O99: -0.008520809735 | P99: -4.015058516e-05 | Q99: 0.0004962488856 | R99: 2.329428923e-06
A100: 47.0188 | B100: ='DF raw data'!J105 -> -2.0366751e-06 | C100: ='DF raw data'!K105 -> -1.0578596e-05 | D100: ='DF raw data'!L105 -> 3.1664381e-06 | F100: -2.037994865e-06 | G100: -1.060900952e-05 | H100: 3.168489952e-06 | J100: -1.40299205e-05 | K100: 2.509383409e-07 | L100: 1.884268415e-05 | N100: -0.000402782758 | O100: -0.008722281671 | P100: -4.00250658e-05 | Q100: 0.0004762283476 | R100: 2.411379668e-06
A101: 47.519 | B101: ='DF raw data'!J106 -> 8.6912763e-07 | C101: ='DF raw data'!K106 -> -2.4511476e-06 | D101: ='DF raw data'!L106 -> 6.0596763e-06 | F101: 8.696908247e-07 | G101: -2.458194663e-06 | H101: 6.06360297e-06 | J101: -9.048655432e-06 | K101: -8.52008878e-06 | L101: 1.314975452e-05 | N101: -0.0004073088954 | O101: -0.00892601758 | P101: -4.428681421e-05 | Q101: 0.0004540760832 | R101: 2.49534417e-06
A102: 48.0192 | B102: ='DF raw data'!J107 -> -2.3838393e-06 | C102: ='DF raw data'!K107 -> -6.038606e-06 | D102: ='DF raw data'!L107 -> 4.5578831e-06 | F102: -2.385384028e-06 | G102: -6.055967025e-06 | H102: 4.560836608e-06 | J102: -5.690252296e-06 | K102: -9.006626167e-06 | L102: 9.960748885e-06 | N102: -0.0004101551596 | O102: -0.009131177191 | P102: -4.879192862e-05 | Q102: 0.0004296703605 | R102: 2.580682245e-06
A103: 48.5194 | B103: ='DF raw data'!J108 -> -9.5264295e-06 | C103: ='DF raw data'!K108 -> -1.4822011e-06 | D103: ='DF raw data'!L108 -> 6.5568514e-07 | F103: -9.532602626e-06 | G103: -1.486462436e-06 | H103: 6.56110024e-07 | J103: -5.30993551e-06 | K103: 8.890965295e-06 | L103: 1.325577718e-05 | N103: -0.0004128111894 | O103: -0.009337665348 | P103: -4.434466778e-05 | Q103: 0.0004074891577 | R103: 2.666906485e-06
A104: 49.0196 | B104: ='DF raw data'!J109 -> -9.8500968e-06 | C104: ='DF raw data'!K109 -> 5.4095822e-06 | D104: ='DF raw data'!L109 -> -4.5001912e-06 | F104: -9.856479663e-06 | G104: 5.425134778e-06 | H104: -4.503107324e-06 | J104: -6.059616289e-06 | K104: 6.728437439e-07 | L104: 6.90087297e-06 | N104: -0.0004158422094 | O104: -0.009545669621 | P104: -4.400811134e-05 | Q104: 0.0003854763004 | R104: 2.754372185e-06
A105: 49.5198 | B105: ='DF raw data'!J110 -> -4.2382721e-06 | C105: ='DF raw data'!K110 -> 2.3424898e-06 | D105: ='DF raw data'!L110 -> -6.0256775e-06 | F105: -4.2410185e-06 | G105: 2.349224471e-06 | H105: -6.029582139e-06 | J105: -3.42090401e-06 | K105: 5.306710083e-06 | L105: -1.944965622e-06 | N105: -0.0004175533456 | O105: -0.009754529805 | P105: -4.135369496e-05 | Q105: 0.0003647911821 | R105: 2.84243786e-06
A106: 50.02 | B106: ='DF raw data'!J111 -> -6.2091982e-07 | C106: ='DF raw data'!K111 -> 4.2364904e-06 | D106: ='DF raw data'!L111 -> -1.3250306e-06 | F106: -6.21322176e-07 | G106: 4.248670333e-06 | H106: -1.32588922e-06 | J106: -3.075586289e-06 | K106: -8.049075396e-06 | L106: 1.479262041e-06 | N106: -0.0004190917539 | O106: -0.0099641595 | P106: -4.537984247e-05 | Q106: 0.0003420921849 | R106: 2.931322013e-06
A107: 50.5202 | B107: ='DF raw data'!J112 -> -1.4084962e-06 | C107: ='DF raw data'!K112 -> 5.6006488e-06 | D107: ='DF raw data'!L112 -> 2.1274623e-06 | F107: -1.409408906e-06 | G107: 5.616750696e-06 | H107: 2.128840896e-06 | J107: -6.217848056e-06 | K107: 2.044404725e-06 | L107: 1.100059677e-05 | N107: -0.0004222019215 | O107: -0.0101753449 | P107: -4.435723123e-05 | Q107: 0.0003199046979 | R107: 3.021469071e-06
A108: 51.0204 | B108: ='DF raw data'!J113 -> -7.9860689e-07 | C108: ='DF raw data'!K113 -> 8.1034756e-08 | D108: ='DF raw data'!L113 -> 6.7155665e-06 | F108: -7.991243873e-07 | G108: 8.126773137e-08 | H108: 6.719918187e-06 | J108: -5.400506162e-06 | K108: 7.287779139e-06 | L108: 1.662772579e-05 | N108: -0.0004249032547 | O108: -0.01038788151 | P108: -4.07118841e-05 | Q108: 0.0002995406135 | R108: 3.112605628e-06
A109: 51.5206 | B109: ='DF raw data'!J114 -> 4.5843344e-06 | C109: ='DF raw data'!K114 -> 9.8265546e-06 | D109: ='DF raw data'!L114 -> 4.1664794e-06 | F109: 4.587305049e-06 | G109: 9.854805998e-06 | H109: 4.169179279e-06 | J109: 2.695250591e-07 | K109: -1.267278889e-06 | L109: 1.498917069e-05 | N109: -0.0004247684382 | O109: -0.01060035068 | P109: -4.1345777e-05 | Q109: 0.0002788594558 | R109: 3.203710905e-06
A110: 52.0208 | B110: ='DF raw data'!J115 -> 9.0558124e-06 | C110: ='DF raw data'!K115 -> 2.7148842e-06 | D110: ='DF raw data'!L115 -> 9.0140333e-07 | F110: 9.061680566e-06 | G110: 2.722689507e-06 | H110: 9.019874394e-07 | J110: 2.921128165e-06 | K110: -4.946539058e-06 | L110: 8.407968936e-06 | N110: -0.0004233072899 | O110: -0.01081208899 | P110: -4.382003584e-05 | Q110: 0.0002569406739 | R110: 3.294301755e-06
A111: 52.521 | B111: ='DF raw data'!J116 -> 9.7353213e-06 | C111: ='DF raw data'!K116 -> -7.3513961e-06 | D111: ='DF raw data'!L116 -> -4.7600091e-07 | F111: 9.741629788e-06 | G111: -7.372531404e-06 | H111: -4.763093586e-07 | J111: 3.348000199e-06 | K111: -7.753621299e-06 | L111: 8.39658016e-06 | N111: -0.0004216326202 | O111: -0.01102298963 | P111: -4.769839721e-05 | Q111: 0.0002330819356 | R111: 3.384362367e-06
A112: 53.0212 | B112: ='DF raw data'!J117 -> 6.3634734e-06 | C112: ='DF raw data'!K117 -> 7.7578687e-07 | D112: ='DF raw data'!L117 -> -1.0866993e-06 | F112: 6.367596931e-06 | G112: 7.780172615e-07 | H112: -1.087403481e-06 | J112: 2.085435287e-07 | K112: -2.111355858e-06 | L112: 9.473189652e-06 | N112: -0.0004215283067 | O112: -0.01123383808 | P112: -4.875449741e-05 | Q112: 0.000208694936 | R112: 3.474429937e-06
A113: 53.5214 | B113: ='DF raw data'!J118 -> -1.1465718e-06 | C113: ='DF raw data'!K118 -> 2.8951461e-06 | D113: ='DF raw data'!L118 -> 1.4747661e-06 | F113: -1.147314779e-06 | G113: 2.903469661e-06 | H113: 1.475721748e-06 | J113: -1.170239724e-05 | K113: -3.424443269e-06 | L113: 1.140457538e-05 | N113: -0.0004273818458 | O113: -0.01144761448 | P113: -5.046740393e-05 | Q113: 0.0001834511405 | R113: 3.567068078e-06
A114: 54.0216 | B114: ='DF raw data'!J119 -> -6.1059213e-06 | C114: ='DF raw data'!K119 -> -8.3649319e-09 | D114: ='DF raw data'!L119 -> 9.1085298e-07 | F114: -6.109877937e-06 | G114: -8.388981125e-09 | H114: 9.114432127e-07 | J114: -2.159973456e-05 | K114: -1.107480485e-05 | L114: 1.294150567e-05 | N114: -0.0004381860331 | O114: -0.01166679514 | P114: -5.600702132e-05 | Q114: 0.0001554364285 | R114: 3.664679e-06
A115: 54.5218 | B115: ='DF raw data'!J120 -> -7.8621651e-06 | C115: ='DF raw data'!K120 -> -1.8408513e-06 | D115: ='DF raw data'!L120 -> -3.65602e-06 | F115: -7.867259783e-06 | G115: -1.846143758e-06 | H115: -3.658389101e-06 | J115: -2.09226581e-05 | K115: -5.915732005e-06 | L115: 1.163666668e-05 | N115: -0.0004486515467 | O115: -0.01189121064 | P115: -5.896607047e-05 | Q115: 0.0001259416 | R115: 3.767102557e-06
A116: 55.022 | B116: ='DF raw data'!J121 -> -1.0814359e-05 | C116: ='DF raw data'!K121 -> 2.2127995e-06 | D116: ='DF raw data'!L121 -> -1.4368829e-05 | F116: -1.08213667e-05 | G116: 2.219161311e-06 | H116: -1.437814e-05 | J116: -1.641034402e-05 | K116: 2.09418042e-06 | L116: 6.40718877e-06 | N116: -0.0004568600007 | O116: -0.01211973201 | P116: -5.791856142e-05 | Q116: 9.69707356e-05 | R116: 3.873182782e-06
A117: 55.5222 | B117: ='DF raw data'!J122 -> -1.2052696e-05 | C117: ='DF raw data'!K122 -> 8.099606e-06 | D117: ='DF raw data'!L122 -> -1.5448803e-05 | F117: -1.206050615e-05 | G117: 8.122892412e-06 | H117: -1.545881382e-05 | J117: -1.575383888e-05 | K117: 4.596443115e-06 | L117: -2.225540016e-06 | N117: -0.0004647400709 | O117: -0.012352195 | P117: -5.561942057e-05 | Q117: 6.914990143e-05 | R117: 3.982765024e-06
A118: 56.0224 | B118: ='DF raw data'!J123 -> -9.829605e-06 | C118: ='DF raw data'!K123 -> 7.7901886e-06 | D118: ='DF raw data'!L123 -> -2.5300583e-06 | F118: -9.835974584e-06 | G118: 7.812585435e-06 | H118: -2.531697778e-06 | J118: -1.835948824e-05 | K118: 1.624907225e-06 | L118: -4.993918363e-06 | N118: -0.000473923487 | O118: -0.01258925152 | P118: -5.480664198e-05 | Q118: 4.173561911e-05 | R118: 4.096614165e-06
A119: 56.5226 | B119: ='DF raw data'!J124 -> -6.0421753e-06 | C119: ='DF raw data'!K124 -> 4.9365794e-06 | D119: ='DF raw data'!L124 -> 8.057762e-06 | F119: -6.04609063e-06 | G119: 4.950772093e-06 | H119: 8.06298343e-06 | J119: -1.939123538e-05 | K119: 5.363045583e-06 | L119: 2.956255613e-06 | N119: -0.0004836229829 | O119: -0.01283115974 | P119: -5.212404658e-05 | Q119: 1.566317101e-05 | R119: 4.214965539e-06
A120: 57.0228 | B120: ='DF raw data'!J125 -> -1.3077856e-07 | C120: ='DF raw data'!K125 -> -2.2905017e-06 | D120: ='DF raw data'!L125 -> 3.9719412e-06 | F120: -1.308633045e-07 | G120: -2.297086905e-06 | H120: 3.974515018e-06 | J120: -1.539643043e-05 | K120: -2.371350902e-06 | L120: 1.147503601e-05 | N120: -0.0004913242774 | O120: -0.01307692014 | P120: -5.33101963e-05 | Q120: -1.100258918e-05 | R120: 4.337135149e-06
A121: 57.523 | B121: ='DF raw data'!J126 -> 6.6445555e-06 | C121: ='DF raw data'!K126 -> -1.8439592e-05 | D121: ='DF raw data'!L126 -> 1.0554099e-06 | F121: 6.648861172e-06 | G121: -1.849260593e-05 | H121: 1.056093806e-06 | J121: -6.823324251e-06 | K121: -7.452548996e-06 | L121: 8.571463712e-06 | N121: -0.0004947373042 | O121: -0.01332438774 | P121: -5.703796131e-05 | Q121: -3.953297743e-05 | R121: 4.461193917e-06
A122: 58.0232 | B122: ='DF raw data'!J127 -> 6.5125923e-06 | C122: ='DF raw data'!K127 -> -7.668682e-06 | D122: ='DF raw data'!L127 -> 1.4608072e-07 | F122: 6.51681246e-06 | G122: -7.690729503e-06 | H122: 1.461753803e-07 | J122: -4.119355314e-06 | K122: -1.484050823e-06 | L122: 5.160355445e-06 | N122: -0.0004967978057 | O122: -0.01357288601 | P122: -5.778028353e-05 | Q122: -6.843467525e-05 | R122: 4.586317257e-06
A123: 58.5234 | B123: ='DF raw data'!J128 -> 3.4719551e-06 | C123: ='DF raw data'!K128 -> -5.9811038e-07 | D123: ='DF raw data'!L128 -> -1.0782164e-05 | F123: 3.474204927e-06 | G123: -5.998299506e-07 | H123: -1.078915084e-05 | J123: -5.775012985e-06 | K123: 2.585520275e-09 | L123: 4.813050937e-06 | N123: -0.0004996864672 | O123: -0.01382282918 | P123: -5.777899025e-05 | Q123: -9.733572617e-05 | R123: 4.712880351e-06
A124: 59.0236 | B124: ='DF raw data'!J129 -> -2.2201693e-06 | C124: ='DF raw data'!K129 -> 6.2097447e-06 | D124: ='DF raw data'!L129 -> -7.2229855e-06 | F124: -2.22160797e-06 | G124: 6.22759775e-06 | H124: -7.227665995e-06 | J124: -7.638261788e-06 | K124: -1.20253739e-07 | L124: 2.055594563e-06 | N124: -0.0005035071258 | O124: -0.01407468344 | P124: -5.783914117e-05 | Q124: -0.0001262668646 | R124: 4.84136412e-06
A125: 59.5238 | B125: ='DF raw data'!J130 -> -5.7601592e-06 | C125: ='DF raw data'!K130 -> -3.8187768e-06 | D125: ='DF raw data'!L130 -> 6.0423058e-06 | F125: -5.763891783e-06 | G125: -3.829755804e-06 | H125: 6.046221214e-06 | J125: -1.488313002e-05 | K125: -8.107818899e-06 | L125: 1.298717724e-06 | N125: -0.0005109516674 | O125: -0.01433026147 | P125: -6.189467219e-05 | Q125: -0.0001572265796 | R125: 4.973868379e-06
A126: 60.024 | B126: ='DF raw data'!J131 -> -1.1706684e-06 | C126: ='DF raw data'!K131 -> -1.1590723e-07 | D126: ='DF raw data'!L131 -> 9.5002551e-06 | F126: -1.171426993e-06 | G126: -1.162404639e-07 | H126: 9.506411265e-06 | J126: -2.13053139e-05 | K126: -6.482823321e-06 | L126: -1.327342561e-06 | N126: -0.0005216085854 | O126: -0.01459117008 | P126: -6.513738041e-05 | Q126: -0.0001898082973 | R126: 5.11208284e-06
A127: 60.5242 | B127: ='DF raw data'!J132 -> 6.5592503e-06 | C127: ='DF raw data'!K132 -> -4.8843262e-06 | D127: ='DF raw data'!L132 -> 4.2404204e-06 | F127: 6.563500694e-06 | G127: -4.898368665e-06 | H127: 4.243168192e-06 | J127: -1.805124063e-05 | K127: 9.132227336e-06 | L127: 3.558359924e-06 | N127: -0.000530637816 | O127: -0.01485659512 | P127: -6.05694403e-05 | Q127: -0.0002201051313 | R127: 5.254762463e-06
A128: 61.0244 | B128: ='DF raw data'!J133 -> 9.1280353e-06 | C128: ='DF raw data'!K133 -> -5.8480705e-06 | D128: ='DF raw data'!L133 -> -2.0206294e-07 | F128: 9.133950267e-06 | G128: -5.864883735e-06 | H128: -2.021938768e-07 | J128: -1.258733131e-05 | K128: -2.317025665e-06 | L128: 3.471250314e-06 | N128: -0.0005369339991 | O128: -0.0151251695 | P128: -6.172841654e-05 | Q128: -0.0002509816853 | R128: 5.400875143e-06
